{"text_format":"1","workbook":"xlsx","n_sheets":11,"sheets":["Usmernenie","Príklady","Príjmy","Spolu","Doklady","Adr","FP","Cis","Avízo_-_výnosy","Avízo_-_vratka","Skratky"],"not_rendered":{"charts":0,"images":0,"macros":0,"external_links":0,"defined_names":10,"comments":3,"pivot_tables":0},"unopened":[],"bounds":{"document_bytes":16777216,"sheet_cells":100000,"rows_first":2000,"rows_last":500,"rows_between":2000,"halvings":0,"cell_chars":16384,"cell_head_chars":4096},"cells_cut":0,"cells_raw":0,"read":"whole","date_system":"1900"}

{"sheet":"Usmernenie","index":0,"n_rows":143,"n_cols":4,"rows_kept":143,"cut":false,"hidden":false,"merged":[[0,2,0,3],[17,2,17,3],[18,2,18,3],[20,2,20,3]]}
["Usmernenie k priebežnému čerpaniu a vyúčtovaniu finančných prostriedkov poskytnutých v roku 2023"]
[]
["Základné pokyny"]
["1. Vložiť údaje do hárkov \"Príjmy\" a \"Doklady\"."]
["2. Skontrolovať hárky \"Doklady\" a \"Spolu\"."]
["3. Po kontrole odoslať elektronickú verziu formuláru na adresu ziadosti.sport@minedu.sk."]
["4. Vyplniť hárok  \"Avízo - vratka\" (len Prijímatelia, ktorí nevyčerpali celú sumu)."]
["5. Vytlačiť hárky \"Spolu\", \"Doklady\", \"Avízo - vratka\"."]
["6. Dopísať do hárku \"Spolu\" dátum a čas odoslania elektronickej verzie formuláru vyúčtovania."]
["7. Podpísať všetky hárky štatutárnym zástupcom a kontrolórom športovej organizácie v prípade, ak je zriadený podľa  § 10 ods. 1 Zákona č. 440/2015 Z. z.  o športe a o zmene a doplnení niektorých zákonov v znení neskorších predpisov (v súlade so stanovami), prípadne podľa pokynov na hárku.   "]
["8. Odoslať formulár vyúčtovania (hárky \"Doklady\", \"Spolu\" a \"Avízo - vratka\") v listinnej podobe na adresu: MŠVVaŠ SR, sekcia športu, Stromová 1, 813 30  Bratislava."]
["Pri vypĺňaní odporúčame použiť hárok „Príklady“, v ktorom sú vysvetlené najčastejšie druhy výdavkov. Pomôže v prípade, ak si nie ste istí, ako uviesť určitý typ výdavku."]
[]
["INFORMÁCIA – PRIEBEŽNÉ ZVEREJŇOVANIE A VYÚČTOVANIE PRÍSPEVKOV PRE KLUBY\n\nV prípade poskytnutia finančných prostriedkov z príspevku uznanému športu klubom podľa § 69 ods. (4) bod a) má prijímateľ finančných prostriedkov zo štátneho rozpočtu (ďalej len „prijímateľ“) dve možnosti:\n\n1. Príspevok poskytne priamym poukázaním na samostatný bankový účet klubu. V tomto prípade:\na) KLUB je povinný zriadiť pre príjem prostriedkov zo štátneho rozpočtu samostatný bankový účet,\nb) KLUB zverejňuje použitie príspevku v rovnakej forme a štruktúre ako prijímateľ príspevok uznanému športu, nakoľko v tomto prípade vystupuje klub ako prijímateľ,\nc) prijímateľ zverejňuje v hárku „Doklady“ poskytnutú sumu klubu ako samostatnú položku s Popisom úhrady „príspevok klubu“, pričom v Dodávateľovi plnenia uvedie názov klubu,\nd) prijímateľ uvádza vo formulári vyúčtovania finančných prostriedkov za aktuálny rok prostriedky poskytnuté klubom v rovnakej forme a štruktúre, ako ostatné účely uvedené v zmluve (viď hárok \"Príklady\").\n\n2. Príspevok poskytne formou refundácie výdavkov klubu na bankový účet klubu. V tomto prípade:\na) KLUB - nezverejňuje priebežné prijatie a čerpanie poskytnutých prostriedkov z príspevku uznanému športu, nakoľko tieto položky sú priebežne zverejňované prijímateľom,\nb) prijímateľ zverejňuje v hárku „Doklady“ refundované sumy klubu ako samostatné položky podľa konkrétneho účelu, pričom okrem sumy a účelu uvedie ako „Dodávateľa plnenia“ názov klubu aj konečného dodávateľa tovarov a služieb,\nc) prijímateľ - vyúčtovanie prostriedkov za aktuálny rok voči MŠVVaŠ SR sa predkladá rovnako ako v predchádzajúcom prípade.\n"]
[]
["INFORMÁCIA - PRIEBEŽNÉ ZVEREJŇOVANIE A VYÚČTOVANIE PRÍSPEVKU SLOVENSKÉMU PARALYMPIJSKÉMU VÝBORU\n\nV prípade poskytnutia finančných prostriedkov z príspevku na národný športový projekt podľa § 75 ods. (6) Slovenskému paralympijskému výboru (ďalej len „SPV“)  sa príspevok poskytne priamym poukázaním na samostatné bankové účty jednotlivých subjektov uvedených v zmluve (nie vo forme refundácie výdavkov). V tomto prípade:\na) je každý subjekt povinný zriadiť pre príjem prostriedkov zo štátneho rozpočtu samostatný bankový účet,\nb) SPV zverejňuje poskytnutú sumu subjektu ako samostatnú položku s Popisom úhrady „príspevok subjektu“, pričom v Dodávateľovi plnenia uvedie názov subjektu,\nc) subjekt zverejňuje použitie príspevku v rovnakej forme a štruktúre ako prijímateľ príspevku, t. j. SPV, nakoľko v tomto prípade vystupuje každý subjekt ako prijímateľ prostriedkov zo štátneho rozpočtu, \nd) SPV uvádza vo formulári vyúčtovanie finančných prostriedkov za aktuálny rok prostriedky poskytnuté samotnému SPV a subjekty združené v SPV v rovnakej forme a štruktúre ako SPV (viď hárok \"Príklady\"). Podľa zmluvy na aktuálny rok subjekty združené v SPV posielajú vyúčtovanie priamo MŠVVaŠ SR (nie cez SPV).\nToto ustanovenie sa rovnako vzťahuje aj na prípady vyčlenenia a poskytnutia finančných prostriedkov pre športy zdravotne znevýhodnených, patriacich pod príslušné národné športové zväzy v pôsobnosti jednotlivých medzinárodných federácií."]
[]
["(1) Priebežné čerpanie a vyúčtovanie príspevkov/dotácií poskytnutých zo štátneho rozpočtu v aktuálnom roku v oblasti športu (ďalej len \"Finančných prostriedkov\") sa vykonáva v termínoch a spôsobom, ktoré sú stanovené zákonom a v zmluve/dodatku k zmluve o poskytnutí Finančných prostriedkov (ďalej len „Zmluva“)."]
[]
["(2) Prijímateľ Finančných prostriedkov je v súlade s § 65 ods. (6) zákona o športe povinný priebežne zverejňovať informácie o prijatí a spôsobe použitia Finančných prostriedkov najneskôr do 25. dňa kalendárneho mesiaca nasledujúceho po kalendárnom mesiaci, v ktorom boli Finančné prostriedky prijaté alebo použité. \nZverejnením formuláru vyúčtovania na svojej webovej stránke a jeho pravidelnou aktualizáciou, vrátane oznámenia tejto webovej adresy ministerstvu, si túto povinnosť splníte."]
[]
["(3) Tento formulár obsahuje údaje o sumách a účeloch Finančných prostriedkov uvedených v Zmluve o poskytnutí finančných prostriedkov Prijímateľovi, vybranému zo zoznamu. Údaje sú aktualizované priebežne počas celého kalendárneho roka."]
[]
["(4) Prijímateľ aktualizuje k vloženému dátumu (bunka C1 hárku \"Príjmy\") sumu prijatých Finančných prostriedkov, ktoré mu boli poukázané od 01.01.2023 do 31.12.2023."]
[]
["(5) Prijímateľ uvádza každý príjem (poukázané Finančné prostriedky) a každý výdaj (použitie Finančných prostriedkov) na samostatnom riadku ako samostatnú položku. Ak je potrebné platbu rozdeliť na viacero účelov, rozpíše sa táto platba na viacero riadkov, v každom riadku sa vyberie príslušný účel (stĺpec A) a príslušný analytický kód účelu (stĺpec J)."]
[]
["(6) Formulár si uložte vo vašom počítači. V akomkoľvek hárku vypĺňate len žlté polia. V prípade nezrovnalostí alebo problémov pri vypĺňaní sa obráťte na zamestnancov sekcie športu MŠVVaŠ SR."]
[]
["(7) V hárku „Doklady“ vyberte zo zoznamu svoju organizáciu („Prijímateľ Finančných prostriedkov“)."]
[]
["(8) Do polí riadkov 107 až 3000 vložte postupne vyúčtovacie údaje (polia zmenia farbu na žltú). Údaje v stĺpcoch B až H je možné vyplniť aj vložením údajov z iného hárku .xls, alebo z iného zdroja (CTRL+C, CTRL+V). Údaje v stĺpci A nie je možné vyplniť kopírovaním z iného zdroja, ale je potrebné vybrať ich z ponúkaného zoznamu. Pri nedodržaní tohto upozornenia sa poruší funkčnosť formulára a takéto vyúčtovanie nebude akceptované."]
[]
["(9) Pri vkladaní údajov ako pomôcky použite komentáre, ktoré sa zobrazia, keď podržíte kurzor myši nad bunkami označenými malými červenými trojuholníčkami v záhlaví stĺpcov."]
[]
["(10) Pri vkladaní údajov uvádzajte plné výrazy, nie skratky (napr. namiesto DPC  treba uviesť „dohoda o pracovnej činnosti“). V nevyhnutnom prípade používajte skratky podľa zoznamu v hárku \"Skratky\", ktorý si môžete rozšíriť o vlastné skratky (je potrebné ich doplniť do príslušnej tabuľky). V stĺpci \"Dodávateľ plnenia\" nie je prípustné používať skratky, okrem skratiek, ktoré sú v oficiálnom názve subjektu.\nVyhnite sa prehnanému používaniu skratiek, ktoré nie sú bežne zaužívané, vyúčtovanie sa tak stáva neprehľadným. Poskytovateľ môže vrátiť neprehľadné vyúčtovanie na prepracovanie."]
[]
["(11) Pri vkladaní popisu uhradeného plnenia vyberte z rozbaľovacieho zoznamu správnu možnosť. V prípade, ak sa daná možnosť vo výbere nenachádza, zadajte voľný text (výstižný s presnou špecifikáciou plnenia)."]
[]
["(12) Vo vyúčtovaní Finančných prostriedkov môžu byť uvedené len doklady uhradené s dátumom od 01.01.2023 do 31.12.2023, resp. s dátumom, ktorý bol uvedený v zmluve/dodatku k zmluve o poskytnutí Finančných prostriedkov ako termín pre ich použitie. Rovnako to platí aj pre príspevky klubom a subjektom, napr. v prípade príspevku SPV, Slovenskému rýchlokorčuliarskemu zväzu atď, to znamená, že aj kluby a subjekty musia použiť prostriedky v termíne od 01.01.2023 do 31.12.2023, resp. v termíne, ktorý bol uvedený v zmluve/dodatku k zmluve o poskytnutí Finančných prostriedkov. Pri investíciách (kapitálové transfery) je termín použitia príspevku od 01.01.2023 do 31.03.2024. Pri vyúčtovaní kapitálových transferov je nevyhnutné priložiť  k vyúčtovaniu aj kópie faktúr vrátane ich príloh, kópie výpisov z účtu o úhrade faktúr, zmluvy a dodatky uzatvorené s dodávateľmi vrátane príloh, prípadne ďalšie dokumenty/doklady nevyhnutné na posúdenie oprávnenosti a preukázateľnosti výdavkov."]
["Upozornenie: V prípadoch, ak podľa zmluvy/dodatku k zmluve je  umožnené čerpať Finančné prostriedky, poskytnuté ako bežný transfer po 31.07.2023, v termíne do 31.03.2024, je to s výnimkou miezd, platov, služobných príjmov a ostatných osobných vyrovnaní a odmien vyplácaných na základe dohôd o prácach vykonávaných mimo pracovného pomeru, ktoré sa považujú za oprávnené, ak sú viazané k obdobiu do 31.12.2023 a zároveň sú uhradené do 28. februára 2024."]
[]
["(13) Vyúčtovávané sumy vkladajte s presnosťou na dve desatinné miesta."]
[]
["(14) V prípade inej meny ako euro, sumu na účtovnom doklade (napr. na faktúre) prepočítajte na eurá podľa kurzu na účtovnom doklade, resp. aktuálnym kurzom NBS ku dňu realizácie platby. V prípade doloženia faktúr (dokladov) za kapitálové výdavky je potrebné doložiť faktúru (doklad), na ktorej je uvedený kurz a dátum kurzu, podľa ktorého je suma prepočítaná, a zároveň uvedená aj samotná prepočítaná suma."]
[]
["(15) Je dôležité vyplniť všetky bunky v každom riadku. Prázdne bunky nie sú prípustné. Výnimku tvorí úvodný riadok k danej aktivite s presnou kvantifikáciou akcie/podujatia/súťaže/konferencie/školenia."]
[]
["(16) Pri vyúčtovávaní pracovnej cesty: vyúčtovanie pracovnej cesty (majstrovstvá sveta, sústredenie, školenie, podujatie, súťaž, konferencia, iná akcia) pozostáva z položiek, ktoré vyplývajú zo zákona č. 283/2002 Z. z. o cestovných náhradách. Prípadný materiál/služba zakúpený/á na pracovnej ceste sa zúčtuje ako samostatná položka (nie je súčasťou vyúčtovania pracovnej cesty)."]
[]
["(17) Nakoľko elektronická forma vyúčtovania bude zverejnená na internete, pri osobných nákladoch neuvádzajte mená osôb, ale „osoba 1“, „osoba 2“, „osoba 3“, atď. Pokiaľ jednej osobe boli prostriedky poskytnuté viackrát, tejto osobe je potrebné v stĺpci \"Dodávateľ plnenia\" uvádzať vždy to isté označenie."]
[]
["(18) V hárku „Doklady“ nemeňte typ ani veľkosť písma."]
[]
["(19) Doklady vkladajte podľa účelu."]
[]
["(20) Vyúčtovacie údaje sú spracovávané a analyzované automaticky v priebehu ich vkladania a je možné prezerať ich v hárku „Spolu“. Formulár automaticky vyhodnocuje čerpanie Finančných prostriedkov (analytický kód 1, 2, 3, 4, 5 a 10).\nPoznámka: \nV prípade, ak je v zmluve uvedená povinnosť spolufinancovania (napr. pri kapitálových výdavkoch na infraštruktúru národného významu), tak formulár vyhodnocuje aj sumu spolufinancovania (analytický kód 99).\nUpozornenie:\nDo hárku „Spolu“ nerobte žiadne zásahy (dôsledok nedodržania: znefunkčnenie automatického vyhodnocovania), takéto vyúčtovanie nebude akceptované."]
[]
["(21) Pred tlačou"]
["a) nastavte počet strán, ktoré budete tlačiť (dôsledok nedodržania: budete zbytočne tlačiť viac ako 80 strán, nakoľko automaticky je nastavená tlač všetkých 3 000 pripravených formátovaných riadkov, čo je cca 250 strán),"]
["b) skontrolujte identifikačné údaje o vašej organizácii (v prípade potreby zmeny identifikačných údajov organizácie kontaktujte zamestnancov sekcie športu MŠVVaŠ SR)."]
[]
["(22) Po vytlačení formulára\na) bez ďalších zásahov odošlite elektronický formulár na adresu ziadosti.sport@minedu.sk,\nb) na vytlačený formulár (hárok \"Spolu\") rukou dopíšte dátum a čas odoslania (nesnažte sa dopisovať tieto údaje priamo do elektronického formulára - ide o čas skutočného odoslania, nie o čas zamýšľaného odoslania),\nc) odošlite vytlačený formulár predpísanou formou na predpísanú adresu.\n"]
[]
["DÔLEŽITÉ UPOZORNENIA"]
[]
["Poskytovanie preddavkov z finančných prostriedkov (platby za zálohové faktúry) je podľa § 19 ods. 8  zákona 523/2004 Z. z. o rozpočtových pravidlách verejnej správy a o zmene a doplnení niektorých  zákonov v znení neskorších predpisov možné len v prípade, ak boli vopred v zmluve o dodávke výkonov a tovarov písomne dohodnuté, a to najviac na obdobie troch mesiacov v závislosti od vecného plnenia dodávok výkonov a tovarov. \nÚhrada preddavku z finančných prostriedkov v rozpore s týmto zákonom je porušením finančnej disciplíny podľa § 31 ods. 1 písm. l) cit. zákona o rozpočtových pravidlách.  \nVýnimkou je poskytnutie zálohy fyzickej osobe, vyslanej na pracovnú cestu, na krytie svojich nákladov podľa zákona o cestovných náhradách, ktorú vyslaná osoba zúčtováva po skončení pracovnej cesty. Poskytnutie zálohy musí byť zdokumentované príslušným dokladom.\nPlatba bez dokladu právnickej osobe nesmie byť poskytnutá (príjmový doklad predstaviteľa klubu nestačí, nakoľko to je iba doklad, na ktorom nie sú ceny za konečný tovar/službu). Dokladom môže byť iba pokladničný blok/faktúra konečného poskytovateľa služby, alebo dodávateľa tovaru. Originály, resp. v prípade refundácie kópie všetkých primárnych dokladov musia byť uložené u Prijímateľa Finančných prostriedkov a na požiadanie predložené príslušným orgánom vykonávajúcim kontrolu.                                                                                                                                                             \n\n"]
[]
["Ak Prijímateľ zrealizuje prevod Finančných prostriedkov z bankového účtu uvedeného v zmluve za účelom úhrady oprávnených nákladov Účelu \na) na účet dodávateľa tovaru alebo služby,\nb) na iný účet Prijímateľa, najviac však v sume určenej v tejto Zmluve a najviac v sume takto použitých vlastných finančných prostriedkov na Účel z tohto iného účtu Prijímateľa,\nc) na účet Priameho realizátora, ak z vlastných finančných prostriedkov uhradil výdavok na Účel, najviac však v sume určenej v tejto Zmluve a najviac v sume takto použitých vlastných finančných prostriedkov; všetky povinnosti a zmluvné záväzky Prijímateľa, najmä v súvislosti s vyúčtovaním Príspevku a jeho zverejňovaním, zostávajú v prípade takéhoto použitia nedotknuté,\nd) na účet svojho člena, ktorý je právnickou osobou alebo fyzickou osobou, na úhradu oprávnených nákladov na športovú činnosť v súlade so Zmluvou,\ne) na účet subjektov uvedených v Zmluve (napr. v prípade Slovenského paralympijského výboru resp. Slovenského rýchlokorčuliarskeho zväzu),\nf) na podúčty podľa Čl. 2 ods. 1 Zmluvy o poskytnutí príspevku uznanému športu, zriadené na čerpanie Príspevku pre príslušné športové odvetvia v jeho pôsobnosti,\nalebo hotovostnú operáciu vykonanú v nevyhnutnom a odôvodnenom rozsahu za účelom úhrady oprávnených nákladov Účelu v rozsahu podľa osobitného zákona, nepovažuje sa za poskytovateľa verejných prostriedkov."]
[]
["POZOR:"]
["Zálohové faktúry (čiastkové úhrady) za rovnaký tovar alebo rovnakú službu a k nim patriace vyúčtovacie faktúry (aj nulové), uvádzať vo vyúčtovaní v riadkoch pod sebou. Rovnako pri vyúčtovaní  tuzemských a zahraničných pracovných ciest, pri ktorých je najprv poskytnutá záloha a následne k nej vykonané vyúčtovanie pracovnej cesty, treba údaje uvádzať v riadkoch pod sebou s uvedením, že ide o vyúčtovanie pracovnej cesty (doplatok resp. vrátenie časti zálohovej platby)."]
["V prípade zúčtovania dane z pridanej hodnoty (ďalej len \"DPH\") uvádzať túto DPH do predloženého vyúčtovania priamo pod riadok k príslušnému internému číslu účtovného dokladu, na ktoré je DPH viazané. "]
["VZOR:"]
["Názov: Majstrovstvá Európy v ..."]
["Termín: 3.9.2023"]
["Miesto - mesto a štát: Varšava, Poľsko"]
["Spôsob dopravy: letecky/BUS"]
["Počet všetkých osôb na pracovnej ceste: 6, z toho:"]
["športovci (+ navádzači): 1"]
["tréneri, rozhodcovia, maséri, vedúci výpravy, lekár, fyzioterapeut atď.: 2"]
["ostatné osoby: 1"]
[]
["VYSVETLIVKY"]
[]
["Účel úhrady (stĺpec A)"]
["Vybrať z rozbaľovacieho zoznamu, inak formulár nebude správne vyhodnocovať vyúčtovanie."]
["POZOR:"]
["Doklady vkladať v poradí jednotlivých účelov. Uvádzať NÁZOV účelu/podujatia na všetky doklady, ktorých sa to týka."]
[]
["Interné číslo účtovného dokladu (stĺpec B)"]
["Uviesť číslo, pod ktorým je doklad zaevidovaný v účtovnej evidencii Prijímateľa Finančných prostriedkov v jeho peňažnom denníku alebo v knihe prijatých faktúr, pod ktorým je možné identifikovať doklad. Čísla dokladov je potrebné uvádzať presne, aj s pomlčkou, alebo iným znakom."]
["POZOR:"]
["Neuvádzať číslo faktúry, ani číslo pokladničného bloku, ani variabilný symbol platby. "]
[]
["Číslo externého (originálneho) účtovného dokladu (stĺpec C)"]
["Uviesť číslo účtovného dokladu, ktoré je na ňom uvedené: napr. číslo faktúry, variabilný symbol faktúry, číslo pracovnej zmluvy (napr. v prípade pracovného pomeru alebo dohody), číslo výdavkového pokladničného dokladu (napr. v prípade pracovnej cesty). V prípade refundácií uviesť čísla pôvodných dokladov. Čísla dokladov uvádzať presne (aj s pomlčkou, alebo iným znakom)."]
[]
["Dátum skutočnej úhrady účtovného dokladu (stĺpec D)"]
["Uviesť dátum, kedy bola platba zrealizovaná bankou (dátum na výpise z účtu), alebo vyplatená v hotovosti (dátum na  pokladničnom doklade)."]
["Pri refundáciách je to dátum prevodu zo samostatného účtu na refundovaný účet alebo dátum na pokladničnom doklade."]
["V prípade, ak ste uhrádzali výdavky zo svojho vlastného/iného účtu a následne  previedli Finančné prostriedky zo samostatného účtu na vlastný, uvádzajte dátum pôvodnej úhrady dokladu z vlastného/iného účtu."]
["POZOR:"]
["neuvádzať dátum zadania príkazu na úhradu,"]
["neuvádzať dátum splatnosti/vystavenia/zdaniteľného plnenia faktúry,"]
["dátum skutočnej úhrady nesmie byť neskorší ako termín použitia Finančných prostriedkov."]
[]
["Dátum refundácie účtovného dokladu (stĺpec E)"]
["Dátum refundácie účtovného dokladu (vyplniť len v prípade refundácie)"]
["Refundácia je úhrada výdavkov z účtu prijímateľa na účet priameho realizátora, resp. klubu/športovca."]
["Uviesť dátum, kedy bola platba zrealizovaná bankou (dátum na výpise z účtu) alebo vyplatená v hotovosti (dátum na pokladničnom doklade). Ak ide o účtovný doklad, ktorý bol refundovaný priamemu realizátorovi, resp. klubu/športovcovi, uvedťe rovnako dátum prevodu zo samostatného účtu prijímateľa alebo dátum na pokladničnom doklade."]
["V prípade, ak ste uhrádzali výdavky z iného Vášho účtu než samostatný účet uvedený v zmluve a následne previedli finančné prostriedky zo samostatného účtu na iný Váš účet, uvádzate dátum pôvodnej úhrady (z iného Vášho účtu)."]
[]
["Popis úhrady (stĺpec F)"]
["Uviesť výstižný popis toho, za čo bola úhrada vykonaná (napr. počet kusov, osôb, dní, názov podujatia, a pod.), to znamená vybrať jednu z ponúkaných možností a vypísať údaje podľa vzoru, alebo zadať vlastný text s presnou špecifikáciou."]
["UPOZORNENIE: pod pracovnou cestou sa rozumie účasť na akomkoľvek podujatí, zasadnutí výkonného výboru, valného zhromaždenia, sústredení, výcvikovom tábore, zasadnutí komisie, konferencii, súťaži, svetovom pohári, európskom pohári, príp. inej akcii."]
[null,null,null," "]
["VRATKY (vrátené nevyčerpané Finančné prostriedky) neuvádzať ani kladným ani záporným číslom. Nevyčerpané Finančné prostriedky sa automaticky zobrazia v hárku \"Spolu\", je potrebné vrátiť ich na príslušný účet MŠVVaŠ SR a zároveň poslať vyplnené tlačivo \"Avízo - vratka\"."]
["Dodatočne poskytnuté zľavy z pôvodnej ceny tovarov, služieb, storná za platby, dobropisy,...uvádzajte záporným číslom s označením \"STORNO\", \"ZĽAVA\", \"DOBROPIS\" atď."]
["V prípade nákupu PHM do služobného vozidla prijímateľa finančných prostriedkov je potrebné vybrať zo zoznamu položku \"Služobné motorové vozidlo\" a vypísať konkrétne údaje podľa vzoru.\nV prípade pracovnej cesty (majstrovstvá sveta, sústredenie, kongres, zasadnutie komisie a pod.) je potrebné vybrať zo zoznamu položku \"Pracovná cesta\" a vypísať konkrétne údaje podľa vzoru.\nV prípade vyplácania miezd a dohôd je potrebné vybrať zo zoznamu položku \"hrubá mzda vyplatená pracovníkovi\". Pri hrubých mzdách uvádzať dátum úhrady 31.12.2023.\nV prípade miezd vyplácaných pracovníkom na podujatí je potrebné vybrať zo zoznamu položku \"Podujatie\" a vypísať konkrétne údaje podľa vzoru.\nV prípade refundácie (napr.výdavkov  klubu) treba uzatvoriť zmluvu o refundácii (s daným klubom) a rozpísať použitie na konkrétne položky.\nV prípade vyúčtovania nákladov za používanie mobilu je potrebné uviesť, či ide o opravu alebo zakúpenie prístroja, hovory (obdobie, napr. 6/2023), dáta a pod."]
["POZOR:\nZálohové platby (iba ak sú dohodnuté s dodávateľmi v písomne uzatvorenej zmluve) za to isté plnenie uvádzať v riadkoch pod sebou. Ako poslednú uviesť vyúčtovaciu platbu (pozri aj riadok 72 tohto usmernenia)."]
[]
["IČO dodávateľa plnenia (stĺpec G)"]
["Uviesť IČO dodávateľa.\nV prípade zahraničného dodávateľa, ktorý nemá IČO, ostáva bunka nevyplnená."]
[]
["Dodávateľ plnenia (stĺpec H)"]
["Dodávateľom plnenia je"]
["a) v prípade pracovnej cesty účastník pracovnej cesty (meno a priezvisko, a NIE napr. \"osoba 1\"),"]
["b) v prípade vyúčtovania použitia služobného motorového vozidla prijímateľa Finančných prostriedkov osoba, ktorá zodpovedá za toto vozidlo (meno a priezvisko, NIE napr. \"osoba 1\"),"]
["c) v prípade, ak dodávateľom plnenia je živnostník, obchodné meno živnostníka, to znamená:"]
["VŽDY meno a priezvisko živnostníka (NIE napr. \"osoba 1\") s označením \"živnostník\",  nakoľko ide o obchodné meno a príjem z podnikateľskej činnosti,"]
["d) v prípade, ak boli finančné prostriedky poskytnuté športovcovi alebo trénerovi na základe schváleného príspevku/dotácie ako napr. \"Ocenenie športovcov a trénerov...\", je to príslušný športovec/tréner, a je potrebné uviesť jeho meno a priezvisko (NIE napr. \"osoba 1\"),"]
["e) v ostatných prípadoch je to VŽDY konečný prijímateľ finančných prostriedkov, dodávateľ podľa faktúry/pokladničného bloku, napríklad: Slovenská pošta, Slovak Telekom, Gumon a.s., Jozef Mak - podnikateľ"]
["POZOR:"]
["Dodávateľom plnenia nemôže byť nikdy prijímateľ Finančných prostriedkov (nie zväz, nie asociácia a pod.)."]
[]
["Skutočne uhradená suma (stĺpec I)"]
["Uviesť skutočne uhradenú sumu v eurách s presnosťou na dve desatinné miesta. Sumy je potrebné uvádzať presne ako na faktúre (nielen približne).\nDoplnenie: Úhradu môžete vykonať zo samostatného bankového účtu, uvedeného v Zmluve."]
[]
["Analytický kód (stĺpec J)"]
["(vybrať z rozbaľovacieho zoznamu)\nAnalytický kód PRE PRÍSPEVOK UZNANÉMU ŠPORTU:\n1 = šport mládeže do 23 rokov (cez kluby)\n2 = talentovaní športovci\n3 = športová reprezentácia\n4 = správa a prevádzka\n5  = iné (ostatná športová činnosť, vrátane kapitálových transferov z PUŠ)\n\nAnalytický kód PRE OSTATNÉ FINANČNÉ PROSTRIEDKY :\n10 = ostatné účely\n99 = spolufinancovanie (výlučne iba ak bola zmluvne určená povinnosť spolufinancovania) "]
[]
["Upozornenie: Vo formulári na vyúčtovanie príspevku uznanému športu sú zapracované ustanovenia novely zákona o športe, podľa ktorých v roku, v ktorom bola vyhlásená krízová situácia a trvala viac ako 30 dní, sa ustanovenia § 69 ods. 4 zákona o športe nepoužijú a ustanovenia zmluvy o poskytnutí príspevku uznanému športu, ktoré sa týkajú rozdelenia finančných prostriedkov podľa § 69 ods. 4, sa v príslušnom kalendárnom roku  nebudú uplatňovať.  Zaradenie výdavkov do jednotlivých analytických kódov, aj keď má v takom prípade len informatívny charakter, je potrebné vyplniť."]

{"sheet":"Príklady","index":1,"n_rows":76,"n_cols":9,"rows_kept":76,"cut":false,"hidden":false,"merged":[[0,0,0,7],[1,0,1,6],[1,7,1,8],[2,7,2,8],[3,1,3,4]]}
["Príklady vyplnenia formulára"]
["Priebežné čerpanie finančných prostriedkov poskytnutých zo štátneho rozpočtu v oblasti športu v roku 2023",null,null,null,null,null,null,{"$f":"+Doklady!I100","v":"V4"}]
[null,null,null,null,null,null,null,{"$f":"+Doklady!I101","v":"2024-01-25"}]
["Prijímateľ dotácie:","Slovenský zväz skúšobný"]
[]
[]
["Účel úhrady\n(vyberte zo zoznamu, inak automatické vyhodnocovanie nebude fungovať)","Interné číslo účtovného dokladu","Číslo externého (originálneho)\núčtovného dokladu","Dátum skutočnej úhrady účtovného dokladu","Popis úhrady\n(vyberte z rozbaľovacieho zoznamu, alebo zadajte voľný text)","IČO \ndodávateľa\nplnenia","Dodávateľ plnenia","Skutočne uhradená suma\n(eur)","AK"]
["a - kriket - bežné výdavky",null,null,"2023-05-02","Organizovanie podujatia\nNázov podujatia: Svetový pohár v skúškach\nMiesto konania: Brezno\nTermín: 15. - 18.4.2023\nPočet zúčastnených osôb (okrem divákov): 20\n"]
["a - kriket - bežné výdavky","123/2023","CP14-110","2023-05-03","počet odpracovaných hodín spolu: 100\nhrubé mzdy vyplatené osobám v súvislosti s podujatím vrátane odvodov zamestnávateľa spolu (dohody, zmluvy, faktúry, a pod.) v eur",null,"osoba 1 - osoba 20",400,3]
["a - kriket - bežné výdavky","124/2023","DF 24","2023-05-04","náklady na ubytovanie 10 športovcov + 1 tréner",null,"Chata Breznovčan",null,3]
["a - kriket - bežné výdavky","100/2023","3020","2023-05-05","grafické práce na výrobe loga podujatia",null,"Anna Malá - PROMOTION, s.r.o.",100,3]
["a - kriket - bežné výdavky","121/2023","100002352","2023-05-06","cestovné - vlak - Bratislava - Brezno, 16 osôb ",null,"Ján Rýchly",50,3]
["a - kriket - bežné výdavky","125/2023","DF 26","2023-05-07","stravovanie 20 osôb",null,"Reštaurácia \"U vodníka\", Brezno",200,3]
["a - kriket - bežné výdavky","126/2023","DF 29","2023-05-08","prenájom plavárne",null,"STARZ, Bratislava",null,3]
["a - kriket - bežné výdavky","128/2023","DF 30","2023-05-09","nákup športového oblečenia - 15 ks",null,"Adidas, Brezno",505,3]
["a - kriket - bežné výdavky",null,null,"2023-05-10","Pracovná cesta\n\nNázov: Majstrovstvá V4 v skúškach\nTermín: 3.9.2023\nMiesto - mesto a štát: Varšava, Poľsko\nSpôsob dopravy: letecky/BUS\nPočet všetkých osôb na pracovnej ceste: 6, z toho:\n- športovci (+ navádzači): 1\n- tréneri + rozhodcovia + vedúci výpravy + lekár + fyzioterapeut + masér + ): 1\n- ostatné osoby (napr. sponzori, hostia): 4"]
["a - kriket - bežné výdavky","270/2023","3252514","2023-05-11","nákup leteniek - 6 ks",null,"Czech Airlines",null,2]
["a - kriket - bežné výdavky","274/2023","D/258/2020","2023-05-12","materiálové zabezpečenie pretekov - nákup 4 pušiek",null,"Puškárstvo - Ernest Bezaj, Malinovo",null,2]
["a - kriket - bežné výdavky","275/2023","DF 32","2023-05-13","občerstvenie - 6 osôb",null,"Messing Catering, s.r.o., Rovinka",1000,2]
["a - kriket - bežné výdavky","280/2023","DF 33","2023-05-14","ubytovanie - 2 osoby",null,"Jozef Karát - privát, Šaľa",300,2]
["a - kriket - bežné výdavky","190/2023","DF50","2023-05-15","prenájom miestnosti",null,"Double Tree Hotel, Bratislava",600,2]
["a - kriket - bežné výdavky","250/2023","999","2023-05-16","cestovné - Cerová - Trnava a späť, 3.9.2023, 2 osoby",null,"Železničná spoločnosť, a.s., Slovensko",25.9,2]
["a - kriket - bežné výdavky","251/2023","258963","2023-05-17","vecné ceny - poháre 3 ks",null,"Victory sport, s.r.o.",null,2]
["a - kriket - bežné výdavky",null,null,"2023-05-18","Ostatné"]
["a - kriket - bežné výdavky","P1/V/316","P1/V/316","2023-05-19","Hrubé mzdy vyplatené osobám (zamestnancom) vrátane odvodov zamestnávateľa za rok 2023\npočet fyzických osôb: 5",null,"osoba 1, osoba 4 - 7",null,4]
["a - kriket - bežné výdavky","J/2023-20","258","2023-05-20","doplnky výživy - 21 športovcov",null,"Lekáreň Kozia, Bratislava",124,2]
["a - kriket - bežné výdavky","DF2023/326",1213275,"2023-05-21","oprava športtesteru",null,"TOP TREND Patrik Valo",19.100000000000001,2]
["a - kriket - bežné výdavky","DF2023/193",2007006035,"2023-05-22","havarijné poistenie 1-3/2021, EČV BA 258 KK",null,"Uniqa poisťovňa, a.s.",277.74,4]
["a - kriket - bežné výdavky","2023-12-01","258","2023-05-23","diaľničná nálepka na rok 2023",null,"OMV, s.r.o.",50,4]
["a - kriket - bežné výdavky","199/2023","32","2023-05-24","poštovné",null,"Slovenská pošta, a.s.",9,4]
["a - kriket - bežné výdavky","2023-05-01","3","2023-05-25","nájom kancelárskych priestorov 2/2023",null,"Slovenské združenie telesnej kultúry",10,4]
["a - kriket - bežné výdavky","P1/V/259","20123698752","2023-05-26","regenerácia, 8 športovcov, 8/2023",null,"SPORTMEDICAL s.r.o., Bratislava",500,1]
["a - kriket - bežné výdavky","235/2023","40010","2023-05-27","nákup materiálu - reprezentačná vlajka 1 ks",null,"ADAT, s.r.o.",71.2,3]
["a - kriket - bežné výdavky","206/2023","DF100/9/2020","2023-05-28","refundácia nákladov na základe zmluvy pre CTM Žilina: Okresné kolo v skúškach, 7.8.2023, Žilina, 43 osôb, z toho: 37 športovcov, 1 tréner, 1 strážna služba,  1 masér, 3 technickí pracovníci, úhrada nákladov za stravovanie ",null,"Prestige catering, s.r.o.",250,1]
["a - kriket - bežné výdavky","207/2023","DF500","2023-05-29","prenájom plavárne, 4 dráhy, 8 hodín",null,"Mesto Žilina",320,5]
["a - kriket - bežné výdavky","305/2023","14","2023-05-30","upratovacie služby 5/2023",null,"Boris Dubaj - živnostník",40,4]
["a - kriket - bežné výdavky","2023-01-01","V-2020-3","2023-05-31","bankové poplatky",null,"SLSP, a.s.",25,4]
["a - kriket - bežné výdavky","2023-03-01","980","2023-06-01","poplatok medzinárodnej federácii za rok 2023",null,"Internationale Asociation .....",150,4]
["a - kriket - bežné výdavky","2023-04-01","5","2023-06-02","členský poplatok za rok 2023",null,"Konfederácia športových zväzov",100,4]
["a - kriket - bežné výdavky","301/2023","78954787","2023-06-03","prenájom optického kábla 3/2023",null,"e-Net, s.r.o.",74.099999999999994,4]
["a - kriket - bežné výdavky","330/2023","FD52","2023-06-04","poplatky za telefón, 7/2023",null,"Slovak telekom, a.s.",120,2]
["a - kriket - bežné výdavky","V1-12","V1-12","2023-06-05","PHM - služobné motorové vozidlo\nEČV: BA 111 SA\nObdobie: 14.4. - 18.4.2023\nNajazdené kilometre: 800 km",null,"Slovnaft, a.s. Bratislava",80,3]
["a - kriket - bežné výdavky","25","358","2023-06-06","trénerské služby 10/2023",null,"Ondrej Pado - živnostník",600,1]
["a - kriket - bežné výdavky","3","26985235","2023-06-07","oprava služobného motorového vozidla, BA 222 AA",null,"Prvý autoservis, Bratislava",10,3]
["a - kriket - bežné výdavky","P1/V/309","PP46130119","2023-06-08","lekárske vyšetrenie - 10 športovcov",null,"Alpha medical a.s.",19,2]
["a - kriket - bežné výdavky","300/2023","256","2023-06-09","laboratórne vyšetrenie",null,"Nemocnica s poliklinikou, Prešov",230,2]
["a - kriket - bežné výdavky","V/2023/3","DF2020/143","2023-06-10","lyžiarsky servis - február 2023",null,"Dušan Otčenáš - Martek Sport",175,2]
["a - kriket - bežné výdavky","ID258",369963,"2023-06-11","športová výstroj - tenisové rakety - 7 ks",null,"Sportissimo, Bratislava",null,1]
["b - Sergej Bubka",null,null,"2023-06-12","Pracovná cesta\nNázov: Výcvikový tábor\nTermín: 1.12.-20.12.2023\nMiesto - mesto a štát: Moskva, Ruská federácia\nSpôsob dopravy: LET\nPočet všetkých osôb na pracovnej ceste: 2, z toho - športovci: 1\n- tréner: 1",null,null,null,10]
["b - Sergej Bubka","DF2023/309",20200136,"2023-06-13","trénerské služby - 1.12-20.12.2023",null,"Peter Konrád ",360,10]
["b - Sergej Bubka","R/2023/11","20123698752","2023-06-14","regenerácia",null,"SPORTMEDICAL s.r.o., Bratislava",500,10]
["b - Sergej Bubka","2023-08-01","369","2023-06-15","prenájom tenisového kurtu 1.2.2023",null,"Národné tenisové centrum, a.s.",20,10]
["b - Sergej Bubka","40/2023","25412","2023-06-16","doplnky výživy",null,"Sunpharma, s.r.o.",25,10]
["a - kriket - mikrobus","2023-09-01","4/2020/DU","2023-06-17","nákup mikrobusu, EVČ BA 111 SS (faktúra doložená v prílohe vyúčtovania)",null,"AUDI centrum, s.r.o.",20000,5]
["a - kriket - hala","89/2023","36/14","2023-06-18","rekonštrukcia športovej haly v Čadci - opláštenie tribúny, výmena sedadiel, rekonštrukcia šatní a sociálnych zariadení (faktúra doložená v prílohe vyúčtovania)",null,"Rekostav, s.r.o., Čadca",30000,5]
["(1) - výber a príprava športových talentov",null,null,"2023-06-19","Pracovná cesta                                                          Názov: Sústredenie dievčat                                             Termín: 03.-07.06.2023                                                    Miesto - mesto a štát: Košice                         Spôsob dopravy: vlak                                                        Počet všetkých osôb na pracovnej ceste: 48, z toho:\n- športovci (+ navádzači): 44\n- tréneri + rozhodcovia + vedúci výpravy + lekár + fyzioterapeut + masér + ): 3\n- ostatné osoby (napr. sponzori, hostia): 1",null," "]
["a - kriket - bežné výdavky","ID082","555","2023-06-20","doprava, BUS, 2.7.2023, 7.6.2021, 39 osôb",null,"Autodoprava Charvát, Veľké Bielice",123,2]
["a - kriket - bežné výdavky","ID100","444","2023-06-21","cestovné, VLAK, Banská Bystrica - Košice, 3.7.2023, 8 osôb",null,"Ján Rýchly, prezident zväzu",1600,2]
["a - kriket - bežné výdavky",null,null,"2023-06-22","Ostatné",null,null,null,2]
["a - kriket - bežné výdavky","FA213090","1300072","2023-06-23","potlač 4 ks športových dresov ",null,"RES Promotion, s.r.o., Košice 1",21.36,2]
["a - kriket - bežné výdavky","310/2023","DF2555","2023-06-24","regenerácia 16.5.2023, 1 športovec",null,"Fyziopraktik, s.r.o.",20,2]
["a - kriket - bežné výdavky","32/2023","PZ5","2023-06-25","trénerská činnosť 12/2023",null,"Henrich Madaj - živnostník",200,2]
["a - kriket - bežné výdavky","25/2023","254","2023-06-26","Materiálové vybavenie športovcov CTM Žilina, náhradné súčiastky na bicykel",null,"Bottico, s.r.o. Otrokovice",201.5,2]
["a - kriket - bežné výdavky","288/2023","141","2023-06-27","regenerácia športovcov CTM Bobot, 30 hodín",null,"Slovenské liečebné kúpele Rajecké Teplice, a.s.",1010,2]
["a - kriket - bežné výdavky","ID221","25","2023-06-28","refundácia nákladov na základe zmluvy za centrum talentovanej mládeže Bošáca: sústredenie mladších žiačok, 30.6.-7.7.2023, Bardejov, ubytovanie, 12 osôb ",null,"Ubytovňa Nádej, Bardejov",1330,2]
["d - finančné odmeny športovcom a trénerom - Eleonóra Sihoťová","2023-12-01","760998","2023-06-29","odmena športovcom za výsledky dosiahnuté v roku 2023",null,"Peter Novák",1000,10]
["d - finančné odmeny športovcom a trénerom -  Miroslav Hurban ","13/2023","760852","2023-06-30","odmena trénerovi mládeže ",null,"Miroslav Hurban",200,10]
["d- Národná súťaž v skúškach",null,null,"2023-07-01","Organizovanie podujatia                                                          Názov: Národná súťaž v skúškach                                             Termín: 15.06.2023                                                    Miesto - mesto a štát: Pezinok                                                              Počet zúčastnených osôb (okrem divákov): 547         ",null,null,null,10]
["d- Národná súťaž v skúškach","66/2023","25","2023-07-02","tlač diplomov A4 547 ks",null,"Mouton, s.r.o. Žilina",147.35,10]
["d- Národná súťaž v skúškach","361/2023","36","2023-07-03","technické a organizačné zabezpečenie súťaže - úprava pretekárskej dráhy, stavba pódia, organizácia záverečného ceremoniálu, moderovanie ",null,"Dušan Tesár - Select Managering, s.r.o.",2500,10]
["d- Národná súťaž v skúškach","98/2023","14","2023-07-04","nákup športového vybavenia - 20 ks lôpt",null,"Sport, s.r.o. Poprad",1200,10]
["d- Národná súťaž v skúškach","PC2023/36","56/C","2023-07-05","PHM - služobné motorové vozidlo\nEČV: BL 363 AA\nObdobie: 10.6.-15.6.2023\nNajazdené kilometre: 600",null,"OMV, s.r.o., Bratislava",350,10]
["d- Národná súťaž v skúškach",null,null,"2023-07-06","Organizovanie podujatia                                                          Názov: M-SR žiakov ZŠ v skúškach                                             Termín: 15.05.2023                                                    Miesto - mesto a štát: Nitra                                                              Počet zúčastnených osôb (okrem divákov): 220         ",null,null,null,10]
["d- Národná súťaž v skúškach","380/2023","952","2023-07-07","športový materiál - bedmintonové rakety, košíky",null,"Funny sport, s.r.o., Prešov ",null,10]
["d- Národná súťaž v skúškach","390/2023","3852/2020","2023-07-08","zdravotné služby",null,"DZS OPTIMUS, s.r.o.",null,10]
["d- obnova turistických značkovaných trás a údržba turistických informačných miest","400/2023","V582/14","2023-07-09","materiál na obnovu značkovania - okres Poprad - farby, štetce, stĺpiky",null,"Color, s.r.o., Poprad",10,10]

{"sheet":"Príjmy","index":2,"n_rows":61,"n_cols":7,"rows_kept":61,"cut":false,"hidden":false,"merged":[[0,0,0,1],[2,1,2,3],[16,0,16,3]]}
["Aktualizovaná suma prostriedkov poskytnutých ministerstvom k  dátumu",null,"2023-12-31",null,null,null,"2023-01-31"]
[null,null,null,null,null,null,"2023-02-28"]
["Prijímateľ",{"$f":"INDEX(Adr!B:B,Doklady!B102+1)","v":"Slovenský zväz vodného lyžovania a wakeboardingu"},null,null,null,null,"2023-03-31"]
["IČO:",{"$f":"RIGHT(\"0000\"&INDEX(Adr!A:A,Doklady!B102+1),8)","v":"30793203"},null,null,null,null,"2023-04-30"]
["Sídlo:",{"$f":"INDEX(Adr!D:D,Doklady!B102+1)&\", \"&INDEX(Adr!E:E,Doklady!B102+1)","v":"Junácka 6, Bratislava"},null,null,null,null,"2023-05-31"]
[null,null,null,null,null,null,"2023-06-30"]
[null,null,null,null,null,null,"2023-07-31"]
[null,null,null,null,null,null,"2023-08-31"]
["PPG","PPG","Poskytnuté prostriedky",null,null,null,"2023-09-30"]
["026 01","Šport pre všetkých, školský a univerzitný šport",{"$f":"+Spolu!C10","v":0},null,null,null,"2023-10-31"]
["026 02","Uznané športy",{"$f":"+Spolu!C11","v":76898},null,null,null,"2023-11-30"]
["026 03","Národné športové projekty",{"$f":"+Spolu!C12","v":0},null,null,null,"2023-12-31"]
["026 04","Športová infraštruktúra",{"$f":"+Spolu!C13","v":0},null,null,null,"2024-01-31"]
["026 05","Prierezové činnosti v športe",{"$f":"+Spolu!C14","v":0},null,null,null,"2024-02-29"]
["SPOLU",null,{"$f":"SUM(C10:C14)","v":76898},null,null,null,"2024-03-31"]
[null,null,null,null,null,null,"2024-04-30"]
["Prijímateľ prostriedkov zo štátneho rozpočtu je povinný priebežne zverejňovať informácie o prijatí a spôsobe ich použitia najneskôr do 25. dňa kalendárneho mesiaca nasledujúceho po kalendárnom mesiaci, v ktorom boli prijaté alebo použité ( § 65, ods. 6 zákona č. 440/2015 Z. z. o športe a o zmene a doplnení niektorých zákonov v znení neskorších predpisov).",null,null,null,null,null,"2024-05-31"]
[null,null,null,null,null,null,"2024-06-30"]
[null,null,null,null,null,null,"2024-07-31"]
[null,null,null,null,null,null,"2024-08-31"]
[null,null,null,null,null,null,"2024-09-30"]
[null,null,null,null,null,null,"2024-10-31"]
[null,null,null,null,null,null,"2024-11-30"]
[null,null,null,null,null,null,"2024-12-31"]
[]
[]
[]
[]
[]
[]
[]
[]
[]
[]
[]
[]
[]
[]
[]
[]
[]
[]
[]
[]
[]
[]
[]
[]
[]
[]
[]
[]
[]
[]
[]
[]
[]
[]
[]
[]
[15]

{"sheet":"Spolu","index":3,"n_rows":81,"n_cols":21,"rows_kept":81,"cut":false,"hidden":false,"merged":[[11,4,11,5],[0,0,0,8],[2,2,2,5],[8,4,8,5],[9,4,9,5],[10,4,10,5],[24,1,24,7],[12,4,12,5],[13,4,13,5],[15,1,15,7],[16,1,16,7],[17,1,17,7],[18,1,18,7],[19,1,19,7],[20,1,20,7],[21,1,21,7],[22,1,22,7],[23,1,23,7],[78,3,78,8],[25,1,25,7],[26,1,26,7],[27,1,27,7],[28,1,28,7],[29,1,29,7],[30,1,30,7],[31,1,31,7],[32,1,32,7],[33,1,33,7],[49,0,49,8],[77,3,77,8]]}
["Priebežné čerpanie a vyúčtovanie finančných prostriedkov poskytnutých zo štátneho rozpočtu v oblasti športu v roku 2023"]
[]
[null,"Prijímateľ dotácie:",{"$f":"INDEX(Adr!B2:B103,Doklady!B102)","v":"Slovenský zväz vodného lyžovania a wakeboardingu"},null,null,null,null,null,{"$f":"Doklady!I100","v":"V4"}]
[null,"IČO:",{"$f":"INDEX(Adr!A2:A154,Doklady!B102)","v":"30793203"},null,null,null,null,null,{"$f":"Doklady!I101","v":"2024-01-25"}]
[null,"Právna forma:",{"$f":"INDEX(Adr!C2:C154,Doklady!B102)","v":"občianske združenie"}]
[null,"Sídlo:",{"$f":"INDEX(Adr!D2:D154,Doklady!B102)&\", \"&INDEX(Adr!E2:E154,Doklady!B102)&\", \"&INDEX(Adr!F2:F154,Doklady!B102)","v":"Junácka 6, Bratislava, 832 80"}]
[]
[]
["PPG","Podprogram","Poskytnuté\n(eur)","Vyúčtované\n(eur)","Povinnosť\nvrátiť\n(eur)"]
["026 01","Šport pre všetkých, školský a univerzitný šport",{"$f":"SUMIF(FP!J:J,Doklady!$B$1&A10,FP!D:D)","v":0},{"$f":"C10-E10","v":0},{"$f":"SUMIF(K:K,A10,I:I)","v":0},null,null,null,null,null,null,"AAA"]
["026 02","Uznané športy",{"$f":"SUMIF(FP!J:J,Doklady!$B$1&A11,FP!D:D)","v":76898},{"$f":"+C11-E11","v":76898},{"$f":"+I39-I42+I44-I47","v":0},null,null,null,null,null,null,{"$f":"L41","v":"a - vodné lyžovanie - bežné transfery"}]
["026 03","Národné športové projekty",{"$f":"SUMIF(FP!J:J,Doklady!$B$1&A12,FP!D:D)","v":0},{"$f":"C12-E12","v":0},{"$f":"SUMIF(K:K,A12,I:I)","v":0},null,null,null,null,null,null,{"$f":"L42","v":"a - vodné lyžovanie - kapitálové transfery"}]
["026 04","Športová infraštruktúra",{"$f":"SUMIF(FP!J:J,Doklady!$B$1&A13,FP!D:D)","v":0},{"$f":"C13-E13","v":0},{"$f":"SUMIF(K:K,A13,I:I)","v":0},null,null,null,null,null,null,{"$f":"L46","v":2}]
["026 05","Prierezové činnosti v športe",{"$f":"SUMIF(FP!J:J,Doklady!$B$1&A14,FP!D:D)","v":0},{"$f":"C14-E14","v":0},{"$f":"SUMIF(K:K,A14,I:I)","v":0},null,null,null,null,null,null,{"$f":"L47","v":"2"}]
[]
["Účel","Názov",null,null,null,null,null,null,"Suma"]
["a","príspevok uznaným športom",null,null,null,null,null,null,{"$f":"SUMIF(FP!I:I,Doklady!$B$1&A17,FP!D:D)","v":76898}]
["b","príspevok Slovenskému olympijskému a športovému výboru",null,null,null,null,null,null,{"$f":"SUMIF(FP!I:I,Doklady!$B$1&A18,FP!D:D)","v":0}]
["c","príspevok Slovenskému paralympijskému výboru",null,null,null,null,null,null,{"$f":"SUMIF(FP!I:I,Doklady!$B$1&A19,FP!D:D)","v":0}]
["d","príspevok športovcom top tímu",null,null,null,null,null,null,{"$f":"SUMIF(FP!I:I,Doklady!$B$1&A20,FP!D:D)","v":0}]
["e","organizácia významnej súťaže alebo účasť na významnej súťaži podľa § 3 písm. h) vrátane prípravy na túto súťaž",null,null,null,null,null,null,{"$f":"SUMIF(FP!I:I,Doklady!$B$1&A21,FP!D:D)","v":0}]
["f","plnenie úloh verejného záujmu v športe",null,null,null,null,null,null,{"$f":"SUMIF(FP!I:I,Doklady!$B$1&A22,FP!D:D)","v":0}]
["g","rozvoj športov, ktoré nie sú uznanými podľa zákona č. 440/2015 Z. z.",null,null,null,null,null,null,{"$f":"SUMIF(FP!I:I,Doklady!$B$1&A23,FP!D:D)","v":0}]
["h","podpora a rozvoj turistických a cykloturistických trás",null,null,null,null,null,null,{"$f":"SUMIF(FP!I:I,Doklady!$B$1&A24,FP!D:D)","v":0}]
["i","finančné odmeny športovcom a trénerom mládeže za dosiahnuté výsledky",null,null,null,null,null,null,{"$f":"SUMIF(FP!I:I,Doklady!$B$1&A25,FP!D:D)","v":0}]
["j","projekty školského športu, univerzitného športu a športu pre všetkých",null,null,null,null,null,null,{"$f":"SUMIF(FP!I:I,Doklady!$B$1&A26,FP!D:D)","v":0}]
["k","výstavba, modernizácia a rekonštrukcia športovej infraštruktúry národného významu",null,null,null,null,null,null,{"$f":"SUMIF(FP!I:I,Doklady!$B$1&A27,FP!D:D)","v":0}]
["l","podpora zdravotne postihnutých športovcov",null,null,null,null,null,null,{"$f":"SUMIF(FP!I:I,Doklady!$B$1&A28,FP!D:D)","v":0}]
["m","Inovatívne formy vzdelávania na hodinách telesnej a športovej výchovy na I. stupni základných škôl (\"moduly\")",null,null,null,null,null,null,{"$f":"SUMIF(FP!I:I,Doklady!$B$1&A29,FP!D:D)","v":0}]
["n",null,null,null,null,null,null,null,{"$f":"SUMIF(FP!I:I,Doklady!$B$1&A30,FP!D:D)","v":0}]
["o",null,null,null,null,null,null,null,{"$f":"SUMIF(FP!I:I,Doklady!$B$1&A31,FP!D:D)","v":0}]
["p",null,null,null,null,null,null,null,{"$f":"SUMIF(FP!I:I,Doklady!$B$1&A32,FP!D:D)","v":0}]
["q",null,null,null,null,null,null,null,{"$f":"SUMIF(FP!I:I,Doklady!$B$1&A33,FP!D:D)","v":0}]
["r",null,null,null,null,null,null,null,{"$f":"SUMIF(FP!I:I,Doklady!$B$1&A34,FP!D:D)","v":0}]
[]
["Použitie príspevku uznanému športu",null,1,2,3,4,5,5]
[]
["Účel",{"$f":"\"Šport \"&K40","v":"Šport vodné lyžovanie"},"mládež 23\nMIN.15%","talenty\nMIN.20%","reprezentácia\nMIN.25%","prevádzka\nMAX.20%","ostatné úlohy","kapitálové transfery z PUŠ","SPOLU",null,null,{"$f":"COUNTIF(FP!N:N,Doklady!B1&\"aB\")","v":1}]
["a","Poskytnutý príspevok uznanému športu",{"$f":"I39*0","v":0},{"$f":"I39*0","v":0},{"$f":"I39*0","v":0},{"$f":"+I39*0.2","v":15379.6},{"$f":"+MAX(I39-C39-D39-E39-F39-H39,0)","v":61518.400000000001},{"$f":"+IFERROR(VLOOKUP(K40&\" - kapitálové transfery\",B$53:C$57,2,0),0)","v":0},{"$f":"SUMIF(FP!K:K,K40,FP!D:D)","v":76898},null,null,{"$f":"COUNTIF(FP!N:N,Doklady!B1&\"aK\")","v":0}]
["a","Vyúčtovaný príspevok uznanému športu",{"$f":"DSUM(Doklady!A103:J10023,\"GGG\",Spolu!L40:M42)","v":12893},{"$f":"DSUM(Doklady!A103:J10023,\"GGG\",Spolu!N40:O42)","v":21578.15},{"$f":"DSUM(Doklady!A103:J10023,\"GGG\",Spolu!P40:Q42)","v":28420.899999999994},{"$f":"DSUM(Doklady!A103:J10023,\"GGG\",Spolu!R40:S42)","v":4821.5199999999995},{"$f":"DSUM(Doklady!A103:J10023,\"GGG\",Spolu!T40:U42)-H40","v":9184.43},{"$f":"+IFERROR(VLOOKUP(K40&\" - kapitálové transfery\",B$53:D$57,3,0),0)","v":0},{"$f":"+C40+D40+E40+F40+G40+H40","v":76898},{"$f":"+K45","v":"."},{"$f":"IF(L38>0,INDEX(FP!K:K,Doklady!B2),\".\")","v":"vodné lyžovanie"},"AAA","HHH","AAA","HHH","AAA","HHH","AAA","HHH","AAA","HHH"]
["a","ROZDIEL",{"$f":"MAX(C39-C40,0)","v":0},{"$f":"MAX(D39-D40,0)","v":0},{"$f":"MAX(E39-E40,0)","v":0},{"$f":"MIN(I39,MAX(-F39+F40,0))","v":0},{"$f":"MIN(J39,MAX(-G39+G40+MIN(F40-F39,0),0))","v":0},{"$f":"MAX(H39-H40,0)","v":0},{"$f":"+I39-I42","v":0},{"$f":"+K46","v":0},{"$f":"+I41-H41","v":0},{"$f":"IF(L38>0,\"a - \"&INDEX(FP!C:C,Doklady!B2),2)","v":"a - vodné lyžovanie - bežné transfery"},1,{"$f":"+L41","v":"a - vodné lyžovanie - bežné transfery"},2,{"$f":"+L41","v":"a - vodné lyžovanie - bežné transfery"},3,{"$f":"+L41","v":"a - vodné lyžovanie - bežné transfery"},4,{"$f":"+L41","v":"a - vodné lyžovanie - bežné transfery"},5]
["a","Uznaná suma vyúčtovaných FP",{"$f":"+C40","v":12893},{"$f":"+D40","v":21578.15},{"$f":"+E40","v":28420.899999999994},{"$f":"+MIN(F39:F40)","v":4821.5199999999995},{"$f":"+MIN(G39+MAX(F39-F40,0)-MAX(E40-E39,0)-MAX(D40-D39,0)-MAX(C40-C39,0),G40)","v":9184.43},{"$f":"+MIN(H39:H40)","v":0},{"$f":"+C42+D42+E42+MIN(F39:F40)+G42+H42","v":76898},{"$f":"+K47","v":0},{"$f":"+I42-H42","v":76898},{"$f":"+SUBSTITUTE(L41,\"bežné\",\"kapitálové\")","v":"a - vodné lyžovanie - kapitálové transfery"},1,{"$f":"+L42","v":"a - vodné lyžovanie - kapitálové transfery"},2,{"$f":"+L42","v":"a - vodné lyžovanie - kapitálové transfery"},3,{"$f":"+L42","v":"a - vodné lyžovanie - kapitálové transfery"},4,{"$f":"+L42","v":"a - vodné lyžovanie - kapitálové transfery"},5]
["Účel",{"$f":"IF(L38>2,\"Šport \"&INDEX(FP!K:K,Doklady!B2+2),\"Šport \"&K45)","v":"Šport ."},"mládež 23\nMIN.15%","talenty\nMIN.20%","reprezentácia\nMIN.25%","prevádzka\nMAX.20%","ostatné úlohy","kapitálové transfery z PUŠ","SPOLU",null,null,{"$f":"L38-1","v":0}]
["a","Poskytnutý príspevok uznanému športu",{"$f":"I44*0","v":0},{"$f":"I44*0","v":0},{"$f":"I44*0","v":0},{"$f":"+I44*0.2","v":0},{"$f":"+MAX(I44-C44-D44-E44-F44-H44,0)","v":0},{"$f":"+IFERROR(VLOOKUP(K45&\" - kapitálové transfery\",B$53:C$57,2,0),0)","v":0},{"$f":"SUMIF(FP!K:K,K45,FP!D:D)","v":0}]
["a","Vyúčtovaný príspevok uznanému športu",{"$f":"DSUM(Doklady!A103:J10023,\"GGG\",Spolu!L45:M47)","v":0},{"$f":"DSUM(Doklady!A103:J10023,\"GGG\",Spolu!N45:O47)","v":0},{"$f":"DSUM(Doklady!A103:J10023,\"GGG\",Spolu!P45:Q47)","v":0},{"$f":"DSUM(Doklady!A103:J10023,\"GGG\",Spolu!R45:S47)","v":0},{"$f":"DSUM(Doklady!A103:J10023,\"GGG\",Spolu!T45:U47)-H45","v":0},{"$f":"+IFERROR(VLOOKUP(K45&\" - kapitálové transfery\",B$53:D$57,3,0),0)","v":0},{"$f":"+C45+D45+E45+F45+G45+H45","v":0},null,{"$f":"IF(L38>1,INDEX(FP!K:K,Doklady!B2+1),\".\")","v":"."},"AAA","HHH","AAA","HHH","AAA","HHH","AAA","HHH","AAA","HHH"]
["a","ROZDIEL",{"$f":"MAX(C44-C45,0)","v":0},{"$f":"MAX(D44-D45,0)","v":0},{"$f":"MAX(E44-E45,0)","v":0},{"$f":"MIN(I44,MAX(-F44+F45,0))","v":0},{"$f":"MIN(J44,MAX(-G44+G45+MIN(F45-F44,0),0))","v":0},{"$f":"MAX(H44-H45,0)","v":0},{"$f":"+I44-I47","v":0},null,{"$f":"+I46-H46","v":0},{"$f":"IF(L43>0,\"a - \"&INDEX(FP!C:C,Doklady!B2+1),2)","v":2},1,{"$f":"+L46","v":2},2,{"$f":"+L46","v":2},3,{"$f":"+L46","v":2},4,{"$f":"+L46","v":2},5]
["a","Uznaná suma vyúčtovaných FP",{"$f":"+C45","v":0},{"$f":"+D45","v":0},{"$f":"+E45","v":0},{"$f":"+MIN(F44:F45)","v":0},{"$f":"+MIN(G44+MAX(F44-F45,0)-MAX(E45-E44,0)-MAX(D45-D44,0)-MAX(C45-C44,0),G45)","v":0},{"$f":"+MIN(H44:H45)","v":0},{"$f":"+C47+D47+E47+MIN(F44:F45)+G47+H47","v":0},null,{"$f":"+I47-H47","v":0},{"$f":"+SUBSTITUTE(L46,\"bežné\",\"kapitálové\")","v":"2"},1,{"$f":"+L47","v":"2"},2,{"$f":"+L47","v":"2"},3,{"$f":"+L47","v":"2"},4,{"$f":"+L47","v":"2"},5]
[]
[]
[]
[]
["Účel","Účel poskytnutých finančných prostriedkov","Poskytnuté\nFP","Vyúčtované\nFP","Povinné\nSF","Vyúčtované\nSF","Uznaná suma vyúčtov. FP",null,"Povinnosť\nvrátiť",null,"PPG","BK","PPGBK"]
[{"$f":"Doklady!D1","v":"a"},{"$f":"Doklady!H1","v":"vodné lyžovanie - bežné transfery"},{"$f":"IF(A53<>\"\",INDEX(FP!D:D,Doklady!B$2+(ROW()-53)),\"\")","v":76898},{"$f":"IF(A53<>\"\",Doklady!I1-Doklady!J1,\"\")","v":76898},{"$f":"IF(A53<>\"\",MIN(D53,C53)*Doklady!C1/(1-Doklady!C1),\"\")","v":0},{"$f":"IF(A53<>\"\",Doklady!J1,\"\")","v":0},{"$f":"+IFERROR(HLOOKUP(IF(RIGHT(B53,15)=\"bežné transfery\",LEFT(B53,LEN(B53)-18),0),$J$40:$K$42,3,0),MIN(C53,D53))","v":76898},null,{"$f":"IF(A53<>\"\",MAX(IF(G53<C53,C53-G53,0)+IF(F53<E53,E53-F53,0),0),0)","v":0},{"$f":"IF(D53>C53,\"Vyúčtované prostriedky nemôžu byť väčšie ako poskytnuté. Opravte v hárku \"\"Doklady\"\"\",\"\")","v":""},{"$f":"Doklady!F1","v":"026 02"},{"$f":"IF(A53<>\"\",INDEX(FP!H:H,Doklady!B$2+(ROW()-52)),\"\")","v":"B"},{"$f":"K53&L53","v":"026 02B"}]
[{"$f":"Doklady!D2","v":""},{"$f":"Doklady!H2","v":""},{"$f":"IF(A54<>\"\",INDEX(FP!D:D,Doklady!B$2+(ROW()-53)),\"\")","v":""},{"$f":"IF(A54<>\"\",Doklady!I2-Doklady!J2,\"\")","v":""},{"$f":"IF(A54<>\"\",MIN(D54,C54)*Doklady!C2/(1-Doklady!C2),\"\")","v":""},{"$f":"IF(A54<>\"\",Doklady!J2,\"\")","v":""},0,null,0,"",{"$f":"Doklady!F2","v":""},{"$f":"IF(A54<>\"\",INDEX(FP!H:H,Doklady!B$2+(ROW()-52)),\"\")","v":""},""]
[{"$f":"Doklady!D3","v":""},{"$f":"Doklady!H3","v":""},{"$f":"IF(A55<>\"\",INDEX(FP!D:D,Doklady!B$2+(ROW()-53)),\"\")","v":""},{"$f":"IF(A55<>\"\",Doklady!I3-Doklady!J3,\"\")","v":""},{"$f":"IF(A55<>\"\",MIN(D55,C55)*Doklady!C3/(1-Doklady!C3),\"\")","v":""},{"$f":"IF(A55<>\"\",Doklady!J3,\"\")","v":""},0,null,0,"",{"$f":"Doklady!F3","v":""},{"$f":"IF(A55<>\"\",INDEX(FP!H:H,Doklady!B$2+(ROW()-52)),\"\")","v":""},""]
[{"$f":"Doklady!D4","v":""},{"$f":"Doklady!H4","v":""},{"$f":"IF(A56<>\"\",INDEX(FP!D:D,Doklady!B$2+(ROW()-53)),\"\")","v":""},{"$f":"IF(A56<>\"\",Doklady!I4-Doklady!J4,\"\")","v":""},{"$f":"IF(A56<>\"\",MIN(D56,C56)*Doklady!C4/(1-Doklady!C4),\"\")","v":""},{"$f":"IF(A56<>\"\",Doklady!J4,\"\")","v":""},0,null,0,"",{"$f":"Doklady!F4","v":""},{"$f":"IF(A56<>\"\",INDEX(FP!H:H,Doklady!B$2+(ROW()-52)),\"\")","v":""},""]
[{"$f":"Doklady!D5","v":""},{"$f":"Doklady!H5","v":""},{"$f":"IF(A57<>\"\",INDEX(FP!D:D,Doklady!B$2+(ROW()-53)),\"\")","v":""},{"$f":"IF(A57<>\"\",Doklady!I5-Doklady!J5,\"\")","v":""},{"$f":"IF(A57<>\"\",MIN(D57,C57)*Doklady!C5/(1-Doklady!C5),\"\")","v":""},{"$f":"IF(A57<>\"\",Doklady!J5,\"\")","v":""},0,null,0,"",{"$f":"Doklady!F5","v":""},{"$f":"IF(A57<>\"\",INDEX(FP!H:H,Doklady!B$2+(ROW()-52)),\"\")","v":""},""]
[{"$f":"Doklady!D68","v":""},{"$f":"Doklady!H68","v":""},{"$f":"IF(A58<>\"\",INDEX(FP!D:D,Doklady!B$2+(ROW()-53)),\"\")","v":""},{"$f":"IF(A58<>\"\",Doklady!I68-Doklady!J68,\"\")","v":""},{"$f":"IF(A58<>\"\",MIN(D58,C58)*Doklady!C68/(1-Doklady!C68),\"\")","v":""},{"$f":"IF(A58<>\"\",Doklady!J68,\"\")","v":""},{"$f":"+IFERROR(HLOOKUP(IF(RIGHT(B58,15)=\"bežné transfery\",LEFT(B58,LEN(B58)-18),0),$J$40:$K$42,3,0),MIN(C58,D58))","v":0},null,{"$f":"IF(A58<>\"\",MAX(IF(G58<C58,C58-G58,0)+IF(F58<E58,E58-F58,0),0),0)","v":0},{"$f":"IF(D58>C58,\"Vyúčtované prostriedky nemôžu byť väčšie ako poskytnuté. Opravte v hárku \"\"Doklady\"\"\",\"\")","v":""},{"$f":"Doklady!F68","v":""},{"$f":"IF(A58<>\"\",INDEX(FP!H:H,Doklady!B$2+(ROW()-52)),\"\")","v":""},{"$f":"K58&L58","v":""}]
[{"$f":"Doklady!D69","v":""},{"$f":"Doklady!H69","v":""},{"$f":"IF(A59<>\"\",INDEX(FP!D:D,Doklady!B$2+(ROW()-53)),\"\")","v":""},{"$f":"IF(A59<>\"\",Doklady!I69-Doklady!J69,\"\")","v":""},{"$f":"IF(A59<>\"\",MIN(D59,C59)*Doklady!C69/(1-Doklady!C69),\"\")","v":""},{"$f":"IF(A59<>\"\",Doklady!J69,\"\")","v":""},0,null,0,"",{"$f":"Doklady!F69","v":""},{"$f":"IF(A59<>\"\",INDEX(FP!H:H,Doklady!B$2+(ROW()-52)),\"\")","v":""},""]
[{"$f":"Doklady!D70","v":""},{"$f":"Doklady!H70","v":""},{"$f":"IF(A60<>\"\",INDEX(FP!D:D,Doklady!B$2+(ROW()-53)),\"\")","v":""},{"$f":"IF(A60<>\"\",Doklady!I70-Doklady!J70,\"\")","v":""},{"$f":"IF(A60<>\"\",MIN(D60,C60)*Doklady!C70/(1-Doklady!C70),\"\")","v":""},{"$f":"IF(A60<>\"\",Doklady!J70,\"\")","v":""},0,null,0,"",{"$f":"Doklady!F70","v":""},{"$f":"IF(A60<>\"\",INDEX(FP!H:H,Doklady!B$2+(ROW()-52)),\"\")","v":""},""]
[{"$f":"Doklady!D71","v":""},{"$f":"Doklady!H71","v":""},{"$f":"IF(A61<>\"\",INDEX(FP!D:D,Doklady!B$2+(ROW()-53)),\"\")","v":""},{"$f":"IF(A61<>\"\",Doklady!I71-Doklady!J71,\"\")","v":""},{"$f":"IF(A61<>\"\",MIN(D61,C61)*Doklady!C71/(1-Doklady!C71),\"\")","v":""},{"$f":"IF(A61<>\"\",Doklady!J71,\"\")","v":""},0,null,0,"",{"$f":"Doklady!F71","v":""},{"$f":"IF(A61<>\"\",INDEX(FP!H:H,Doklady!B$2+(ROW()-52)),\"\")","v":""},""]
[{"$f":"Doklady!D72","v":""},{"$f":"Doklady!H72","v":""},{"$f":"IF(A62<>\"\",INDEX(FP!D:D,Doklady!B$2+(ROW()-53)),\"\")","v":""},{"$f":"IF(A62<>\"\",Doklady!I72-Doklady!J72,\"\")","v":""},{"$f":"IF(A62<>\"\",MIN(D62,C62)*Doklady!C72/(1-Doklady!C72),\"\")","v":""},{"$f":"IF(A62<>\"\",Doklady!J72,\"\")","v":""},0,null,0,"",{"$f":"Doklady!F72","v":""},{"$f":"IF(A62<>\"\",INDEX(FP!H:H,Doklady!B$2+(ROW()-52)),\"\")","v":""},""]
[{"$f":"Doklady!D73","v":""},{"$f":"Doklady!H73","v":""},{"$f":"IF(A63<>\"\",INDEX(FP!D:D,Doklady!B$2+(ROW()-53)),\"\")","v":""},{"$f":"IF(A63<>\"\",Doklady!I73-Doklady!J73,\"\")","v":""},{"$f":"IF(A63<>\"\",MIN(D63,C63)*Doklady!C73/(1-Doklady!C73),\"\")","v":""},{"$f":"IF(A63<>\"\",Doklady!J73,\"\")","v":""},0,null,0,"",{"$f":"Doklady!F73","v":""},{"$f":"IF(A63<>\"\",INDEX(FP!H:H,Doklady!B$2+(ROW()-52)),\"\")","v":""},""]
[{"$f":"Doklady!D74","v":""},{"$f":"Doklady!H74","v":""},{"$f":"IF(A64<>\"\",INDEX(FP!D:D,Doklady!B$2+(ROW()-53)),\"\")","v":""},{"$f":"IF(A64<>\"\",Doklady!I74-Doklady!J74,\"\")","v":""},{"$f":"IF(A64<>\"\",MIN(D64,C64)*Doklady!C74/(1-Doklady!C74),\"\")","v":""},{"$f":"IF(A64<>\"\",Doklady!J74,\"\")","v":""},0,null,0,"",{"$f":"Doklady!F74","v":""},{"$f":"IF(A64<>\"\",INDEX(FP!H:H,Doklady!B$2+(ROW()-52)),\"\")","v":""},""]
[{"$f":"Doklady!D75","v":""},{"$f":"Doklady!H75","v":""},{"$f":"IF(A65<>\"\",INDEX(FP!D:D,Doklady!B$2+(ROW()-53)),\"\")","v":""},{"$f":"IF(A65<>\"\",Doklady!I75-Doklady!J75,\"\")","v":""},{"$f":"IF(A65<>\"\",MIN(D65,C65)*Doklady!C75/(1-Doklady!C75),\"\")","v":""},{"$f":"IF(A65<>\"\",Doklady!J75,\"\")","v":""},0,null,0,"",{"$f":"Doklady!F75","v":""},{"$f":"IF(A65<>\"\",INDEX(FP!H:H,Doklady!B$2+(ROW()-52)),\"\")","v":""},""]
[{"$f":"Doklady!D76","v":""},{"$f":"Doklady!H76","v":""},{"$f":"IF(A66<>\"\",INDEX(FP!D:D,Doklady!B$2+(ROW()-53)),\"\")","v":""},{"$f":"IF(A66<>\"\",Doklady!I76-Doklady!J76,\"\")","v":""},{"$f":"IF(A66<>\"\",MIN(D66,C66)*Doklady!C76/(1-Doklady!C76),\"\")","v":""},{"$f":"IF(A66<>\"\",Doklady!J76,\"\")","v":""},0,null,0,"",{"$f":"Doklady!F76","v":""},{"$f":"IF(A66<>\"\",INDEX(FP!H:H,Doklady!B$2+(ROW()-52)),\"\")","v":""},""]
[null,null,null,null,null,null,null,null,null,"",{"$f":"Doklady!F77","v":""},{"$f":"IF(A67<>\"\",INDEX(FP!H:H,Doklady!B$2+(ROW()-52)),\"\")","v":""},""]
[{"$f":"Doklady!D66","v":""},"SPOLU",{"$f":"SUM(C53:C67)","v":76898},76898,0,0,76898,0,0,""]
[]
["Čestne vyhlasujem, že"]
["a) všetky uvedené údaje sú pravdivé,"]
["b) dolu podpísaná osoba/osoby je oprávnená/sú oprávnené v súlade so stanovami/zriaďovacou listinou na podpis vyúčtovania finančných prostriedkov poskytnutých v roku 2023."]
["c) toto vytlačené a podpísané vyúčtovanie je zhodné s hárkom, ktorý sme zaslali na adresu ziadosti.sport@minedu.sk dňa ....................... o .......... hod. ........ min."]
[]
["Súhlasím so zhromažďovaním, spracovávaním a zverejňovaním poskytnutých údajov."]
[]
["Dátum:"]
[null,"Ing. Miloš Kusý- kontrolór",null,"Mgr. Alexander Vaško- predseda"]
[null,"Meno, priezvisko a podpis kontrolóra športu (ak je takáto funkcia v športovej organizácii podľa zákona o športe zriadená) ",null,"Meno, priezvisko a podpis štatutárneho zástupcu/zástupcov oprávneného/oprávnených na podpis žiadosti a zmluvy o poskytnutí finančných prostriedkov v súlade so stanovami, resp. zriaďovacou listinou"]
[null,"Ing. Denisa Oravcová"]
[null,"Meno a kontakt osoby, ktorá zodpovedá za vyplnenie formuláru"]

{"sheet":"Doklady","index":4,"n_rows":259,"n_cols":14,"rows_kept":259,"cut":false,"hidden":false,"merged":[[99,0,99,7],[99,8,99,9],[100,0,100,7],[100,8,100,9],[104,0,104,9]]}
[{"$f":"IF(ROW()<=B$3,INDEX(FP!F:F,B$2+ROW()-1)&\" - \"&INDEX(FP!C:C,B$2+ROW()-1),\"\")","v":"a - vodné lyžovanie - bežné transfery"},{"$f":"INDEX(Adr!A:A,B102+1)","v":"30793203"},{"$f":"IF(ROW()<=B$3,INDEX(FP!E:E,B$2+ROW()-1),\"\")","v":0},{"$f":"IF(ROW()<=B$3,INDEX(FP!F:F,B$2+ROW()-1),\"\")","v":"a"},null,{"$f":"IF(ROW()<=B$3,INDEX(FP!G:G,B$2+ROW()-1),\"\")","v":"026 02"},null,{"$f":"IF(ROW()<=B$3,INDEX(FP!C:C,B$2+ROW()-1),\"\")","v":"vodné lyžovanie - bežné transfery"},{"$f":"IF(ROW()<=B$3,SUMIF(A$107:A$10065,A1,I$107:I$10065),\"\")","v":76898},{"$f":"IF(ROW()<=B$3,SUMIFS(I$103:I$50065,A$103:A$50065,K1,J$103:J$50065,L1),\"\")","v":0},null,99]
[{"$f":"IF(ROW()<=B$3,INDEX(FP!F:F,B$2+ROW()-1)&\" - \"&INDEX(FP!C:C,B$2+ROW()-1),\"\")","v":""},{"$f":"MATCH(B1,FP!A:A,0)","v":463},{"$f":"IF(ROW()<=B$3,INDEX(FP!E:E,B$2+ROW()-1),\"\")","v":""},{"$f":"IF(ROW()<=B$3,INDEX(FP!F:F,B$2+ROW()-1),\"\")","v":""},null,{"$f":"IF(ROW()<=B$3,INDEX(FP!G:G,B$2+ROW()-1),\"\")","v":""},null,{"$f":"IF(ROW()<=B$3,INDEX(FP!C:C,B$2+ROW()-1),\"\")","v":""},"","",null,99,"AAA","HHH"]
[{"$f":"IF(ROW()<=B$3,INDEX(FP!F:F,B$2+ROW()-1)&\" - \"&INDEX(FP!C:C,B$2+ROW()-1),\"\")","v":""},{"$f":"COUNTIF(FP!A:A,Doklady!B1)","v":1},{"$f":"IF(ROW()<=B$3,INDEX(FP!E:E,B$2+ROW()-1),\"\")","v":""},{"$f":"IF(ROW()<=B$3,INDEX(FP!F:F,B$2+ROW()-1),\"\")","v":""},null,{"$f":"IF(ROW()<=B$3,INDEX(FP!G:G,B$2+ROW()-1),\"\")","v":""},null,{"$f":"IF(ROW()<=B$3,INDEX(FP!C:C,B$2+ROW()-1),\"\")","v":""},"","",null,99,{"$f":"$A2","v":""},99]
[{"$f":"IF(ROW()<=B$3,INDEX(FP!F:F,B$2+ROW()-1)&\" - \"&INDEX(FP!C:C,B$2+ROW()-1),\"\")","v":""},null,{"$f":"IF(ROW()<=B$3,INDEX(FP!E:E,B$2+ROW()-1),\"\")","v":""},{"$f":"IF(ROW()<=B$3,INDEX(FP!F:F,B$2+ROW()-1),\"\")","v":""},null,{"$f":"IF(ROW()<=B$3,INDEX(FP!G:G,B$2+ROW()-1),\"\")","v":""},null,{"$f":"IF(ROW()<=B$3,INDEX(FP!C:C,B$2+ROW()-1),\"\")","v":""},"","",null,99,"AAA","HHH"]
[{"$f":"IF(ROW()<=B$3,INDEX(FP!F:F,B$2+ROW()-1)&\" - \"&INDEX(FP!C:C,B$2+ROW()-1),\"\")","v":""},null,{"$f":"IF(ROW()<=B$3,INDEX(FP!E:E,B$2+ROW()-1),\"\")","v":""},{"$f":"IF(ROW()<=B$3,INDEX(FP!F:F,B$2+ROW()-1),\"\")","v":""},null,{"$f":"IF(ROW()<=B$3,INDEX(FP!G:G,B$2+ROW()-1),\"\")","v":""},null,{"$f":"IF(ROW()<=B$3,INDEX(FP!C:C,B$2+ROW()-1),\"\")","v":""},"","",null,99,{"$f":"$A4","v":""},99]
[{"$f":"IF(ROW()<=B$3,INDEX(FP!F:F,B$2+ROW()-1)&\" - \"&INDEX(FP!C:C,B$2+ROW()-1),\"\")","v":""},null,{"$f":"IF(ROW()<=B$3,INDEX(FP!E:E,B$2+ROW()-1),\"\")","v":""},{"$f":"IF(ROW()<=B$3,INDEX(FP!F:F,B$2+ROW()-1),\"\")","v":""},null,{"$f":"IF(ROW()<=B$3,INDEX(FP!G:G,B$2+ROW()-1),\"\")","v":""},null,{"$f":"IF(ROW()<=B$3,INDEX(FP!C:C,B$2+ROW()-1),\"\")","v":""},"","",null,99,"AAA","HHH"]
[{"$f":"IF(ROW()<=B$3,INDEX(FP!F:F,B$2+ROW()-1)&\" - \"&INDEX(FP!C:C,B$2+ROW()-1),\"\")","v":""},null,{"$f":"IF(ROW()<=B$3,INDEX(FP!E:E,B$2+ROW()-1),\"\")","v":""},{"$f":"IF(ROW()<=B$3,INDEX(FP!F:F,B$2+ROW()-1),\"\")","v":""},null,{"$f":"IF(ROW()<=B$3,INDEX(FP!G:G,B$2+ROW()-1),\"\")","v":""},null,{"$f":"IF(ROW()<=B$3,INDEX(FP!C:C,B$2+ROW()-1),\"\")","v":""},"","",null,99,{"$f":"$A6","v":""},99]
[{"$f":"IF(ROW()<=B$3,INDEX(FP!F:F,B$2+ROW()-1)&\" - \"&INDEX(FP!C:C,B$2+ROW()-1),\"\")","v":""},null,{"$f":"IF(ROW()<=B$3,INDEX(FP!E:E,B$2+ROW()-1),\"\")","v":""},{"$f":"IF(ROW()<=B$3,INDEX(FP!F:F,B$2+ROW()-1),\"\")","v":""},null,{"$f":"IF(ROW()<=B$3,INDEX(FP!G:G,B$2+ROW()-1),\"\")","v":""},null,{"$f":"IF(ROW()<=B$3,INDEX(FP!C:C,B$2+ROW()-1),\"\")","v":""},"","",null,99,"AAA","HHH"]
[{"$f":"IF(ROW()<=B$3,INDEX(FP!F:F,B$2+ROW()-1)&\" - \"&INDEX(FP!C:C,B$2+ROW()-1),\"\")","v":""},null,{"$f":"IF(ROW()<=B$3,INDEX(FP!E:E,B$2+ROW()-1),\"\")","v":""},{"$f":"IF(ROW()<=B$3,INDEX(FP!F:F,B$2+ROW()-1),\"\")","v":""},null,{"$f":"IF(ROW()<=B$3,INDEX(FP!G:G,B$2+ROW()-1),\"\")","v":""},null,{"$f":"IF(ROW()<=B$3,INDEX(FP!C:C,B$2+ROW()-1),\"\")","v":""},"","",null,99,{"$f":"$A8","v":""},99]
[{"$f":"IF(ROW()<=B$3,INDEX(FP!F:F,B$2+ROW()-1)&\" - \"&INDEX(FP!C:C,B$2+ROW()-1),\"\")","v":""},null,{"$f":"IF(ROW()<=B$3,INDEX(FP!E:E,B$2+ROW()-1),\"\")","v":""},{"$f":"IF(ROW()<=B$3,INDEX(FP!F:F,B$2+ROW()-1),\"\")","v":""},null,{"$f":"IF(ROW()<=B$3,INDEX(FP!G:G,B$2+ROW()-1),\"\")","v":""},null,{"$f":"IF(ROW()<=B$3,INDEX(FP!C:C,B$2+ROW()-1),\"\")","v":""},"","",null,99,"AAA","HHH"]
[{"$f":"IF(ROW()<=B$3,INDEX(FP!F:F,B$2+ROW()-1)&\" - \"&INDEX(FP!C:C,B$2+ROW()-1),\"\")","v":""},null,{"$f":"IF(ROW()<=B$3,INDEX(FP!E:E,B$2+ROW()-1),\"\")","v":""},{"$f":"IF(ROW()<=B$3,INDEX(FP!F:F,B$2+ROW()-1),\"\")","v":""},null,{"$f":"IF(ROW()<=B$3,INDEX(FP!G:G,B$2+ROW()-1),\"\")","v":""},null,{"$f":"IF(ROW()<=B$3,INDEX(FP!C:C,B$2+ROW()-1),\"\")","v":""},"","",null,99,{"$f":"$A10","v":""},99]
[{"$f":"IF(ROW()<=B$3,INDEX(FP!F:F,B$2+ROW()-1)&\" - \"&INDEX(FP!C:C,B$2+ROW()-1),\"\")","v":""},null,{"$f":"IF(ROW()<=B$3,INDEX(FP!E:E,B$2+ROW()-1),\"\")","v":""},{"$f":"IF(ROW()<=B$3,INDEX(FP!F:F,B$2+ROW()-1),\"\")","v":""},null,{"$f":"IF(ROW()<=B$3,INDEX(FP!G:G,B$2+ROW()-1),\"\")","v":""},null,{"$f":"IF(ROW()<=B$3,INDEX(FP!C:C,B$2+ROW()-1),\"\")","v":""},"","",null,99,"AAA","HHH"]
[{"$f":"IF(ROW()<=B$3,INDEX(FP!F:F,B$2+ROW()-1)&\" - \"&INDEX(FP!C:C,B$2+ROW()-1),\"\")","v":""},null,{"$f":"IF(ROW()<=B$3,INDEX(FP!E:E,B$2+ROW()-1),\"\")","v":""},{"$f":"IF(ROW()<=B$3,INDEX(FP!F:F,B$2+ROW()-1),\"\")","v":""},null,{"$f":"IF(ROW()<=B$3,INDEX(FP!G:G,B$2+ROW()-1),\"\")","v":""},null,{"$f":"IF(ROW()<=B$3,INDEX(FP!C:C,B$2+ROW()-1),\"\")","v":""},"","",null,99,{"$f":"$A12","v":""},99]
[{"$f":"IF(ROW()<=B$3,INDEX(FP!F:F,B$2+ROW()-1)&\" - \"&INDEX(FP!C:C,B$2+ROW()-1),\"\")","v":""},null,{"$f":"IF(ROW()<=B$3,INDEX(FP!E:E,B$2+ROW()-1),\"\")","v":""},{"$f":"IF(ROW()<=B$3,INDEX(FP!F:F,B$2+ROW()-1),\"\")","v":""},null,{"$f":"IF(ROW()<=B$3,INDEX(FP!G:G,B$2+ROW()-1),\"\")","v":""},null,{"$f":"IF(ROW()<=B$3,INDEX(FP!C:C,B$2+ROW()-1),\"\")","v":""},"","",null,99,"AAA","HHH"]
[{"$f":"IF(ROW()<=B$3,INDEX(FP!F:F,B$2+ROW()-1)&\" - \"&INDEX(FP!C:C,B$2+ROW()-1),\"\")","v":""},null,{"$f":"IF(ROW()<=B$3,INDEX(FP!E:E,B$2+ROW()-1),\"\")","v":""},{"$f":"IF(ROW()<=B$3,INDEX(FP!F:F,B$2+ROW()-1),\"\")","v":""},null,{"$f":"IF(ROW()<=B$3,INDEX(FP!G:G,B$2+ROW()-1),\"\")","v":""},null,{"$f":"IF(ROW()<=B$3,INDEX(FP!C:C,B$2+ROW()-1),\"\")","v":""},"","",null,99,{"$f":"$A14","v":""},99]
[{"$f":"IF(ROW()<=B$3,INDEX(FP!F:F,B$2+ROW()-1)&\" - \"&INDEX(FP!C:C,B$2+ROW()-1),\"\")","v":""},null,{"$f":"IF(ROW()<=B$3,INDEX(FP!E:E,B$2+ROW()-1),\"\")","v":""},{"$f":"IF(ROW()<=B$3,INDEX(FP!F:F,B$2+ROW()-1),\"\")","v":""},null,{"$f":"IF(ROW()<=B$3,INDEX(FP!G:G,B$2+ROW()-1),\"\")","v":""},null,{"$f":"IF(ROW()<=B$3,INDEX(FP!C:C,B$2+ROW()-1),\"\")","v":""},"","",null,99,"AAA","HHH"]
[{"$f":"IF(ROW()<=B$3,INDEX(FP!F:F,B$2+ROW()-1)&\" - \"&INDEX(FP!C:C,B$2+ROW()-1),\"\")","v":""},null,{"$f":"IF(ROW()<=B$3,INDEX(FP!E:E,B$2+ROW()-1),\"\")","v":""},{"$f":"IF(ROW()<=B$3,INDEX(FP!F:F,B$2+ROW()-1),\"\")","v":""},null,{"$f":"IF(ROW()<=B$3,INDEX(FP!G:G,B$2+ROW()-1),\"\")","v":""},null,{"$f":"IF(ROW()<=B$3,INDEX(FP!C:C,B$2+ROW()-1),\"\")","v":""},"","",null,99,{"$f":"$A16","v":""},99]
[{"$f":"IF(ROW()<=B$3,INDEX(FP!F:F,B$2+ROW()-1)&\" - \"&INDEX(FP!C:C,B$2+ROW()-1),\"\")","v":""},null,{"$f":"IF(ROW()<=B$3,INDEX(FP!E:E,B$2+ROW()-1),\"\")","v":""},{"$f":"IF(ROW()<=B$3,INDEX(FP!F:F,B$2+ROW()-1),\"\")","v":""},null,{"$f":"IF(ROW()<=B$3,INDEX(FP!G:G,B$2+ROW()-1),\"\")","v":""},null,{"$f":"IF(ROW()<=B$3,INDEX(FP!C:C,B$2+ROW()-1),\"\")","v":""},"","",null,99,"AAA","HHH"]
[{"$f":"IF(ROW()<=B$3,INDEX(FP!F:F,B$2+ROW()-1)&\" - \"&INDEX(FP!C:C,B$2+ROW()-1),\"\")","v":""},null,{"$f":"IF(ROW()<=B$3,INDEX(FP!E:E,B$2+ROW()-1),\"\")","v":""},{"$f":"IF(ROW()<=B$3,INDEX(FP!F:F,B$2+ROW()-1),\"\")","v":""},null,{"$f":"IF(ROW()<=B$3,INDEX(FP!G:G,B$2+ROW()-1),\"\")","v":""},null,{"$f":"IF(ROW()<=B$3,INDEX(FP!C:C,B$2+ROW()-1),\"\")","v":""},"","",null,99,{"$f":"$A18","v":""},99]
[{"$f":"IF(ROW()<=B$3,INDEX(FP!F:F,B$2+ROW()-1)&\" - \"&INDEX(FP!C:C,B$2+ROW()-1),\"\")","v":""},null,{"$f":"IF(ROW()<=B$3,INDEX(FP!E:E,B$2+ROW()-1),\"\")","v":""},{"$f":"IF(ROW()<=B$3,INDEX(FP!F:F,B$2+ROW()-1),\"\")","v":""},null,{"$f":"IF(ROW()<=B$3,INDEX(FP!G:G,B$2+ROW()-1),\"\")","v":""},null,{"$f":"IF(ROW()<=B$3,INDEX(FP!C:C,B$2+ROW()-1),\"\")","v":""},"","",null,99,"AAA","HHH"]
[{"$f":"IF(ROW()<=B$3,INDEX(FP!F:F,B$2+ROW()-1)&\" - \"&INDEX(FP!C:C,B$2+ROW()-1),\"\")","v":""},null,{"$f":"IF(ROW()<=B$3,INDEX(FP!E:E,B$2+ROW()-1),\"\")","v":""},{"$f":"IF(ROW()<=B$3,INDEX(FP!F:F,B$2+ROW()-1),\"\")","v":""},null,{"$f":"IF(ROW()<=B$3,INDEX(FP!G:G,B$2+ROW()-1),\"\")","v":""},null,{"$f":"IF(ROW()<=B$3,INDEX(FP!C:C,B$2+ROW()-1),\"\")","v":""},"","",null,99,{"$f":"$A20","v":""},99]
[{"$f":"IF(ROW()<=B$3,INDEX(FP!F:F,B$2+ROW()-1)&\" - \"&INDEX(FP!C:C,B$2+ROW()-1),\"\")","v":""},null,{"$f":"IF(ROW()<=B$3,INDEX(FP!E:E,B$2+ROW()-1),\"\")","v":""},{"$f":"IF(ROW()<=B$3,INDEX(FP!F:F,B$2+ROW()-1),\"\")","v":""},null,{"$f":"IF(ROW()<=B$3,INDEX(FP!G:G,B$2+ROW()-1),\"\")","v":""},null,{"$f":"IF(ROW()<=B$3,INDEX(FP!C:C,B$2+ROW()-1),\"\")","v":""},"","",null,99,"AAA","HHH"]
[{"$f":"IF(ROW()<=B$3,INDEX(FP!F:F,B$2+ROW()-1)&\" - \"&INDEX(FP!C:C,B$2+ROW()-1),\"\")","v":""},null,{"$f":"IF(ROW()<=B$3,INDEX(FP!E:E,B$2+ROW()-1),\"\")","v":""},{"$f":"IF(ROW()<=B$3,INDEX(FP!F:F,B$2+ROW()-1),\"\")","v":""},null,{"$f":"IF(ROW()<=B$3,INDEX(FP!G:G,B$2+ROW()-1),\"\")","v":""},null,{"$f":"IF(ROW()<=B$3,INDEX(FP!C:C,B$2+ROW()-1),\"\")","v":""},"","",null,99,{"$f":"$A22","v":""},99]
[{"$f":"IF(ROW()<=B$3,INDEX(FP!F:F,B$2+ROW()-1)&\" - \"&INDEX(FP!C:C,B$2+ROW()-1),\"\")","v":""},null,{"$f":"IF(ROW()<=B$3,INDEX(FP!E:E,B$2+ROW()-1),\"\")","v":""},{"$f":"IF(ROW()<=B$3,INDEX(FP!F:F,B$2+ROW()-1),\"\")","v":""},null,{"$f":"IF(ROW()<=B$3,INDEX(FP!G:G,B$2+ROW()-1),\"\")","v":""},null,{"$f":"IF(ROW()<=B$3,INDEX(FP!C:C,B$2+ROW()-1),\"\")","v":""},"","",null,99,"AAA","HHH"]
[{"$f":"IF(ROW()<=B$3,INDEX(FP!F:F,B$2+ROW()-1)&\" - \"&INDEX(FP!C:C,B$2+ROW()-1),\"\")","v":""},null,{"$f":"IF(ROW()<=B$3,INDEX(FP!E:E,B$2+ROW()-1),\"\")","v":""},{"$f":"IF(ROW()<=B$3,INDEX(FP!F:F,B$2+ROW()-1),\"\")","v":""},null,{"$f":"IF(ROW()<=B$3,INDEX(FP!G:G,B$2+ROW()-1),\"\")","v":""},null,{"$f":"IF(ROW()<=B$3,INDEX(FP!C:C,B$2+ROW()-1),\"\")","v":""},"","",null,99,{"$f":"$A24","v":""},99]
[{"$f":"IF(ROW()<=B$3,INDEX(FP!F:F,B$2+ROW()-1)&\" - \"&INDEX(FP!C:C,B$2+ROW()-1),\"\")","v":""},null,{"$f":"IF(ROW()<=B$3,INDEX(FP!E:E,B$2+ROW()-1),\"\")","v":""},{"$f":"IF(ROW()<=B$3,INDEX(FP!F:F,B$2+ROW()-1),\"\")","v":""},null,{"$f":"IF(ROW()<=B$3,INDEX(FP!G:G,B$2+ROW()-1),\"\")","v":""},null,{"$f":"IF(ROW()<=B$3,INDEX(FP!C:C,B$2+ROW()-1),\"\")","v":""},"","",null,99,"AAA","HHH"]
[{"$f":"IF(ROW()<=B$3,INDEX(FP!F:F,B$2+ROW()-1)&\" - \"&INDEX(FP!C:C,B$2+ROW()-1),\"\")","v":""},null,{"$f":"IF(ROW()<=B$3,INDEX(FP!E:E,B$2+ROW()-1),\"\")","v":""},{"$f":"IF(ROW()<=B$3,INDEX(FP!F:F,B$2+ROW()-1),\"\")","v":""},null,{"$f":"IF(ROW()<=B$3,INDEX(FP!G:G,B$2+ROW()-1),\"\")","v":""},null,{"$f":"IF(ROW()<=B$3,INDEX(FP!C:C,B$2+ROW()-1),\"\")","v":""},"","",null,99,{"$f":"$A26","v":""},99]
[{"$f":"IF(ROW()<=B$3,INDEX(FP!F:F,B$2+ROW()-1)&\" - \"&INDEX(FP!C:C,B$2+ROW()-1),\"\")","v":""},null,{"$f":"IF(ROW()<=B$3,INDEX(FP!E:E,B$2+ROW()-1),\"\")","v":""},{"$f":"IF(ROW()<=B$3,INDEX(FP!F:F,B$2+ROW()-1),\"\")","v":""},null,{"$f":"IF(ROW()<=B$3,INDEX(FP!G:G,B$2+ROW()-1),\"\")","v":""},null,{"$f":"IF(ROW()<=B$3,INDEX(FP!C:C,B$2+ROW()-1),\"\")","v":""},"","",null,99,"AAA","HHH"]
[{"$f":"IF(ROW()<=B$3,INDEX(FP!F:F,B$2+ROW()-1)&\" - \"&INDEX(FP!C:C,B$2+ROW()-1),\"\")","v":""},null,{"$f":"IF(ROW()<=B$3,INDEX(FP!E:E,B$2+ROW()-1),\"\")","v":""},{"$f":"IF(ROW()<=B$3,INDEX(FP!F:F,B$2+ROW()-1),\"\")","v":""},null,{"$f":"IF(ROW()<=B$3,INDEX(FP!G:G,B$2+ROW()-1),\"\")","v":""},null,{"$f":"IF(ROW()<=B$3,INDEX(FP!C:C,B$2+ROW()-1),\"\")","v":""},"","",null,99,{"$f":"$A28","v":""},99]
[{"$f":"IF(ROW()<=B$3,INDEX(FP!F:F,B$2+ROW()-1)&\" - \"&INDEX(FP!C:C,B$2+ROW()-1),\"\")","v":""},null,{"$f":"IF(ROW()<=B$3,INDEX(FP!E:E,B$2+ROW()-1),\"\")","v":""},{"$f":"IF(ROW()<=B$3,INDEX(FP!F:F,B$2+ROW()-1),\"\")","v":""},null,{"$f":"IF(ROW()<=B$3,INDEX(FP!G:G,B$2+ROW()-1),\"\")","v":""},null,{"$f":"IF(ROW()<=B$3,INDEX(FP!C:C,B$2+ROW()-1),\"\")","v":""},"","",null,99,"AAA","HHH"]
[{"$f":"IF(ROW()<=B$3,INDEX(FP!F:F,B$2+ROW()-1)&\" - \"&INDEX(FP!C:C,B$2+ROW()-1),\"\")","v":""},null,{"$f":"IF(ROW()<=B$3,INDEX(FP!E:E,B$2+ROW()-1),\"\")","v":""},{"$f":"IF(ROW()<=B$3,INDEX(FP!F:F,B$2+ROW()-1),\"\")","v":""},null,{"$f":"IF(ROW()<=B$3,INDEX(FP!G:G,B$2+ROW()-1),\"\")","v":""},null,{"$f":"IF(ROW()<=B$3,INDEX(FP!C:C,B$2+ROW()-1),\"\")","v":""},"","",null,99,{"$f":"$A30","v":""},99]
[{"$f":"IF(ROW()<=B$3,INDEX(FP!F:F,B$2+ROW()-1)&\" - \"&INDEX(FP!C:C,B$2+ROW()-1),\"\")","v":""},null,{"$f":"IF(ROW()<=B$3,INDEX(FP!E:E,B$2+ROW()-1),\"\")","v":""},{"$f":"IF(ROW()<=B$3,INDEX(FP!F:F,B$2+ROW()-1),\"\")","v":""},null,{"$f":"IF(ROW()<=B$3,INDEX(FP!G:G,B$2+ROW()-1),\"\")","v":""},null,{"$f":"IF(ROW()<=B$3,INDEX(FP!C:C,B$2+ROW()-1),\"\")","v":""},"","",null,99,"AAA","HHH"]
[{"$f":"IF(ROW()<=B$3,INDEX(FP!F:F,B$2+ROW()-1)&\" - \"&INDEX(FP!C:C,B$2+ROW()-1),\"\")","v":""},null,{"$f":"IF(ROW()<=B$3,INDEX(FP!E:E,B$2+ROW()-1),\"\")","v":""},{"$f":"IF(ROW()<=B$3,INDEX(FP!F:F,B$2+ROW()-1),\"\")","v":""},null,{"$f":"IF(ROW()<=B$3,INDEX(FP!G:G,B$2+ROW()-1),\"\")","v":""},null,{"$f":"IF(ROW()<=B$3,INDEX(FP!C:C,B$2+ROW()-1),\"\")","v":""},{"$f":"IF(ROW()<=B$3,SUMIF(A$107:A$10065,A33,I$107:I$10065),\"\")","v":""},{"$f":"IF(ROW()<=B$3,SUMIFS(I$103:I$50065,A$103:A$50065,K33,J$103:J$50065,L33),\"\")","v":""},null,99,{"$f":"$A32","v":""},99]
[{"$f":"IF(ROW()<=B$3,INDEX(FP!F:F,B$2+ROW()-1)&\" - \"&INDEX(FP!C:C,B$2+ROW()-1),\"\")","v":""},null,{"$f":"IF(ROW()<=B$3,INDEX(FP!E:E,B$2+ROW()-1),\"\")","v":""},{"$f":"IF(ROW()<=B$3,INDEX(FP!F:F,B$2+ROW()-1),\"\")","v":""},null,{"$f":"IF(ROW()<=B$3,INDEX(FP!G:G,B$2+ROW()-1),\"\")","v":""},null,{"$f":"IF(ROW()<=B$3,INDEX(FP!C:C,B$2+ROW()-1),\"\")","v":""},"","",null,99,"AAA","HHH"]
[{"$f":"IF(ROW()<=B$3,INDEX(FP!F:F,B$2+ROW()-1)&\" - \"&INDEX(FP!C:C,B$2+ROW()-1),\"\")","v":""},null,{"$f":"IF(ROW()<=B$3,INDEX(FP!E:E,B$2+ROW()-1),\"\")","v":""},{"$f":"IF(ROW()<=B$3,INDEX(FP!F:F,B$2+ROW()-1),\"\")","v":""},null,{"$f":"IF(ROW()<=B$3,INDEX(FP!G:G,B$2+ROW()-1),\"\")","v":""},null,{"$f":"IF(ROW()<=B$3,INDEX(FP!C:C,B$2+ROW()-1),\"\")","v":""},"","",null,99,{"$f":"$A34","v":""},99]
[{"$f":"IF(ROW()<=B$3,INDEX(FP!F:F,B$2+ROW()-1)&\" - \"&INDEX(FP!C:C,B$2+ROW()-1),\"\")","v":""},null,{"$f":"IF(ROW()<=B$3,INDEX(FP!E:E,B$2+ROW()-1),\"\")","v":""},{"$f":"IF(ROW()<=B$3,INDEX(FP!F:F,B$2+ROW()-1),\"\")","v":""},null,{"$f":"IF(ROW()<=B$3,INDEX(FP!G:G,B$2+ROW()-1),\"\")","v":""},null,{"$f":"IF(ROW()<=B$3,INDEX(FP!C:C,B$2+ROW()-1),\"\")","v":""},"","",null,99,"AAA","HHH"]
[{"$f":"IF(ROW()<=B$3,INDEX(FP!F:F,B$2+ROW()-1)&\" - \"&INDEX(FP!C:C,B$2+ROW()-1),\"\")","v":""},null,{"$f":"IF(ROW()<=B$3,INDEX(FP!E:E,B$2+ROW()-1),\"\")","v":""},{"$f":"IF(ROW()<=B$3,INDEX(FP!F:F,B$2+ROW()-1),\"\")","v":""},null,{"$f":"IF(ROW()<=B$3,INDEX(FP!G:G,B$2+ROW()-1),\"\")","v":""},null,{"$f":"IF(ROW()<=B$3,INDEX(FP!C:C,B$2+ROW()-1),\"\")","v":""},"","",null,99,{"$f":"$A36","v":""},99]
[{"$f":"IF(ROW()<=B$3,INDEX(FP!F:F,B$2+ROW()-1)&\" - \"&INDEX(FP!C:C,B$2+ROW()-1),\"\")","v":""},null,{"$f":"IF(ROW()<=B$3,INDEX(FP!E:E,B$2+ROW()-1),\"\")","v":""},{"$f":"IF(ROW()<=B$3,INDEX(FP!F:F,B$2+ROW()-1),\"\")","v":""},null,{"$f":"IF(ROW()<=B$3,INDEX(FP!G:G,B$2+ROW()-1),\"\")","v":""},null,{"$f":"IF(ROW()<=B$3,INDEX(FP!C:C,B$2+ROW()-1),\"\")","v":""},"","",null,99,"AAA","HHH"]
[{"$f":"IF(ROW()<=B$3,INDEX(FP!F:F,B$2+ROW()-1)&\" - \"&INDEX(FP!C:C,B$2+ROW()-1),\"\")","v":""},null,{"$f":"IF(ROW()<=B$3,INDEX(FP!E:E,B$2+ROW()-1),\"\")","v":""},{"$f":"IF(ROW()<=B$3,INDEX(FP!F:F,B$2+ROW()-1),\"\")","v":""},null,{"$f":"IF(ROW()<=B$3,INDEX(FP!G:G,B$2+ROW()-1),\"\")","v":""},null,{"$f":"IF(ROW()<=B$3,INDEX(FP!C:C,B$2+ROW()-1),\"\")","v":""},"","",null,99,{"$f":"$A38","v":""},99]
[{"$f":"IF(ROW()<=B$3,INDEX(FP!F:F,B$2+ROW()-1)&\" - \"&INDEX(FP!C:C,B$2+ROW()-1),\"\")","v":""},null,{"$f":"IF(ROW()<=B$3,INDEX(FP!E:E,B$2+ROW()-1),\"\")","v":""},{"$f":"IF(ROW()<=B$3,INDEX(FP!F:F,B$2+ROW()-1),\"\")","v":""},null,{"$f":"IF(ROW()<=B$3,INDEX(FP!G:G,B$2+ROW()-1),\"\")","v":""},null,{"$f":"IF(ROW()<=B$3,INDEX(FP!C:C,B$2+ROW()-1),\"\")","v":""},"","",null,99,"AAA","HHH"]
[{"$f":"IF(ROW()<=B$3,INDEX(FP!F:F,B$2+ROW()-1)&\" - \"&INDEX(FP!C:C,B$2+ROW()-1),\"\")","v":""},null,{"$f":"IF(ROW()<=B$3,INDEX(FP!E:E,B$2+ROW()-1),\"\")","v":""},{"$f":"IF(ROW()<=B$3,INDEX(FP!F:F,B$2+ROW()-1),\"\")","v":""},null,{"$f":"IF(ROW()<=B$3,INDEX(FP!G:G,B$2+ROW()-1),\"\")","v":""},null,{"$f":"IF(ROW()<=B$3,INDEX(FP!C:C,B$2+ROW()-1),\"\")","v":""},"","",null,99,{"$f":"$A40","v":""},99]
[{"$f":"IF(ROW()<=B$3,INDEX(FP!F:F,B$2+ROW()-1)&\" - \"&INDEX(FP!C:C,B$2+ROW()-1),\"\")","v":""},null,{"$f":"IF(ROW()<=B$3,INDEX(FP!E:E,B$2+ROW()-1),\"\")","v":""},{"$f":"IF(ROW()<=B$3,INDEX(FP!F:F,B$2+ROW()-1),\"\")","v":""},null,{"$f":"IF(ROW()<=B$3,INDEX(FP!G:G,B$2+ROW()-1),\"\")","v":""},null,{"$f":"IF(ROW()<=B$3,INDEX(FP!C:C,B$2+ROW()-1),\"\")","v":""},"","",null,99,"AAA","HHH"]
[{"$f":"IF(ROW()<=B$3,INDEX(FP!F:F,B$2+ROW()-1)&\" - \"&INDEX(FP!C:C,B$2+ROW()-1),\"\")","v":""},null,{"$f":"IF(ROW()<=B$3,INDEX(FP!E:E,B$2+ROW()-1),\"\")","v":""},{"$f":"IF(ROW()<=B$3,INDEX(FP!F:F,B$2+ROW()-1),\"\")","v":""},null,{"$f":"IF(ROW()<=B$3,INDEX(FP!G:G,B$2+ROW()-1),\"\")","v":""},null,{"$f":"IF(ROW()<=B$3,INDEX(FP!C:C,B$2+ROW()-1),\"\")","v":""},"","",null,99,{"$f":"$A42","v":""},99]
[{"$f":"IF(ROW()<=B$3,INDEX(FP!F:F,B$2+ROW()-1)&\" - \"&INDEX(FP!C:C,B$2+ROW()-1),\"\")","v":""},null,{"$f":"IF(ROW()<=B$3,INDEX(FP!E:E,B$2+ROW()-1),\"\")","v":""},{"$f":"IF(ROW()<=B$3,INDEX(FP!F:F,B$2+ROW()-1),\"\")","v":""},null,{"$f":"IF(ROW()<=B$3,INDEX(FP!G:G,B$2+ROW()-1),\"\")","v":""},null,{"$f":"IF(ROW()<=B$3,INDEX(FP!C:C,B$2+ROW()-1),\"\")","v":""},"","",null,99,"AAA","HHH"]
[{"$f":"IF(ROW()<=B$3,INDEX(FP!F:F,B$2+ROW()-1)&\" - \"&INDEX(FP!C:C,B$2+ROW()-1),\"\")","v":""},null,{"$f":"IF(ROW()<=B$3,INDEX(FP!E:E,B$2+ROW()-1),\"\")","v":""},{"$f":"IF(ROW()<=B$3,INDEX(FP!F:F,B$2+ROW()-1),\"\")","v":""},null,{"$f":"IF(ROW()<=B$3,INDEX(FP!G:G,B$2+ROW()-1),\"\")","v":""},null,{"$f":"IF(ROW()<=B$3,INDEX(FP!C:C,B$2+ROW()-1),\"\")","v":""},"","",null,99,{"$f":"$A44","v":""},99]
[{"$f":"IF(ROW()<=B$3,INDEX(FP!F:F,B$2+ROW()-1)&\" - \"&INDEX(FP!C:C,B$2+ROW()-1),\"\")","v":""},null,{"$f":"IF(ROW()<=B$3,INDEX(FP!E:E,B$2+ROW()-1),\"\")","v":""},{"$f":"IF(ROW()<=B$3,INDEX(FP!F:F,B$2+ROW()-1),\"\")","v":""},null,{"$f":"IF(ROW()<=B$3,INDEX(FP!G:G,B$2+ROW()-1),\"\")","v":""},null,{"$f":"IF(ROW()<=B$3,INDEX(FP!C:C,B$2+ROW()-1),\"\")","v":""},"","",null,99,"AAA","HHH"]
[{"$f":"IF(ROW()<=B$3,INDEX(FP!F:F,B$2+ROW()-1)&\" - \"&INDEX(FP!C:C,B$2+ROW()-1),\"\")","v":""},null,{"$f":"IF(ROW()<=B$3,INDEX(FP!E:E,B$2+ROW()-1),\"\")","v":""},{"$f":"IF(ROW()<=B$3,INDEX(FP!F:F,B$2+ROW()-1),\"\")","v":""},null,{"$f":"IF(ROW()<=B$3,INDEX(FP!G:G,B$2+ROW()-1),\"\")","v":""},null,{"$f":"IF(ROW()<=B$3,INDEX(FP!C:C,B$2+ROW()-1),\"\")","v":""},"","",null,99,{"$f":"$A46","v":""},99]
[{"$f":"IF(ROW()<=B$3,INDEX(FP!F:F,B$2+ROW()-1)&\" - \"&INDEX(FP!C:C,B$2+ROW()-1),\"\")","v":""},null,{"$f":"IF(ROW()<=B$3,INDEX(FP!E:E,B$2+ROW()-1),\"\")","v":""},{"$f":"IF(ROW()<=B$3,INDEX(FP!F:F,B$2+ROW()-1),\"\")","v":""},null,{"$f":"IF(ROW()<=B$3,INDEX(FP!G:G,B$2+ROW()-1),\"\")","v":""},null,{"$f":"IF(ROW()<=B$3,INDEX(FP!C:C,B$2+ROW()-1),\"\")","v":""},"","",null,99,"AAA","HHH"]
[{"$f":"IF(ROW()<=B$3,INDEX(FP!F:F,B$2+ROW()-1)&\" - \"&INDEX(FP!C:C,B$2+ROW()-1),\"\")","v":""},null,{"$f":"IF(ROW()<=B$3,INDEX(FP!E:E,B$2+ROW()-1),\"\")","v":""},{"$f":"IF(ROW()<=B$3,INDEX(FP!F:F,B$2+ROW()-1),\"\")","v":""},null,{"$f":"IF(ROW()<=B$3,INDEX(FP!G:G,B$2+ROW()-1),\"\")","v":""},null,{"$f":"IF(ROW()<=B$3,INDEX(FP!C:C,B$2+ROW()-1),\"\")","v":""},"","",null,99,{"$f":"$A48","v":""},99]
[{"$f":"IF(ROW()<=B$3,INDEX(FP!F:F,B$2+ROW()-1)&\" - \"&INDEX(FP!C:C,B$2+ROW()-1),\"\")","v":""},null,{"$f":"IF(ROW()<=B$3,INDEX(FP!E:E,B$2+ROW()-1),\"\")","v":""},{"$f":"IF(ROW()<=B$3,INDEX(FP!F:F,B$2+ROW()-1),\"\")","v":""},null,{"$f":"IF(ROW()<=B$3,INDEX(FP!G:G,B$2+ROW()-1),\"\")","v":""},null,{"$f":"IF(ROW()<=B$3,INDEX(FP!C:C,B$2+ROW()-1),\"\")","v":""},"","",null,99,"AAA","HHH"]
[{"$f":"IF(ROW()<=B$3,INDEX(FP!F:F,B$2+ROW()-1)&\" - \"&INDEX(FP!C:C,B$2+ROW()-1),\"\")","v":""},null,{"$f":"IF(ROW()<=B$3,INDEX(FP!E:E,B$2+ROW()-1),\"\")","v":""},{"$f":"IF(ROW()<=B$3,INDEX(FP!F:F,B$2+ROW()-1),\"\")","v":""},null,{"$f":"IF(ROW()<=B$3,INDEX(FP!G:G,B$2+ROW()-1),\"\")","v":""},null,{"$f":"IF(ROW()<=B$3,INDEX(FP!C:C,B$2+ROW()-1),\"\")","v":""},"","",null,99,{"$f":"$A50","v":""},99]
[{"$f":"IF(ROW()<=B$3,INDEX(FP!F:F,B$2+ROW()-1)&\" - \"&INDEX(FP!C:C,B$2+ROW()-1),\"\")","v":""},null,{"$f":"IF(ROW()<=B$3,INDEX(FP!E:E,B$2+ROW()-1),\"\")","v":""},{"$f":"IF(ROW()<=B$3,INDEX(FP!F:F,B$2+ROW()-1),\"\")","v":""},null,{"$f":"IF(ROW()<=B$3,INDEX(FP!G:G,B$2+ROW()-1),\"\")","v":""},null,{"$f":"IF(ROW()<=B$3,INDEX(FP!C:C,B$2+ROW()-1),\"\")","v":""},"","",null,99,"AAA","HHH"]
[{"$f":"IF(ROW()<=B$3,INDEX(FP!F:F,B$2+ROW()-1)&\" - \"&INDEX(FP!C:C,B$2+ROW()-1),\"\")","v":""},null,{"$f":"IF(ROW()<=B$3,INDEX(FP!E:E,B$2+ROW()-1),\"\")","v":""},{"$f":"IF(ROW()<=B$3,INDEX(FP!F:F,B$2+ROW()-1),\"\")","v":""},null,{"$f":"IF(ROW()<=B$3,INDEX(FP!G:G,B$2+ROW()-1),\"\")","v":""},null,{"$f":"IF(ROW()<=B$3,INDEX(FP!C:C,B$2+ROW()-1),\"\")","v":""},"","",null,99,{"$f":"$A52","v":""},99]
[{"$f":"IF(ROW()<=B$3,INDEX(FP!F:F,B$2+ROW()-1)&\" - \"&INDEX(FP!C:C,B$2+ROW()-1),\"\")","v":""},null,{"$f":"IF(ROW()<=B$3,INDEX(FP!E:E,B$2+ROW()-1),\"\")","v":""},{"$f":"IF(ROW()<=B$3,INDEX(FP!F:F,B$2+ROW()-1),\"\")","v":""},null,{"$f":"IF(ROW()<=B$3,INDEX(FP!G:G,B$2+ROW()-1),\"\")","v":""},null,{"$f":"IF(ROW()<=B$3,INDEX(FP!C:C,B$2+ROW()-1),\"\")","v":""},"","",null,99,"AAA","HHH"]
[{"$f":"IF(ROW()<=B$3,INDEX(FP!F:F,B$2+ROW()-1)&\" - \"&INDEX(FP!C:C,B$2+ROW()-1),\"\")","v":""},null,{"$f":"IF(ROW()<=B$3,INDEX(FP!E:E,B$2+ROW()-1),\"\")","v":""},{"$f":"IF(ROW()<=B$3,INDEX(FP!F:F,B$2+ROW()-1),\"\")","v":""},null,{"$f":"IF(ROW()<=B$3,INDEX(FP!G:G,B$2+ROW()-1),\"\")","v":""},null,{"$f":"IF(ROW()<=B$3,INDEX(FP!C:C,B$2+ROW()-1),\"\")","v":""},"","",null,99,{"$f":"$A54","v":""},99]
[{"$f":"IF(ROW()<=B$3,INDEX(FP!F:F,B$2+ROW()-1)&\" - \"&INDEX(FP!C:C,B$2+ROW()-1),\"\")","v":""},null,{"$f":"IF(ROW()<=B$3,INDEX(FP!E:E,B$2+ROW()-1),\"\")","v":""},{"$f":"IF(ROW()<=B$3,INDEX(FP!F:F,B$2+ROW()-1),\"\")","v":""},null,{"$f":"IF(ROW()<=B$3,INDEX(FP!G:G,B$2+ROW()-1),\"\")","v":""},null,{"$f":"IF(ROW()<=B$3,INDEX(FP!C:C,B$2+ROW()-1),\"\")","v":""},"","",null,99,"AAA","HHH"]
[{"$f":"IF(ROW()<=B$3,INDEX(FP!F:F,B$2+ROW()-1)&\" - \"&INDEX(FP!C:C,B$2+ROW()-1),\"\")","v":""},null,{"$f":"IF(ROW()<=B$3,INDEX(FP!E:E,B$2+ROW()-1),\"\")","v":""},{"$f":"IF(ROW()<=B$3,INDEX(FP!F:F,B$2+ROW()-1),\"\")","v":""},null,{"$f":"IF(ROW()<=B$3,INDEX(FP!G:G,B$2+ROW()-1),\"\")","v":""},null,{"$f":"IF(ROW()<=B$3,INDEX(FP!C:C,B$2+ROW()-1),\"\")","v":""},"","",null,99,{"$f":"$A56","v":""},99]
[{"$f":"IF(ROW()<=B$3,INDEX(FP!F:F,B$2+ROW()-1)&\" - \"&INDEX(FP!C:C,B$2+ROW()-1),\"\")","v":""},null,{"$f":"IF(ROW()<=B$3,INDEX(FP!E:E,B$2+ROW()-1),\"\")","v":""},{"$f":"IF(ROW()<=B$3,INDEX(FP!F:F,B$2+ROW()-1),\"\")","v":""},null,{"$f":"IF(ROW()<=B$3,INDEX(FP!G:G,B$2+ROW()-1),\"\")","v":""},null,{"$f":"IF(ROW()<=B$3,INDEX(FP!C:C,B$2+ROW()-1),\"\")","v":""},"","",null,99,"AAA","HHH"]
[{"$f":"IF(ROW()<=B$3,INDEX(FP!F:F,B$2+ROW()-1)&\" - \"&INDEX(FP!C:C,B$2+ROW()-1),\"\")","v":""},null,{"$f":"IF(ROW()<=B$3,INDEX(FP!E:E,B$2+ROW()-1),\"\")","v":""},{"$f":"IF(ROW()<=B$3,INDEX(FP!F:F,B$2+ROW()-1),\"\")","v":""},null,{"$f":"IF(ROW()<=B$3,INDEX(FP!G:G,B$2+ROW()-1),\"\")","v":""},null,{"$f":"IF(ROW()<=B$3,INDEX(FP!C:C,B$2+ROW()-1),\"\")","v":""},"","",null,99,{"$f":"$A58","v":""},99]
[{"$f":"IF(ROW()<=B$3,INDEX(FP!F:F,B$2+ROW()-1)&\" - \"&INDEX(FP!C:C,B$2+ROW()-1),\"\")","v":""},null,{"$f":"IF(ROW()<=B$3,INDEX(FP!E:E,B$2+ROW()-1),\"\")","v":""},{"$f":"IF(ROW()<=B$3,INDEX(FP!F:F,B$2+ROW()-1),\"\")","v":""},null,{"$f":"IF(ROW()<=B$3,INDEX(FP!G:G,B$2+ROW()-1),\"\")","v":""},null,{"$f":"IF(ROW()<=B$3,INDEX(FP!C:C,B$2+ROW()-1),\"\")","v":""},"","",null,99,"AAA","HHH"]
[{"$f":"IF(ROW()<=B$3,INDEX(FP!F:F,B$2+ROW()-1)&\" - \"&INDEX(FP!C:C,B$2+ROW()-1),\"\")","v":""},null,{"$f":"IF(ROW()<=B$3,INDEX(FP!E:E,B$2+ROW()-1),\"\")","v":""},{"$f":"IF(ROW()<=B$3,INDEX(FP!F:F,B$2+ROW()-1),\"\")","v":""},null,{"$f":"IF(ROW()<=B$3,INDEX(FP!G:G,B$2+ROW()-1),\"\")","v":""},null,{"$f":"IF(ROW()<=B$3,INDEX(FP!C:C,B$2+ROW()-1),\"\")","v":""},"","",null,99,{"$f":"$A60","v":""},99]
[{"$f":"IF(ROW()<=B$3,INDEX(FP!F:F,B$2+ROW()-1)&\" - \"&INDEX(FP!C:C,B$2+ROW()-1),\"\")","v":""},null,{"$f":"IF(ROW()<=B$3,INDEX(FP!E:E,B$2+ROW()-1),\"\")","v":""},{"$f":"IF(ROW()<=B$3,INDEX(FP!F:F,B$2+ROW()-1),\"\")","v":""},null,{"$f":"IF(ROW()<=B$3,INDEX(FP!G:G,B$2+ROW()-1),\"\")","v":""},null,{"$f":"IF(ROW()<=B$3,INDEX(FP!C:C,B$2+ROW()-1),\"\")","v":""},"","",null,99,"AAA","HHH"]
[{"$f":"IF(ROW()<=B$3,INDEX(FP!F:F,B$2+ROW()-1)&\" - \"&INDEX(FP!C:C,B$2+ROW()-1),\"\")","v":""},null,{"$f":"IF(ROW()<=B$3,INDEX(FP!E:E,B$2+ROW()-1),\"\")","v":""},{"$f":"IF(ROW()<=B$3,INDEX(FP!F:F,B$2+ROW()-1),\"\")","v":""},null,{"$f":"IF(ROW()<=B$3,INDEX(FP!G:G,B$2+ROW()-1),\"\")","v":""},null,{"$f":"IF(ROW()<=B$3,INDEX(FP!C:C,B$2+ROW()-1),\"\")","v":""},"","",null,99,{"$f":"$A62","v":""},99]
[{"$f":"IF(ROW()<=B$3,INDEX(FP!F:F,B$2+ROW()-1)&\" - \"&INDEX(FP!C:C,B$2+ROW()-1),\"\")","v":""},null,{"$f":"IF(ROW()<=B$3,INDEX(FP!E:E,B$2+ROW()-1),\"\")","v":""},{"$f":"IF(ROW()<=B$3,INDEX(FP!F:F,B$2+ROW()-1),\"\")","v":""},null,{"$f":"IF(ROW()<=B$3,INDEX(FP!G:G,B$2+ROW()-1),\"\")","v":""},null,{"$f":"IF(ROW()<=B$3,INDEX(FP!C:C,B$2+ROW()-1),\"\")","v":""},"","",null,99,"AAA","HHH"]
[{"$f":"IF(ROW()<=B$3,INDEX(FP!F:F,B$2+ROW()-1)&\" - \"&INDEX(FP!C:C,B$2+ROW()-1),\"\")","v":""},null,{"$f":"IF(ROW()<=B$3,INDEX(FP!E:E,B$2+ROW()-1),\"\")","v":""},{"$f":"IF(ROW()<=B$3,INDEX(FP!F:F,B$2+ROW()-1),\"\")","v":""},null,{"$f":"IF(ROW()<=B$3,INDEX(FP!G:G,B$2+ROW()-1),\"\")","v":""},null,{"$f":"IF(ROW()<=B$3,INDEX(FP!C:C,B$2+ROW()-1),\"\")","v":""},{"$f":"IF(ROW()<=B$3,SUMIF(A$107:A$10065,A65,I$107:I$10065),\"\")","v":""},{"$f":"IF(ROW()<=B$3,SUMIFS(I$103:I$50065,A$103:A$50065,K65,J$103:J$50065,L65),\"\")","v":""},null,99,{"$f":"$A64","v":""},99]
[{"$f":"IF(ROW()<=B$3,INDEX(FP!F:F,B$2+ROW()-1)&\" - \"&INDEX(FP!C:C,B$2+ROW()-1),\"\")","v":""},null,{"$f":"IF(ROW()<=B$3,INDEX(FP!E:E,B$2+ROW()-1),\"\")","v":""},{"$f":"IF(ROW()<=B$3,INDEX(FP!F:F,B$2+ROW()-1),\"\")","v":""},null,{"$f":"IF(ROW()<=B$3,INDEX(FP!G:G,B$2+ROW()-1),\"\")","v":""},null,{"$f":"IF(ROW()<=B$3,INDEX(FP!C:C,B$2+ROW()-1),\"\")","v":""},"","",null,99,"AAA","HHH"]
[{"$f":"IF(ROW()<=B$3,INDEX(FP!F:F,B$2+ROW()-1)&\" - \"&INDEX(FP!C:C,B$2+ROW()-1),\"\")","v":""},null,{"$f":"IF(ROW()<=B$3,INDEX(FP!E:E,B$2+ROW()-1),\"\")","v":""},{"$f":"IF(ROW()<=B$3,INDEX(FP!F:F,B$2+ROW()-1),\"\")","v":""},null,{"$f":"IF(ROW()<=B$3,INDEX(FP!G:G,B$2+ROW()-1),\"\")","v":""},null,{"$f":"IF(ROW()<=B$3,INDEX(FP!C:C,B$2+ROW()-1),\"\")","v":""},"","",null,99,{"$f":"$A66","v":""},99]
[{"$f":"IF(ROW()<=B$3,INDEX(FP!F:F,B$2+ROW()-1)&\" - \"&INDEX(FP!C:C,B$2+ROW()-1),\"\")","v":""},null,{"$f":"IF(ROW()<=B$3,INDEX(FP!E:E,B$2+ROW()-1),\"\")","v":""},{"$f":"IF(ROW()<=B$3,INDEX(FP!F:F,B$2+ROW()-1),\"\")","v":""},null,{"$f":"IF(ROW()<=B$3,INDEX(FP!G:G,B$2+ROW()-1),\"\")","v":""},null,{"$f":"IF(ROW()<=B$3,INDEX(FP!C:C,B$2+ROW()-1),\"\")","v":""},"","",null,99,"AAA","HHH"]
[{"$f":"IF(ROW()<=B$3,INDEX(FP!F:F,B$2+ROW()-1)&\" - \"&INDEX(FP!C:C,B$2+ROW()-1),\"\")","v":""},null,{"$f":"IF(ROW()<=B$3,INDEX(FP!E:E,B$2+ROW()-1),\"\")","v":""},{"$f":"IF(ROW()<=B$3,INDEX(FP!F:F,B$2+ROW()-1),\"\")","v":""},null,{"$f":"IF(ROW()<=B$3,INDEX(FP!G:G,B$2+ROW()-1),\"\")","v":""},null,{"$f":"IF(ROW()<=B$3,INDEX(FP!C:C,B$2+ROW()-1),\"\")","v":""},"","",null,99,{"$f":"$A68","v":""},99]
[{"$f":"IF(ROW()<=B$3,INDEX(FP!F:F,B$2+ROW()-1)&\" - \"&INDEX(FP!C:C,B$2+ROW()-1),\"\")","v":""},null,{"$f":"IF(ROW()<=B$3,INDEX(FP!E:E,B$2+ROW()-1),\"\")","v":""},{"$f":"IF(ROW()<=B$3,INDEX(FP!F:F,B$2+ROW()-1),\"\")","v":""},null,{"$f":"IF(ROW()<=B$3,INDEX(FP!G:G,B$2+ROW()-1),\"\")","v":""},null,{"$f":"IF(ROW()<=B$3,INDEX(FP!C:C,B$2+ROW()-1),\"\")","v":""},"","",null,99,"AAA","HHH"]
[{"$f":"IF(ROW()<=B$3,INDEX(FP!F:F,B$2+ROW()-1)&\" - \"&INDEX(FP!C:C,B$2+ROW()-1),\"\")","v":""},null,{"$f":"IF(ROW()<=B$3,INDEX(FP!E:E,B$2+ROW()-1),\"\")","v":""},{"$f":"IF(ROW()<=B$3,INDEX(FP!F:F,B$2+ROW()-1),\"\")","v":""},null,{"$f":"IF(ROW()<=B$3,INDEX(FP!G:G,B$2+ROW()-1),\"\")","v":""},null,{"$f":"IF(ROW()<=B$3,INDEX(FP!C:C,B$2+ROW()-1),\"\")","v":""},"","",null,99,{"$f":"$A70","v":""},99]
[{"$f":"IF(ROW()<=B$3,INDEX(FP!F:F,B$2+ROW()-1)&\" - \"&INDEX(FP!C:C,B$2+ROW()-1),\"\")","v":""},null,{"$f":"IF(ROW()<=B$3,INDEX(FP!E:E,B$2+ROW()-1),\"\")","v":""},{"$f":"IF(ROW()<=B$3,INDEX(FP!F:F,B$2+ROW()-1),\"\")","v":""},null,{"$f":"IF(ROW()<=B$3,INDEX(FP!G:G,B$2+ROW()-1),\"\")","v":""},null,{"$f":"IF(ROW()<=B$3,INDEX(FP!C:C,B$2+ROW()-1),\"\")","v":""},"","",null,99,"AAA","HHH"]
[{"$f":"IF(ROW()<=B$3,INDEX(FP!F:F,B$2+ROW()-1)&\" - \"&INDEX(FP!C:C,B$2+ROW()-1),\"\")","v":""},null,{"$f":"IF(ROW()<=B$3,INDEX(FP!E:E,B$2+ROW()-1),\"\")","v":""},{"$f":"IF(ROW()<=B$3,INDEX(FP!F:F,B$2+ROW()-1),\"\")","v":""},null,{"$f":"IF(ROW()<=B$3,INDEX(FP!G:G,B$2+ROW()-1),\"\")","v":""},null,{"$f":"IF(ROW()<=B$3,INDEX(FP!C:C,B$2+ROW()-1),\"\")","v":""},"","",null,99,{"$f":"$A72","v":""},99]
[{"$f":"IF(ROW()<=B$3,INDEX(FP!F:F,B$2+ROW()-1)&\" - \"&INDEX(FP!C:C,B$2+ROW()-1),\"\")","v":""},null,{"$f":"IF(ROW()<=B$3,INDEX(FP!E:E,B$2+ROW()-1),\"\")","v":""},{"$f":"IF(ROW()<=B$3,INDEX(FP!F:F,B$2+ROW()-1),\"\")","v":""},null,{"$f":"IF(ROW()<=B$3,INDEX(FP!G:G,B$2+ROW()-1),\"\")","v":""},null,{"$f":"IF(ROW()<=B$3,INDEX(FP!C:C,B$2+ROW()-1),\"\")","v":""},"","",null,99,"AAA","HHH"]
[{"$f":"IF(ROW()<=B$3,INDEX(FP!F:F,B$2+ROW()-1)&\" - \"&INDEX(FP!C:C,B$2+ROW()-1),\"\")","v":""},null,{"$f":"IF(ROW()<=B$3,INDEX(FP!E:E,B$2+ROW()-1),\"\")","v":""},{"$f":"IF(ROW()<=B$3,INDEX(FP!F:F,B$2+ROW()-1),\"\")","v":""},null,{"$f":"IF(ROW()<=B$3,INDEX(FP!G:G,B$2+ROW()-1),\"\")","v":""},null,{"$f":"IF(ROW()<=B$3,INDEX(FP!C:C,B$2+ROW()-1),\"\")","v":""},"","",null,99,{"$f":"$A74","v":""},99]
[{"$f":"IF(ROW()<=B$3,INDEX(FP!F:F,B$2+ROW()-1)&\" - \"&INDEX(FP!C:C,B$2+ROW()-1),\"\")","v":""},null,{"$f":"IF(ROW()<=B$3,INDEX(FP!E:E,B$2+ROW()-1),\"\")","v":""},{"$f":"IF(ROW()<=B$3,INDEX(FP!F:F,B$2+ROW()-1),\"\")","v":""},null,{"$f":"IF(ROW()<=B$3,INDEX(FP!G:G,B$2+ROW()-1),\"\")","v":""},null,{"$f":"IF(ROW()<=B$3,INDEX(FP!C:C,B$2+ROW()-1),\"\")","v":""},"","",null,99,"AAA","HHH"]
[{"$f":"IF(ROW()<=B$3,INDEX(FP!F:F,B$2+ROW()-1)&\" - \"&INDEX(FP!C:C,B$2+ROW()-1),\"\")","v":""},null,{"$f":"IF(ROW()<=B$3,INDEX(FP!E:E,B$2+ROW()-1),\"\")","v":""},{"$f":"IF(ROW()<=B$3,INDEX(FP!F:F,B$2+ROW()-1),\"\")","v":""},null,{"$f":"IF(ROW()<=B$3,INDEX(FP!G:G,B$2+ROW()-1),\"\")","v":""},null,{"$f":"IF(ROW()<=B$3,INDEX(FP!C:C,B$2+ROW()-1),\"\")","v":""},"","",null,99,{"$f":"$A76","v":""},99]
[{"$f":"IF(ROW()<=B$3,INDEX(FP!F:F,B$2+ROW()-1)&\" - \"&INDEX(FP!C:C,B$2+ROW()-1),\"\")","v":""},null,{"$f":"IF(ROW()<=B$3,INDEX(FP!E:E,B$2+ROW()-1),\"\")","v":""},{"$f":"IF(ROW()<=B$3,INDEX(FP!F:F,B$2+ROW()-1),\"\")","v":""},null,{"$f":"IF(ROW()<=B$3,INDEX(FP!G:G,B$2+ROW()-1),\"\")","v":""},null,{"$f":"IF(ROW()<=B$3,INDEX(FP!C:C,B$2+ROW()-1),\"\")","v":""},"","",null,99,"AAA","HHH"]
[{"$f":"IF(ROW()<=B$3,INDEX(FP!F:F,B$2+ROW()-1)&\" - \"&INDEX(FP!C:C,B$2+ROW()-1),\"\")","v":""},null,{"$f":"IF(ROW()<=B$3,INDEX(FP!E:E,B$2+ROW()-1),\"\")","v":""},{"$f":"IF(ROW()<=B$3,INDEX(FP!F:F,B$2+ROW()-1),\"\")","v":""},null,{"$f":"IF(ROW()<=B$3,INDEX(FP!G:G,B$2+ROW()-1),\"\")","v":""},null,{"$f":"IF(ROW()<=B$3,INDEX(FP!C:C,B$2+ROW()-1),\"\")","v":""},"","",null,99,{"$f":"$A78","v":""},99]
[{"$f":"IF(ROW()<=B$3,INDEX(FP!F:F,B$2+ROW()-1)&\" - \"&INDEX(FP!C:C,B$2+ROW()-1),\"\")","v":""},null,{"$f":"IF(ROW()<=B$3,INDEX(FP!E:E,B$2+ROW()-1),\"\")","v":""},{"$f":"IF(ROW()<=B$3,INDEX(FP!F:F,B$2+ROW()-1),\"\")","v":""},null,{"$f":"IF(ROW()<=B$3,INDEX(FP!G:G,B$2+ROW()-1),\"\")","v":""},null,{"$f":"IF(ROW()<=B$3,INDEX(FP!C:C,B$2+ROW()-1),\"\")","v":""},"","",null,99,"AAA","HHH"]
[{"$f":"IF(ROW()<=B$3,INDEX(FP!F:F,B$2+ROW()-1)&\" - \"&INDEX(FP!C:C,B$2+ROW()-1),\"\")","v":""},null,{"$f":"IF(ROW()<=B$3,INDEX(FP!E:E,B$2+ROW()-1),\"\")","v":""},{"$f":"IF(ROW()<=B$3,INDEX(FP!F:F,B$2+ROW()-1),\"\")","v":""},null,{"$f":"IF(ROW()<=B$3,INDEX(FP!G:G,B$2+ROW()-1),\"\")","v":""},null,{"$f":"IF(ROW()<=B$3,INDEX(FP!C:C,B$2+ROW()-1),\"\")","v":""},"","",null,99,{"$f":"$A80","v":""},99]
[{"$f":"IF(ROW()<=B$3,INDEX(FP!F:F,B$2+ROW()-1)&\" - \"&INDEX(FP!C:C,B$2+ROW()-1),\"\")","v":""},null,{"$f":"IF(ROW()<=B$3,INDEX(FP!E:E,B$2+ROW()-1),\"\")","v":""},{"$f":"IF(ROW()<=B$3,INDEX(FP!F:F,B$2+ROW()-1),\"\")","v":""},null,{"$f":"IF(ROW()<=B$3,INDEX(FP!G:G,B$2+ROW()-1),\"\")","v":""},null,{"$f":"IF(ROW()<=B$3,INDEX(FP!C:C,B$2+ROW()-1),\"\")","v":""},"","",null,99,"AAA","HHH"]
[{"$f":"IF(ROW()<=B$3,INDEX(FP!F:F,B$2+ROW()-1)&\" - \"&INDEX(FP!C:C,B$2+ROW()-1),\"\")","v":""},null,{"$f":"IF(ROW()<=B$3,INDEX(FP!E:E,B$2+ROW()-1),\"\")","v":""},{"$f":"IF(ROW()<=B$3,INDEX(FP!F:F,B$2+ROW()-1),\"\")","v":""},null,{"$f":"IF(ROW()<=B$3,INDEX(FP!G:G,B$2+ROW()-1),\"\")","v":""},null,{"$f":"IF(ROW()<=B$3,INDEX(FP!C:C,B$2+ROW()-1),\"\")","v":""},"","",null,99,{"$f":"$A82","v":""},99]
[{"$f":"IF(ROW()<=B$3,INDEX(FP!F:F,B$2+ROW()-1)&\" - \"&INDEX(FP!C:C,B$2+ROW()-1),\"\")","v":""},null,{"$f":"IF(ROW()<=B$3,INDEX(FP!E:E,B$2+ROW()-1),\"\")","v":""},{"$f":"IF(ROW()<=B$3,INDEX(FP!F:F,B$2+ROW()-1),\"\")","v":""},null,{"$f":"IF(ROW()<=B$3,INDEX(FP!G:G,B$2+ROW()-1),\"\")","v":""},null,{"$f":"IF(ROW()<=B$3,INDEX(FP!C:C,B$2+ROW()-1),\"\")","v":""},"","",null,99,"AAA","HHH"]
[{"$f":"IF(ROW()<=B$3,INDEX(FP!F:F,B$2+ROW()-1)&\" - \"&INDEX(FP!C:C,B$2+ROW()-1),\"\")","v":""},null,{"$f":"IF(ROW()<=B$3,INDEX(FP!E:E,B$2+ROW()-1),\"\")","v":""},{"$f":"IF(ROW()<=B$3,INDEX(FP!F:F,B$2+ROW()-1),\"\")","v":""},null,{"$f":"IF(ROW()<=B$3,INDEX(FP!G:G,B$2+ROW()-1),\"\")","v":""},null,{"$f":"IF(ROW()<=B$3,INDEX(FP!C:C,B$2+ROW()-1),\"\")","v":""},"","",null,99,{"$f":"$A84","v":""},99]
[{"$f":"IF(ROW()<=B$3,INDEX(FP!F:F,B$2+ROW()-1)&\" - \"&INDEX(FP!C:C,B$2+ROW()-1),\"\")","v":""},null,{"$f":"IF(ROW()<=B$3,INDEX(FP!E:E,B$2+ROW()-1),\"\")","v":""},{"$f":"IF(ROW()<=B$3,INDEX(FP!F:F,B$2+ROW()-1),\"\")","v":""},null,{"$f":"IF(ROW()<=B$3,INDEX(FP!G:G,B$2+ROW()-1),\"\")","v":""},null,{"$f":"IF(ROW()<=B$3,INDEX(FP!C:C,B$2+ROW()-1),\"\")","v":""},"","",null,99,"AAA","HHH"]
[{"$f":"IF(ROW()<=B$3,INDEX(FP!F:F,B$2+ROW()-1)&\" - \"&INDEX(FP!C:C,B$2+ROW()-1),\"\")","v":""},null,{"$f":"IF(ROW()<=B$3,INDEX(FP!E:E,B$2+ROW()-1),\"\")","v":""},{"$f":"IF(ROW()<=B$3,INDEX(FP!F:F,B$2+ROW()-1),\"\")","v":""},null,{"$f":"IF(ROW()<=B$3,INDEX(FP!G:G,B$2+ROW()-1),\"\")","v":""},null,{"$f":"IF(ROW()<=B$3,INDEX(FP!C:C,B$2+ROW()-1),\"\")","v":""},"","",null,99,{"$f":"$A86","v":""},99]
[{"$f":"IF(ROW()<=B$3,INDEX(FP!F:F,B$2+ROW()-1)&\" - \"&INDEX(FP!C:C,B$2+ROW()-1),\"\")","v":""},null,{"$f":"IF(ROW()<=B$3,INDEX(FP!E:E,B$2+ROW()-1),\"\")","v":""},{"$f":"IF(ROW()<=B$3,INDEX(FP!F:F,B$2+ROW()-1),\"\")","v":""},null,{"$f":"IF(ROW()<=B$3,INDEX(FP!G:G,B$2+ROW()-1),\"\")","v":""},null,{"$f":"IF(ROW()<=B$3,INDEX(FP!C:C,B$2+ROW()-1),\"\")","v":""},"","",null,99,"AAA","HHH"]
[{"$f":"IF(ROW()<=B$3,INDEX(FP!F:F,B$2+ROW()-1)&\" - \"&INDEX(FP!C:C,B$2+ROW()-1),\"\")","v":""},null,{"$f":"IF(ROW()<=B$3,INDEX(FP!E:E,B$2+ROW()-1),\"\")","v":""},{"$f":"IF(ROW()<=B$3,INDEX(FP!F:F,B$2+ROW()-1),\"\")","v":""},null,{"$f":"IF(ROW()<=B$3,INDEX(FP!G:G,B$2+ROW()-1),\"\")","v":""},null,{"$f":"IF(ROW()<=B$3,INDEX(FP!C:C,B$2+ROW()-1),\"\")","v":""},"","",null,99,{"$f":"$A88","v":""},99]
[{"$f":"IF(ROW()<=B$3,INDEX(FP!F:F,B$2+ROW()-1)&\" - \"&INDEX(FP!C:C,B$2+ROW()-1),\"\")","v":""},null,{"$f":"IF(ROW()<=B$3,INDEX(FP!E:E,B$2+ROW()-1),\"\")","v":""},{"$f":"IF(ROW()<=B$3,INDEX(FP!F:F,B$2+ROW()-1),\"\")","v":""},null,{"$f":"IF(ROW()<=B$3,INDEX(FP!G:G,B$2+ROW()-1),\"\")","v":""},null,{"$f":"IF(ROW()<=B$3,INDEX(FP!C:C,B$2+ROW()-1),\"\")","v":""},"","",null,99,"AAA","HHH"]
[{"$f":"IF(ROW()<=B$3,INDEX(FP!F:F,B$2+ROW()-1)&\" - \"&INDEX(FP!C:C,B$2+ROW()-1),\"\")","v":""},null,{"$f":"IF(ROW()<=B$3,INDEX(FP!E:E,B$2+ROW()-1),\"\")","v":""},{"$f":"IF(ROW()<=B$3,INDEX(FP!F:F,B$2+ROW()-1),\"\")","v":""},null,{"$f":"IF(ROW()<=B$3,INDEX(FP!G:G,B$2+ROW()-1),\"\")","v":""},null,{"$f":"IF(ROW()<=B$3,INDEX(FP!C:C,B$2+ROW()-1),\"\")","v":""},"","",null,99,{"$f":"$A90","v":""},99]
[{"$f":"IF(ROW()<=B$3,INDEX(FP!F:F,B$2+ROW()-1)&\" - \"&INDEX(FP!C:C,B$2+ROW()-1),\"\")","v":""},null,{"$f":"IF(ROW()<=B$3,INDEX(FP!E:E,B$2+ROW()-1),\"\")","v":""},{"$f":"IF(ROW()<=B$3,INDEX(FP!F:F,B$2+ROW()-1),\"\")","v":""},null,{"$f":"IF(ROW()<=B$3,INDEX(FP!G:G,B$2+ROW()-1),\"\")","v":""},null,{"$f":"IF(ROW()<=B$3,INDEX(FP!C:C,B$2+ROW()-1),\"\")","v":""},"","",null,99,"AAA","HHH"]
[{"$f":"IF(ROW()<=B$3,INDEX(FP!F:F,B$2+ROW()-1)&\" - \"&INDEX(FP!C:C,B$2+ROW()-1),\"\")","v":""},null,{"$f":"IF(ROW()<=B$3,INDEX(FP!E:E,B$2+ROW()-1),\"\")","v":""},{"$f":"IF(ROW()<=B$3,INDEX(FP!F:F,B$2+ROW()-1),\"\")","v":""},null,{"$f":"IF(ROW()<=B$3,INDEX(FP!G:G,B$2+ROW()-1),\"\")","v":""},null,{"$f":"IF(ROW()<=B$3,INDEX(FP!C:C,B$2+ROW()-1),\"\")","v":""},"","",null,99,{"$f":"$A92","v":""},99]
[{"$f":"IF(ROW()<=B$3,INDEX(FP!F:F,B$2+ROW()-1)&\" - \"&INDEX(FP!C:C,B$2+ROW()-1),\"\")","v":""},null,{"$f":"IF(ROW()<=B$3,INDEX(FP!E:E,B$2+ROW()-1),\"\")","v":""},{"$f":"IF(ROW()<=B$3,INDEX(FP!F:F,B$2+ROW()-1),\"\")","v":""},null,{"$f":"IF(ROW()<=B$3,INDEX(FP!G:G,B$2+ROW()-1),\"\")","v":""},null,{"$f":"IF(ROW()<=B$3,INDEX(FP!C:C,B$2+ROW()-1),\"\")","v":""},"","",null,99,"AAA","HHH"]
[null,null,null,null,null,{"$f":"IF(ROW()<=B$3,INDEX(FP!G:G,B$2+ROW()-1),\"\")","v":""},null,null,null,null,null,null,{"$f":"$A94","v":""},99]
[null,null,null,null,null,"Organizácia podujatia\nnázov podujatia (napr. Kongres ISF, Svetový pohár ICU):\nmiesto konania (napr. Komjatice):\ntermín (od-do) (napr. 1.5.-15.5.2013):\npočet aktívnych účastníkov (napr. 223):\npočet odpracovaných hodín spolu: (napr. 690):\nhrubé mzdy vyplatené osobám v súvislosti s podujatím vrátane odvodov zamestnávateľa spolu (dohody, zmluvy, faktúry, a pod.) v eur:"]
[null,null,null,null,null,"Hrubé mzdy vyplatené osobám (zamestnancom) vrátane odvodov zamestnávateľa\npočet fyzických osôb (napr. 3):\nobdobie (napr. január - marec):"]
[null,null,null,null,null,"Služobné motorové vozidlo\nEČV (napr. BB 123 AK):\nObdobie (napr. 3.7.-28.7.2013):\nNajazdené kilometre (napr. 1 211 km):"]
[null,null,null,null,null,"Pracovná cesta\n(napr. výjazd na výkonný výbor, na majstrovstvá)\nNázov (napr. majstrovstvá sveta, sústredenie, kongres, zasadnutie komisie):\nTermín (napr. 1.5.-3.6.2013):\nMiesto - mesto a štát (napr. Palermo, Taliansko):\nSpôsob dopravy (napr. letecky):\nPočet všetkých osôb na pracovnej ceste (napr. 17)\nz toho:\n- športovci (+ navádzači): 12\n- tréneri + rozhodcovia + vedúci výpravy + administratívni pracovníci + lekár + fyzioterapeut + masér + ): 2\n- ostatné osoby (napr. sponzori, hostia): 3"]
["Priebežné čerpanie a vyúčtovanie finančných prostriedkov poskytnutých zo štátneho rozpočtu v oblasti športu v roku 2023",null,null,null,null,null,null,null,"V4"]
[null,null,null,null,null,null,null,null,"2024-01-25"]
["Názov prijímateľa prostriedkov: ",94]
["AAA","BBB","CCC","DDD",null,"EEE",null,"FFF","GGG","HHH"]
["Účel úhrady\n(vyberte zo zoznamu, inak automatické vyhodnocovanie nebude fungovať)","Interné číslo účtovného dokladu","Číslo externého (originálneho)\núčtovného dokladu","Dátum skutočnej úhrady účtovného dokladu","Dátum refundácie účtovného dokladu","Popis úhrady\n(vyberte z rozbaľovacieho zoznamu, alebo zadajte voľný text)","IČO \ndodávateľa\nplnenia","Dodávateľ plnenia","Skutočne uhradená suma\n(eur)","AK"]
["ÚDAJE ZORADIŤ PODĽA ÚČELU ÚHRADY A V RÁMCI JEDNÉHO ÚČELU PODĽA POPISU ÚHRADY"]
[]
["a - vodné lyžovanie - bežné transfery","B1/01","B1/01","2023-01-31",null,"Bankové poplatky","31320156","VUB, a.s., Mlynské nivy 1, 829 90 Bratislava",7,4]
["a - vodné lyžovanie - bežné transfery","B1/02","B1/02","2023-02-01",null,"Bankové poplatky- ročný poplatok za obnovu platobnej karty","31320156","VUB, a.s., Mlynské nivy 1, 829 90 Bratislava",33,4]
["a - vodné lyžovanie - bežné transfery",null,null,null,null,"Pracovná cesta\nNázov  majstrovstvá európy juniorov. sekcia člny\nTermín : 7.-12.8.2023\nMiesto - mesto a štát Španielsko,Sesena\nSpôsob dopravy: auto, lietadlo\nPočet všetkých osôb na pracovnej ceste :5\nz toho:\n- športovci: 4, vedúci družstva -1"]
["a - vodné lyžovanie - bežné transfery","PK-23/01","A-85850394","2023-02-01",null,"Letenky 4 osoby plus preprava športovej batožiny",null,"Iberia.com, Madrid, Španielsko",672.66,3]
["a - vodné lyžovanie - bežné transfery","PP-001","B1/06","2023-06-06",null,"štartovné záloha 4 X 50 eur podľa propozícií ",null,"Interanational waterski and wakeboard federation- region Europe and Africa,Amstelveen, Holandsko ",200,3]
["a - vodné lyžovanie - bežné transfery","PP-006","B1/07","2023-07-21",null,"Doplatok štartovné  podľa propozícií",null,"Interanational waterski and wakeboard federation- region Europe and Africa,Amstelveen, Holandsko ",450,3]
["a - vodné lyžovanie - bežné transfery","PP-004","B1/07","2023-07-03",null,"Oficiálny tréning na základe propozícií","B86418795","NASA SPORTS, S.L., Victor de la Serna 6, 28015 Madrid",272,3]
["a - vodné lyžovanie - bežné transfery","V007","VA-001","2023-08-01",null,"Záloha na ZPC",null,"osoba 1 -vedúcu družstva",1500,3]
["a - vodné lyžovanie - bežné transfery","B1/10","VA-001","2023-10-09",null,"Vyúčtovanie zálohy -  cestovné náhrady, ubytovanie, diérty, požičovňa auta účastníkov sústredenia",null,"osoba 1 -vedúcu družstva",1316.2,3]
["a - vodné lyžovanie - bežné transfery","V012","CP-004","2023-08-20",null,"Cestovné náhrady - odvoz dovoz na letisko: PN- Swechat a späť 2x",null,"osoba 2",75.510000000000005,3]
["a - vodné lyžovanie - bežné transfery","V009","RN-006","2023-07-30","2023-08-16","Refundácia nákladov- cestovné  poistenie športovca ",null,"osoba 2",60.09,3]
["a - vodné lyžovanie - bežné transfery","RN-16","23HV250,23OZ002,23OZ037","7.7.2023,24.1.2023, 22.8.2023","2024-01-31","Refundácia nákladov- športovca - ubytovanie, letenka, tréning","35507781","Klub vodného lyžovania Trixen Košice, Garbiarska 5, 040 01 Košice",1472.39,3]
["a - vodné lyžovanie - bežné transfery","23/004,001","5717570167, 5713517460","2023-02-16",null,"Mobilný telefón 0905712830","356 97 270","Orange Slovensko, a. s., Metodova 8, 821 08 Bratislava",4,4]
["a - vodné lyžovanie - bežné transfery","23/002","E004/2023","2023-02-28",null,"Služby portálu www.sportinfo.sk","40391639","Mgr. Ľubomír Striežovský, Vansovej 8, 96501 Žiar nad Hronom",576,4]
["a - vodné lyžovanie - bežné transfery","23/003","070230026","2023-02-28",null,"Manipulačný poplatok - podateľna ","35862289","Dom športu, s.r.o., Junácka 6, 831 04 Bratislava",30,4]
["a - vodné lyžovanie - bežné transfery","B1/02","B1/02","2023-02-28",null,"Bankové poplatky","31320156","VUB, a.s., Mlynské nivy 1, 829 90 Bratislava",7,4]
["a - vodné lyžovanie - bežné transfery","23/006","070230049","2023-03-23",null,"Manipulačný poplatok - podateľna ","35862289","Dom športu, s.r.o., Junácka 6, 831 04 Bratislava",32.4,4]
["a - vodné lyžovanie - bežné transfery","23/008","5722135140","2023-03-23",null,"Mobilný telefón 0905712830","356 97 270","Orange Slovensko, a. s., Metodova 8, 821 08 Bratislava",2,4]
["a - vodné lyžovanie - bežné transfery","23/007","5223056801","2023-03-03",null,"MTZ sekretariátu-toner","36562939","Alza.sk, Sliačska 1/d, 83102 Bratislava",77.5,4]
["a - vodné lyžovanie - bežné transfery","B1/03","B1/03","2023-03-31",null,"Bankové poplatky","31320156","VUB, a.s., Mlynské nivy 1, 829 90 Bratislava",7,4]
["a - vodné lyžovanie - bežné transfery","B1/04","PK-23/021977-7988","2023-04-06",null,"Poplatky Licencie do medzinárodného informačného systému pre športovcov (EMS)",null,"Interanational waterski and wakeboard federation- region Europe and Africa,Amstelveen, Holandsko ",275,5]
["a - vodné lyžovanie - bežné transfery","B1/04","RN-004","21.2.2023, 24.3.2023","2023-04-21","Refundácia nákladov - pracovná cesta Londýn - zasadnutie medzinárodného rozhodcovského tímu- letenka, ubytovanie, diéty",null,"osoba 3",394.7,5]
["a - vodné lyžovanie - bežné transfery","B1/04","B1/04","2023-04-30",null,"Bankové poplatky","31320156","VUB, a.s., Mlynské nivy 1, 829 90 Bratislava",7,4]
["a - vodné lyžovanie - bežné transfery","23/005","2023027","2023-05-05",null,"IWWF ročný členský  poplatok do medzinárodnej federácie",null,"Interanational waterski and wakeboard federation- region Europe and Africa,Amstelveen, Holandsko ",2850,5]
["a - vodné lyžovanie - bežné transfery","23/012","070230114","2023-05-16",null,"Manipulačný poplatok - podateľna ","35862289","Dom športu, s.r.o., junácka 6, 831 04 Bratislava",30,4]
["a - vodné lyžovanie - bežné transfery","23/009","070230082","2023-05-16",null,"Manipulačný poplatok - podateľna ","35862289","Dom športu, s.r.o., junácka 6, 831 04 Bratislava",30,4]
["a - vodné lyžovanie - bežné transfery",null,null,null,null,"Organizácia podujatia\nnázov podujatia Zasadnutie predsedníctva SZVW a ZD SZVW\nmiesto konania Chata Marica, priehrada Ružín:\npočet aktívnych účastníkov: :Dátum: 14.4.-15.4.2023"]
["a - vodné lyžovanie - bežné transfery","V003","VA-002","2023-04-14",null,"Občerstvenie","36183181","LABAŠ , s.r.o., Textilná 1. 040 12 Košice",27.75,4]
["a - vodné lyžovanie - bežné transfery","V003","VA-002","2023-04-14",null,"Občerstvenie ","35793783","Lidl Slovenská republika, v.o.s., Ružinovská 1E, 821 02 Bratislava",52.44,4]
["a - vodné lyžovanie - bežné transfery","V003","VA-002","2023-04-15",null,"strava obedy","35459905","Patrik Džurbala, Košice ápad, prevádzka- Pytliakova Krčma , Priehradná 896/1. Jaklovce 055 61",75.8,4]
["a - vodné lyžovanie - bežné transfery","V003","VA-002","2023-04-16",null,"Cestovné náhrady CP 502BG  Zasadnutie ZD, Predsedníctvo SZVW- dovoz techniky a administratívne zabezpečenie ZD",null,"osoba 4 - generálny sekretár",165.39,4]
["a - vodné lyžovanie - bežné transfery","v002","CP-003","2023-04-20",null,"Cestovné náhrady - účastníka ZD - vlak Pezinok- Margecany a späť",null,"osoba 3",44,4]
["a - vodné lyžovanie - bežné transfery","B1/04","CP-002","2023-04-26",null,"Cestovné náhrady kontrolóra- Zasadnutie ZD, Predsedníctvo SZVW",null,"osoba 5",235.94,4]
["a - vodné lyžovanie - bežné transfery","23/010,013","5726704764","2023-05-15",null,"Mobilný telefón 0905712830","356 97 270","Orange Slovensko, a. s., Metodova 8, 821 08 Bratislava",2,4]
["a - vodné lyžovanie - bežné transfery","23/013","5731219150","2023-05-15",null,"Mobilný telefón 0905712830","356 97 270","Orange Slovensko, a. s., Metodova 8, 821 08 Bratislava",2,4]
["a - vodné lyžovanie - bežné transfery","23/011","23310091","2023-05-16",null,"Prenájom chaty  a ubytovanie počas ZD ","31723756","IQS s.r.o., Garbiarska 5, 04001 Košice",100,4]
["a - vodné lyžovanie - bežné transfery","B1/05",null,"2023-05-31",null,"Bankové poplatky","31320156","VUB, a.s., Mlynské nivy 1, 829 90 Bratislava",7,4]
["a - vodné lyžovanie - bežné transfery","23/014","23103717","2023-06-05",null,"Účasť rozhodcu na ME seniorov:  Letenka- VIE- Paríž a späť","35697300","Tukan, s.r.o., Za kasárňou 1, 83103 Bratislava",247,5]
["a - vodné lyžovanie - bežné transfery",null,null,null,null,"Pracovná cesta\nNázov  majstrovstvá európy open. sekcia člny\nTermín :26.7-31.7.2023\nMiesto - mesto a štát Taliansko, San Gervasio\nSpôsob dopravy: auto\nPočet všetkých osôb na pracovnej ceste :2\nz toho:\n- športovci: 3"]
["a - vodné lyžovanie - bežné transfery","pp-002","VA-003","2023-06-06",null,"štartovné záloha 3 X 50 eur podľa propozícií ",null,"Interanational waterski and wakeboard federation- region Europe and Africa,Amstelveen, Holandsko ",150,3]
["a - vodné lyžovanie - bežné transfery","pp-005","VA-003","2023-07-03",null,"štartovné doplatok 2 osoby",null,"Interanational waterski and wakeboard federation- region Europe and Africa,Amstelveen, Holandsko ",420,3]
["a - vodné lyžovanie - bežné transfery","pp-008","VA-003","2023-06-19",null,"Oficiálny tréning na základe propozícií","01926210988 ","Jolly ski school Brescia, Taliansko",116,3]
["a - vodné lyžovanie - bežné transfery","V020","VA-003","2023-07-25",null,"Záloha na zahraničnú cestu",null,"osoba 6- vedúci družstva",800,3]
["a - vodné lyžovanie - bežné transfery","B1/08","VA-003","2023-08-16",null,"Vyúčtovanie zálohy: cestovné náhrady, ubytovanie diety pre dve osoby",null,"osoba 6- vedúci družstva",461.91,3]
["a - vodné lyžovanie - bežné transfery","23/016","5735715414","2023-06-19",null,"Mobilný telefón 0905712830","356 97 270","Orange Slovensko, a. s., Metodova 8, 821 08 Bratislava",2,4]
["a - vodné lyžovanie - bežné transfery","23/015","070230146","2023-06-19",null,"Manipulačný poplatok - podateľna ","35862289","Dom športu, s.r.o., junácka 6, 831 04 Bratislava",30,4]
["a - vodné lyžovanie - bežné transfery","v004","RE913460036SK","2023-06-20",null,"Poplatok za služby","36631124","Slovenská pošta, a.s., Partizánska cesta 9, Bratislava",2.8,4]
["a - vodné lyžovanie - bežné transfery","B1/06",null,"2023-06-30",null,"Bankové poplatky","31320155","VUB, a.s., Mlynské nivy 1, 829 90 Bratislava",7,4]
["a - vodné lyžovanie - bežné transfery",null,null,null,null,"Refundácia nákladov na základe zmluvy . Príspevok na mládež do 23 rokov s klubovou príslušnosťou","35507781","Klub vodného lyžovania Trixen Košice, Garbiarska 5, 040 01 Košice 1"]
["a - vodné lyžovanie - bežné transfery","VV-001","S 2023 03","11.7.2023, 14.7.2023, 18.7.2023","13.7.2023,  3.8.2023","Zahraničná cesta .Účasť na  pretekoch s tréningom Weert International Competition- 9 osôb, 7 dní(štartovné , tréning, poistenie,cestovné náhrady)","35507781","Klub vodného lyžovania Trixen Košice, Garbiarska 5, 040 01 Košice",4417,1]
["a - vodné lyžovanie - bežné transfery",null,null,null,null,"Pracovná cesta\nSústredenie CTM člny:\nTermín : 10.6.-15.6.2023\nMiesto - mesto a štát : Mělice, Česká Republika\nSpôsob dopravy : auto\nPočet všetkých osôb na pracovnej ceste\nz toho:\n- športovci :6\n- tréneri / vedúci výpravy: 1"]
["a - vodné lyžovanie - bežné transfery","23/017","MF-2023-00022","2023-07-20","2023-10-23","tréning jazero Marin klub","27477312","Marin club, s.r.o., Bartoňova 783, Pardubice 53012",1042.3,2]
["a - vodné lyžovanie - bežné transfery","23/028","23042","2023-09-26",null,"tréning jazero Ski Prelouč","26667177","SK SKI Přelouč, Na okrajích 37, Pardubice",1212.07,2]
["a - vodné lyžovanie - bežné transfery","v006","VA-004","2023-07-30",null,"Vyúčtovanie cestovných náhrad a diét účastníkov sústredenia",null,"osoba 6- vedúci družstva",1255.3900000000001,2]
["a - vodné lyžovanie - bežné transfery",null,"VA",null,null,"Pracovná cesta\nNázov  majstrovstvá sveta open. sekcia člny\nTermín : 7.-15. októbra 2023\nMiesto - mesto a štát USA\nSpôsob dopravy: auto,\nPočet všetkých osôb na pracovnej ceste :\nz toho:\n- športovci: 2"]
["a - vodné lyžovanie - bežné transfery","PP-003","B1/07","2023-07-03",null,"štartovné záloha 2x50 USD podľa propozícií",null,"IWWF-Interantional waterski and wakeboard federation",93.76,3]
["a - vodné lyžovanie - bežné transfery","B1/07","B1/07","2023-07-03",null,"Bankové poplatky, prevod do zahraničia","31320155","VUB, a.s., Mlynské nivy 1, 829 90 Bratislava",10,4]
["a - vodné lyžovanie - bežné transfery","PP-009","B1/08","2023-08-09",null,"doplatok štartovného podľa propozícií",null,"IWWF-Interantional waterski and wakeboard federation",317.73,3]
["a - vodné lyžovanie - bežné transfery","B1/08","B1/08","2023-08-09",null,"Bankové poplatky, prevod do zahraničia","31320155","VUB, a.s., Mlynské nivy 1, 829 90 Bratislava",10,4]
["a - vodné lyžovanie - bežné transfery","B1/11","RN-010","2023-11-23","2023-11-30","Refundáca na vlastný účet , vyúčtovanie výdavkov účastníka na MS open, cestovné, diéty",null,"osoba 7- vedúci družstva",740.66,3]
["a - vodné lyžovanie - bežné transfery","23/018","70230179","2023-07-21",null,"Manipulačný poplatok - podateľna ","35862289","Dom športu, s.r.o., junácka 6, 831 04 Bratislava",30,4]
["a - vodné lyžovanie - bežné transfery","23/019","5740173208","2023-07-21",null,"Mobilný telefón 0905712830","356 97 270","Orange Slovensko, a. s., Metodova 8, 821 08 Bratislava",2,4]
["a - vodné lyžovanie - bežné transfery","B1/07","B1/07","2023-07-31",null,"Bankové poplatky","31320155","VUB, a.s., Mlynské nivy 1, 829 90 Bratislava",8,4]
["a - vodné lyžovanie - bežné transfery",null,null,null,null,"Pracovná cesta\nNázov : Sústredenie talentovanej mládeže- sekcia člny:\nTermín : 1.4.-11.4.2023\nMiesto :Recetto, Taliansko:\nSpôsob dopravy: auto, lietadlo\nPočet všetkých osôb na pracovnej ceste\nz toho:\n- športovci: 5\n- tréneri :1\n- ostatné osoby: 1"]
["a - vodné lyžovanie - bežné transfery","VA--005,B1/08","152023","2023-04-13","2023-08-01","Refundácia tréning - 1 športovec",null,"Denisa Oravcová",540,2]
["a - vodné lyžovanie - bežné transfery","VA--005,B1/08","142023","2023-04-25","2023-08-01","Refundácia tréning 2 športovci",null,"osoba 1",1175,2]
["a - vodné lyžovanie - bežné transfery","VA--005,B1/08","162023","2023-04-15","2023-08-01","Refundácia tréning- 1 športovec",null,"osoba 2",590,2]
["a - vodné lyžovanie - bežné transfery","B1/08","RN-005","2023-04-07","2023-08-15","Refundácia nákladov účastníkov sústredenia na ubytovanie","34073485","Klub vodného lyžovania a vodných športov Piešťany, Rekreačná 23, 921 01 Piešťany",1540,2]
["a - vodné lyžovanie - bežné transfery","VA--005","V021","2023-04-11","2023-08-15","Refundácia cestovných nákladov a použití vlastného motorového vozidla  a diét",null,"osoba 2- vedúci družstva",2075.33,2]
["a - vodné lyžovanie - bežné transfery","VA--005","v001/24","2023-04-11","2024-02-12","Refundácia doúčtovanie diét účastníkov sústredenia",null,"osoba 2- vedúci družstva",1395.84,2]
["a - vodné lyžovanie - bežné transfery","B1/12","RN-019","16.3.2023  12.4.2023","2023-12-28","Refundácia nákladov na tréningový pobyt športovca 1 osoba  - Recetto Taliansko- letenka, tréning","35507781","Klub vodného lyžovania Trixen Košice, Garbiarska 5, 040 01 Košice",1059.22,2]
["a - vodné lyžovanie - bežné transfery",null,null,null,null,"Sústredenie pred ME juniorov, sekcia člny:\nTermín : 4.8.-6.8.2023\nMiesto - mesto a štát Špaielsko, Sesena\nSpôsob dopravy: letecky\nPočet všetkých osôb na pracovnej ceste (napr. \nz toho:\n- športovci (+ navádzači): 3\n- vedúci druťstva: 1\n"]
["a - vodné lyžovanie - bežné transfery","B1/10","RN-008","10.7.2023,4.2.2023,28.7.2023, 16.8.2023","2023-10-09","Refundácia náladov - požičovňa auta, ubytovanie, tréning, diéty",null,"osoba 1 -vedúcu družstva",2308.12,3]
["a - vodné lyžovanie - bežné transfery","23/023,V008","0122300827","2023-08-11",null,"Servisné práce- oprava PC","34114017","VT DATA, s.r.o., A. Hlinku 60, Piešťany",30,4]
["a - vodné lyžovanie - bežné transfery","23/022","23105103","2023-08-15","2024-02-17","Refundácia na vlastný účet : Účasť rozhodcu na ME seniorov:  Letenka Paris- Bordeaux spiatočná 9.9.2023-18.9.2023","35697300","Tukan, s.r.o., Za kasárňou 1, 83103 Bratislava",247,5]
["a - vodné lyžovanie - bežné transfery",null,null,null,null,"Organizácia podujatia\nnázov podujatia . MSR juniorov a seniorov, finále SP- sekcia člny\nmiesto konania : Piešťany\ntermín (od-do): 19.-20.8.2023\npočet aktívnych účastníkov: 30 športovcov , 11 športových odborníkov"]
["a - vodné lyžovanie - bežné transfery","v011","0010","2023-08-18",null,"Poháre","37474952","Vladimír Kulík-F4F, Piešťany",73.599999999999994,5]
["a - vodné lyžovanie - bežné transfery","23/025","0001FV001236/23","2023-08-14",null,"medaile","35774282","Victory sport, spol.s.r.o., Junácka 6, 83104 Bratislava",32.9,5]
["a - vodné lyžovanie - bežné transfery","VV-006","230200016","2023-08-28","2023-12-19","Refundácia nákladov na preteky MSR juniorov a seniorov- vecné ceny - športové flaše","34073485","Klub vodného lyžovania a vodných športov Piešťany, Rekreačná 23, 921 01 Piešťany",200,5]
["a - vodné lyžovanie - bežné transfery","VV-006","2308/00750","2023-08-19","2023-12-19","Refundácia nákladov na preteky MSR juniorov a seniorov- zabezpečenie stravy","34073485","Klub vodného lyžovania a vodných športov Piešťany, Rekreačná 23, 921 01 Piešťany",340.4,5]
["a - vodné lyžovanie - bežné transfery","VV-006","4599916161","2023-07-20","2023-12-19","Refundácia nákladov na preteky MSR juniorov a seniorov- PHM do člna zabezpečenie tratí , a pretekov","34073485","Klub vodného lyžovania a vodných športov Piešťany, Rekreačná 23, 921 01 Piešťany",153.1,5]
["a - vodné lyžovanie - bežné transfery","23/026","FA2300293","2023-08-15",null,"Príspevok na organizáciu pretekov- Pohár interu- medaile, poháre","36747599","LB Design, s.r.o., Záhradná 17, Pezinok",63.54,5]
["a - vodné lyžovanie - bežné transfery","23/020","70230211","2023-08-31",null,"Manipulačný poplatok- podateľňa","35862289","Dom športu, s.r.o., junácka 6, 831 04 Bratislava",30,4]
["a - vodné lyžovanie - bežné transfery","23/024","5744644392","2023-08-30",null,"Mobilný telefón 0905712830","356 97 270","Orange Slovensko, a. s., Metodova 8, 821 08 Bratislava",3.18,4]
["a - vodné lyžovanie - bežné transfery","B1/08","B1/08","2023-08-31",null,"Bankové poplatky","31320155","VUB, a.s., Mlynské nivy 1, 829 90 Bratislava",8,4]
["a - vodné lyžovanie - bežné transfery",null,null,null,null,"Organizácia podujatia\nnázov podujatia .Spoločné  MSR a MČR open - sekcia člny\nmiesto konania :Oleksovice ČR\ntermín (od-do): 1.9.-3.9.2023\npočet aktívnych účastníkov: 16+4"]
["a - vodné lyžovanie - bežné transfery","V013","VA-007","2023-09-15",null,"Záloha na preteky - štartovné, cestovné náhrady rozhodcov",null,"osoba 4 - generálny sekretár",1200,5]
["a - vodné lyžovanie - bežné transfery","P006","VA-007","2023-09-15",null,"Vyúčtovanie zálohy - cestovné náhrady rozhodcov, štartovné",null,"osoba 4 - generálny sekretár",-2.2000000000000002,5]
["a - vodné lyžovanie - bežné transfery","v010","1663","2023-08-18",null,"tlač štítkov, MTZ pretekov","35729040","FaxCopy, s.s., Domkárska 15, Bratislava",19.45,5]
["a - vodné lyžovanie - bežné transfery","B1/10","CP-005","2023-10-26",null,"Cestovné náhrady rozhodcu  , dovoz techniky merania Zálesie- Oleksovice, CZE a späť",null,"osoba 5",187.26,5]
["a - vodné lyžovanie - bežné transfery",null,null,null,null,"Pracovná cesta\nNázov:Majstrovstvá Európy juniorov sekcie : wakeboard za vlekom:\nTermín: 27.8.-2.9.2023\nMiesto - mesto a štát Maďarsko, Gyor\nSpôsob dopravy: auto\nPočet všetkých osôb na pracovnej ceste:\nz toho:\n- športovci (+ navádzači): 6\n- tréneri + rozhodcovia + vedúci výpravy + administratívni pracovníci + lekár + fyzioterapeut + masér + ): 1\n"]
["a - vodné lyžovanie - bežné transfery","PP-007","B1/11","2023-08-21","2023-11-30","refundácia na vlastnú účet - štartovné účastníkov na základe propozícií- refundácia na vlastný účet ",null,"Interanational waterski and wakeboard federation- region Europe and Africa,Amstelveen, Holandsko ",1380,3]
["a - vodné lyžovanie - bežné transfery","V014","VA-006","2023-09-15",null,"Vyúčtovanie cestovných nákladov : diety,tréning",null,"osoba 9- vedúci družstva",2094.87,3]
["a - vodné lyžovanie - bežné transfery","B1/09","B1/09","2023-09-29",null,"Bankové poplatky","31320155","VUB, a.s., Mlynské nivy 1, 829 90 Bratislava",8,4]
["a - vodné lyžovanie - bežné transfery","23/030","5749143818","2023-10-23",null,"Mobilný telefón 0905712830","356 97 270","Orange Slovensko, a. s., Metodova 8, 821 08 Bratislava",2.6,4]
["a - vodné lyžovanie - bežné transfery","B1/10","RN-009","2023-07-24","2023-10-23","Refundácia úhrady licencií športovcov","35507781","Klub vodného lyžovania Trixen Košice, Garbiarska 5, 040 01 Košice",576,5]
["a - vodné lyžovanie - bežné transfery","B1/10","RN-007, 00548017","2023-08-16","2023-10-26","Refundácia nákladov na MTZ rozhodcov. Bezpečnostný kufrík na meranie",null,"osoba 5",36.68,5]
["a - vodné lyžovanie - bežné transfery","VV-002","23HV332, 23/1291, 23HV331","6.10.2023, 16.10.2023","2023-10-25","Reundácia nákladov na organizáciu pretekov MSR Open/juniorov- medaile, strava, ubytovanie rozhodcov","35507781","Klub vodného lyžovania Trixen Košice, Garbiarska 5, 040 01 Košice",800,5]
["a - vodné lyžovanie - bežné transfery","B1/10","B1/10","2023-10-31",null,"Bankové poplatky","31320155","VUB, a.s., Mlynské nivy 1, 829 90 Bratislava",8,4]
["a - vodné lyžovanie - bežné transfery","V015","VA-008","2023-10-26",null,"Zasadnutie predsedníctva SZVW, 26.10.2023, Piešťany , cestovné náhrady účastníkov ",null,"osoba 4 - generálny sekretár",56.1,4]
["a - vodné lyžovanie - bežné transfery",null,null,null,null,"Refundácia nákladov na základe zmluvy - príspevok na mládež do 23 rokov s klubovou príslušnosťou","34073485","Klub vodného lyžovania a vodných športov Piešťany, Rekreačná 23, 921 01 Piešťany"]
["a - vodné lyžovanie - bežné transfery","B1/11","VV-003, FA4599914960","2023-08-13","2023-11-24","Slovnaft, a.s., PHM Tréningová činnosť","34073485","Klub vodného lyžovania a vodných športov Piešťany, Rekreačná 23, 921 01 Piešťany",1361,1]
["a - vodné lyžovanie - bežné transfery","B1/11","VV-003","2023-10-24","2023-11-24","sústredenie mládeže CZE-SKI Přelouč 28-30.8.2023","34073485","Klub vodného lyžovania a vodných športov Piešťany, Rekreačná 23, 921 01 Piešťany",609,1]
["a - vodné lyžovanie - bežné transfery","B1/11","VV-003, 0020060","2023-05-28","2023-11-24","Športový materiál - Viazanie Reflex Trick Binding (AIRKIDE, Toulun,Francúzsko)","34073485","Klub vodného lyžovania a vodných športov Piešťany, Rekreačná 23, 921 01 Piešťany",498,1]
["a - vodné lyžovanie - bežné transfery","23/035","5758220169","2023-11-27",null,"Mobilný telefón 0905712830","356 97 270","Orange Slovensko, a. s., Metodova 8, 821 08 Bratislava",2,4]
["a - vodné lyžovanie - bežné transfery","23/043","5753674707","2023-11-27",null,"Mobilný telefón 0905712830","356 97 270","Orange Slovensko, a. s., Metodova 8, 821 08 Bratislava",2.75,4]
["a - vodné lyžovanie - bežné transfery","23/031","070230275","2023-11-30",null,"Manipulačný poplatok - podateľna ","35862289","Dom športu, s.r.o., junácka 6, 831 04 Bratislava",30,4]
["a - vodné lyžovanie - bežné transfery","23/034","070230307","2023-11-30",null,"Manipulačný poplatok - podateľna ","35862289","Dom športu, s.r.o., junácka 6, 831 04 Bratislava",30,4]
["a - vodné lyžovanie - bežné transfery","23/032","2385040591","2023-10-17","2023-11-30","Refundácia na vlastný účet: registračné poplatky doména waterski.sk na rok 2023","52 486 567","Webglobe, a.s.\nStará Prievozská 1349/2\n821 09 Bratislava",29.32,4]
["a - vodné lyžovanie - bežné transfery","23/036","2023067","2023-11-30",null,"Homologačné poplatky za usporiadanie pretekov- preteky za vlekom Slovak open ",null,"Interanational waterski and wakeboard federation- region Europe and Africa,Amstelveen, Holandsko ",200,5]
["a - vodné lyžovanie - bežné transfery","B1/11",null,"2023-11-30",null,"Bankové poplatky","31320155","VUB, a.s., Mlynské nivy 1, 829 90 Bratislava",8,4]
["a - vodné lyžovanie - bežné transfery","23/038","2023092","2023-12-11",null,"Homologačné poplatky za usporiadanie pretekov- preteky za člnom Slovakia Trophy, Pohár Interu, MSR juniorov a seniorov ",null,"Interanational waterski and wakeboard federation- region Europe and Africa,Amstelveen, Holandsko ",360,5]
["a - vodné lyžovanie - bežné transfery","23/039","2023002","2023-12-11",null,"Účtovné služby 2023- spracovanie účtovníctva + DP","33700656","Ing. Juraj Chmelo, Certifikované účtovníctvo, Bodona 53A, 92101 Piešťany",1200,4]
["a - vodné lyžovanie - bežné transfery","B1/12","RN-012","15.9.2023,22.6.2023","2023-12-19","Refundácia nákladov na športovú prípravu reprezentanta -  tréning, športové náradie",null,"osoba 6",500,3]
["a - vodné lyžovanie - bežné transfery","B1/12","VV-005","2023-06-20","2023-12-19","Refundácia nákladov na preteky Slovakia Trophy- PHM príprava tratí ","34073485","Klub vodného lyžovania a vodných športov Piešťany, Rekreačná 23, 921 01 Piešťany",130,5]
["a - vodné lyžovanie - bežné transfery",null,null,null,null,"Refundácia nákladov na základe zmluvy - príspevok klubu na mládež do 23 rokov s klubovou príslušnosťou",null,"Asociácia športových klubov Inter Bratislava, občianske združenie- Klub vodného lyžovania"]
["a - vodné lyžovanie - bežné transfery","VV-004","V23010051","2023-11-03","2023-12-19","Refundácia nákladov na športovú prípravu - PHM do člna","00678457","Asociácia športových klubov Inter Bratislava, občianske združenie- Klub vodného lyžovania",520,1]
["a - vodné lyžovanie - bežné transfery",null,null,null,null,"Refundácia nákladov na základe zmluvy - príspevok klubu na mládež do 23 rokov s klubovou príslušnosťou","42363713","Bratislava Wake Club, Šustekova 37, 832 80 Bratislava"]
["a - vodné lyžovanie - bežné transfery","B1/12","VV-007, 2023021","2023-06-22","2023-12-19","Refundácia-Tréningové jednotky 15h, suchá príprava (Hangair o.z.)","42363713","Bratislava Wake Club, Šustekova 37, 832 80 Bratislava",900,1]
["a - vodné lyžovanie - bežné transfery","B1/12","VV-007,271","2023-10-20","2023-12-19","Refundácia - športové náradie- tréningová pomôcka","42363713","Bratislava Wake Club, Šustekova 37, 832 80 Bratislava",6.99,1]
["a - vodné lyžovanie - bežné transfery","B1/12","VV-007,28","2023-10-24","2023-12-19","Refundácia - tréningový pobyt Hurgada - 6 denné lístky na vlek, 6 osôb , strava (El Gouna watersport Hurgada)","42363713","Bratislava Wake Club, Šustekova 37, 832 80 Bratislava",1381.01,1]
["a - vodné lyžovanie - bežné transfery","B1/12","VV-007, 2023045","2023-06-22","2023-12-19","Refundácia-Tréningové jednotky 10h, suchá príprava (Hangair o.z.)","42363713","Bratislava Wake Club, Šustekova 37, 832 80 Bratislava",700,1]
["a - vodné lyžovanie - bežné transfery","23/041","5762776128","2023-12-27",null,"Mobilný telefón 0905712830","356 97 270","Orange Slovensko, a. s., Metodova 8, 821 08 Bratislava",2,4]
["a - vodné lyžovanie - bežné transfery","23/040","070230339","2023-12-27",null,"Manipulačný poplatok - podateľna ","35862289","Dom športu, s.r.o., junácka 6, 831 04 Bratislava",30,4]
["a - vodné lyžovanie - bežné transfery","B1/12","RN-011","2023-11-20","2023-12-27","Refundácia nákladov na športovú výstroj reprezentanta- lyža D3",null,"osoba 7",500,3]
["a - vodné lyžovanie - bežné transfery","23/042","2306850","2023-12-28","2023-12-29","Materiálno technické zabezpečenie sekretariátu a rozhodcov- nákup 2 ks PC","36395994","Euroline computer, s.r.o., Svätoplukova 245/7, 03601 Martin",1326.85,4]
["a - vodné lyžovanie - bežné transfery","B1/12","RN-013",null,null,"Refundácia nákladov na zabezpečenie športovej prípravy športovcov zaradených medzi talentovanú mládež- sekcia vleky","35507781","Klub vodného lyžovania Trixen Košice, Garbiarska 5, 040 01 Košice"]
["a - vodné lyžovanie - bežné transfery","RN-013","23IN022","2023-03-16","2023-12-28","Refundácia - športové vybavenie (lyža Reflex+ viazanie-dodávateľ: Olivier Fdortramps, Walhain, Belgicko)","35507781","Klub vodného lyžovania Trixen Košice, Garbiarska 5, 040 01 Košice",1419.61,2]
["a - vodné lyžovanie - bežné transfery","RN-013","23IN034","2023-07-12","2023-12-28","Refundácia - športové vybavenie (viazania- dodávateľ: Reflex: Airkide, Francúzsko)","35507781","Klub vodného lyžovania Trixen Košice, Garbiarska 5, 040 01 Košice",1005.02,2]
["a - vodné lyžovanie - bežné transfery","RN-013","23IN020","2023-03-13","2023-12-28","Refundácia - športové vybavenie (viazania a náhradné časti na viazania- dodávateľ:Reflex, Airkide, Francúzsko)","35507781","Klub vodného lyžovania Trixen Košice, Garbiarska 5, 040 01 Košice",1455.32,2]
["a - vodné lyžovanie - bežné transfery","RN-013","23HV345","2023-11-03","2023-12-28","Refundácia nákladov - tréningový pobyt , Schloss Dankern, Nemecko","35507781","Klub vodného lyžovania Trixen Košice, Garbiarska 5, 040 01 Košice",1685.65,2]
["a - vodné lyžovanie - bežné transfery","RN-013","23/009","2023-04-11","2023-12-28","Refundácia nákladov- prenájom telocvične 02/2023- ŠK UNI Košice s.r.o.","35507781","Klub vodného lyžovania Trixen Košice, Garbiarska 5, 040 01 Košice",270,2]
["a - vodné lyžovanie - bežné transfery","RN-013","23/003","2023-01-31","2023-12-28","Refundácia nákladov- prenájom telocvične 01/2023- ŠK UNI Košice s.r.o.","35507781","Klub vodného lyžovania Trixen Košice, Garbiarska 5, 040 01 Košice",288,2]
["a - vodné lyžovanie - bežné transfery","B1/12","RN-015",null,null,"Refundácia nákladov na zabezpečenie športovej prípravy reprezentanov- sekcia vleky","35507781","Klub vodného lyžovania Trixen Košice, Garbiarska 5, 040 01 Košice"]
["a - vodné lyžovanie - bežné transfery","RN-015","23/133","2023-12-19","2023-12-28","Refundácia nákladov na tréningovú činnosť-520min 1.10.-.3.10.2023 dodávateĺ: IQS, s.r.o., Košice","35507781","Klub vodného lyžovania Trixen Košice, Garbiarska 5, 040 01 Košice",1560,3]
["a - vodné lyžovanie - bežné transfery","RN-015","23HV306,23OZ066","20.9.2023,28.8.2023","2023-12-28","Refundácia nákladov na preteky - GPX of Poland- (cestovné náhrady,ubytovani, diéty)","35507781","Klub vodného lyžovania Trixen Košice, Garbiarska 5, 040 01 Košice",3106.08,3]
["a - vodné lyžovanie - bežné transfery","RN-015","23HV076","2023-06-16","2023-12-28","Refundácia nákladov na tréningový popbyt Schloss Dankern Nemecko- 12.5-12.6.2023","35507781","Klub vodného lyžovania Trixen Košice, Garbiarska 5, 040 01 Košice",5953.3,3]
["a - vodné lyžovanie - bežné transfery","RN-015","23HV277","2023-09-01","2023-12-28","Refundácia nákladov na tréningový popbyt Schloss Dankern Nemecko( 17.8.-23.8.2023)","35507781","Klub vodného lyžovania Trixen Košice, Garbiarska 5, 040 01 Košice",1899.62,3]
["a - vodné lyžovanie - bežné transfery","v018","CP-007","2023-12-20",null,"Cestovný príkaz pracovné stretnutie SOSV , Košice - Bratislava a späť",null,"osoba 8 - predseda SZVW",235.88,4]
["a - vodné lyžovanie - bežné transfery","v017","CP-006","2023-12-20",null,"Cestovný príkaz pracovné stretnutie SOSV- Piešťany - Bratislava a späť",null,"osoba 4 - generálny sekretár",53.16,4]
["a - vodné lyžovanie - bežné transfery","23/029","070230243","2023-12-29",null,"Manipulačný poplatok - podateľna ","35862289","Dom športu, s.r.o., junácka 6, 831 04 Bratislava",30,4]
["a - vodné lyžovanie - bežné transfery","B1/12","B1/12","2023-12-29",null,"Bankové poplatky","31320155","VUB, a.s., Mlynské nivy 1, 829 90 Bratislava",8.66,4]
["a - vodné lyžovanie - bežné transfery",null,null,null,null,"Refundácia nákladov na organizáciu pretekov Slovakia open 10.-13.8.2023- sekcia vleky  "]
["a - vodné lyžovanie - bežné transfery","RN-017","23HV220, 23HV222,23/0961,23/1191","12.8.,14.8.,28.8.2023","2024-01-03","Refundácia nákladov prenájom stanov, medaile, poháre, prenájom kontajnera, banner, plagáty )","35507781","Klub vodného lyžovania Trixen Košice, Garbiarska 5, 040 01 Košice",800,5]
["a - vodné lyžovanie - bežné transfery",null,null,null,null,"Refundácia nákladov športovcov zaradených do CTM - sekcia wakeboard za vlekom ","42363713","Bratislava Wake Club, Šustekova 37, 832 80 Bratislava",null,2]
["a - vodné lyžovanie - bežné transfery","RN-018","2023046","2023-11-28","2024-02-19","Refundácia-Individuálna Tréningová jednotka 1h, suchá príprava (Hangair o.z.)","42363713","Bratislava Wake Club, Šustekova 37, 832 80 Bratislava",100,2]
["a - vodné lyžovanie - bežné transfery","RN-018","010220002","2023-03-20","2024-02-19","Refundácia -ročné lístky  na vlek pre športovcov zaradených medzi talentovanú mládež 2023- 7 ks (Cable, s.r.o.,  Bratislava)","42363713","Bratislava Wake Club, Šustekova 37, 832 80 Bratislava",3120,2]
["a - vodné lyžovanie - bežné transfery","RN-018","VPD2023","2023-08-03","2024-02-19","Refundácia štartovné preteky Blackcomb Community 6 osôb x 60 eur (Vodní lyžování a wakeboarding, z.s. Dolní Těrlicko)","42363713","Bratislava Wake Club, Šustekova 37, 832 80 Bratislava",349.4,2]
["a - vodné lyžovanie - bežné transfery","23/044","70230371","2024-03-11",null,"Manipulačný poplatok - podateľna ","35862289","Dom športu, s.r.o., junácka 6, 831 04 Bratislava",30,4]
["a - vodné lyžovanie - bežné transfery","B3/24","00023498723","2023-07-07","2024-03-26","Refundácia na základe zmluvy/dodatku - príspevok na mládež do 23 rokov s klubovou príslušnosťou- Trixen Košice- účasť na zahraničných pretekoch s tréningom Weert International Competition- 9 osôb, 7 dní (ubytovanie)","35507781","Klub vodného lyžovania Trixen Košice, Garbiarska 5, 040 01 Košice",1062,1]
["a - vodné lyžovanie - bežné transfery","B3/24","2024001,2023048","4.12.2023, 15.2.2024","2024-03-26","Refundácia na základe zmluvy/dodatku - príspevok na mládež do 23 rokov s klubovou príslušnosťou- Klub vodného lyžovania Piešťany- Tréningová činnosť 12/2023,01/2024,02/2024 : dodávateľ: Hangair, o.z., Bratislava","34073485","Klub vodného lyžovania a vodných športov Piešťany, Rekreačná 23, 921 01 Piešťany",594,1]
["a - vodné lyžovanie - bežné transfery","B3/24","V23010062","2023-12-31","2024-03-26","Refundácia na základe zmluvy/dodatku - príspevok na mládež do 23 rokov s klubovou príslušnosťou- AŠK Inter Bratislava- tréningová činnosť -PHM čln","00678457","Asociácia športových klubov Inter Bratislava, občianske združenie- Klub vodného lyžovania",125,1]
["a - vodné lyžovanie - bežné transfery","B3/24","V010123,V010223,V010323,V010423,V010723,V060823,V010923,V011023","30.1.2023,28.2.203,31.3.2023,30.4.203,31.7.2023,31.8.2023,30.9.2023,31.10.2023","2024-03-26","Refundácia na základe zmluvy/dodatku - príspevok na mládež do 23 rokov s klubovou príslušnosťou- Bratislava wake club- tréningová činnosť telocvična","42363713","Bratislava Wake Club, Šustekova 37, 832 80 Bratislava",719,1]

{"sheet":"Adr","index":5,"n_rows":103,"n_cols":12,"rows_kept":103,"cut":false,"hidden":true,"merged":[]}
["IČO","Subjekt","Právna forma","Ulica a číslo domu","Mesto","PSČ","Webové sídlo","E-mail","Štatutárny zástupca","Štatutár - funkcia","Kontakná osoba","Kontakt\ntelefón"]
["42254388","Deaflympijský výbor Slovenska","občianske združenie","Kýčerského 7","Bratislava 1","811 05","www.deaflympic.sk","office@deaflympic.sk","Peter Birka","prezident","Milena Fabšičová",421911370554]
["50642804","iCompete Natural Slovakia","občianske združenie","Jesenského 71","Zvolen","960 01","www.icn.sk","icn@icn.sk","René Tomášek","prezident","René Tomášek",421905819613]
["00688312","Klub slovenských turistov","občianske združenie","Záborského 33","Bratislava 3","831 03","www.kst.sk","ustredie@kst.sk","František Šiller","predseda","Marica Žáková",421910448008]
["47845660","Košická Futbalová Aréna a. s.","akciová spoločnosť","Pri prachárni 13","Košice – mestská časť Juh","040 11","www.kosickafutbalovaarena.sk","office@kosickafutbalovaarena.sk","Marcel Gibóda, Stanislav Petráš","predseda predstavenstva, člen predstavenstva",0,0]
["42269423","MAMMAL - Slovenský zväz MMA","občianske združenie","Židovská 298/19","Bratislava 1","811 01","www.mammal.sk","info@mammal.sk; marek.herda@mammal.sk","Marek Herda","prezident","Jana Gurová",421903555547]
["00595209","Maratónsky klub Košice","občianske združenie","Hroncova 2","Košice","040 01","www.kosicemarathon.com","klub@kosicemarathon.com","Ján Sudzina","prezident",0,0]
["30787009","Slovenská asociácia amerického futbalu, o.z.","občianske združenie","Nevädzová 17211/6B","Bratislava","821 01","www.saaf.sk","info@saaf.sk","Michal Slašťan","prezident","Michal Slašťan",421908868248]
["50897152","Slovenská Asociácia Bandy, skrátený názov SAB","občianske združenie","Trenčianske Teplice 611/2","Trenčianske Teplice","914 51","www.slovakbandy.sk","slovakbandy@gmail.com","Lukáš Vepy","predseda","Ľudovít Vepy",421917626568]
["00631655","Slovenská asociácia boccie","občianske združenie","Ulica Vajanského 874/46","Lučenec","984 01","www.bocce.sk","slovenska.asociacia.bocce@gmail.com","Ján Macko, Ján Brezňan, Ladislav Mészáros","prezident, predseda, predseda","Ján Macko ",421919188236]
["42019541","Slovenská asociácia čínskeho wushu","občianske združenie","Ladislava Dérera 35","Bratislava","831 01","www.wushuslovakia.sk","email@wushuslovakia.sk","Ľubomír France","prezident","Ľubomír France",421905948422]
["30810108","Slovenská Asociácia Dynamickej Streľby","občianske združenie","Skautská 2","Košice","040 01","www.sads.sk","prezident@sads.sk","Bystrík Zachar","prezident","Bystrík Zachar",421915184709]
["30842069","Slovenská asociácia fitnes, kulturistiky a silového trojboja","občianske združenie","Junácka 6","Bratislava","832 80","www.safkst.sk","sekretariat@safkst.sk","Boris Mlsna","prezident","Boris Mlsna",421908965156]
["31749852","Slovenská asociácia Frisbee","občianske združenie","Eisnerova 6131/13","Bratislava","841 07","www.szf.sk","safslovakia@gmail.com","Juraj Turan","predseda","Martin Keseg",421905998953]
["30844711","Slovenská asociácia go","občianske združenie","Junácka 6","Bratislava","832 80","www.sago.sk","slovakgo@gmail.com","Martin Lukáč","prezident","Miroslav Poliak",421903200136]
["31940668","Slovenská asociácia korfbalu","občianske združenie","Makovického 6/2","Prievidza","971 01","www.korfbal.sk","martinsonoga@gmail.com","Martin Sonoga","prezident","Martin Sonoga",421911361044]
["31824021","Slovenská asociácia motoristického športu","občianske združenie","Fatranská 3","Nitra","949 01","www.sams-asn.sk","samssk@nextra.sk","Dušan Koblišek","prezident","Vojtech Ruisl",421903403105]
["45009660","Slovenská asociácia naturálnej kulturistiky","občianske združenie","Štefániková 3509/20","Michalovce","071 01","www.sank.sk","rigosank@gmail.com","Viliam Rigo","prezident","Viliam Rigo",421917812810]
["30811686","Slovenská asociácia pretláčania rukou","občianske združenie","Vavrečka 311","Námestovo","029 01","www.armsport.sk","sekretariat@armsport.sk","Ján Germánus","prezident","Dagmar Petrová",421905162424]
["30814910","Slovenská asociácia taekwondo WT","občianske združenie","Stará spišská cesta 2166/38","Košice","040 01","new.satkd.sk","satkd.wtf@gmail.com","Mário Švec","prezident","Pavel Ižarik",421902901640]
["17316731","Slovenská asociácia univerzitného športu","občianske združenie","Trnavska cesta 37","Bratislava 3","831 04","www.saus.sk","saus@saus.sk","Július Dubovský","prezident","Michaela Masárová",421907696186]
["30841798","Slovenská asociácia zrakovo postihnutých športovcov","občianske združenie","Rosina 497","Rosina","013 22","www.sazps.sk","sazps@sazps.sk","Peter Ďuroška","predseda","Peter Ďuroška",421907253794]
["30844568","Slovenská baseballová federácia","občianske združenie","Junácka 6","Bratislava","831 04","www.slovakiabaseball.com","office@slovakiabaseball.com","Mojmír Jankovič","prezident","František Bunta",421905294239]
["17315166","Slovenská basketbalová asociácia","občianske združenie","Trnavská cesta 37","Bratislava","831 04","www.slovakbasket.sk","sekretariat@slovakbasket.sk","Michal Ondruš","prezident","Štefan Kubík",421905504810]
["31744621","Slovenská boxerská federácia","občianske združenie","Dr. Vladimíra Clementisa 3222/10","Bratislava","821 02","www.sbf.sk","sbf@sbf.sk","Tomáš Kovács","prezident","Ivana Haršányová",421949246786]
["34056939","SLOVENSKÁ CYKLOTRIALOVÁ ÚNIA","občianske združenie","Štefánikova 4445","Poprad","058 01","www.slovakbiketrial.sk","stefan@blackmail.sk","Štefan Pčola","prezident","Štefan Pčola",421905607646]
["34003975","Slovenská federácia karate a bojových umení","občianske združenie","Miletičova 3/A","Bratislava","821 08","www.karate-slovakia.sk","info@karate-slovakia.sk","Daniel Baran","prezident","Daniel Baran",421903919943]
["36064742","Slovenská federácia pétanque","občianske združenie","Karpatské námestie 10A","Bratislava","831 06","www.sfp.sk","peter.sury@gmail.com","Peter Šúry","prezident","Peter Šúry",421903421644]
["42361885","Slovenská footgolfová asociácia","občianske združenie","Medveďovej 13","Bratislava","851 04","www.sfga.sk","info@sfga.sk","Viliam Nemčko","prezident","Tomáš Bartko",421903204367]
["50284363","Slovenská golfová asociácia","občianske združenie","Kukučínova 26","Bratislava","831 02","www.skga.sk","skga@skga.sk","Rastislav Antala, Miroslav Rusnák","Prezident, viceprezident","Kamil Balga",421903446366]
["00688321","Slovenská gymnastická federácia","občianske združenie","Junácka 6","Bratislava","832 80","www.sgf.sk","gymnastics@sgf.sk","Monika Šišková","prezidentka","Silvia Ruščinová",421915177492]
["00603091","Slovenská hokejbalová únia","občianske združenie","Junácka 6","Bratislava","832 80","www.hokejbal.sk","hokejbal@hokejbal.sk","Miroslav Dragun","Generálny sekretár ","Miroslav Dragun",421908145184]
["31787801","SLOVENSKÁ JAZDECKÁ FEDERÁCIA","občianske združenie","Junácka 6","Bratislava","832 80","www.sjf.sk","baciak.masarykova@sjf.sk","Vladimír Chovan","predseda","Zuzana Bačiak Masaryková",421907100191]
["50434101","Slovenská kanoistika","občianske združenie","Junácka 6","Bratislava","831 04","www.canoe.sk","canoe@canoe.sk","Miroslav Haviar","prezident","Boris Bergendi",421905659739]
["30853427","Slovenská Lakrosová Federácia","občianske združenie","Jarabinková 6/B","Bratislava","821 09","www.lacrosse.sk","eminentasro@gmail.com","Igor Moravčík","prezident","Igor Moravčík",421905620961]
["36075809","Slovenská lukostrelecká asociácia 3D","občianske združenie","Trnovec nad Váhom 1040","Trnovec nad Váhom  ","825 71","www.archery3d.sk","info@archery3d.sk","Peter Málek","predseda","Peter Málek",421944644533]
["30813883","Slovenská motocyklová federácia","občianske združenie","Športovcov 340","Považská Bystrica","017 01","www.smf.sk","smf@smf.sk","Peter Lazar","prezident","Tatiana Kašlíková",421905601243]
["34057587","Slovenská Muaythai asociácia","občianske združenie","Lermontova 3","Bratislava","811 05","www.smta.sk ","office@smta.sk ","Róbert Kajánek","prezident","Róbert Kajánek",421903584555]
["30806887","Slovenská nohejbalová asociácia","občianske združenie","Junácka 6","Bratislava 3","832 80","www.nohejbalsk.com","nohejbal.sna@gmail.com","Miroslav Kováč","prezident","Miroslav Kováč",421917800004]
["36068764","Slovenská plavecká federácia","občianske združenie","Za kasárňou 315/1","Bratislava","831 03","www.swimmsvk.sk","prezident@swimmsvk.sk","Ivan Šulek","prezident","Ivan Šulek",421905297832]
["30851459","Slovenská rugbyová únia","občianske združenie","Hrobákova 1","Bratislava","851 02","www.slovakrugby.sk","kubalova@sprinklersystem.sk","Eduard Krützner","prezident","Katarína Kubalová",421911977728]
["37998919","Slovenská skialpinistická asociácia","občianske združenie","Jalovec 98","Bobrovec","032 21","www.slovakskimo.sk","info@slovakskimo.sk","Michaela Babčanová","podpredseda","Michaela Babčanová",421915156717]
["17316723","Slovenská softballová asociácia","občianske združenie","Junácka 6","Bratislava","831 04","www.slovakiasoftball.com","office@softballslovakia.com","Lenka Gunišová","prezident","František Bunta",421905294239]
["30807018","Slovenská squashová asociácia","občianske združenie","Junácka 6","Bratislava","832 80","www.squashtour.sk","gs@squash.sk","Ivan Tomko","prezident","Dávid Kubiček",421908447934]
["31745466","Slovenská triatlonová únia","občianske združenie","Junácka 6","Bratislava","832 80","www.triathlon.sk","triathlon@triathlon.sk","Jozef Jurášek","prezident","Peter Dobiaš",421918234840]
["52033431","Slovenská univerzitná hokejová asociácia","občianske združenie","Považská 1706/35","Trenčín","911 01","www.euhl.eu","lsekeras@euhl.eu","Ľubomír Sekeráš","predseda","Ľubomír Sekeráš",0]
["00688819","Slovenská volejbalová federácia","občianske združenie","Kalinčiakova 33","Bratislava","831 04","www.svf.sk","svf@svf.sk","Marek Rojko","prezident","Jozef Mihalco",421911427222]
["36063835","Slovenský atletický zväz","občianske združenie","Junácka 6","Bratislava","831 04","www.atletika.sk","office@atletika.sk","Peter Korčok, Vladimír Gubrický","prezident, generálny sekretár","Vladimír Gubrický",421905278836]
["31753825","Slovenský biliardový zväz","občianske združenie","Junácka 6","Bratislava","832 80","www.biliard.online","koniar@sbiz.sk; sbiz1994@gmail.com","Samuel Koniar","predseda","Samuel Koniar",421907194669]
["36128147","Slovenský bowlingový zväz","občianske združenie","Dunajská 12","Košice ","040 11","www.slovakbowling.sk","merkovskyv@gmail.com ","Vladimír Merkovský ","prezident","Vladimír Merkovský ",421903712927]
["31770908","Slovenský bridžový zväz","občianske združenie","Lopenícka 1/A","Bratislava","831 02","www.bridgeclub.sk","sbz@bridgeclub.sk","Peter Belčák","prezident","Peter Belčák",421908672270]
["37841866","Slovenský curlingový zväz","občianske združenie","Zahradnícka 27","Bratislava","811 07","www.curling.sk","office@curling.sk","Pavol Pitoňák","predseda","Pavel Kocian",421918824449]
["34009388","Slovenský cykloklub","občianske združenie","Námestie slobody 1716/6","Piešťany","921 01","www.cykloklub.sk","office@cykloklub.sk","Michal Hlatký","predseda","Michal Hlatký",421903996977]
["00687308","Slovenský futbalový zväz","občianske združenie","Tomášikova 30C","Bratislava","821 01","www.futbalsfz.sk","msvvas@futbalsfz.sk","Ján Kováčik","prezident","Marcel Korinek",421907984638]
["00586455","Slovenský horolezecký spolok JAMES","občianske združenie","Junácka 6","Bratislava","832 80","www.james.sk","office@james.sk","Anton Pacek","predseda","Anton Pacek",421911597705]
["31771688","Slovenský kolkársky zväz","občianske združenie","Štúrova 1158/22","Piešťany","921 01","www.kolky.sk","sekretariat@kolky.sk","Štefan Kočan","prezident","Eva Ondrejkovičová",421905762340]
["31805540","Slovenský krasokorčuliarsky zväz","občianske združenie","Záhradnícka 752/95","Bratislava","821 08","www.kraso.sk","slovakskating@kraso.sk","Jozef Beständig","predseda","Jozef Beständig",421905504040]
["30793009","Slovenský lukostrelecký zväz","občianske združenie","Junácka 6","Bratislava","832 80","www.archerysvk.sk","office@archerysvk.sk","Vladimír Bužek","predseda","Vladimír Bužek",421903202270]
["00677604","Slovenský národný aeroklub generála Milana Rastislava Štefánika","občianske združenie","Pri Rajčianke 49","Žilina","010 01","www.sna.sk","sna@sna.sk","Miroslav Gábor","prezident","Marcela Nagyová",421911928826]
["30811082","Slovenský olympijský a športový výbor","občianske združenie","Junácka 6","Bratislava 3","831 04","www.olympic.sk","office@olympic.sk","Anton Siekel","prezident","Gábor Asványi; Patrik Hrbek","421903584992; 421911090490"]
["31745661","Slovenský paralympijský výbor","občianske združenie","Benediktiho 5","Bratislava 1","811 05","www.spv.sk","spcoffice@spv.sk","Ján Riapoš","predseda","Ján Riapoš; Maroš Čambal","421905788436; 421257789713"]
["30688060","Slovenský rýchlokorčuliarsky zväz","občianske združenie","T.Vansovej 2171/1","Spišská Nová Ves","052 01","www.speedskating.sk","info@speedskating.sk","Ivana Iliašová","predseda","Ján Magdoško",421903601379]
["30806836","Slovenský stolnotenisový zväz","občianske združenie","Černockého 6","Bratislava","831 53","www.sstz.sk","sstz1@sstz.sk","Anton Hamran","predseda","Ivica Hatalová",421903370792]
["00603341","SLOVENSKÝ STRELECKÝ ZVÄZ","občianske združenie","Wolkrova 4","Bratislava","851 01","www.shooting.sk","ssz@shooting.sk","Miloslav Benca","prezident","Ján Kulich",421905795511]
["17310571","Slovenský šachový zväz","občianske združenie","Bernolákovo námestie 25","Nové Zámky","940 01","www.chess.sk","sekretariat@chess.sk","Milan Roman","prezident","Vladimír Szűcs",421903363993]
["30806437","Slovenský šermiarsky zväz","občianske združenie","Trnavská cesta 39","Bratislava","831 04","ww.slovak-fencing.sk","slovak-fencing@slovak-fencing.sk","Attila Érsek","prezident","Gabriela Geršiová",421903740961]
["30811384","Slovenský tenisový zväz","občianske združenie","Príkopova 6","Bratislava","831 03","www.stz.sk","stz@stz.sk","Miloslav Mečíř","prezident","Ivan Greguška",421903714918]
["00688304","Slovenský veslársky zväz","občianske združenie","FTVŠ, Nábrežie armádneho generála Ludvíka Svobodu 4298/9","Bratislava","814 69","www.veslovanie.sk","rowingslovakia@gmail.com","Ján Žiška","predseda","Stanislava Vičanová",421918882990]
["31791981","SLOVENSKÝ ZÁPASNÍCKY ZVÄZ","občianske združenie","Junácka 2951/6","Bratislava","832 80","www.slovenskezapasenie.sk","szz@zapasenie.sk","Štefánia Galandová","generálna sekretárka ","Štefánia Galandová",421917476268]
["30811546","Slovenský zväz bedmintonu","občianske združenie","Slovenská 19","Prešov","080 01","www.bedminton.sk ","sekretar@bedminton.sk ","Zuzana Rajdugová","generálna sekretárka ","Zuzana Rajdugová",421905193404]
["35656743","Slovenský zväz biatlonu","občianske združenie","Partizánska cesta 3501/71","Banská Bystrica","974 01","www.biathlon.sk","svk@biathlon.sk","Peter Vozár","prezident","Zuzana Donovalová",421902902970]
["36067580","Slovenský zväz bobistov","občianske združenie","Líščie údolie 134","Bratislava","841 01","www.boby.sk","szb@boby.sk","Milan Majtán","predseda","Zdenka Jagnešáková",421903262626]
["00684112","Slovenský zväz cyklistiky","občianske združenie","Kukuričná 13","Bratislava","831 03","www.cyklistikaszc.sk","szc@cyklistikaszc.sk","Peter Privara, Katarína Jakubová","prezident, generálna sekretárka","Michal Rohoň",421902228191]
["31806431","Slovenský zväz dráhového golfu","občianske združenie","Junácka 2951/6","Bratislava","832 80","www.minigolfsport.sk","manager@minigolfsport.sk","František Drgoň","prezident","René Šimanský",421905305338]
["31795421","Slovenský zväz florbalu","občianske združenie","Junácka 6","Bratislava","832 80","www.szfb.sk","info@szfb.sk","Martin Kopejtko","prezident","Oto Divinský",421908979442]
["30774772","Slovenský zväz hádzanej","občianske združenie","Junácka 6","Bratislava","831 04","www.slovakhandball.sk","szh@slovakhandball.sk","Jaroslav Holeša","prezident","Ivan Sabovik",421903708275]
["30793211","Slovenský zväz jachtingu","občianske združenie","Junácka 6","Bratislava","832 80","www.sailing.sk","szj@sailing.sk","Martin Mydlík","predseda","Zuzana Vargová",421918529304]
["17308518","Slovenský zväz Judo","občianske združenie","Junácka 6","Bratislava","832 80","www.judo.sk","szj@judo.sk","Jozef Tománek ml., Pavel Zvara","predseda, podpredseda","Sophia Kanátová",421944318444]
["30811571","Slovenský Zväz Karate","občianske združenie","Junácka 6","Bratislava","832 80","www.karate.sk","karate@karate.sk","Daniel Líška","prezident","Leopold Roman",421903692095]
["31119247","Slovenský zväz kickboxu","občianske združenie","Junácka 6","Bratislava","832 80","www.slovak-kickboxing.sk ","onuscak@kickboxing.sk","Jozef Kolozsy","prezident","Viliam Sabol",421915499077]
["30845386","Slovenský zväz ľadového hokeja","občianske združenie","Trnavská cesta 27/B","Bratislava","831 04","www.hockeyslovakia.sk","urbanova@szlh.sk","Andrea Urbanová","ekonomický riaditeľ","Andrea Urbanová",421905234323]
["30865930","Slovenský zväz malého futbalu","občianske združenie","Ružinovská 28","Bratislava 2","821 03","www.malyfutbal.sk","peter.kralik@malyfutbal.sk","Peter Králik","prezident","Peter Králik",421915902632]
["30788714","Slovenský zväz moderného päťboja","občianske združenie","Junácka 6","Bratislava","832 80","www.pentathlon.sk","smpa@pentathlon.sk","Dušan Poláček ml.","predseda","Dušan Poláček st.",421905650170]
["30806518","Slovenský zväz orientačných športov","občianske združenie","Junácka 6","Bratislava","832 80","www.orienteering.sk","slovakia@orienteering.sk","Andrej Patráš","predseda","Milan Mazúr",421903636503]
["31751075","Slovenský zväz pozemného hokeja","občianske združenie","Jurkovičova 5","Bratislava","831 06","www.szph.sk","szph@szph.sk","Ľudmila Pastorová","predseda","Matej Boho",421917263316]
["37818058","Slovenský zväz psích záprahov","občianske združenie","M.R.Štefánika 217","Vranov nad Topľou","093 01","www.mushing.sk","igorpribula11@gmail.com","Igor Pribula","prezident","Igor Pribula",421905486716]
["00896896","Slovenský zväz rádioamatérov","občianske združenie","Mlynská 4","Stupava","900 31","www.hamradio.sk","szr@szr.sk","Roman Kudláč","prezident",0,0]
["31871526","Slovenský zväz rybolovnej techniky","občianske združenie","Svornosti 69","Nové Zámky","940 77","www.szrtnz.sk","szrtnz@szm.sk","Juraj Mészáros","prezident","Juraj Mészáros",421905235472]
["31989373","Slovenský zväz sánkarov","občianske združenie","Starý Smokovec 18074","Vysoké Tatry","062 01","www.sane.sk","sane@sane.sk","Viera Bachárová Findurová","predseda","Viera Bachárová Findurová",421905970041]
["42219922","Slovenský zväz športového ju-jitsu","občianske združenie","Sládkovičova 454/16","Martin","036 01","www.szsjj.sk","predseda@szsjj.sk","Miroslav Ševčík","predseda","Miroslav Ševčík",421915879583]
["51118831","Slovenský zväz športového rybolovu","občianske združenie","Andreja Kmeťa 314/20","Žilina","010 01","www.szsr.sk","sekretariatszsr@gmail.com","Jaroslav Sámela","prezident","Mária Sprušanská",421918711548]
["37938941","Slovenský zväz Taekwon-Do ITF","občianske združenie","Staré Grunty 3553/9A","Bratislava","841 05","www.sztkd-itf.sk","sztkditf@gmail.com","Matej Košalko","prezident","Ladislav Huňady",421908553335]
["00684767","Slovenský zväz tanečných športov","občianske združenie","Junácka 14290/6","Bratislava","832 80","www.szts.sk","szts@szts.sk","Peter Ivanič","prezident","Peter Ivanič",421905245008]
["22665234","Slovenský zväz telesne postihnutých športovcov","občianske združenie","Benediktiho 5","Bratislava 1","811 05","www.sztps.sk","tps@sztps.sk","Ján Riapoš","predseda","Ján Riapoš\nMartina Balcová","421905788436;\n421918940356"]
["30793203","Slovenský zväz vodného lyžovania a wakeboardingu","občianske združenie","Junácka 6","Bratislava","832 80","www.waterski.sk","waterski@waterski.sk","Alexander Vaško","predseda","Denisa Oravcová",421918808923]
["00681768","Slovenský zväz vodného motorizmu","občianske združenie","Trnavská cesta 29","Bratislava","832 84","www.szvm.sk","szvm@szvm.sk","Marian Jung","predseda","Marian Jung",421905418010]
["31796079","Slovenský zväz vzpierania","občianske združenie","Junácka 2951/6","Bratislava","832 80","www.vzpieranie.sk","chairmanswf@gmail.com ","Tomáš Chovanec","predseda","Tomáš Chovanec",421915282858]
["30811406","Špeciálne olympiády Slovensko","občianske združenie","Trnavská cesta 37","Bratislava 3","831 04","www.specialolympics.sk","office@specialolympics.sk","Eva Gažová","Národná riaditeľka","Eva Gažová",421917176673]
["35538015","Združenie šípkarských organizácií","občianske združenie","Szakkayho 1","Košice","040 01","www.slovakiadart.sk","info@sipky.sk","Karol Kirchner","predseda","Karol Kirchner",421905700790]
["00585319","Zväz potápačov Slovenska","občianske združenie","Wolkrova 4","Bratislava","851 01","www.zps-diving.sk","zps@zps-diving.sk","Roman Baláž","prezident","Zuzana Žecová",421918737877]
["42132690","Zväz slovenského kolieskového korčuľovania","občianske združenie","Trnavská 3273/37","Bratislava 3","831 04","www.slovakskate.sk","president@slovakskate.sk","Štefan Pjontek","predseda","Štefan Pjontek",421903422249]
["50671669","Zväz slovenského lyžovania","občianske združenie","Galvaniho 16617/17A","Bratislava","821 04","www.zsl.sk","sekretariat@zsl.sk","Martin Paško","prezident","Radovan Cagala",421905641479]
["12664901","Zväz vodáctva a raftingu Slovenskej republiky","občianske združenie","Dunajská 8","Bratislava 1","811 08 ","www.zvazraftingu.sk","zvazraftingu@gmail.com","Radoslav Orokocký","prezident",0,0]

{"sheet":"FP","index":6,"n_rows":823,"n_cols":14,"rows_kept":823,"cut":false,"hidden":true,"merged":[]}
["IČO","Prijímateľ","Predmet\n(názov, miesto, termín, parametre)","Schválená\n(eur)","SF\n(%)","Účel","PPG","B/K","ico+ucel","ico+ppg","Šport","ICO+PPG+BK","Zoraď","ico+ucel+B/K"]
["42254388",{"$f":"VLOOKUP(A2,Adr!A:B,2,FALSE)","v":"Deaflympijský výbor Slovenska"},"činnosť Deaflympijského výboru Slovenska",329391,0,"c","026 03","B",{"$f":"A2&F2","v":"42254388c"},{"$f":"A2&G2","v":"42254388026 03"},null,{"$f":"A2&G2&H2","v":"42254388026 03B"},{"$f":"B2&F2&H2&C2","v":"Deaflympijský výbor SlovenskacBčinnosť Deaflympijského výboru Slovenska"},{"$f":"+I2&H2","v":"42254388cB"}]
["42254388",{"$f":"VLOOKUP(A3,Adr!A:B,2,FALSE)","v":"Deaflympijský výbor Slovenska"},"Antušeková Martina",20000,0,"d","026 03","B","42254388d","42254388026 03",null,"42254388026 03B","Deaflympijský výbor SlovenskadBAntušeková Martina","42254388dB"]
["42254388",{"$f":"VLOOKUP(A4,Adr!A:B,2,FALSE)","v":"Deaflympijský výbor Slovenska"},"Birošová Tereza",30000,0,"d","026 03","B","42254388d","42254388026 03",null,"42254388026 03B","Deaflympijský výbor SlovenskadBBirošová Tereza","42254388dB"]
["42254388",{"$f":"VLOOKUP(A5,Adr!A:B,2,FALSE)","v":"Deaflympijský výbor Slovenska"},"Jánošíková Jana",20000,0,"d","026 03","B","42254388d","42254388026 03",null,"42254388026 03B","Deaflympijský výbor SlovenskadBJánošíková Jana","42254388dB"]
["42254388",{"$f":"VLOOKUP(A6,Adr!A:B,2,FALSE)","v":"Deaflympijský výbor Slovenska"},"Jelínek Rastislav",41000,0,"d","026 03","B","42254388d","42254388026 03",null,"42254388026 03B","Deaflympijský výbor SlovenskadBJelínek Rastislav","42254388dB"]
["42254388",{"$f":"VLOOKUP(A7,Adr!A:B,2,FALSE)","v":"Deaflympijský výbor Slovenska"},"Jurková Eva",52000,0,"d","026 03","B","42254388d","42254388026 03",null,"42254388026 03B","Deaflympijský výbor SlovenskadBJurková Eva","42254388dB"]
["42254388",{"$f":"VLOOKUP(A8,Adr!A:B,2,FALSE)","v":"Deaflympijský výbor Slovenska"},"Keinath Thomas",52000,0,"d","026 03","B","42254388d","42254388026 03",null,"42254388026 03B","Deaflympijský výbor SlovenskadBKeinath Thomas","42254388dB"]
["42254388",{"$f":"VLOOKUP(A9,Adr!A:B,2,FALSE)","v":"Deaflympijský výbor Slovenska"},"Krištofičová Ivana",40500,0,"d","026 03","B","42254388d","42254388026 03",null,"42254388026 03B","Deaflympijský výbor SlovenskadBKrištofičová Ivana","42254388dB"]
["42254388",{"$f":"VLOOKUP(A10,Adr!A:B,2,FALSE)","v":"Deaflympijský výbor Slovenska"},"Lepótová Amália",20000,0,"d","026 03","B","42254388d","42254388026 03",null,"42254388026 03B","Deaflympijský výbor SlovenskadBLepótová Amália","42254388dB"]
["42254388",{"$f":"VLOOKUP(A11,Adr!A:B,2,FALSE)","v":"Deaflympijský výbor Slovenska"},"Petrovič Peter",15000,0,"d","026 03","B","42254388d","42254388026 03",null,"42254388026 03B","Deaflympijský výbor SlovenskadBPetrovič Peter","42254388dB"]
["42254388",{"$f":"VLOOKUP(A12,Adr!A:B,2,FALSE)","v":"Deaflympijský výbor Slovenska"},"Štetková Ema",15000,0,"d","026 03","B","42254388d","42254388026 03",null,"42254388026 03B","Deaflympijský výbor SlovenskadBŠtetková Ema","42254388dB"]
["42254388",{"$f":"VLOOKUP(A13,Adr!A:B,2,FALSE)","v":"Deaflympijský výbor Slovenska"},"Vaco Marek",11200,0,"d","026 03","B","42254388d","42254388026 03",null,"42254388026 03B","Deaflympijský výbor SlovenskadBVaco Marek","42254388dB"]
["42254388",{"$f":"VLOOKUP(A14,Adr!A:B,2,FALSE)","v":"Deaflympijský výbor Slovenska"},"Vašíček Peter",11200,0,"d","026 03","B","42254388d","42254388026 03",null,"42254388026 03B","Deaflympijský výbor SlovenskadBVašíček Peter","42254388dB"]
["42254388",{"$f":"VLOOKUP(A15,Adr!A:B,2,FALSE)","v":"Deaflympijský výbor Slovenska"},"zabezpečenie účasti športovej reprezentácie SR na 20. Zimnej Deaflympiáde 2024 v Ankare",30000,0,"e","026 03","B","42254388e","42254388026 03",null,"42254388026 03B","Deaflympijský výbor SlovenskaeBzabezpečenie účasti športovej reprezentácie SR na 20. Zimnej Deaflympiáde 2024 v Ankare","42254388eB"]
["50642804",{"$f":"VLOOKUP(A16,Adr!A:B,2,FALSE)","v":"iCompete Natural Slovakia"},"rozvoj športov, ktoré nie sú uznanými podľa zákona č. 440/2015 Z. z.",18100,0,"g","026 03","B","50642804g","50642804026 03",null,"50642804026 03B","iCompete Natural SlovakiagBrozvoj športov, ktoré nie sú uznanými podľa zákona č. 440/2015 Z. z.","50642804gB"]
["00688312",{"$f":"VLOOKUP(A17,Adr!A:B,2,FALSE)","v":"Klub slovenských turistov"},"značenie turistických trás",167400,0,"h","026 01","B","00688312h","00688312026 01",null,"00688312026 01B","Klub slovenských turistovhBznačenie turistických trás","00688312hB"]
["47845660",{"$f":"VLOOKUP(A18,Adr!A:B,2,FALSE)","v":"Košická Futbalová Aréna a. s."},"dobudovanie Košickej futbalovej arény ",4000000,0,"k","026 04","K","47845660k","47845660026 04",null,"47845660026 04K","Košická Futbalová Aréna a. s.kKdobudovanie Košickej futbalovej arény ","47845660kK"]
["42269423",{"$f":"VLOOKUP(A19,Adr!A:B,2,FALSE)","v":"MAMMAL - Slovenský zväz MMA"},"rozvoj športov, ktoré nie sú uznanými podľa zákona č. 440/2015 Z. z.",25200,0,"g","026 03","B","42269423g","42269423026 03",null,"42269423026 03B","MAMMAL - Slovenský zväz MMAgBrozvoj športov, ktoré nie sú uznanými podľa zákona č. 440/2015 Z. z.","42269423gB"]
["00595209",{"$f":"VLOOKUP(A20,Adr!A:B,2,FALSE)","v":"Maratónsky klub Košice"},"Medzinárodný maratón mieru",50000,0,"e","026 03","B","00595209e","00595209026 03",null,"00595209026 03B","Maratónsky klub KošiceeBMedzinárodný maratón mieru","00595209eB"]
["30787009",{"$f":"VLOOKUP(A21,Adr!A:B,2,FALSE)","v":"Slovenská asociácia amerického futbalu, o.z."},"americký futbal - bežné transfery",32301,0,"a","026 02","B","30787009a","30787009026 02","americký futbal","30787009026 02B","Slovenská asociácia amerického futbalu, o.z.aBamerický futbal - bežné transfery","30787009aB"]
["50897152",{"$f":"VLOOKUP(A22,Adr!A:B,2,FALSE)","v":"Slovenská Asociácia Bandy, skrátený názov SAB"},"rozvoj športov, ktoré nie sú uznanými podľa zákona č. 440/2015 Z. z.",25200,0,"g","026 03","B","50897152g","50897152026 03",null,"50897152026 03B","Slovenská Asociácia Bandy, skrátený názov SABgBrozvoj športov, ktoré nie sú uznanými podľa zákona č. 440/2015 Z. z.","50897152gB"]
["00631655",{"$f":"VLOOKUP(A23,Adr!A:B,2,FALSE)","v":"Slovenská asociácia boccie"},"boccia - bežné transfery",33580,0,"a","026 02","B","00631655a","00631655026 02","boccia","00631655026 02B","Slovenská asociácia boccieaBboccia - bežné transfery","00631655aB"]
["00631655",{"$f":"VLOOKUP(A24,Adr!A:B,2,FALSE)","v":"Slovenská asociácia boccie"},"boule lyonnaise - bežné transfery",28301,0,"a","026 02","B","00631655a","00631655026 02","boule lyonnaise","00631655026 02B","Slovenská asociácia boccieaBboule lyonnaise - bežné transfery","00631655aB"]
["00631655",{"$f":"VLOOKUP(A25,Adr!A:B,2,FALSE)","v":"Slovenská asociácia boccie"},"boule lyonnaise - kapitálové transfery",4000,0,"a","026 02","K","00631655a","00631655026 02","boule lyonnaise","00631655026 02K","Slovenská asociácia boccieaKboule lyonnaise - kapitálové transfery","00631655aK"]
["00631655",{"$f":"VLOOKUP(A26,Adr!A:B,2,FALSE)","v":"Slovenská asociácia boccie"},"Strehovská Magdaléna",15000,0,"d","026 03","B","00631655d","00631655026 03",null,"00631655026 03B","Slovenská asociácia bocciedBStrehovská Magdaléna","00631655dB"]
["00631655",{"$f":"VLOOKUP(A27,Adr!A:B,2,FALSE)","v":"Slovenská asociácia boccie"},"odmena trénerovi Daniel Obročník",343,0,"f","026 03","B","00631655f","00631655026 03",null,"00631655026 03B","Slovenská asociácia bocciefBodmena trénerovi Daniel Obročník","00631655fB"]
["42019541",{"$f":"VLOOKUP(A28,Adr!A:B,2,FALSE)","v":"Slovenská asociácia čínskeho wushu"},"wushu - bežné transfery",32301,0,"a","026 02","B","42019541a","42019541026 02","wushu","42019541026 02B","Slovenská asociácia čínskeho wushuaBwushu - bežné transfery","42019541aB"]
["30810108",{"$f":"VLOOKUP(A29,Adr!A:B,2,FALSE)","v":"Slovenská Asociácia Dynamickej Streľby"},"rozvoj športov, ktoré nie sú uznanými podľa zákona č. 440/2015 Z. z.",27600,0,"g","026 03","B","30810108g","30810108026 03",null,"30810108026 03B","Slovenská Asociácia Dynamickej StreľbygBrozvoj športov, ktoré nie sú uznanými podľa zákona č. 440/2015 Z. z.","30810108gB"]
["30842069",{"$f":"VLOOKUP(A30,Adr!A:B,2,FALSE)","v":"Slovenská asociácia fitnes, kulturistiky a silového trojboja"},"fitnes a kulturistika - bežné transfery",746345,0,"a","026 02","B","30842069a","30842069026 02","fitnes a kulturistika","30842069026 02B","Slovenská asociácia fitnes, kulturistiky a silového trojbojaaBfitnes a kulturistika - bežné transfery","30842069aB"]
["30842069",{"$f":"VLOOKUP(A31,Adr!A:B,2,FALSE)","v":"Slovenská asociácia fitnes, kulturistiky a silového trojboja"},"silový trojboj - bežné transfery",49811,0,"a","026 02","B","30842069a","30842069026 02","silový trojboj","30842069026 02B","Slovenská asociácia fitnes, kulturistiky a silového trojbojaaBsilový trojboj - bežné transfery","30842069aB"]
["30842069",{"$f":"VLOOKUP(A32,Adr!A:B,2,FALSE)","v":"Slovenská asociácia fitnes, kulturistiky a silového trojboja"},"Holota Vladimír",20000,0,"d","026 03","B","30842069d","30842069026 03",null,"30842069026 03B","Slovenská asociácia fitnes, kulturistiky a silového trojbojadBHolota Vladimír","30842069dB"]
["30842069",{"$f":"VLOOKUP(A33,Adr!A:B,2,FALSE)","v":"Slovenská asociácia fitnes, kulturistiky a silového trojboja"},"Horná Ivana",15000,0,"d","026 03","B","30842069d","30842069026 03",null,"30842069026 03B","Slovenská asociácia fitnes, kulturistiky a silového trojbojadBHorná Ivana","30842069dB"]
["30842069",{"$f":"VLOOKUP(A34,Adr!A:B,2,FALSE)","v":"Slovenská asociácia fitnes, kulturistiky a silového trojboja"},"Juricová Kristína",5000,0,"d","026 03","B","30842069d","30842069026 03",null,"30842069026 03B","Slovenská asociácia fitnes, kulturistiky a silového trojbojadBJuricová Kristína","30842069dB"]
["30842069",{"$f":"VLOOKUP(A35,Adr!A:B,2,FALSE)","v":"Slovenská asociácia fitnes, kulturistiky a silového trojboja"},"Láskavá Bianka",5000,0,"d","026 03","B","30842069d","30842069026 03",null,"30842069026 03B","Slovenská asociácia fitnes, kulturistiky a silového trojbojadBLáskavá Bianka","30842069dB"]
["30842069",{"$f":"VLOOKUP(A36,Adr!A:B,2,FALSE)","v":"Slovenská asociácia fitnes, kulturistiky a silového trojboja"},"Novodomská Nelli",5000,0,"d","026 03","B","30842069d","30842069026 03",null,"30842069026 03B","Slovenská asociácia fitnes, kulturistiky a silového trojbojadBNovodomská Nelli","30842069dB"]
["30842069",{"$f":"VLOOKUP(A37,Adr!A:B,2,FALSE)","v":"Slovenská asociácia fitnes, kulturistiky a silového trojboja"},"Ondrušková Tatiana",5000,0,"d","026 03","B","30842069d","30842069026 03",null,"30842069026 03B","Slovenská asociácia fitnes, kulturistiky a silového trojbojadBOndrušková Tatiana","30842069dB"]
["30842069",{"$f":"VLOOKUP(A38,Adr!A:B,2,FALSE)","v":"Slovenská asociácia fitnes, kulturistiky a silového trojboja"},"Sagan Martin",15000,0,"d","026 03","B","30842069d","30842069026 03",null,"30842069026 03B","Slovenská asociácia fitnes, kulturistiky a silového trojbojadBSagan Martin","30842069dB"]
["30842069",{"$f":"VLOOKUP(A39,Adr!A:B,2,FALSE)","v":"Slovenská asociácia fitnes, kulturistiky a silového trojboja"},"Soták Ján",15000,0,"d","026 03","B","30842069d","30842069026 03",null,"30842069026 03B","Slovenská asociácia fitnes, kulturistiky a silového trojbojadBSoták Ján","30842069dB"]
["30842069",{"$f":"VLOOKUP(A40,Adr!A:B,2,FALSE)","v":"Slovenská asociácia fitnes, kulturistiky a silového trojboja"},"Tatarka Peter",20000,0,"d","026 03","B","30842069d","30842069026 03",null,"30842069026 03B","Slovenská asociácia fitnes, kulturistiky a silového trojbojadBTatarka Peter","30842069dB"]
["30842069",{"$f":"VLOOKUP(A41,Adr!A:B,2,FALSE)","v":"Slovenská asociácia fitnes, kulturistiky a silového trojboja"},"Tichá Aneta",5000,0,"d","026 03","B","30842069d","30842069026 03",null,"30842069026 03B","Slovenská asociácia fitnes, kulturistiky a silového trojbojadBTichá Aneta","30842069dB"]
["30842069",{"$f":"VLOOKUP(A42,Adr!A:B,2,FALSE)","v":"Slovenská asociácia fitnes, kulturistiky a silového trojboja"},"odmena trénerke Michaela Končeková",1705,0,"f","026 03","B","30842069f","30842069026 03",null,"30842069026 03B","Slovenská asociácia fitnes, kulturistiky a silového trojbojafBodmena trénerke Michaela Končeková","30842069fB"]
["31749852",{"$f":"VLOOKUP(A43,Adr!A:B,2,FALSE)","v":"Slovenská asociácia Frisbee"},"športy s lietajúcim diskom - bežné transfery",77714,0,"a","026 02","B","31749852a","31749852026 02","športy s lietajúcim diskom","31749852026 02B","Slovenská asociácia FrisbeeaBšporty s lietajúcim diskom - bežné transfery","31749852aB"]
["31749852",{"$f":"VLOOKUP(A44,Adr!A:B,2,FALSE)","v":"Slovenská asociácia Frisbee"},"Boďová Katarína",15000,0,"d","026 03","B","31749852d","31749852026 03",null,"31749852026 03B","Slovenská asociácia FrisbeedBBoďová Katarína","31749852dB"]
["30844711",{"$f":"VLOOKUP(A45,Adr!A:B,2,FALSE)","v":"Slovenská asociácia go"},"go - bežné transfery",32301,0,"a","026 02","B","30844711a","30844711026 02","go","30844711026 02B","Slovenská asociácia goaBgo - bežné transfery","30844711aB"]
["31940668",{"$f":"VLOOKUP(A46,Adr!A:B,2,FALSE)","v":"Slovenská asociácia korfbalu"},"korfbal - bežné transfery",49088,0,"a","026 02","B","31940668a","31940668026 02","korfbal","31940668026 02B","Slovenská asociácia korfbaluaBkorfbal - bežné transfery","31940668aB"]
["31824021",{"$f":"VLOOKUP(A47,Adr!A:B,2,FALSE)","v":"Slovenská asociácia motoristického športu"},"automobilový šport - bežné transfery",396524,0,"a","026 02","B","31824021a","31824021026 02","automobilový šport","31824021026 02B","Slovenská asociácia motoristického športuaBautomobilový šport - bežné transfery","31824021aB"]
["31824021",{"$f":"VLOOKUP(A48,Adr!A:B,2,FALSE)","v":"Slovenská asociácia motoristického športu"},"automobilový šport - kapitálové transfery",10000,0,"a","026 02","K","31824021a","31824021026 02","automobilový šport","31824021026 02K","Slovenská asociácia motoristického športuaKautomobilový šport - kapitálové transfery","31824021aK"]
["30811686",{"$f":"VLOOKUP(A49,Adr!A:B,2,FALSE)","v":"Slovenská asociácia pretláčania rukou"},"pretláčanie rukou - bežné transfery",32301,0,"a","026 02","B","30811686a","30811686026 02","pretláčanie rukou","30811686026 02B","Slovenská asociácia pretláčania rukouaBpretláčanie rukou - bežné transfery","30811686aB"]
["30814910",{"$f":"VLOOKUP(A50,Adr!A:B,2,FALSE)","v":"Slovenská asociácia taekwondo WT"},"taekwondo - bežné transfery",95634,0,"a","026 02","B","30814910a","30814910026 02","taekwondo","30814910026 02B","Slovenská asociácia taekwondo WTaBtaekwondo - bežné transfery","30814910aB"]
["30814910",{"$f":"VLOOKUP(A51,Adr!A:B,2,FALSE)","v":"Slovenská asociácia taekwondo WT"},"zabezpečenie a rozvoj zdravotne postihnutých športovcov (SPV)",9805,0,"c","026 03","B","30814910c","30814910026 03",null,"30814910026 03B","Slovenská asociácia taekwondo WTcBzabezpečenie a rozvoj zdravotne postihnutých športovcov (SPV)","30814910cB"]
["30814910",{"$f":"VLOOKUP(A52,Adr!A:B,2,FALSE)","v":"Slovenská asociácia taekwondo WT"},"Briškárová Gabriela",10000,0,"d","026 03","B","30814910d","30814910026 03",null,"30814910026 03B","Slovenská asociácia taekwondo WTdBBriškárová Gabriela","30814910dB"]
["17316731",{"$f":"VLOOKUP(A53,Adr!A:B,2,FALSE)","v":"Slovenská asociácia univerzitného športu"},"Aktivity a úlohy v oblasti univerzitného športu v roku 2023",474000,0,"j","026 03","B","17316731j","17316731026 03",null,"17316731026 03B","Slovenská asociácia univerzitného športujBAktivity a úlohy v oblasti univerzitného športu v roku 2023","17316731jB"]
["30841798",{"$f":"VLOOKUP(A54,Adr!A:B,2,FALSE)","v":"Slovenská asociácia zrakovo postihnutých športovcov"},"činnosť Slovenskej asociácie zrakovo postihnutých športovcov",195439,0,"c","026 03","B","30841798c","30841798026 03",null,"30841798026 03B","Slovenská asociácia zrakovo postihnutých športovcovcBčinnosť Slovenskej asociácie zrakovo postihnutých športovcov","30841798cB"]
["30844568",{"$f":"VLOOKUP(A55,Adr!A:B,2,FALSE)","v":"Slovenská baseballová federácia"},"baseball - bežné transfery",278559,0,"a","026 02","B","30844568a","30844568026 02","baseball","30844568026 02B","Slovenská baseballová federáciaaBbaseball - bežné transfery","30844568aB"]
["17315166",{"$f":"VLOOKUP(A56,Adr!A:B,2,FALSE)","v":"Slovenská basketbalová asociácia"},"basketbal - bežné transfery",1508970,0,"a","026 02","B","17315166a","17315166026 02","basketbal","17315166026 02B","Slovenská basketbalová asociáciaaBbasketbal - bežné transfery","17315166aB"]
["17315166",{"$f":"VLOOKUP(A57,Adr!A:B,2,FALSE)","v":"Slovenská basketbalová asociácia"},"Zabezpečenie finále školských športových súťaží (Piešťany 2023) v súťažiach kategórie \"A\" v basketbale stredných škôl",26800,0,"j","026 01","B","17315166j","17315166026 01",null,"17315166026 01B","Slovenská basketbalová asociáciajBZabezpečenie finále školských športových súťaží (Piešťany 2023) v súťažiach kategórie \"A\" v basketbale stredných škôl","17315166jB"]
["17315166",{"$f":"VLOOKUP(A58,Adr!A:B,2,FALSE)","v":"Slovenská basketbalová asociácia"},"Zabezpečenie finále školských športových súťaží (Šamorín 2023) v súťažiach kategórie \"A\" v basketbale základných škôl",17180,0,"j","026 01","B","17315166j","17315166026 01",null,"17315166026 01B","Slovenská basketbalová asociáciajBZabezpečenie finále školských športových súťaží (Šamorín 2023) v súťažiach kategórie \"A\" v basketbale základných škôl","17315166jB"]
["31744621",{"$f":"VLOOKUP(A59,Adr!A:B,2,FALSE)","v":"Slovenská boxerská federácia"},"box - bežné transfery",289140,0,"a","026 02","B","31744621a","31744621026 02","box","31744621026 02B","Slovenská boxerská federáciaaBbox - bežné transfery","31744621aB"]
["31744621",{"$f":"VLOOKUP(A60,Adr!A:B,2,FALSE)","v":"Slovenská boxerská federácia"},"Csemez Andrej",15000,0,"d","026 03","B","31744621d","31744621026 03",null,"31744621026 03B","Slovenská boxerská federáciadBCsemez Andrej","31744621dB"]
["31744621",{"$f":"VLOOKUP(A61,Adr!A:B,2,FALSE)","v":"Slovenská boxerská federácia"},"Ďuríková Nicole",15000,0,"d","026 03","B","31744621d","31744621026 03",null,"31744621026 03B","Slovenská boxerská federáciadBĎuríková Nicole","31744621dB"]
["31744621",{"$f":"VLOOKUP(A62,Adr!A:B,2,FALSE)","v":"Slovenská boxerská federácia"},"Horváth Ladislav",10000,0,"d","026 03","B","31744621d","31744621026 03",null,"31744621026 03B","Slovenská boxerská federáciadBHorváth Ladislav","31744621dB"]
["31744621",{"$f":"VLOOKUP(A63,Adr!A:B,2,FALSE)","v":"Slovenská boxerská federácia"},"Horváth Roman",10000,0,"d","026 03","B","31744621d","31744621026 03",null,"31744621026 03B","Slovenská boxerská federáciadBHorváth Roman","31744621dB"]
["31744621",{"$f":"VLOOKUP(A64,Adr!A:B,2,FALSE)","v":"Slovenská boxerská federácia"},"Jedináková Miroslava",17500,0,"d","026 03","B","31744621d","31744621026 03",null,"31744621026 03B","Slovenská boxerská federáciadBJedináková Miroslava","31744621dB"]
["31744621",{"$f":"VLOOKUP(A65,Adr!A:B,2,FALSE)","v":"Slovenská boxerská federácia"},"Kostúr Joseph",15000,0,"d","026 03","B","31744621d","31744621026 03",null,"31744621026 03B","Slovenská boxerská federáciadBKostúr Joseph","31744621dB"]
["31744621",{"$f":"VLOOKUP(A66,Adr!A:B,2,FALSE)","v":"Slovenská boxerská federácia"},"Kubalová Tamara",35500,0,"d","026 03","B",{"$f":"A66&F66","v":"31744621d"},{"$f":"A66&G66","v":"31744621026 03"},null,{"$f":"A66&G66&H66","v":"31744621026 03B"},{"$f":"B66&F66&H66&C66","v":"Slovenská boxerská federáciadBKubalová Tamara"},{"$f":"+I66&H66","v":"31744621dB"}]
["31744621",{"$f":"VLOOKUP(A67,Adr!A:B,2,FALSE)","v":"Slovenská boxerská federácia"},"Lovašová Bibiana",15000,0,"d","026 03","B","31744621d","31744621026 03",null,"31744621026 03B","Slovenská boxerská federáciadBLovašová Bibiana","31744621dB"]
["31744621",{"$f":"VLOOKUP(A68,Adr!A:B,2,FALSE)","v":"Slovenská boxerská federácia"},"Michálek Dávid",10000,0,"d","026 03","B","31744621d","31744621026 03",null,"31744621026 03B","Slovenská boxerská federáciadBMichálek Dávid","31744621dB"]
["31744621",{"$f":"VLOOKUP(A69,Adr!A:B,2,FALSE)","v":"Slovenská boxerská federácia"},"Staněk Adolf",10000,0,"d","026 03","B","31744621d","31744621026 03",null,"31744621026 03B","Slovenská boxerská federáciadBStaněk Adolf","31744621dB"]
["31744621",{"$f":"VLOOKUP(A70,Adr!A:B,2,FALSE)","v":"Slovenská boxerská federácia"},"Tankó Viliam",15000,0,"d","026 03","B","31744621d","31744621026 03",null,"31744621026 03B","Slovenská boxerská federáciadBTankó Viliam","31744621dB"]
["31744621",{"$f":"VLOOKUP(A71,Adr!A:B,2,FALSE)","v":"Slovenská boxerská federácia"},"Vymyslický Lukáš",10000,0,"d","026 03","B","31744621d","31744621026 03",null,"31744621026 03B","Slovenská boxerská federáciadBVymyslický Lukáš","31744621dB"]
["31744621",{"$f":"VLOOKUP(A72,Adr!A:B,2,FALSE)","v":"Slovenská boxerská federácia"},"odmena trénerovi Andrej Horný",758,0,"f","026 03","B","31744621f","31744621026 03",null,"31744621026 03B","Slovenská boxerská federáciafBodmena trénerovi Andrej Horný","31744621fB"]
["31744621",{"$f":"VLOOKUP(A73,Adr!A:B,2,FALSE)","v":"Slovenská boxerská federácia"},"odmena trénerovi Dávid Vyletel",568,0,"f","026 03","B","31744621f","31744621026 03",null,"31744621026 03B","Slovenská boxerská federáciafBodmena trénerovi Dávid Vyletel","31744621fB"]
["31744621",{"$f":"VLOOKUP(A74,Adr!A:B,2,FALSE)","v":"Slovenská boxerská federácia"},"odmena trénerovi Pavol Hlavačka",1137,0,"f","026 03","B","31744621f","31744621026 03",null,"31744621026 03B","Slovenská boxerská federáciafBodmena trénerovi Pavol Hlavačka","31744621fB"]
["31744621",{"$f":"VLOOKUP(A75,Adr!A:B,2,FALSE)","v":"Slovenská boxerská federácia"},"odmena trénerovi Roman Bielik",568,0,"f","026 03","B","31744621f","31744621026 03",null,"31744621026 03B","Slovenská boxerská federáciafBodmena trénerovi Roman Bielik","31744621fB"]
["31744621",{"$f":"VLOOKUP(A76,Adr!A:B,2,FALSE)","v":"Slovenská boxerská federácia"},"odmena trénerovi Svätoslav Todorov",852,0,"f","026 03","B","31744621f","31744621026 03",null,"31744621026 03B","Slovenská boxerská federáciafBodmena trénerovi Svätoslav Todorov","31744621fB"]
["31744621",{"$f":"VLOOKUP(A77,Adr!A:B,2,FALSE)","v":"Slovenská boxerská federácia"},"odmena trénerovi Tibor Hlavačka",852,0,"f","026 03","B","31744621f","31744621026 03",null,"31744621026 03B","Slovenská boxerská federáciafBodmena trénerovi Tibor Hlavačka","31744621fB"]
["31744621",{"$f":"VLOOKUP(A78,Adr!A:B,2,FALSE)","v":"Slovenská boxerská federácia"},"Plnenie úloh verejného záujmu v športe - podpora a rozvoj športu mládeže v boxe",14273,0,"f","026 03","B","31744621f","31744621026 03",null,"31744621026 03B","Slovenská boxerská federáciafBPlnenie úloh verejného záujmu v športe - podpora a rozvoj športu mládeže v boxe","31744621fB"]
["34056939",{"$f":"VLOOKUP(A79,Adr!A:B,2,FALSE)","v":"SLOVENSKÁ CYKLOTRIALOVÁ ÚNIA"},"rozvoj športov, ktoré nie sú uznanými podľa zákona č. 440/2015 Z. z.",25200,0,"g","026 03","B","34056939g","34056939026 03",null,"34056939026 03B","SLOVENSKÁ CYKLOTRIALOVÁ ÚNIAgBrozvoj športov, ktoré nie sú uznanými podľa zákona č. 440/2015 Z. z.","34056939gB"]
["34003975",{"$f":"VLOOKUP(A80,Adr!A:B,2,FALSE)","v":"Slovenská federácia karate a bojových umení"},"rozvoj športov, ktoré nie sú uznanými podľa zákona č. 440/2015 Z. z.",164100,0,"g","026 03","B","34003975g","34003975026 03",null,"34003975026 03B","Slovenská federácia karate a bojových umenígBrozvoj športov, ktoré nie sú uznanými podľa zákona č. 440/2015 Z. z.","34003975gB"]
["36064742",{"$f":"VLOOKUP(A81,Adr!A:B,2,FALSE)","v":"Slovenská federácia pétanque"},"petanque - bežné transfery",32301,0,"a","026 02","B","36064742a","36064742026 02","petanque","36064742026 02B","Slovenská federácia pétanqueaBpetanque - bežné transfery","36064742aB"]
["42361885",{"$f":"VLOOKUP(A82,Adr!A:B,2,FALSE)","v":"Slovenská footgolfová asociácia"},"rozvoj športov, ktoré nie sú uznanými podľa zákona č. 440/2015 Z. z.",60300,0,"g","026 03","B","42361885g","42361885026 03",null,"42361885026 03B","Slovenská footgolfová asociáciagBrozvoj športov, ktoré nie sú uznanými podľa zákona č. 440/2015 Z. z.","42361885gB"]
["50284363",{"$f":"VLOOKUP(A83,Adr!A:B,2,FALSE)","v":"Slovenská golfová asociácia"},"golf - bežné transfery",551879,0,"a","026 02","B","50284363a","50284363026 02","golf","50284363026 02B","Slovenská golfová asociáciaaBgolf - bežné transfery","50284363aB"]
["50284363",{"$f":"VLOOKUP(A84,Adr!A:B,2,FALSE)","v":"Slovenská golfová asociácia"},"zabezpečenie a rozvoj zdravotne postihnutých športovcov (SPV)",4903,0,"c","026 03","B","50284363c","50284363026 03",null,"50284363026 03B","Slovenská golfová asociáciacBzabezpečenie a rozvoj zdravotne postihnutých športovcov (SPV)","50284363cB"]
["50284363",{"$f":"VLOOKUP(A85,Adr!A:B,2,FALSE)","v":"Slovenská golfová asociácia"},"Sabbatini Rory",80000,0,"d","026 03","B","50284363d","50284363026 03",null,"50284363026 03B","Slovenská golfová asociáciadBSabbatini Rory","50284363dB"]
["00688321",{"$f":"VLOOKUP(A86,Adr!A:B,2,FALSE)","v":"Slovenská gymnastická federácia"},"gymnastika - bežné transfery",1374806,0,"a","026 02","B","00688321a","00688321026 02","gymnastika","00688321026 02B","Slovenská gymnastická federáciaaBgymnastika - bežné transfery","00688321aB"]
["00688321",{"$f":"VLOOKUP(A87,Adr!A:B,2,FALSE)","v":"Slovenská gymnastická federácia"},"gymnastika - kapitálové transfery",5000,0,"a","026 02","K","00688321a","00688321026 02","gymnastika","00688321026 02K","Slovenská gymnastická federáciaaKgymnastika - kapitálové transfery","00688321aK"]
["00688321",{"$f":"VLOOKUP(A88,Adr!A:B,2,FALSE)","v":"Slovenská gymnastická federácia"},"Dobrocká Lucia",10000,0,"d","026 03","B","00688321d","00688321026 03",null,"00688321026 03B","Slovenská gymnastická federáciadBDobrocká Lucia","00688321dB"]
["00688321",{"$f":"VLOOKUP(A89,Adr!A:B,2,FALSE)","v":"Slovenská gymnastická federácia"},"Mokošová Barbora",25000,0,"d","026 03","B","00688321d","00688321026 03",null,"00688321026 03B","Slovenská gymnastická federáciadBMokošová Barbora","00688321dB"]
["00688321",{"$f":"VLOOKUP(A90,Adr!A:B,2,FALSE)","v":"Slovenská gymnastická federácia"},"Plnenie úloh verejného záujmu v športe - podpora a rozvoj športu mládeže v gymnastike",37466,0,"f","026 03","B","00688321f","00688321026 03",null,"00688321026 03B","Slovenská gymnastická federáciafBPlnenie úloh verejného záujmu v športe - podpora a rozvoj športu mládeže v gymnastike","00688321fB"]
["00688321",{"$f":"VLOOKUP(A91,Adr!A:B,2,FALSE)","v":"Slovenská gymnastická federácia"},"Zabezpečenie finále školských športových súťaží (Šamorín 2023) v súťažiach kategórie \"A\" v gymnastike základných škôl",18610,0,"j","026 01","B","00688321j","00688321026 01",null,"00688321026 01B","Slovenská gymnastická federáciajBZabezpečenie finále školských športových súťaží (Šamorín 2023) v súťažiach kategórie \"A\" v gymnastike základných škôl","00688321jB"]
["00688321",{"$f":"VLOOKUP(A92,Adr!A:B,2,FALSE)","v":"Slovenská gymnastická federácia"},"Zabezpečenie finále školských športových súťaží (Šamorín 2023) v súťažiach kategórie \"A\" v parkoure základných škôl",8100,0,"j","026 01","B","00688321j","00688321026 01",null,"00688321026 01B","Slovenská gymnastická federáciajBZabezpečenie finále školských športových súťaží (Šamorín 2023) v súťažiach kategórie \"A\" v parkoure základných škôl","00688321jB"]
["00603091",{"$f":"VLOOKUP(A93,Adr!A:B,2,FALSE)","v":"Slovenská hokejbalová únia"},"rozvoj športov, ktoré nie sú uznanými podľa zákona č. 440/2015 Z. z.",250000,0,"g","026 03","B","00603091g","00603091026 03",null,"00603091026 03B","Slovenská hokejbalová úniagBrozvoj športov, ktoré nie sú uznanými podľa zákona č. 440/2015 Z. z.","00603091gB"]
["31787801",{"$f":"VLOOKUP(A94,Adr!A:B,2,FALSE)","v":"SLOVENSKÁ JAZDECKÁ FEDERÁCIA"},"jazdectvo - bežné transfery",185035,0,"a","026 02","B","31787801a","31787801026 02","jazdectvo","31787801026 02B","SLOVENSKÁ JAZDECKÁ FEDERÁCIAaBjazdectvo - bežné transfery","31787801aB"]
["50434101",{"$f":"VLOOKUP(A95,Adr!A:B,2,FALSE)","v":"Slovenská kanoistika"},"kanoistika - bežné transfery",2400224,0,"a","026 02","B","50434101a","50434101026 02","kanoistika","50434101026 02B","Slovenská kanoistikaaBkanoistika - bežné transfery","50434101aB"]
["50434101",{"$f":"VLOOKUP(A96,Adr!A:B,2,FALSE)","v":"Slovenská kanoistika"},"kanoistika - kapitálové transfery",50200,0,"a","026 02","K","50434101a","50434101026 02","kanoistika","50434101026 02K","Slovenská kanoistikaaKkanoistika - kapitálové transfery","50434101aK"]
["50434101",{"$f":"VLOOKUP(A97,Adr!A:B,2,FALSE)","v":"Slovenská kanoistika"},"Baláž Samuel",60000,0,"d","026 03","B","50434101d","50434101026 03",null,"50434101026 03B","Slovenská kanoistikadBBaláž Samuel","50434101dB"]
["50434101",{"$f":"VLOOKUP(A98,Adr!A:B,2,FALSE)","v":"Slovenská kanoistika"},"Beňuš Matej",55400,0,"d","026 03","B","50434101d","50434101026 03",null,"50434101026 03B","Slovenská kanoistikadBBeňuš Matej","50434101dB"]
["50434101",{"$f":"VLOOKUP(A99,Adr!A:B,2,FALSE)","v":"Slovenská kanoistika"},"Beňuš Matej - kapitálové výdavky",3500,0,"d","026 03","K","50434101d","50434101026 03",null,"50434101026 03K","Slovenská kanoistikadKBeňuš Matej - kapitálové výdavky","50434101dK"]
["50434101",{"$f":"VLOOKUP(A100,Adr!A:B,2,FALSE)","v":"Slovenská kanoistika"},"Botek Adam",56300,0,"d","026 03","B","50434101d","50434101026 03",null,"50434101026 03B","Slovenská kanoistikadBBotek Adam","50434101dB"]
["50434101",{"$f":"VLOOKUP(A101,Adr!A:B,2,FALSE)","v":"Slovenská kanoistika"},"Botek Adam - kapitálové výdavky",3700,0,"d","026 03","K","50434101d","50434101026 03",null,"50434101026 03K","Slovenská kanoistikadKBotek Adam - kapitálové výdavky","50434101dK"]
["50434101",{"$f":"VLOOKUP(A102,Adr!A:B,2,FALSE)","v":"Slovenská kanoistika"},"Bugár Reka",27200,0,"d","026 03","B","50434101d","50434101026 03",null,"50434101026 03B","Slovenská kanoistikadBBugár Reka","50434101dB"]
["50434101",{"$f":"VLOOKUP(A103,Adr!A:B,2,FALSE)","v":"Slovenská kanoistika"},"Czaniková Tereza",7500,0,"d","026 03","B","50434101d","50434101026 03",null,"50434101026 03B","Slovenská kanoistikadBCzaniková Tereza","50434101dB"]
["50434101",{"$f":"VLOOKUP(A104,Adr!A:B,2,FALSE)","v":"Slovenská kanoistika"},"Čulenová Dagmar",15200,0,"d","026 03","B","50434101d","50434101026 03",null,"50434101026 03B","Slovenská kanoistikadBČulenová Dagmar","50434101dB"]
["50434101",{"$f":"VLOOKUP(A105,Adr!A:B,2,FALSE)","v":"Slovenská kanoistika"},"Današ Matej",9300,0,"d","026 03","B","50434101d","50434101026 03",null,"50434101026 03B","Slovenská kanoistikadBDanaš Matej","50434101dB"]
["50434101",{"$f":"VLOOKUP(A106,Adr!A:B,2,FALSE)","v":"Slovenská kanoistika"},"Doktorík Dominik",9300,0,"d","026 03","B","50434101d","50434101026 03",null,"50434101026 03B","Slovenská kanoistikadBDoktorík Dominik","50434101dB"]
["50434101",{"$f":"VLOOKUP(A107,Adr!A:B,2,FALSE)","v":"Slovenská kanoistika"},"Dorner Milan",12500,0,"d","026 03","B","50434101d","50434101026 03",null,"50434101026 03B","Slovenská kanoistikadBDorner Milan","50434101dB"]
["50434101",{"$f":"VLOOKUP(A108,Adr!A:B,2,FALSE)","v":"Slovenská kanoistika"},"Gavorová Hana",9300,0,"d","026 03","B","50434101d","50434101026 03",null,"50434101026 03B","Slovenská kanoistikadBGavorová Hana","50434101dB"]
["50434101",{"$f":"VLOOKUP(A109,Adr!A:B,2,FALSE)","v":"Slovenská kanoistika"},"Glejteková Simona",10000,0,"d","026 03","B","50434101d","50434101026 03",null,"50434101026 03B","Slovenská kanoistikadBGlejteková Simona","50434101dB"]
["50434101",{"$f":"VLOOKUP(A110,Adr!A:B,2,FALSE)","v":"Slovenská kanoistika"},"Gonšenica Adam",15000,0,"d","026 03","B","50434101d","50434101026 03",null,"50434101026 03B","Slovenská kanoistikadBGonšenica Adam","50434101dB"]
["50434101",{"$f":"VLOOKUP(A111,Adr!A:B,2,FALSE)","v":"Slovenská kanoistika"},"Grigar Jakub",73400,0,"d","026 03","B","50434101d","50434101026 03",null,"50434101026 03B","Slovenská kanoistikadBGrigar Jakub","50434101dB"]
["50434101",{"$f":"VLOOKUP(A112,Adr!A:B,2,FALSE)","v":"Slovenská kanoistika"},"Grigar Jakub - kapitálové výdavky",4800,0,"d","026 03","K","50434101d","50434101026 03",null,"50434101026 03K","Slovenská kanoistikadKGrigar Jakub - kapitálové výdavky","50434101dK"]
["50434101",{"$f":"VLOOKUP(A113,Adr!A:B,2,FALSE)","v":"Slovenská kanoistika"},"Halčin Martin",28900,0,"d","026 03","B","50434101d","50434101026 03",null,"50434101026 03B","Slovenská kanoistikadBHalčin Martin","50434101dB"]
["50434101",{"$f":"VLOOKUP(A114,Adr!A:B,2,FALSE)","v":"Slovenská kanoistika"},"Holka Tomáš",9300,0,"d","026 03","B","50434101d","50434101026 03",null,"50434101026 03B","Slovenská kanoistikadBHolka Tomáš","50434101dB"]
["50434101",{"$f":"VLOOKUP(A115,Adr!A:B,2,FALSE)","v":"Slovenská kanoistika"},"Husariková Diana",9300,0,"d","026 03","B","50434101d","50434101026 03",null,"50434101026 03B","Slovenská kanoistikadBHusariková Diana","50434101dB"]
["50434101",{"$f":"VLOOKUP(A116,Adr!A:B,2,FALSE)","v":"Slovenská kanoistika"},"Chlebová Ivana",15000,0,"d","026 03","B","50434101d","50434101026 03",null,"50434101026 03B","Slovenská kanoistikadBChlebová Ivana","50434101dB"]
["50434101",{"$f":"VLOOKUP(A117,Adr!A:B,2,FALSE)","v":"Slovenská kanoistika"},"Ivanecký Jaromír",10000,0,"d","026 03","B","50434101d","50434101026 03",null,"50434101026 03B","Slovenská kanoistikadBIvanecký Jaromír","50434101dB"]
["50434101",{"$f":"VLOOKUP(A118,Adr!A:B,2,FALSE)","v":"Slovenská kanoistika"},"Jakubisová Romana",9300,0,"d","026 03","B","50434101d","50434101026 03",null,"50434101026 03B","Slovenská kanoistikadBJakubisová Romana","50434101dB"]
["50434101",{"$f":"VLOOKUP(A119,Adr!A:B,2,FALSE)","v":"Slovenská kanoistika"},"Jedinák Matúš",17500,0,"d","026 03","B","50434101d","50434101026 03",null,"50434101026 03B","Slovenská kanoistikadBJedinák Matúš","50434101dB"]
["50434101",{"$f":"VLOOKUP(A120,Adr!A:B,2,FALSE)","v":"Slovenská kanoistika"},"Kizek Peter",7500,0,"d","026 03","B","50434101d","50434101026 03",null,"50434101026 03B","Slovenská kanoistikadBKizek Peter","50434101dB"]
["50434101",{"$f":"VLOOKUP(A121,Adr!A:B,2,FALSE)","v":"Slovenská kanoistika"},"Kmeťová Ivana",11200,0,"d","026 03","B","50434101d","50434101026 03",null,"50434101026 03B","Slovenská kanoistikadBKmeťová Ivana","50434101dB"]
["50434101",{"$f":"VLOOKUP(A122,Adr!A:B,2,FALSE)","v":"Slovenská kanoistika"},"Krajčí Samuel",17500,0,"d","026 03","B","50434101d","50434101026 03",null,"50434101026 03B","Slovenská kanoistikadBKrajčí Samuel","50434101dB"]
["50434101",{"$f":"VLOOKUP(A123,Adr!A:B,2,FALSE)","v":"Slovenská kanoistika"},"Kukučka Juraj",9300,0,"d","026 03","B","50434101d","50434101026 03",null,"50434101026 03B","Slovenská kanoistikadBKukučka Juraj","50434101dB"]
["50434101",{"$f":"VLOOKUP(A124,Adr!A:B,2,FALSE)","v":"Slovenská kanoistika"},"Luknárová Emanuela",35500,0,"d","026 03","B","50434101d","50434101026 03",null,"50434101026 03B","Slovenská kanoistikadBLuknárová Emanuela","50434101dB"]
["50434101",{"$f":"VLOOKUP(A125,Adr!A:B,2,FALSE)","v":"Slovenská kanoistika"},"Macúš Ondrej",10000,0,"d","026 03","B","50434101d","50434101026 03",null,"50434101026 03B","Slovenská kanoistikadBMacúš Ondrej","50434101dB"]
["50434101",{"$f":"VLOOKUP(A126,Adr!A:B,2,FALSE)","v":"Slovenská kanoistika"},"Maria Gamsjager Lisa",9873,0,"d","026 03","B","50434101d","50434101026 03",null,"50434101026 03B","Slovenská kanoistikadBMaria Gamsjager Lisa","50434101dB"]
["50434101",{"$f":"VLOOKUP(A127,Adr!A:B,2,FALSE)","v":"Slovenská kanoistika"},"Martikán Michal",15000,0,"d","026 03","B","50434101d","50434101026 03",null,"50434101026 03B","Slovenská kanoistikadBMartikán Michal","50434101dB"]
["50434101",{"$f":"VLOOKUP(A128,Adr!A:B,2,FALSE)","v":"Slovenská kanoistika"},"Mintálová Eliška",60000,0,"d","026 03","B","50434101d","50434101026 03",null,"50434101026 03B","Slovenská kanoistikadBMintálová Eliška","50434101dB"]
["50434101",{"$f":"VLOOKUP(A129,Adr!A:B,2,FALSE)","v":"Slovenská kanoistika"},"Mirgorodský Marko",37800,0,"d","026 03","B","50434101d","50434101026 03",null,"50434101026 03B","Slovenská kanoistikadBMirgorodský Marko","50434101dB"]
["50434101",{"$f":"VLOOKUP(A130,Adr!A:B,2,FALSE)","v":"Slovenská kanoistika"},"Muková Alena",9300,0,"d","026 03","B",{"$f":"A130&F130","v":"50434101d"},{"$f":"A130&G130","v":"50434101026 03"},null,{"$f":"A130&G130&H130","v":"50434101026 03B"},{"$f":"B130&F130&H130&C130","v":"Slovenská kanoistikadBMuková Alena"},{"$f":"+I130&H130","v":"50434101dB"}]
["50434101",{"$f":"VLOOKUP(A131,Adr!A:B,2,FALSE)","v":"Slovenská kanoistika"},"Myšák Denis",60000,0,"d","026 03","B","50434101d","50434101026 03",null,"50434101026 03B","Slovenská kanoistikadBMyšák Denis","50434101dB"]
["50434101",{"$f":"VLOOKUP(A132,Adr!A:B,2,FALSE)","v":"Slovenská kanoistika"},"Paňková Zuzana",39600,0,"d","026 03","B","50434101d","50434101026 03",null,"50434101026 03B","Slovenská kanoistikadBPaňková Zuzana","50434101dB"]
["50434101",{"$f":"VLOOKUP(A133,Adr!A:B,2,FALSE)","v":"Slovenská kanoistika"},"Paňková Zuzana - kapitálové výdavky",2400,0,"d","026 03","K","50434101d","50434101026 03",null,"50434101026 03K","Slovenská kanoistikadKPaňková Zuzana - kapitálové výdavky","50434101dK"]
["50434101",{"$f":"VLOOKUP(A134,Adr!A:B,2,FALSE)","v":"Slovenská kanoistika"},"Pecsuková Katarína",15000,0,"d","026 03","B","50434101d","50434101026 03",null,"50434101026 03B","Slovenská kanoistikadBPecsuková Katarína","50434101dB"]
["50434101",{"$f":"VLOOKUP(A135,Adr!A:B,2,FALSE)","v":"Slovenská kanoistika"},"Petrušová Mariana",22400,0,"d","026 03","B","50434101d","50434101026 03",null,"50434101026 03B","Slovenská kanoistikadBPetrušová Mariana","50434101dB"]
["50434101",{"$f":"VLOOKUP(A136,Adr!A:B,2,FALSE)","v":"Slovenská kanoistika"},"Psotný Adam",9300,0,"d","026 03","B","50434101d","50434101026 03",null,"50434101026 03B","Slovenská kanoistikadBPsotný Adam","50434101dB"]
["50434101",{"$f":"VLOOKUP(A137,Adr!A:B,2,FALSE)","v":"Slovenská kanoistika"},"Rumanský Richard",15000,0,"d","026 03","B","50434101d","50434101026 03",null,"50434101026 03B","Slovenská kanoistikadBRumanský Richard","50434101dB"]
["50434101",{"$f":"VLOOKUP(A138,Adr!A:B,2,FALSE)","v":"Slovenská kanoistika"},"Ružič Patrik",9300,0,"d","026 03","B","50434101d","50434101026 03",null,"50434101026 03B","Slovenská kanoistikadBRužič Patrik","50434101dB"]
["50434101",{"$f":"VLOOKUP(A139,Adr!A:B,2,FALSE)","v":"Slovenská kanoistika"},"Rybanský Daniel",10000,0,"d","026 03","B","50434101d","50434101026 03",null,"50434101026 03B","Slovenská kanoistikadBRybanský Daniel","50434101dB"]
["50434101",{"$f":"VLOOKUP(A140,Adr!A:B,2,FALSE)","v":"Slovenská kanoistika"},"Samuel Podhradský Viktor",9300,0,"d","026 03","B","50434101d","50434101026 03",null,"50434101026 03B","Slovenská kanoistikadBSamuel Podhradský Viktor","50434101dB"]
["50434101",{"$f":"VLOOKUP(A141,Adr!A:B,2,FALSE)","v":"Slovenská kanoistika"},"Sidová Bianka",35000,0,"d","026 03","B","50434101d","50434101026 03",null,"50434101026 03B","Slovenská kanoistikadBSidová Bianka","50434101dB"]
["50434101",{"$f":"VLOOKUP(A142,Adr!A:B,2,FALSE)","v":"Slovenská kanoistika"},"Slafkovský Alexander",56400,0,"d","026 03","B","50434101d","50434101026 03",null,"50434101026 03B","Slovenská kanoistikadBSlafkovský Alexander","50434101dB"]
["50434101",{"$f":"VLOOKUP(A143,Adr!A:B,2,FALSE)","v":"Slovenská kanoistika"},"Stanko Filip",12500,0,"d","026 03","B","50434101d","50434101026 03",null,"50434101026 03B","Slovenská kanoistikadBStanko Filip","50434101dB"]
["50434101",{"$f":"VLOOKUP(A144,Adr!A:B,2,FALSE)","v":"Slovenská kanoistika"},"Stanovská Soňa",15000,0,"d","026 03","B","50434101d","50434101026 03",null,"50434101026 03B","Slovenská kanoistikadBStanovská Soňa","50434101dB"]
["50434101",{"$f":"VLOOKUP(A145,Adr!A:B,2,FALSE)","v":"Slovenská kanoistika"},"Stojkovič David",9300,0,"d","026 03","B","50434101d","50434101026 03",null,"50434101026 03B","Slovenská kanoistikadBStojkovič David","50434101dB"]
["50434101",{"$f":"VLOOKUP(A146,Adr!A:B,2,FALSE)","v":"Slovenská kanoistika"},"Stolárik Peter",10000,0,"d","026 03","B","50434101d","50434101026 03",null,"50434101026 03B","Slovenská kanoistikadBStolárik Peter","50434101dB"]
["50434101",{"$f":"VLOOKUP(A147,Adr!A:B,2,FALSE)","v":"Slovenská kanoistika"},"Strýček Eduard",7500,0,"d","026 03","B","50434101d","50434101026 03",null,"50434101026 03B","Slovenská kanoistikadBStrýček Eduard","50434101dB"]
["50434101",{"$f":"VLOOKUP(A148,Adr!A:B,2,FALSE)","v":"Slovenská kanoistika"},"Škáchová Monika",25000,0,"d","026 03","B","50434101d","50434101026 03",null,"50434101026 03B","Slovenská kanoistikadBŠkáchová Monika","50434101dB"]
["50434101",{"$f":"VLOOKUP(A149,Adr!A:B,2,FALSE)","v":"Slovenská kanoistika"},"Štaffen Dávid",12500,0,"d","026 03","B","50434101d","50434101026 03",null,"50434101026 03B","Slovenská kanoistikadBŠtaffen Dávid","50434101dB"]
["50434101",{"$f":"VLOOKUP(A150,Adr!A:B,2,FALSE)","v":"Slovenská kanoistika"},"Švecová Romana",9300,0,"d","026 03","B","50434101d","50434101026 03",null,"50434101026 03B","Slovenská kanoistikadBŠvecová Romana","50434101dB"]
["50434101",{"$f":"VLOOKUP(A151,Adr!A:B,2,FALSE)","v":"Slovenská kanoistika"},"Toth Ludovit",9300,0,"d","026 03","B","50434101d","50434101026 03",null,"50434101026 03B","Slovenská kanoistikadBToth Ludovit","50434101dB"]
["50434101",{"$f":"VLOOKUP(A152,Adr!A:B,2,FALSE)","v":"Slovenská kanoistika"},"Vargha Boris",9300,0,"d","026 03","B","50434101d","50434101026 03",null,"50434101026 03B","Slovenská kanoistikadBVargha Boris","50434101dB"]
["50434101",{"$f":"VLOOKUP(A153,Adr!A:B,2,FALSE)","v":"Slovenská kanoistika"},"Vlček Erik",56300,0,"d","026 03","B","50434101d","50434101026 03",null,"50434101026 03B","Slovenská kanoistikadBVlček Erik","50434101dB"]
["50434101",{"$f":"VLOOKUP(A154,Adr!A:B,2,FALSE)","v":"Slovenská kanoistika"},"Vlček Erik - kapitálové výdavky",3700,0,"d","026 03","K","50434101d","50434101026 03",null,"50434101026 03K","Slovenská kanoistikadKVlček Erik - kapitálové výdavky","50434101dK"]
["50434101",{"$f":"VLOOKUP(A155,Adr!A:B,2,FALSE)","v":"Slovenská kanoistika"},"Zalka Csaba",44100,0,"d","026 03","B","50434101d","50434101026 03",null,"50434101026 03B","Slovenská kanoistikadBZalka Csaba","50434101dB"]
["50434101",{"$f":"VLOOKUP(A156,Adr!A:B,2,FALSE)","v":"Slovenská kanoistika"},"Zrutta Michal",9300,0,"d","026 03","B","50434101d","50434101026 03",null,"50434101026 03B","Slovenská kanoistikadBZrutta Michal","50434101dB"]
["50434101",{"$f":"VLOOKUP(A157,Adr!A:B,2,FALSE)","v":"Slovenská kanoistika"},"Majstrovstvá Európy vo vodnom slalome a kajak crosse U23 a juniorov",75000,0,"e","026 03","B","50434101e","50434101026 03",null,"50434101026 03B","Slovenská kanoistikaeBMajstrovstvá Európy vo vodnom slalome a kajak crosse U23 a juniorov","50434101eB"]
["50434101",{"$f":"VLOOKUP(A158,Adr!A:B,2,FALSE)","v":"Slovenská kanoistika"},"odmena trénerovi Eugen Honti",925,0,"f","026 03","B","50434101f","50434101026 03",null,"50434101026 03B","Slovenská kanoistikafBodmena trénerovi Eugen Honti","50434101fB"]
["50434101",{"$f":"VLOOKUP(A159,Adr!A:B,2,FALSE)","v":"Slovenská kanoistika"},"odmena trénerovi Ján Šajbidor",462,0,"f","026 03","B","50434101f","50434101026 03",null,"50434101026 03B","Slovenská kanoistikafBodmena trénerovi Ján Šajbidor","50434101fB"]
["50434101",{"$f":"VLOOKUP(A160,Adr!A:B,2,FALSE)","v":"Slovenská kanoistika"},"odmena trénerovi Jozef Martikán",308,0,"f","026 03","B","50434101f","50434101026 03",null,"50434101026 03B","Slovenská kanoistikafBodmena trénerovi Jozef Martikán","50434101fB"]
["50434101",{"$f":"VLOOKUP(A161,Adr!A:B,2,FALSE)","v":"Slovenská kanoistika"},"odmena trénerovi Juraj Ontko",925,0,"f","026 03","B","50434101f","50434101026 03",null,"50434101026 03B","Slovenská kanoistikafBodmena trénerovi Juraj Ontko","50434101fB"]
["50434101",{"$f":"VLOOKUP(A162,Adr!A:B,2,FALSE)","v":"Slovenská kanoistika"},"odmena trénerovi Juraj Tarr",462,0,"f","026 03","B","50434101f","50434101026 03",null,"50434101026 03B","Slovenská kanoistikafBodmena trénerovi Juraj Tarr","50434101fB"]
["50434101",{"$f":"VLOOKUP(A163,Adr!A:B,2,FALSE)","v":"Slovenská kanoistika"},"odmena trénerovi Martin Stanovský",206,0,"f","026 03","B","50434101f","50434101026 03",null,"50434101026 03B","Slovenská kanoistikafBodmena trénerovi Martin Stanovský","50434101fB"]
["50434101",{"$f":"VLOOKUP(A164,Adr!A:B,2,FALSE)","v":"Slovenská kanoistika"},"odmena trénerovi Patrik Gajarský",617,0,"f","026 03","B","50434101f","50434101026 03",null,"50434101026 03B","Slovenská kanoistikafBodmena trénerovi Patrik Gajarský","50434101fB"]
["50434101",{"$f":"VLOOKUP(A165,Adr!A:B,2,FALSE)","v":"Slovenská kanoistika"},"odmena trénerovi Pavol Ostrovský",206,0,"f","026 03","B","50434101f","50434101026 03",null,"50434101026 03B","Slovenská kanoistikafBodmena trénerovi Pavol Ostrovský","50434101fB"]
["50434101",{"$f":"VLOOKUP(A166,Adr!A:B,2,FALSE)","v":"Slovenská kanoistika"},"odmena trénerovi Peter Mráz",411,0,"f","026 03","B","50434101f","50434101026 03",null,"50434101026 03B","Slovenská kanoistikafBodmena trénerovi Peter Mráz","50434101fB"]
["50434101",{"$f":"VLOOKUP(A167,Adr!A:B,2,FALSE)","v":"Slovenská kanoistika"},"odmena trénerovi Peter Murcko",1233,0,"f","026 03","B","50434101f","50434101026 03",null,"50434101026 03B","Slovenská kanoistikafBodmena trénerovi Peter Murcko","50434101fB"]
["50434101",{"$f":"VLOOKUP(A168,Adr!A:B,2,FALSE)","v":"Slovenská kanoistika"},"odmena trénerovi Radoslav Štaffen",308,0,"f","026 03","B","50434101f","50434101026 03",null,"50434101026 03B","Slovenská kanoistikafBodmena trénerovi Radoslav Štaffen","50434101fB"]
["50434101",{"$f":"VLOOKUP(A169,Adr!A:B,2,FALSE)","v":"Slovenská kanoistika"},"odmena trénerovi Vladimír Chrapčiak",411,0,"f","026 03","B","50434101f","50434101026 03",null,"50434101026 03B","Slovenská kanoistikafBodmena trénerovi Vladimír Chrapčiak","50434101fB"]
["50434101",{"$f":"VLOOKUP(A170,Adr!A:B,2,FALSE)","v":"Slovenská kanoistika"},"Plnenie úloh verejného záujmu v športe - podpora a rozvoj športu mládeže v kanoistike",1341321,0,"f","026 03","B","50434101f","50434101026 03",null,"50434101026 03B","Slovenská kanoistikafBPlnenie úloh verejného záujmu v športe - podpora a rozvoj športu mládeže v kanoistike","50434101fB"]
["30853427",{"$f":"VLOOKUP(A171,Adr!A:B,2,FALSE)","v":"Slovenská Lakrosová Federácia"},"lakros - bežné transfery",32301,0,"a","026 02","B","30853427a","30853427026 02","lakros","30853427026 02B","Slovenská Lakrosová FederáciaaBlakros - bežné transfery","30853427aB"]
["36075809",{"$f":"VLOOKUP(A172,Adr!A:B,2,FALSE)","v":"Slovenská lukostrelecká asociácia 3D"},"rozvoj športov, ktoré nie sú uznanými podľa zákona č. 440/2015 Z. z.",28000,0,"g","026 03","B","36075809g","36075809026 03",null,"36075809026 03B","Slovenská lukostrelecká asociácia 3DgBrozvoj športov, ktoré nie sú uznanými podľa zákona č. 440/2015 Z. z.","36075809gB"]
["30813883",{"$f":"VLOOKUP(A173,Adr!A:B,2,FALSE)","v":"Slovenská motocyklová federácia"},"motocyklový šport - bežné transfery",161157,0,"a","026 02","B","30813883a","30813883026 02","motocyklový šport","30813883026 02B","Slovenská motocyklová federáciaaBmotocyklový šport - bežné transfery","30813883aB"]
["30813883",{"$f":"VLOOKUP(A174,Adr!A:B,2,FALSE)","v":"Slovenská motocyklová federácia"},"Kohút Tomáš",5000,0,"d","026 03","B","30813883d","30813883026 03",null,"30813883026 03B","Slovenská motocyklová federáciadBKohút Tomáš","30813883dB"]
["30813883",{"$f":"VLOOKUP(A175,Adr!A:B,2,FALSE)","v":"Slovenská motocyklová federácia"},"Svitko Štefan",20000,0,"d","026 03","B","30813883d","30813883026 03",null,"30813883026 03B","Slovenská motocyklová federáciadBSvitko Štefan","30813883dB"]
["30813883",{"$f":"VLOOKUP(A176,Adr!A:B,2,FALSE)","v":"Slovenská motocyklová federácia"},"Vaculík Martin",20000,0,"d","026 03","B","30813883d","30813883026 03",null,"30813883026 03B","Slovenská motocyklová federáciadBVaculík Martin","30813883dB"]
["34057587",{"$f":"VLOOKUP(A177,Adr!A:B,2,FALSE)","v":"Slovenská Muaythai asociácia"},"thajský box - bežné transfery",38225,0,"a","026 02","B","34057587a","34057587026 02","thajský box","34057587026 02B","Slovenská Muaythai asociáciaaBthajský box - bežné transfery","34057587aB"]
["34057587",{"$f":"VLOOKUP(A178,Adr!A:B,2,FALSE)","v":"Slovenská Muaythai asociácia"},"Chochlíková Monika",20000,0,"d","026 03","B","34057587d","34057587026 03",null,"34057587026 03B","Slovenská Muaythai asociáciadBChochlíková Monika","34057587dB"]
["30806887",{"$f":"VLOOKUP(A179,Adr!A:B,2,FALSE)","v":"Slovenská nohejbalová asociácia"},"odmena trénerovi Patrik Perun",525,0,"f","026 03","B","30806887f","30806887026 03",null,"30806887026 03B","Slovenská nohejbalová asociáciafBodmena trénerovi Patrik Perun","30806887fB"]
["30806887",{"$f":"VLOOKUP(A180,Adr!A:B,2,FALSE)","v":"Slovenská nohejbalová asociácia"},"rozvoj športov, ktoré nie sú uznanými podľa zákona č. 440/2015 Z. z.",28400,0,"g","026 03","B","30806887g","30806887026 03",null,"30806887026 03B","Slovenská nohejbalová asociáciagBrozvoj športov, ktoré nie sú uznanými podľa zákona č. 440/2015 Z. z.","30806887gB"]
["36068764",{"$f":"VLOOKUP(A181,Adr!A:B,2,FALSE)","v":"Slovenská plavecká federácia"},"plavecké športy - bežné transfery",3609730,0,"a","026 02","B","36068764a","36068764026 02","plavecké športy","36068764026 02B","Slovenská plavecká federáciaaBplavecké športy - bežné transfery","36068764aB"]
["36068764",{"$f":"VLOOKUP(A182,Adr!A:B,2,FALSE)","v":"Slovenská plavecká federácia"},"Dikács Bence",10000,0,"d","026 03","B","36068764d","36068764026 03",null,"36068764026 03B","Slovenská plavecká federáciadBDikács Bence","36068764dB"]
["36068764",{"$f":"VLOOKUP(A183,Adr!A:B,2,FALSE)","v":"Slovenská plavecká federácia"},"Diky Chiara",5000,0,"d","026 03","B","36068764d","36068764026 03",null,"36068764026 03B","Slovenská plavecká federáciadBDiky Chiara","36068764dB"]
["36068764",{"$f":"VLOOKUP(A184,Adr!A:B,2,FALSE)","v":"Slovenská plavecká federácia"},"Folťan Patrik",12500,0,"d","026 03","B","36068764d","36068764026 03",null,"36068764026 03B","Slovenská plavecká federáciadBFolťan Patrik","36068764dB"]
["36068764",{"$f":"VLOOKUP(A185,Adr!A:B,2,FALSE)","v":"Slovenská plavecká federácia"},"Nagy Richard",20000,0,"d","026 03","B","36068764d","36068764026 03",null,"36068764026 03B","Slovenská plavecká federáciadBNagy Richard","36068764dB"]
["36068764",{"$f":"VLOOKUP(A186,Adr!A:B,2,FALSE)","v":"Slovenská plavecká federácia"},"Podmaníková Andrea",12500,0,"d","026 03","B","36068764d","36068764026 03",null,"36068764026 03B","Slovenská plavecká federáciadBPodmaníková Andrea","36068764dB"]
["36068764",{"$f":"VLOOKUP(A187,Adr!A:B,2,FALSE)","v":"Slovenská plavecká federácia"},"Slušná Lilian",18000,0,"d","026 03","B","36068764d","36068764026 03",null,"36068764026 03B","Slovenská plavecká federáciadBSlušná Lilian","36068764dB"]
["36068764",{"$f":"VLOOKUP(A188,Adr!A:B,2,FALSE)","v":"Slovenská plavecká federácia"},"štafeta - plávanie",10000,0,"d","026 03","B","36068764d","36068764026 03",null,"36068764026 03B","Slovenská plavecká federáciadBštafeta - plávanie","36068764dB"]
["36068764",{"$f":"VLOOKUP(A189,Adr!A:B,2,FALSE)","v":"Slovenská plavecká federácia"},"Trníková Nikoleta",7500,0,"d","026 03","B","36068764d","36068764026 03",null,"36068764026 03B","Slovenská plavecká federáciadBTrníková Nikoleta","36068764dB"]
["36068764",{"$f":"VLOOKUP(A190,Adr!A:B,2,FALSE)","v":"Slovenská plavecká federácia"},"Plnenie úloh verejného záujmu v športe - podpora a rozvoj športu mládeže v plávaní",1086975,0,"f","026 03","B","36068764f","36068764026 03",null,"36068764026 03B","Slovenská plavecká federáciafBPlnenie úloh verejného záujmu v športe - podpora a rozvoj športu mládeže v plávaní","36068764fB"]
["36068764",{"$f":"VLOOKUP(A191,Adr!A:B,2,FALSE)","v":"Slovenská plavecká federácia"},"Zabezpečenie finále školských športových súťaží (Šamorín 2023) v súťažiach kategórie \"A\" v plávaní a vodnom póle základných škôl",20150,0,"j","026 01","B","36068764j","36068764026 01",null,"36068764026 01B","Slovenská plavecká federáciajBZabezpečenie finále školských športových súťaží (Šamorín 2023) v súťažiach kategórie \"A\" v plávaní a vodnom póle základných škôl","36068764jB"]
["30851459",{"$f":"VLOOKUP(A192,Adr!A:B,2,FALSE)","v":"Slovenská rugbyová únia"},"rugby - bežné transfery",48541,0,"a","026 02","B","30851459a","30851459026 02","rugby","30851459026 02B","Slovenská rugbyová úniaaBrugby - bežné transfery","30851459aB"]
["37998919",{"$f":"VLOOKUP(A193,Adr!A:B,2,FALSE)","v":"Slovenská skialpinistická asociácia"},"skialpinizmus - bežné transfery",32301,0,"a","026 02","B","37998919a","37998919026 02","skialpinizmus","37998919026 02B","Slovenská skialpinistická asociáciaaBskialpinizmus - bežné transfery","37998919aB"]
["37998919",{"$f":"VLOOKUP(A194,Adr!A:B,2,FALSE)","v":"Slovenská skialpinistická asociácia"},"Jagerčíková Marianna",30000,0,"d","026 03","B",{"$f":"A194&F194","v":"37998919d"},{"$f":"A194&G194","v":"37998919026 03"},null,{"$f":"A194&G194&H194","v":"37998919026 03B"},{"$f":"B194&F194&H194&C194","v":"Slovenská skialpinistická asociáciadBJagerčíková Marianna"},{"$f":"+I194&H194","v":"37998919dB"}]
["17316723",{"$f":"VLOOKUP(A195,Adr!A:B,2,FALSE)","v":"Slovenská softballová asociácia"},"softbal - bežné transfery",54532,0,"a","026 02","B","17316723a","17316723026 02","softbal","17316723026 02B","Slovenská softballová asociáciaaBsoftbal - bežné transfery","17316723aB"]
["30807018",{"$f":"VLOOKUP(A196,Adr!A:B,2,FALSE)","v":"Slovenská squashová asociácia"},"squash - bežné transfery",32301,0,"a","026 02","B","30807018a","30807018026 02","squash","30807018026 02B","Slovenská squashová asociáciaaBsquash - bežné transfery","30807018aB"]
["31745466",{"$f":"VLOOKUP(A197,Adr!A:B,2,FALSE)","v":"Slovenská triatlonová únia"},"triatlon - bežné transfery",350540,0,"a","026 02","B","31745466a","31745466026 02","triatlon","31745466026 02B","Slovenská triatlonová úniaaBtriatlon - bežné transfery","31745466aB"]
["31745466",{"$f":"VLOOKUP(A198,Adr!A:B,2,FALSE)","v":"Slovenská triatlonová únia"},"Kubo Ondrej",12500,0,"d","026 03","B","31745466d","31745466026 03",null,"31745466026 03B","Slovenská triatlonová úniadBKubo Ondrej","31745466dB"]
["31745466",{"$f":"VLOOKUP(A199,Adr!A:B,2,FALSE)","v":"Slovenská triatlonová únia"},"Kuriačková Ivana",5000,0,"d","026 03","B","31745466d","31745466026 03",null,"31745466026 03B","Slovenská triatlonová úniadBKuriačková Ivana","31745466dB"]
["31745466",{"$f":"VLOOKUP(A200,Adr!A:B,2,FALSE)","v":"Slovenská triatlonová únia"},"štafeta - triatlon",7500,0,"d","026 03","B","31745466d","31745466026 03",null,"31745466026 03B","Slovenská triatlonová úniadBštafeta - triatlon","31745466dB"]
["31745466",{"$f":"VLOOKUP(A201,Adr!A:B,2,FALSE)","v":"Slovenská triatlonová únia"},"Varga Richard",12500,0,"d","026 03","B","31745466d","31745466026 03",null,"31745466026 03B","Slovenská triatlonová úniadBVarga Richard","31745466dB"]
["31745466",{"$f":"VLOOKUP(A202,Adr!A:B,2,FALSE)","v":"Slovenská triatlonová únia"},"Vráblová Margaréta",12500,0,"d","026 03","B","31745466d","31745466026 03",null,"31745466026 03B","Slovenská triatlonová úniadBVráblová Margaréta","31745466dB"]
["52033431",{"$f":"VLOOKUP(A203,Adr!A:B,2,FALSE)","v":"Slovenská univerzitná hokejová asociácia"},"Aktivity a úlohy v oblasti univerzitného športu v roku 2023",125000,0,"j","026 03","B","52033431j","52033431026 03",null,"52033431026 03B","Slovenská univerzitná hokejová asociáciajBAktivity a úlohy v oblasti univerzitného športu v roku 2023","52033431jB"]
["00688819",{"$f":"VLOOKUP(A204,Adr!A:B,2,FALSE)","v":"Slovenská volejbalová federácia"},"volejbal - bežné transfery",2070700,0,"a","026 02","B","00688819a","00688819026 02","volejbal","00688819026 02B","Slovenská volejbalová federáciaaBvolejbal - bežné transfery","00688819aB"]
["00688819",{"$f":"VLOOKUP(A205,Adr!A:B,2,FALSE)","v":"Slovenská volejbalová federácia"},"Zabezpečenie finále školských športových súťaží (Poprad 2023) v súťažiach kategórie \"A\" vo volejbale stredných škôl",13900,0,"j","026 01","B","00688819j","00688819026 01",null,"00688819026 01B","Slovenská volejbalová federáciajBZabezpečenie finále školských športových súťaží (Poprad 2023) v súťažiach kategórie \"A\" vo volejbale stredných škôl","00688819jB"]
["00688819",{"$f":"VLOOKUP(A206,Adr!A:B,2,FALSE)","v":"Slovenská volejbalová federácia"},"Zabezpečenie finále školských športových súťaží (Šamorín 2023) v súťažiach kategórie \"A\" vo volejbale základných škôl",24620,0,"j","026 01","B","00688819j","00688819026 01",null,"00688819026 01B","Slovenská volejbalová federáciajBZabezpečenie finále školských športových súťaží (Šamorín 2023) v súťažiach kategórie \"A\" vo volejbale základných škôl","00688819jB"]
["00688819",{"$f":"VLOOKUP(A207,Adr!A:B,2,FALSE)","v":"Slovenská volejbalová federácia"},"Zabezpečenie finále školských športových súťaží (Šamorín 2023) v súťažiach kategórie \"A\" vo vybíjanej základných škôl",22150,0,"j","026 01","B","00688819j","00688819026 01",null,"00688819026 01B","Slovenská volejbalová federáciajBZabezpečenie finále školských športových súťaží (Šamorín 2023) v súťažiach kategórie \"A\" vo vybíjanej základných škôl","00688819jB"]
["36063835",{"$f":"VLOOKUP(A208,Adr!A:B,2,FALSE)","v":"Slovenský atletický zväz"},"atletika - bežné transfery",3288255,0,"a","026 02","B","36063835a","36063835026 02","atletika","36063835026 02B","Slovenský atletický zväzaBatletika - bežné transfery","36063835aB"]
["36063835",{"$f":"VLOOKUP(A209,Adr!A:B,2,FALSE)","v":"Slovenský atletický zväz"},"Baluch Matej",10000,0,"d","026 03","B","36063835d","36063835026 03",null,"36063835026 03B","Slovenský atletický zväzdBBaluch Matej","36063835dB"]
["36063835",{"$f":"VLOOKUP(A210,Adr!A:B,2,FALSE)","v":"Slovenský atletický zväz"},"Bátovský Jakub",5000,0,"d","026 03","B","36063835d","36063835026 03",null,"36063835026 03B","Slovenský atletický zväzdBBátovský Jakub","36063835dB"]
["36063835",{"$f":"VLOOKUP(A211,Adr!A:B,2,FALSE)","v":"Slovenský atletický zväz"},"Forster Viktória",12500,0,"d","026 03","B","36063835d","36063835026 03",null,"36063835026 03B","Slovenský atletický zväzdBForster Viktória","36063835dB"]
["36063835",{"$f":"VLOOKUP(A212,Adr!A:B,2,FALSE)","v":"Slovenský atletický zväz"},"Fraňo Peter",20000,0,"d","026 03","B","36063835d","36063835026 03",null,"36063835026 03B","Slovenský atletický zväzdBFraňo Peter","36063835dB"]
["36063835",{"$f":"VLOOKUP(A213,Adr!A:B,2,FALSE)","v":"Slovenský atletický zväz"},"Gajanová Gabriela",7500,0,"d","026 03","B","36063835d","36063835026 03",null,"36063835026 03B","Slovenský atletický zväzdBGajanová Gabriela","36063835dB"]
["36063835",{"$f":"VLOOKUP(A214,Adr!A:B,2,FALSE)","v":"Slovenský atletický zväz"},"Hrašnová Martina",15000,0,"d","026 03","B","36063835d","36063835026 03",null,"36063835026 03B","Slovenský atletický zväzdBHrašnová Martina","36063835dB"]
["36063835",{"$f":"VLOOKUP(A215,Adr!A:B,2,FALSE)","v":"Slovenský atletický zväz"},"Kurucová Terézia",5000,0,"d","026 03","B","36063835d","36063835026 03",null,"36063835026 03B","Slovenský atletický zväzdBKurucová Terézia","36063835dB"]
["36063835",{"$f":"VLOOKUP(A216,Adr!A:B,2,FALSE)","v":"Slovenský atletický zväz"},"Morvay Michal",15000,0,"d","026 03","B","36063835d","36063835026 03",null,"36063835026 03B","Slovenský atletický zväzdBMorvay Michal","36063835dB"]
["36063835",{"$f":"VLOOKUP(A217,Adr!A:B,2,FALSE)","v":"Slovenský atletický zväz"},"Slezáková Rebecca",5000,0,"d","026 03","B","36063835d","36063835026 03",null,"36063835026 03B","Slovenský atletický zväzdBSlezáková Rebecca","36063835dB"]
["36063835",{"$f":"VLOOKUP(A218,Adr!A:B,2,FALSE)","v":"Slovenský atletický zväz"},"Šula Karel",12500,0,"d","026 03","B","36063835d","36063835026 03",null,"36063835026 03B","Slovenský atletický zväzdBŠula Karel","36063835dB"]
["36063835",{"$f":"VLOOKUP(A219,Adr!A:B,2,FALSE)","v":"Slovenský atletický zväz"},"Úradník Miroslav",15000,0,"d","026 03","B","36063835d","36063835026 03",null,"36063835026 03B","Slovenský atletický zväzdBÚradník Miroslav","36063835dB"]
["36063835",{"$f":"VLOOKUP(A220,Adr!A:B,2,FALSE)","v":"Slovenský atletický zväz"},"Volko Ján",40000,0,"d","026 03","B","36063835d","36063835026 03",null,"36063835026 03B","Slovenský atletický zväzdBVolko Ján","36063835dB"]
["36063835",{"$f":"VLOOKUP(A221,Adr!A:B,2,FALSE)","v":"Slovenský atletický zväz"},"Zapletalová Emma",35000,0,"d","026 03","B","36063835d","36063835026 03",null,"36063835026 03B","Slovenský atletický zväzdBZapletalová Emma","36063835dB"]
["36063835",{"$f":"VLOOKUP(A222,Adr!A:B,2,FALSE)","v":"Slovenský atletický zväz"},"Atletický míting P-T-S",50000,0,"e","026 03","B","36063835e","36063835026 03",null,"36063835026 03B","Slovenský atletický zväzeBAtletický míting P-T-S","36063835eB"]
["36063835",{"$f":"VLOOKUP(A223,Adr!A:B,2,FALSE)","v":"Slovenský atletický zväz"},"odmena trénerovi Ján Sedlák",941,0,"f","026 03","B","36063835f","36063835026 03",null,"36063835026 03B","Slovenský atletický zväzfBodmena trénerovi Ján Sedlák","36063835fB"]
["36063835",{"$f":"VLOOKUP(A224,Adr!A:B,2,FALSE)","v":"Slovenský atletický zväz"},"odmena trénerovi Lukáš Kotala",1412,0,"f","026 03","B","36063835f","36063835026 03",null,"36063835026 03B","Slovenský atletický zväzfBodmena trénerovi Lukáš Kotala","36063835fB"]
["36063835",{"$f":"VLOOKUP(A225,Adr!A:B,2,FALSE)","v":"Slovenský atletický zväz"},"Zabezpečenie finále školských športových súťaží (Šamorín 2023) v súťažiach kategórie \"A\" v atletike základných škôl",20150,0,"j","026 01","B","36063835j","36063835026 01",null,"36063835026 01B","Slovenský atletický zväzjBZabezpečenie finále školských športových súťaží (Šamorín 2023) v súťažiach kategórie \"A\" v atletike základných škôl","36063835jB"]
["31753825",{"$f":"VLOOKUP(A226,Adr!A:B,2,FALSE)","v":"Slovenský biliardový zväz"},"biliard - bežné transfery",35444,0,"a","026 02","B","31753825a","31753825026 02","biliard","31753825026 02B","Slovenský biliardový zväzaBbiliard - bežné transfery","31753825aB"]
["36128147",{"$f":"VLOOKUP(A227,Adr!A:B,2,FALSE)","v":"Slovenský bowlingový zväz"},"bowling - bežné transfery",32301,0,"a","026 02","B","36128147a","36128147026 02","bowling","36128147026 02B","Slovenský bowlingový zväzaBbowling - bežné transfery","36128147aB"]
["31770908",{"$f":"VLOOKUP(A228,Adr!A:B,2,FALSE)","v":"Slovenský bridžový zväz"},"bridž - bežné transfery",32301,0,"a","026 02","B","31770908a","31770908026 02","bridž","31770908026 02B","Slovenský bridžový zväzaBbridž - bežné transfery","31770908aB"]
["37841866",{"$f":"VLOOKUP(A229,Adr!A:B,2,FALSE)","v":"Slovenský curlingový zväz"},"curling - bežné transfery",51039,0,"a","026 02","B","37841866a","37841866026 02","curling","37841866026 02B","Slovenský curlingový zväzaBcurling - bežné transfery","37841866aB"]
["34009388",{"$f":"VLOOKUP(A230,Adr!A:B,2,FALSE)","v":"Slovenský cykloklub"},"značenie cykloturistických trás",132600,0,"h","026 01","B","34009388h","34009388026 01",null,"34009388026 01B","Slovenský cykloklubhBznačenie cykloturistických trás","34009388hB"]
["00687308",{"$f":"VLOOKUP(A231,Adr!A:B,2,FALSE)","v":"Slovenský futbalový zväz"},"futbal - bežné transfery",13262864,0,"a","026 02","B","00687308a","00687308026 02","futbal","00687308026 02B","Slovenský futbalový zväzaBfutbal - bežné transfery","00687308aB"]
["00687308",{"$f":"VLOOKUP(A232,Adr!A:B,2,FALSE)","v":"Slovenský futbalový zväz"},"futbal - kapitálové transfery",465000,0,"a","026 02","K","00687308a","00687308026 02","futbal","00687308026 02K","Slovenský futbalový zväzaKfutbal - kapitálové transfery","00687308aK"]
["00687308",{"$f":"VLOOKUP(A233,Adr!A:B,2,FALSE)","v":"Slovenský futbalový zväz"},"Zabezpečenie finále školských športových súťaží (Šamorín 2023) v súťažiach kategórie \"A\" vo futbale základných škôl",29650,0,"j","026 01","B","00687308j","00687308026 01",null,"00687308026 01B","Slovenský futbalový zväzjBZabezpečenie finále školských športových súťaží (Šamorín 2023) v súťažiach kategórie \"A\" vo futbale základných škôl","00687308jB"]
["00687308",{"$f":"VLOOKUP(A234,Adr!A:B,2,FALSE)","v":"Slovenský futbalový zväz"},"Zabezpečenie školských športových súťaží 2023 v ostatných súťažiach kategórie \"A\" vo futbale (McDonald’s Cup) základných škôl",10000,0,"j","026 01","B","00687308j","00687308026 01",null,"00687308026 01B","Slovenský futbalový zväzjBZabezpečenie školských športových súťaží 2023 v ostatných súťažiach kategórie \"A\" vo futbale (McDonald’s Cup) základných škôl","00687308jB"]
["00586455",{"$f":"VLOOKUP(A235,Adr!A:B,2,FALSE)","v":"Slovenský horolezecký spolok JAMES"},"horolezectvo - bežné transfery",118374,0,"a","026 02","B","00586455a","00586455026 02","horolezectvo","00586455026 02B","Slovenský horolezecký spolok JAMESaBhorolezectvo - bežné transfery","00586455aB"]
["00586455",{"$f":"VLOOKUP(A236,Adr!A:B,2,FALSE)","v":"Slovenský horolezecký spolok JAMES"},"športové lezenie - bežné transfery",60258,0,"a","026 02","B","00586455a","00586455026 02","športové lezenie","00586455026 02B","Slovenský horolezecký spolok JAMESaBšportové lezenie - bežné transfery","00586455aB"]
["00586455",{"$f":"VLOOKUP(A237,Adr!A:B,2,FALSE)","v":"Slovenský horolezecký spolok JAMES"},"Buršíková Martina",12500,0,"d","026 03","B","00586455d","00586455026 03",null,"00586455026 03B","Slovenský horolezecký spolok JAMESdBBuršíková Martina","00586455dB"]
["00586455",{"$f":"VLOOKUP(A238,Adr!A:B,2,FALSE)","v":"Slovenský horolezecký spolok JAMES"},"Michalková Lujza",7500,0,"d","026 03","B","00586455d","00586455026 03",null,"00586455026 03B","Slovenský horolezecký spolok JAMESdBMichalková Lujza","00586455dB"]
["31771688",{"$f":"VLOOKUP(A239,Adr!A:B,2,FALSE)","v":"Slovenský kolkársky zväz"},"Plnenie úloh verejného záujmu v športe - rozvoj športu",25020,0,"f","026 03","B","31771688f","31771688026 03",null,"31771688026 03B","Slovenský kolkársky zväzfBPlnenie úloh verejného záujmu v športe - rozvoj športu","31771688fB"]
["31805540",{"$f":"VLOOKUP(A240,Adr!A:B,2,FALSE)","v":"Slovenský krasokorčuliarsky zväz"},"krasokorčuľovanie - bežné transfery",267330,0,"a","026 02","B","31805540a","31805540026 02","krasokorčuľovanie","31805540026 02B","Slovenský krasokorčuliarsky zväzaBkrasokorčuľovanie - bežné transfery","31805540aB"]
["30793009",{"$f":"VLOOKUP(A241,Adr!A:B,2,FALSE)","v":"Slovenský lukostrelecký zväz"},"lukostreľba - bežné transfery",178053,0,"a","026 02","B","30793009a","30793009026 02","lukostreľba","30793009026 02B","Slovenský lukostrelecký zväzaBlukostreľba - bežné transfery","30793009aB"]
["30793009",{"$f":"VLOOKUP(A242,Adr!A:B,2,FALSE)","v":"Slovenský lukostrelecký zväz"},"Baránková Denisa",35300,0,"d","026 03","B","30793009d","30793009026 03",null,"30793009026 03B","Slovenský lukostrelecký zväzdBBaránková Denisa","30793009dB"]
["30793009",{"$f":"VLOOKUP(A243,Adr!A:B,2,FALSE)","v":"Slovenský lukostrelecký zväz"},"Bošanský Jozef",20000,0,"d","026 03","B","30793009d","30793009026 03",null,"30793009026 03B","Slovenský lukostrelecký zväzdBBošanský Jozef","30793009dB"]
["30793009",{"$f":"VLOOKUP(A244,Adr!A:B,2,FALSE)","v":"Slovenský lukostrelecký zväz"},"dvojica - terčová lukostreľba mix (dospelí)",15000,0,"d","026 03","B","30793009d","30793009026 03",null,"30793009026 03B","Slovenský lukostrelecký zväzdBdvojica - terčová lukostreľba mix (dospelí)","30793009dB"]
["30793009",{"$f":"VLOOKUP(A245,Adr!A:B,2,FALSE)","v":"Slovenský lukostrelecký zväz"},"dvojica - terčová lukostreľba mix (juniori)",15000,0,"d","026 03","B","30793009d","30793009026 03",null,"30793009026 03B","Slovenský lukostrelecký zväzdBdvojica - terčová lukostreľba mix (juniori)","30793009dB"]
["30793009",{"$f":"VLOOKUP(A246,Adr!A:B,2,FALSE)","v":"Slovenský lukostrelecký zväz"},"Málek Peter",5000,0,"d","026 03","B","30793009d","30793009026 03",null,"30793009026 03B","Slovenský lukostrelecký zväzdBMálek Peter","30793009dB"]
["00677604",{"$f":"VLOOKUP(A247,Adr!A:B,2,FALSE)","v":"Slovenský národný aeroklub generála Milana Rastislava Štefánika"},"letecké športy - bežné transfery",186702,0,"a","026 02","B","00677604a","00677604026 02","letecké športy","00677604026 02B","Slovenský národný aeroklub generála Milana Rastislava ŠtefánikaaBletecké športy - bežné transfery","00677604aB"]
["30811082",{"$f":"VLOOKUP(A248,Adr!A:B,2,FALSE)","v":"Slovenský olympijský a športový výbor"},"činnosť Slovenského olympijského a športového výboru",1597543,0,"b","026 01","B","30811082b","30811082026 01",null,"30811082026 01B","Slovenský olympijský a športový výborbBčinnosť Slovenského olympijského a športového výboru","30811082bB"]
["30811082",{"$f":"VLOOKUP(A249,Adr!A:B,2,FALSE)","v":"Slovenský olympijský a športový výbor"},"zabezpečenia Slovenského domu na Hrách XXXIII. olympiády 2024 v Paríži",450000,0,"e","026 03","B","30811082e","30811082026 03",null,"30811082026 03B","Slovenský olympijský a športový výboreBzabezpečenia Slovenského domu na Hrách XXXIII. olympiády 2024 v Paríži","30811082eB"]
["30811082",{"$f":"VLOOKUP(A250,Adr!A:B,2,FALSE)","v":"Slovenský olympijský a športový výbor"},"zabezpečenie účasti športovej reprezentácie SR na letný EYOF Maribor 2023",110000,0,"e","026 03","B","30811082e","30811082026 03",null,"30811082026 03B","Slovenský olympijský a športový výboreBzabezpečenie účasti športovej reprezentácie SR na letný EYOF Maribor 2023","30811082eB"]
["30811082",{"$f":"VLOOKUP(A251,Adr!A:B,2,FALSE)","v":"Slovenský olympijský a športový výbor"},"zabezpečenie účasti športovej reprezentácie SR na XXXII. letných olympijských hrách v Paríži 2024",200000,0,"e","026 03","B","30811082e","30811082026 03",null,"30811082026 03B","Slovenský olympijský a športový výboreBzabezpečenie účasti športovej reprezentácie SR na XXXII. letných olympijských hrách v Paríži 2024","30811082eB"]
["30811082",{"$f":"VLOOKUP(A252,Adr!A:B,2,FALSE)","v":"Slovenský olympijský a športový výbor"},"zabezpečenie účasti športovej reprezentácie SR na zimný EYOF Friuli 2023",100000,0,"e","026 03","B","30811082e","30811082026 03",null,"30811082026 03B","Slovenský olympijský a športový výboreBzabezpečenie účasti športovej reprezentácie SR na zimný EYOF Friuli 2023","30811082eB"]
["30811082",{"$f":"VLOOKUP(A253,Adr!A:B,2,FALSE)","v":"Slovenský olympijský a športový výbor"},"zabezpečenie účasti športovej reprezentácie SR na Zimných olympijských hrách mládeže v Gangwon 2024",78940,0,"e","026 03","B","30811082e","30811082026 03",null,"30811082026 03B","Slovenský olympijský a športový výboreBzabezpečenie účasti športovej reprezentácie SR na Zimných olympijských hrách mládeže v Gangwon 2024","30811082eB"]
["30811082",{"$f":"VLOOKUP(A254,Adr!A:B,2,FALSE)","v":"Slovenský olympijský a športový výbor"},"Príspevok na zabezpečenie prevádzky Slovenského olympijského a športového múzea",50000,0,"f","026 03","B","30811082f","30811082026 03",null,"30811082026 03B","Slovenský olympijský a športový výborfBPríspevok na zabezpečenie prevádzky Slovenského olympijského a športového múzea","30811082fB"]
["30811082",{"$f":"VLOOKUP(A255,Adr!A:B,2,FALSE)","v":"Slovenský olympijský a športový výbor"},"Olympijský odznak všestrannosti",125000,0,"j","026 01","B","30811082j","30811082026 01",null,"30811082026 01B","Slovenský olympijský a športový výborjBOlympijský odznak všestrannosti","30811082jB"]
["31745661",{"$f":"VLOOKUP(A256,Adr!A:B,2,FALSE)","v":"Slovenský paralympijský výbor"},"činnosť Slovenského paralympijského výboru",1099836,0,"c","026 03","B","31745661c","31745661026 03",null,"31745661026 03B","Slovenský paralympijský výborcBčinnosť Slovenského paralympijského výboru","31745661cB"]
["31745661",{"$f":"VLOOKUP(A257,Adr!A:B,2,FALSE)","v":"Slovenský paralympijský výbor"},"Blattnerová Tatiana",30500,0,"d","026 03","B","31745661d","31745661026 03",null,"31745661026 03B","Slovenský paralympijský výbordBBlattnerová Tatiana","31745661dB"]
["31745661",{"$f":"VLOOKUP(A258,Adr!A:B,2,FALSE)","v":"Slovenský paralympijský výbor"},"Čuchran Ladislav",25000,0,"d","026 03","B",{"$f":"A258&F258","v":"31745661d"},{"$f":"A258&G258","v":"31745661026 03"},null,{"$f":"A258&G258&H258","v":"31745661026 03B"},{"$f":"B258&F258&H258&C258","v":"Slovenský paralympijský výbordBČuchran Ladislav"},{"$f":"+I258&H258","v":"31745661dB"}]
["31745661",{"$f":"VLOOKUP(A259,Adr!A:B,2,FALSE)","v":"Slovenský paralympijský výbor"},"Kopčík Štefan",12500,0,"d","026 03","B","31745661d","31745661026 03",null,"31745661026 03B","Slovenský paralympijský výbordBKopčík Štefan","31745661dB"]
["31745661",{"$f":"VLOOKUP(A260,Adr!A:B,2,FALSE)","v":"Slovenský paralympijský výbor"},"Kuřeja Marián",40000,0,"d","026 03","B","31745661d","31745661026 03",null,"31745661026 03B","Slovenský paralympijský výbordBKuřeja Marián","31745661dB"]
["31745661",{"$f":"VLOOKUP(A261,Adr!A:B,2,FALSE)","v":"Slovenský paralympijský výbor"},"Laczkó Dušan",25000,0,"d","026 03","B","31745661d","31745661026 03",null,"31745661026 03B","Slovenský paralympijský výbordBLaczkó Dušan","31745661dB"]
["31745661",{"$f":"VLOOKUP(A262,Adr!A:B,2,FALSE)","v":"Slovenský paralympijský výbor"},"Malenovský Radoslav",31000,0,"d","026 03","B","31745661d","31745661026 03",null,"31745661026 03B","Slovenský paralympijský výbordBMalenovský Radoslav","31745661dB"]
["31745661",{"$f":"VLOOKUP(A263,Adr!A:B,2,FALSE)","v":"Slovenský paralympijský výbor"},"Marinov Filip",31000,0,"d","026 03","B","31745661d","31745661026 03",null,"31745661026 03B","Slovenský paralympijský výbordBMarinov Filip","31745661dB"]
["31745661",{"$f":"VLOOKUP(A264,Adr!A:B,2,FALSE)","v":"Slovenský paralympijský výbor"},"Vadovičová Veronika",60000,0,"d","026 03","B","31745661d","31745661026 03",null,"31745661026 03B","Slovenský paralympijský výbordBVadovičová Veronika","31745661dB"]
["31745661",{"$f":"VLOOKUP(A265,Adr!A:B,2,FALSE)","v":"Slovenský paralympijský výbor"},"zabezpečenie účasti športovej reprezentácie SR na XVII. letných paralympijských hrách v Paríži 2024",200000,0,"e","026 03","B","31745661e","31745661026 03",null,"31745661026 03B","Slovenský paralympijský výboreBzabezpečenie účasti športovej reprezentácie SR na XVII. letných paralympijských hrách v Paríži 2024","31745661eB"]
["31745661",{"$f":"VLOOKUP(A266,Adr!A:B,2,FALSE)","v":"Slovenský paralympijský výbor"},"odmena trénerovi Martin Makovník",490,0,"f","026 03","B","31745661f","31745661026 03",null,"31745661026 03B","Slovenský paralympijský výborfBodmena trénerovi Martin Makovník","31745661fB"]
["31745661",{"$f":"VLOOKUP(A267,Adr!A:B,2,FALSE)","v":"Slovenský paralympijský výbor"},"odmena trénerovi Roman Petrík",490,0,"f","026 03","B","31745661f","31745661026 03",null,"31745661026 03B","Slovenský paralympijský výborfBodmena trénerovi Roman Petrík","31745661fB"]
["30688060",{"$f":"VLOOKUP(A268,Adr!A:B,2,FALSE)","v":"Slovenský rýchlokorčuliarsky zväz"},"rýchlokorčuľovanie - bežné transfery",87441,0,"a","026 02","B","30688060a","30688060026 02","rýchlokorčuľovanie","30688060026 02B","Slovenský rýchlokorčuliarsky zväzaBrýchlokorčuľovanie - bežné transfery","30688060aB"]
["30806836",{"$f":"VLOOKUP(A269,Adr!A:B,2,FALSE)","v":"Slovenský stolnotenisový zväz"},"stolný tenis - bežné transfery",1648820,0,"a","026 02","B","30806836a","30806836026 02","stolný tenis","30806836026 02B","Slovenský stolnotenisový zväzaBstolný tenis - bežné transfery","30806836aB"]
["30806836",{"$f":"VLOOKUP(A270,Adr!A:B,2,FALSE)","v":"Slovenský stolnotenisový zväz"},"stolný tenis - kapitálové transfery",150000,0,"a","026 02","K","30806836a","30806836026 02","stolný tenis","30806836026 02K","Slovenský stolnotenisový zväzaKstolný tenis - kapitálové transfery","30806836aK"]
["30806836",{"$f":"VLOOKUP(A271,Adr!A:B,2,FALSE)","v":"Slovenský stolnotenisový zväz"},"Arpáš Samuel",7500,0,"d","026 03","B","30806836d","30806836026 03",null,"30806836026 03B","Slovenský stolnotenisový zväzdBArpáš Samuel","30806836dB"]
["30806836",{"$f":"VLOOKUP(A272,Adr!A:B,2,FALSE)","v":"Slovenský stolnotenisový zväz"},"Balážová Barbora",28700,0,"d","026 03","B","30806836d","30806836026 03",null,"30806836026 03B","Slovenský stolnotenisový zväzdBBalážová Barbora","30806836dB"]
["30806836",{"$f":"VLOOKUP(A273,Adr!A:B,2,FALSE)","v":"Slovenský stolnotenisový zväz"},"družstvo - dospelí - ženy",20000,0,"d","026 03","B","30806836d","30806836026 03",null,"30806836026 03B","Slovenský stolnotenisový zväzdBdružstvo - dospelí - ženy","30806836dB"]
["30806836",{"$f":"VLOOKUP(A274,Adr!A:B,2,FALSE)","v":"Slovenský stolnotenisový zväz"},"družstvo - Umax. - muži",10000,0,"d","026 03","B","30806836d","30806836026 03",null,"30806836026 03B","Slovenský stolnotenisový zväzdBdružstvo - Umax. - muži","30806836dB"]
["30806836",{"$f":"VLOOKUP(A275,Adr!A:B,2,FALSE)","v":"Slovenský stolnotenisový zväz"},"Kukuľková Tatiana",10000,0,"d","026 03","B","30806836d","30806836026 03",null,"30806836026 03B","Slovenský stolnotenisový zväzdBKukuľková Tatiana","30806836dB"]
["30806836",{"$f":"VLOOKUP(A276,Adr!A:B,2,FALSE)","v":"Slovenský stolnotenisový zväz"},"Pištej Ľubomír",23100,0,"d","026 03","B","30806836d","30806836026 03",null,"30806836026 03B","Slovenský stolnotenisový zväzdBPištej Ľubomír","30806836dB"]
["30806836",{"$f":"VLOOKUP(A277,Adr!A:B,2,FALSE)","v":"Slovenský stolnotenisový zväz"},"Wang Yang",15000,0,"d","026 03","B","30806836d","30806836026 03",null,"30806836026 03B","Slovenský stolnotenisový zväzdBWang Yang","30806836dB"]
["30806836",{"$f":"VLOOKUP(A278,Adr!A:B,2,FALSE)","v":"Slovenský stolnotenisový zväz"},"odmena trénerovi Dalibor Jahoda",2568,0,"f","026 03","B","30806836f","30806836026 03",null,"30806836026 03B","Slovenský stolnotenisový zväzfBodmena trénerovi Dalibor Jahoda","30806836fB"]
["30806836",{"$f":"VLOOKUP(A279,Adr!A:B,2,FALSE)","v":"Slovenský stolnotenisový zväz"},"Zabezpečenie finále školských športových súťaží (Šamorín 2023) v súťažiach kategórie \"A\" v stolnom tenise základných škôl",15200,0,"j","026 01","B","30806836j","30806836026 01",null,"30806836026 01B","Slovenský stolnotenisový zväzjBZabezpečenie finále školských športových súťaží (Šamorín 2023) v súťažiach kategórie \"A\" v stolnom tenise základných škôl","30806836jB"]
["00603341",{"$f":"VLOOKUP(A280,Adr!A:B,2,FALSE)","v":"SLOVENSKÝ STRELECKÝ ZVÄZ"},"streľba - bežné transfery",1161875,0,"a","026 02","B","00603341a","00603341026 02","streľba","00603341026 02B","SLOVENSKÝ STRELECKÝ ZVÄZaBstreľba - bežné transfery","00603341aB"]
["00603341",{"$f":"VLOOKUP(A281,Adr!A:B,2,FALSE)","v":"SLOVENSKÝ STRELECKÝ ZVÄZ"},"streľba - kapitálové transfery",40000,0,"a","026 02","K","00603341a","00603341026 02","streľba","00603341026 02K","SLOVENSKÝ STRELECKÝ ZVÄZaKstreľba - kapitálové transfery","00603341aK"]
["00603341",{"$f":"VLOOKUP(A282,Adr!A:B,2,FALSE)","v":"SLOVENSKÝ STRELECKÝ ZVÄZ"},"Barteková Danka",60000,0,"d","026 03","B","00603341d","00603341026 03",null,"00603341026 03B","SLOVENSKÝ STRELECKÝ ZVÄZdBBarteková Danka","00603341dB"]
["00603341",{"$f":"VLOOKUP(A283,Adr!A:B,2,FALSE)","v":"SLOVENSKÝ STRELECKÝ ZVÄZ"},"Copák Marek",12500,0,"d","026 03","B","00603341d","00603341026 03",null,"00603341026 03B","SLOVENSKÝ STRELECKÝ ZVÄZdBCopák Marek","00603341dB"]
["00603341",{"$f":"VLOOKUP(A284,Adr!A:B,2,FALSE)","v":"SLOVENSKÝ STRELECKÝ ZVÄZ"},"Demién Pešková Daniela",12500,0,"d","026 03","B","00603341d","00603341026 03",null,"00603341026 03B","SLOVENSKÝ STRELECKÝ ZVÄZdBDemién Pešková Daniela","00603341dB"]
["00603341",{"$f":"VLOOKUP(A285,Adr!A:B,2,FALSE)","v":"SLOVENSKÝ STRELECKÝ ZVÄZ"},"dvojica - skeet mix (dospelí)",10000,0,"d","026 03","B","00603341d","00603341026 03",null,"00603341026 03B","SLOVENSKÝ STRELECKÝ ZVÄZdBdvojica - skeet mix (dospelí)","00603341dB"]
["00603341",{"$f":"VLOOKUP(A286,Adr!A:B,2,FALSE)","v":"SLOVENSKÝ STRELECKÝ ZVÄZ"},"dvojica - skeet mix (juniori)",17500,0,"d","026 03","B","00603341d","00603341026 03",null,"00603341026 03B","SLOVENSKÝ STRELECKÝ ZVÄZdBdvojica - skeet mix (juniori)","00603341dB"]
["00603341",{"$f":"VLOOKUP(A287,Adr!A:B,2,FALSE)","v":"SLOVENSKÝ STRELECKÝ ZVÄZ"},"dvojica - trap mix (dospelí)",30000,0,"d","026 03","B","00603341d","00603341026 03",null,"00603341026 03B","SLOVENSKÝ STRELECKÝ ZVÄZdBdvojica - trap mix (dospelí)","00603341dB"]
["00603341",{"$f":"VLOOKUP(A288,Adr!A:B,2,FALSE)","v":"SLOVENSKÝ STRELECKÝ ZVÄZ"},"dvojica - VzPi mix (dospelí)",15000,0,"d","026 03","B","00603341d","00603341026 03",null,"00603341026 03B","SLOVENSKÝ STRELECKÝ ZVÄZdBdvojica - VzPi mix (dospelí)","00603341dB"]
["00603341",{"$f":"VLOOKUP(A289,Adr!A:B,2,FALSE)","v":"SLOVENSKÝ STRELECKÝ ZVÄZ"},"dvojica - VzPu mix (dospelí)",15000,0,"d","026 03","B","00603341d","00603341026 03",null,"00603341026 03B","SLOVENSKÝ STRELECKÝ ZVÄZdBdvojica - VzPu mix (dospelí)","00603341dB"]
["00603341",{"$f":"VLOOKUP(A290,Adr!A:B,2,FALSE)","v":"SLOVENSKÝ STRELECKÝ ZVÄZ"},"dvojica - VzPu mix (juniori)",12500,0,"d","026 03","B","00603341d","00603341026 03",null,"00603341026 03B","SLOVENSKÝ STRELECKÝ ZVÄZdBdvojica - VzPu mix (juniori)","00603341dB"]
["00603341",{"$f":"VLOOKUP(A291,Adr!A:B,2,FALSE)","v":"SLOVENSKÝ STRELECKÝ ZVÄZ"},"Filip Lukáš",12500,0,"d","026 03","B","00603341d","00603341026 03",null,"00603341026 03B","SLOVENSKÝ STRELECKÝ ZVÄZdBFilip Lukáš","00603341dB"]
["00603341",{"$f":"VLOOKUP(A292,Adr!A:B,2,FALSE)","v":"SLOVENSKÝ STRELECKÝ ZVÄZ"},"Hocková Miroslava",10000,0,"d","026 03","B","00603341d","00603341026 03",null,"00603341026 03B","SLOVENSKÝ STRELECKÝ ZVÄZdBHocková Miroslava","00603341dB"]
["00603341",{"$f":"VLOOKUP(A293,Adr!A:B,2,FALSE)","v":"SLOVENSKÝ STRELECKÝ ZVÄZ"},"Hocková Vanesa",39900,0,"d","026 03","B","00603341d","00603341026 03",null,"00603341026 03B","SLOVENSKÝ STRELECKÝ ZVÄZdBHocková Vanesa","00603341dB"]
["00603341",{"$f":"VLOOKUP(A294,Adr!A:B,2,FALSE)","v":"SLOVENSKÝ STRELECKÝ ZVÄZ"},"Holko Ondrej",20000,0,"d","026 03","B","00603341d","00603341026 03",null,"00603341026 03B","SLOVENSKÝ STRELECKÝ ZVÄZdBHolko Ondrej","00603341dB"]
["00603341",{"$f":"VLOOKUP(A295,Adr!A:B,2,FALSE)","v":"SLOVENSKÝ STRELECKÝ ZVÄZ"},"Hruška Daniel",7500,0,"d","026 03","B","00603341d","00603341026 03",null,"00603341026 03B","SLOVENSKÝ STRELECKÝ ZVÄZdBHruška Daniel","00603341dB"]
["00603341",{"$f":"VLOOKUP(A296,Adr!A:B,2,FALSE)","v":"SLOVENSKÝ STRELECKÝ ZVÄZ"},"Jány Patrik",44300,0,"d","026 03","B","00603341d","00603341026 03",null,"00603341026 03B","SLOVENSKÝ STRELECKÝ ZVÄZdBJány Patrik","00603341dB"]
["00603341",{"$f":"VLOOKUP(A297,Adr!A:B,2,FALSE)","v":"SLOVENSKÝ STRELECKÝ ZVÄZ"},"Jány Patrik - kapitálové výdavky",4000,0,"d","026 03","K","00603341d","00603341026 03",null,"00603341026 03K","SLOVENSKÝ STRELECKÝ ZVÄZdKJány Patrik - kapitálové výdavky","00603341dK"]
["00603341",{"$f":"VLOOKUP(A298,Adr!A:B,2,FALSE)","v":"SLOVENSKÝ STRELECKÝ ZVÄZ"},"Kortišová Emma",10000,0,"d","026 03","B","00603341d","00603341026 03",null,"00603341026 03B","SLOVENSKÝ STRELECKÝ ZVÄZdBKortišová Emma","00603341dB"]
["00603341",{"$f":"VLOOKUP(A299,Adr!A:B,2,FALSE)","v":"SLOVENSKÝ STRELECKÝ ZVÄZ"},"Kostúr Marek",7500,0,"d","026 03","B","00603341d","00603341026 03",null,"00603341026 03B","SLOVENSKÝ STRELECKÝ ZVÄZdBKostúr Marek","00603341dB"]
["00603341",{"$f":"VLOOKUP(A300,Adr!A:B,2,FALSE)","v":"SLOVENSKÝ STRELECKÝ ZVÄZ"},"Kovačócy Marián",15000,0,"d","026 03","B","00603341d","00603341026 03",null,"00603341026 03B","SLOVENSKÝ STRELECKÝ ZVÄZdBKovačócy Marián","00603341dB"]
["00603341",{"$f":"VLOOKUP(A301,Adr!A:B,2,FALSE)","v":"SLOVENSKÝ STRELECKÝ ZVÄZ"},"Ňakatová Zuzana",10000,0,"d","026 03","B","00603341d","00603341026 03",null,"00603341026 03B","SLOVENSKÝ STRELECKÝ ZVÄZdBŇakatová Zuzana","00603341dB"]
["00603341",{"$f":"VLOOKUP(A302,Adr!A:B,2,FALSE)","v":"SLOVENSKÝ STRELECKÝ ZVÄZ"},"Novotná Kamila",10000,0,"d","026 03","B","00603341d","00603341026 03",null,"00603341026 03B","SLOVENSKÝ STRELECKÝ ZVÄZdBNovotná Kamila","00603341dB"]
["00603341",{"$f":"VLOOKUP(A303,Adr!A:B,2,FALSE)","v":"SLOVENSKÝ STRELECKÝ ZVÄZ"},"Rehák Štefečeková Zuzana",100000,0,"d","026 03","B","00603341d","00603341026 03",null,"00603341026 03B","SLOVENSKÝ STRELECKÝ ZVÄZdBRehák Štefečeková Zuzana","00603341dB"]
["00603341",{"$f":"VLOOKUP(A304,Adr!A:B,2,FALSE)","v":"SLOVENSKÝ STRELECKÝ ZVÄZ"},"Supeková Adela",10000,0,"d","026 03","B","00603341d","00603341026 03",null,"00603341026 03B","SLOVENSKÝ STRELECKÝ ZVÄZdBSupeková Adela","00603341dB"]
["00603341",{"$f":"VLOOKUP(A305,Adr!A:B,2,FALSE)","v":"SLOVENSKÝ STRELECKÝ ZVÄZ"},"Špotáková Jana",15000,0,"d","026 03","B","00603341d","00603341026 03",null,"00603341026 03B","SLOVENSKÝ STRELECKÝ ZVÄZdBŠpotáková Jana","00603341dB"]
["00603341",{"$f":"VLOOKUP(A306,Adr!A:B,2,FALSE)","v":"SLOVENSKÝ STRELECKÝ ZVÄZ"},"Tóth Timotej",10000,0,"d","026 03","B","00603341d","00603341026 03",null,"00603341026 03B","SLOVENSKÝ STRELECKÝ ZVÄZdBTóth Timotej","00603341dB"]
["00603341",{"$f":"VLOOKUP(A307,Adr!A:B,2,FALSE)","v":"SLOVENSKÝ STRELECKÝ ZVÄZ"},"Tužinský Juraj",41400,0,"d","026 03","B","00603341d","00603341026 03",null,"00603341026 03B","SLOVENSKÝ STRELECKÝ ZVÄZdBTužinský Juraj","00603341dB"]
["00603341",{"$f":"VLOOKUP(A308,Adr!A:B,2,FALSE)","v":"SLOVENSKÝ STRELECKÝ ZVÄZ"},"Varga Erik",10000,0,"d","026 03","B","00603341d","00603341026 03",null,"00603341026 03B","SLOVENSKÝ STRELECKÝ ZVÄZdBVarga Erik","00603341dB"]
["00603341",{"$f":"VLOOKUP(A309,Adr!A:B,2,FALSE)","v":"SLOVENSKÝ STRELECKÝ ZVÄZ"},"Zajíčková Adriana",10000,0,"d","026 03","B","00603341d","00603341026 03",null,"00603341026 03B","SLOVENSKÝ STRELECKÝ ZVÄZdBZajíčková Adriana","00603341dB"]
["00603341",{"$f":"VLOOKUP(A310,Adr!A:B,2,FALSE)","v":"SLOVENSKÝ STRELECKÝ ZVÄZ"},"odmena trénerovi Juraj Sedlák",752,0,"f","026 03","B","00603341f","00603341026 03",null,"00603341026 03B","SLOVENSKÝ STRELECKÝ ZVÄZfBodmena trénerovi Juraj Sedlák","00603341fB"]
["17310571",{"$f":"VLOOKUP(A311,Adr!A:B,2,FALSE)","v":"Slovenský šachový zväz"},"šach - bežné transfery",406322,0,"a","026 02","B","17310571a","17310571026 02","šach","17310571026 02B","Slovenský šachový zväzaBšach - bežné transfery","17310571aB"]
["17310571",{"$f":"VLOOKUP(A312,Adr!A:B,2,FALSE)","v":"Slovenský šachový zväz"},"zabezpečenie a rozvoj zdravotne postihnutých športovcov (SPV)",6128,0,"c","026 03","B","17310571c","17310571026 03",null,"17310571026 03B","Slovenský šachový zväzcBzabezpečenie a rozvoj zdravotne postihnutých športovcov (SPV)","17310571cB"]
["30806437",{"$f":"VLOOKUP(A313,Adr!A:B,2,FALSE)","v":"Slovenský šermiarsky zväz"},"šerm - bežné transfery",185493,0,"a","026 02","B","30806437a","30806437026 02","šerm","30806437026 02B","Slovenský šermiarsky zväzaBšerm - bežné transfery","30806437aB"]
["30806437",{"$f":"VLOOKUP(A314,Adr!A:B,2,FALSE)","v":"Slovenský šermiarsky zväz"},"družstvo - fleuret (juniori)",12500,0,"d","026 03","B","30806437d","30806437026 03",null,"30806437026 03B","Slovenský šermiarsky zväzdBdružstvo - fleuret (juniori)","30806437dB"]
["30811384",{"$f":"VLOOKUP(A315,Adr!A:B,2,FALSE)","v":"Slovenský tenisový zväz"},"tenis - bežné transfery",4705548,0,"a","026 02","B","30811384a","30811384026 02","tenis","30811384026 02B","Slovenský tenisový zväzaBtenis - bežné transfery","30811384aB"]
["30811384",{"$f":"VLOOKUP(A316,Adr!A:B,2,FALSE)","v":"Slovenský tenisový zväz"},"tenis - kapitálové transfery",25000,0,"a","026 02","K","30811384a","30811384026 02","tenis","30811384026 02K","Slovenský tenisový zväzaKtenis - kapitálové transfery","30811384aK"]
["30811384",{"$f":"VLOOKUP(A317,Adr!A:B,2,FALSE)","v":"Slovenský tenisový zväz"},"Behúlová Bianca",7500,0,"d","026 03","B","30811384d","30811384026 03",null,"30811384026 03B","Slovenský tenisový zväzdBBehúlová Bianca","30811384dB"]
["30811384",{"$f":"VLOOKUP(A318,Adr!A:B,2,FALSE)","v":"Slovenský tenisový zväz"},"Benjamín Privara Peter",11200,0,"d","026 03","B","30811384d","30811384026 03",null,"30811384026 03B","Slovenský tenisový zväzdBBenjamín Privara Peter","30811384dB"]
["30811384",{"$f":"VLOOKUP(A319,Adr!A:B,2,FALSE)","v":"Slovenský tenisový zväz"},"Daubnerová Nikola",26200,0,"d","026 03","B","30811384d","30811384026 03",null,"30811384026 03B","Slovenský tenisový zväzdBDaubnerová Nikola","30811384dB"]
["30811384",{"$f":"VLOOKUP(A320,Adr!A:B,2,FALSE)","v":"Slovenský tenisový zväz"},"Jamrichová Renáta",6400,0,"d","026 03","B","30811384d","30811384026 03",null,"30811384026 03B","Slovenský tenisový zväzdBJamrichová Renáta","30811384dB"]
["30811384",{"$f":"VLOOKUP(A321,Adr!A:B,2,FALSE)","v":"Slovenský tenisový zväz"},"Naď Peter",11200,0,"d","026 03","B","30811384d","30811384026 03",null,"30811384026 03B","Slovenský tenisový zväzdBNaď Peter","30811384dB"]
["30811384",{"$f":"VLOOKUP(A322,Adr!A:B,2,FALSE)","v":"Slovenský tenisový zväz"},"Polášek Filip",15000,0,"d","026 03","B",{"$f":"A322&F322","v":"30811384d"},{"$f":"A322&G322","v":"30811384026 03"},null,{"$f":"A322&G322&H322","v":"30811384026 03B"},{"$f":"B322&F322&H322&C322","v":"Slovenský tenisový zväzdBPolášek Filip"},{"$f":"+I322&H322","v":"30811384dB"}]
["30811384",{"$f":"VLOOKUP(A323,Adr!A:B,2,FALSE)","v":"Slovenský tenisový zväz"},"Vargová Nina",26200,0,"d","026 03","B","30811384d","30811384026 03",null,"30811384026 03B","Slovenský tenisový zväzdBVargová Nina","30811384dB"]
["30811384",{"$f":"VLOOKUP(A324,Adr!A:B,2,FALSE)","v":"Slovenský tenisový zväz"},"Zelníčková Radka",7500,0,"d","026 03","B","30811384d","30811384026 03",null,"30811384026 03B","Slovenský tenisový zväzdBZelníčková Radka","30811384dB"]
["30811384",{"$f":"VLOOKUP(A325,Adr!A:B,2,FALSE)","v":"Slovenský tenisový zväz"},"odmena trénerovi Ján Matúš",2376,0,"f","026 03","B","30811384f","30811384026 03",null,"30811384026 03B","Slovenský tenisový zväzfBodmena trénerovi Ján Matúš","30811384fB"]
["30811384",{"$f":"VLOOKUP(A326,Adr!A:B,2,FALSE)","v":"Slovenský tenisový zväz"},"odmena trénerovi Jozef Blaško",1188,0,"f","026 03","B","30811384f","30811384026 03",null,"30811384026 03B","Slovenský tenisový zväzfBodmena trénerovi Jozef Blaško","30811384fB"]
["30811384",{"$f":"VLOOKUP(A327,Adr!A:B,2,FALSE)","v":"Slovenský tenisový zväz"},"odmena trénerovi Juraj Dulík",1188,0,"f","026 03","B","30811384f","30811384026 03",null,"30811384026 03B","Slovenský tenisový zväzfBodmena trénerovi Juraj Dulík","30811384fB"]
["30811384",{"$f":"VLOOKUP(A328,Adr!A:B,2,FALSE)","v":"Slovenský tenisový zväz"},"odmena trénerovi Marek Hrehorčík",891,0,"f","026 03","B","30811384f","30811384026 03",null,"30811384026 03B","Slovenský tenisový zväzfBodmena trénerovi Marek Hrehorčík","30811384fB"]
["30811384",{"$f":"VLOOKUP(A329,Adr!A:B,2,FALSE)","v":"Slovenský tenisový zväz"},"odmena trénerovi Martin Záthurecký",3565,0,"f","026 03","B","30811384f","30811384026 03",null,"30811384026 03B","Slovenský tenisový zväzfBodmena trénerovi Martin Záthurecký","30811384fB"]
["30811384",{"$f":"VLOOKUP(A330,Adr!A:B,2,FALSE)","v":"Slovenský tenisový zväz"},"odmena trénerovi Michal Lukačovič",1188,0,"f","026 03","B","30811384f","30811384026 03",null,"30811384026 03B","Slovenský tenisový zväzfBodmena trénerovi Michal Lukačovič","30811384fB"]
["30811384",{"$f":"VLOOKUP(A331,Adr!A:B,2,FALSE)","v":"Slovenský tenisový zväz"},"odmena trénerovi Petr Lajkep",1188,0,"f","026 03","B","30811384f","30811384026 03",null,"30811384026 03B","Slovenský tenisový zväzfBodmena trénerovi Petr Lajkep","30811384fB"]
["30811384",{"$f":"VLOOKUP(A332,Adr!A:B,2,FALSE)","v":"Slovenský tenisový zväz"},"odmena trénerovi Richard Medyla",891,0,"f","026 03","B","30811384f","30811384026 03",null,"30811384026 03B","Slovenský tenisový zväzfBodmena trénerovi Richard Medyla","30811384fB"]
["30811384",{"$f":"VLOOKUP(A333,Adr!A:B,2,FALSE)","v":"Slovenský tenisový zväz"},"odmena trénerovi Róbert Gašparetz",2673,0,"f","026 03","B","30811384f","30811384026 03",null,"30811384026 03B","Slovenský tenisový zväzfBodmena trénerovi Róbert Gašparetz","30811384fB"]
["00688304",{"$f":"VLOOKUP(A334,Adr!A:B,2,FALSE)","v":"Slovenský veslársky zväz"},"veslovanie - bežné transfery",150058,0,"a","026 02","B","00688304a","00688304026 02","veslovanie","00688304026 02B","Slovenský veslársky zväzaBveslovanie - bežné transfery","00688304aB"]
["00688304",{"$f":"VLOOKUP(A335,Adr!A:B,2,FALSE)","v":"Slovenský veslársky zväz"},"veslovanie - kapitálové transfery",15600,0,"a","026 02","K","00688304a","00688304026 02","veslovanie","00688304026 02K","Slovenský veslársky zväzaKveslovanie - kapitálové transfery","00688304aK"]
["00688304",{"$f":"VLOOKUP(A336,Adr!A:B,2,FALSE)","v":"Slovenský veslársky zväz"},"zabezpečenie a rozvoj zdravotne postihnutých športovcov (SPV)",7354,0,"c","026 03","B","00688304c","00688304026 03",null,"00688304026 03B","Slovenský veslársky zväzcBzabezpečenie a rozvoj zdravotne postihnutých športovcov (SPV)","00688304cB"]
["00688304",{"$f":"VLOOKUP(A337,Adr!A:B,2,FALSE)","v":"Slovenský veslársky zväz"},"Strečanský Peter",27600,0,"d","026 03","B","00688304d","00688304026 03",null,"00688304026 03B","Slovenský veslársky zväzdBStrečanský Peter","00688304dB"]
["00688304",{"$f":"VLOOKUP(A338,Adr!A:B,2,FALSE)","v":"Slovenský veslársky zväz"},"odmena trénerovi Peter Strečanský",453,0,"f","026 03","B","00688304f","00688304026 03",null,"00688304026 03B","Slovenský veslársky zväzfBodmena trénerovi Peter Strečanský","00688304fB"]
["31791981",{"$f":"VLOOKUP(A339,Adr!A:B,2,FALSE)","v":"SLOVENSKÝ ZÁPASNÍCKY ZVÄZ"},"zápasenie - bežné transfery",437876,0,"a","026 02","B","31791981a","31791981026 02","zápasenie","31791981026 02B","SLOVENSKÝ ZÁPASNÍCKY ZVÄZaBzápasenie - bežné transfery","31791981aB"]
["31791981",{"$f":"VLOOKUP(A340,Adr!A:B,2,FALSE)","v":"SLOVENSKÝ ZÁPASNÍCKY ZVÄZ"},"Földešiová Viktória",6200,0,"d","026 03","B","31791981d","31791981026 03",null,"31791981026 03B","SLOVENSKÝ ZÁPASNÍCKY ZVÄZdBFöldešiová Viktória","31791981dB"]
["31791981",{"$f":"VLOOKUP(A341,Adr!A:B,2,FALSE)","v":"SLOVENSKÝ ZÁPASNÍCKY ZVÄZ"},"Gulaev Akhsarbek",30000,0,"d","026 03","B","31791981d","31791981026 03",null,"31791981026 03B","SLOVENSKÝ ZÁPASNÍCKY ZVÄZdBGulaev Akhsarbek","31791981dB"]
["31791981",{"$f":"VLOOKUP(A342,Adr!A:B,2,FALSE)","v":"SLOVENSKÝ ZÁPASNÍCKY ZVÄZ"},"Hegedus Réka",6200,0,"d","026 03","B","31791981d","31791981026 03",null,"31791981026 03B","SLOVENSKÝ ZÁPASNÍCKY ZVÄZdBHegedus Réka","31791981dB"]
["31791981",{"$f":"VLOOKUP(A343,Adr!A:B,2,FALSE)","v":"SLOVENSKÝ ZÁPASNÍCKY ZVÄZ"},"Jakšík Adam",7500,0,"d","026 03","B","31791981d","31791981026 03",null,"31791981026 03B","SLOVENSKÝ ZÁPASNÍCKY ZVÄZdBJakšík Adam","31791981dB"]
["31791981",{"$f":"VLOOKUP(A344,Adr!A:B,2,FALSE)","v":"SLOVENSKÝ ZÁPASNÍCKY ZVÄZ"},"Makoev Boris",57600,0,"d","026 03","B","31791981d","31791981026 03",null,"31791981026 03B","SLOVENSKÝ ZÁPASNÍCKY ZVÄZdBMakoev Boris","31791981dB"]
["31791981",{"$f":"VLOOKUP(A345,Adr!A:B,2,FALSE)","v":"SLOVENSKÝ ZÁPASNÍCKY ZVÄZ"},"Mikécz Robin",7500,0,"d","026 03","B","31791981d","31791981026 03",null,"31791981026 03B","SLOVENSKÝ ZÁPASNÍCKY ZVÄZdBMikécz Robin","31791981dB"]
["31791981",{"$f":"VLOOKUP(A346,Adr!A:B,2,FALSE)","v":"SLOVENSKÝ ZÁPASNÍCKY ZVÄZ"},"Molnár Zsuzsanna",10000,0,"d","026 03","B","31791981d","31791981026 03",null,"31791981026 03B","SLOVENSKÝ ZÁPASNÍCKY ZVÄZdBMolnár Zsuzsanna","31791981dB"]
["31791981",{"$f":"VLOOKUP(A347,Adr!A:B,2,FALSE)","v":"SLOVENSKÝ ZÁPASNÍCKY ZVÄZ"},"Salkazanov Tajmuraz",57100,0,"d","026 03","B","31791981d","31791981026 03",null,"31791981026 03B","SLOVENSKÝ ZÁPASNÍCKY ZVÄZdBSalkazanov Tajmuraz","31791981dB"]
["31791981",{"$f":"VLOOKUP(A348,Adr!A:B,2,FALSE)","v":"SLOVENSKÝ ZÁPASNÍCKY ZVÄZ"},"Sýkora Jakub",10000,0,"d","026 03","B","31791981d","31791981026 03",null,"31791981026 03B","SLOVENSKÝ ZÁPASNÍCKY ZVÄZdBSýkora Jakub","31791981dB"]
["30811546",{"$f":"VLOOKUP(A349,Adr!A:B,2,FALSE)","v":"Slovenský zväz bedmintonu"},"bedminton - bežné transfery",282135,0,"a","026 02","B","30811546a","30811546026 02","bedminton","30811546026 02B","Slovenský zväz bedmintonuaBbedminton - bežné transfery","30811546aB"]
["30811546",{"$f":"VLOOKUP(A350,Adr!A:B,2,FALSE)","v":"Slovenský zväz bedmintonu"},"Zabezpečenie školských športových súťaží 2023 v súťažiach kategórie \"A\" v bedmintone stredných škôl",15100,0,"j","026 01","B","30811546j","30811546026 01",null,"30811546026 01B","Slovenský zväz bedmintonujBZabezpečenie školských športových súťaží 2023 v súťažiach kategórie \"A\" v bedmintone stredných škôl","30811546jB"]
["35656743",{"$f":"VLOOKUP(A351,Adr!A:B,2,FALSE)","v":"Slovenský zväz biatlonu"},"biatlon - bežné transfery",640308,0,"a","026 02","B","35656743a","35656743026 02","biatlon","35656743026 02B","Slovenský zväz biatlonuaBbiatlon - bežné transfery","35656743aB"]
["35656743",{"$f":"VLOOKUP(A352,Adr!A:B,2,FALSE)","v":"Slovenský zväz biatlonu"},"biatlon - kapitálové transfery",83000,0,"a","026 02","K","35656743a","35656743026 02","biatlon","35656743026 02K","Slovenský zväz biatlonuaKbiatlon - kapitálové transfery","35656743aK"]
["35656743",{"$f":"VLOOKUP(A353,Adr!A:B,2,FALSE)","v":"Slovenský zväz biatlonu"},"Bátovská Fialková Paulína",7964,0,"d","026 03","B","35656743d","35656743026 03",null,"35656743026 03B","Slovenský zväz biatlonudBBátovská Fialková Paulína","35656743dB"]
["35656743",{"$f":"VLOOKUP(A354,Adr!A:B,2,FALSE)","v":"Slovenský zväz biatlonu"},"Borguľa Jakub",42000,0,"d","026 03","B","35656743d","35656743026 03",null,"35656743026 03B","Slovenský zväz biatlonudBBorguľa Jakub","35656743dB"]
["35656743",{"$f":"VLOOKUP(A355,Adr!A:B,2,FALSE)","v":"Slovenský zväz biatlonu"},"dvojica-mix (juniori)",10000,0,"d","026 03","B","35656743d","35656743026 03",null,"35656743026 03B","Slovenský zväz biatlonudBdvojica-mix (juniori)","35656743dB"]
["35656743",{"$f":"VLOOKUP(A356,Adr!A:B,2,FALSE)","v":"Slovenský zväz biatlonu"},"Horvátová Henrieta",35000,0,"d","026 03","B","35656743d","35656743026 03",null,"35656743026 03B","Slovenský zväz biatlonudBHorvátová Henrieta","35656743dB"]
["35656743",{"$f":"VLOOKUP(A357,Adr!A:B,2,FALSE)","v":"Slovenský zväz biatlonu"},"Kapustová Ema",35000,0,"d","026 03","B","35656743d","35656743026 03",null,"35656743026 03B","Slovenský zväz biatlonudBKapustová Ema","35656743dB"]
["35656743",{"$f":"VLOOKUP(A358,Adr!A:B,2,FALSE)","v":"Slovenský zväz biatlonu"},"Remeňová Mária",10000,0,"d","026 03","B","35656743d","35656743026 03",null,"35656743026 03B","Slovenský zväz biatlonudBRemeňová Mária","35656743dB"]
["35656743",{"$f":"VLOOKUP(A359,Adr!A:B,2,FALSE)","v":"Slovenský zväz biatlonu"},"Remeňová Zuzana",10000,0,"d","026 03","B","35656743d","35656743026 03",null,"35656743026 03B","Slovenský zväz biatlonudBRemeňová Zuzana","35656743dB"]
["35656743",{"$f":"VLOOKUP(A360,Adr!A:B,2,FALSE)","v":"Slovenský zväz biatlonu"},"Sklenárik Tomáš",5000,0,"d","026 03","B","35656743d","35656743026 03",null,"35656743026 03B","Slovenský zväz biatlonudBSklenárik Tomáš","35656743dB"]
["35656743",{"$f":"VLOOKUP(A361,Adr!A:B,2,FALSE)","v":"Slovenský zväz biatlonu"},"štafeta - biatlon - juniori",12500,0,"d","026 03","B","35656743d","35656743026 03",null,"35656743026 03B","Slovenský zväz biatlonudBštafeta - biatlon - juniori","35656743dB"]
["35656743",{"$f":"VLOOKUP(A362,Adr!A:B,2,FALSE)","v":"Slovenský zväz biatlonu"},"štafeta - biatlon - juniorky",12500,0,"d","026 03","B","35656743d","35656743026 03",null,"35656743026 03B","Slovenský zväz biatlonudBštafeta - biatlon - juniorky","35656743dB"]
["35656743",{"$f":"VLOOKUP(A363,Adr!A:B,2,FALSE)","v":"Slovenský zväz biatlonu"},"štafeta - biatlon - kadetky",10000,0,"d","026 03","B","35656743d","35656743026 03",null,"35656743026 03B","Slovenský zväz biatlonudBštafeta - biatlon - kadetky","35656743dB"]
["35656743",{"$f":"VLOOKUP(A364,Adr!A:B,2,FALSE)","v":"Slovenský zväz biatlonu"},"Majstrovstvá Európy v biatlone 2024 Osrblie",100000,0,"e","026 03","B","35656743e","35656743026 03",null,"35656743026 03B","Slovenský zväz biatlonueBMajstrovstvá Európy v biatlone 2024 Osrblie","35656743eB"]
["35656743",{"$f":"VLOOKUP(A365,Adr!A:B,2,FALSE)","v":"Slovenský zväz biatlonu"},"Majstrovstvá sveta v letnom biatlone",75000,0,"e","026 03","B","35656743e","35656743026 03",null,"35656743026 03B","Slovenský zväz biatlonueBMajstrovstvá sveta v letnom biatlone","35656743eB"]
["35656743",{"$f":"VLOOKUP(A366,Adr!A:B,2,FALSE)","v":"Slovenský zväz biatlonu"},"odmena trénerke Jana Daubnerová",940,0,"f","026 03","B","35656743f","35656743026 03",null,"35656743026 03B","Slovenský zväz biatlonufBodmena trénerke Jana Daubnerová","35656743fB"]
["36067580",{"$f":"VLOOKUP(A367,Adr!A:B,2,FALSE)","v":"Slovenský zväz bobistov"},"boby a skeleton - bežné transfery",112827,0,"a","026 02","B","36067580a","36067580026 02","boby a skeleton","36067580026 02B","Slovenský zväz bobistovaBboby a skeleton - bežné transfery","36067580aB"]
["00684112",{"$f":"VLOOKUP(A368,Adr!A:B,2,FALSE)","v":"Slovenský zväz cyklistiky"},"cyklistika - bežné transfery",2534177,0,"a","026 02","B","00684112a","00684112026 02","cyklistika","00684112026 02B","Slovenský zväz cyklistikyaBcyklistika - bežné transfery","00684112aB"]
["00684112",{"$f":"VLOOKUP(A369,Adr!A:B,2,FALSE)","v":"Slovenský zväz cyklistiky"},"cyklistika - kapitálové transfery",130000,0,"a","026 02","K","00684112a","00684112026 02","cyklistika","00684112026 02K","Slovenský zväz cyklistikyaKcyklistika - kapitálové transfery","00684112aK"]
["00684112",{"$f":"VLOOKUP(A370,Adr!A:B,2,FALSE)","v":"Slovenský zväz cyklistiky"},"zabezpečenie a rozvoj zdravotne postihnutých športovcov (SPV)",64956,0,"c","026 03","B","00684112c","00684112026 03",null,"00684112026 03B","Slovenský zväz cyklistikycBzabezpečenie a rozvoj zdravotne postihnutých športovcov (SPV)","00684112cB"]
["00684112",{"$f":"VLOOKUP(A371,Adr!A:B,2,FALSE)","v":"Slovenský zväz cyklistiky"},"Bačíková Alžbeta",20000,0,"d","026 03","B","00684112d","00684112026 03",null,"00684112026 03B","Slovenský zväz cyklistikydBBačíková Alžbeta","00684112dB"]
["00684112",{"$f":"VLOOKUP(A372,Adr!A:B,2,FALSE)","v":"Slovenský zväz cyklistiky"},"Baránek Rastislav",7500,0,"d","026 03","B","00684112d","00684112026 03",null,"00684112026 03B","Slovenský zväz cyklistikydBBaránek Rastislav","00684112dB"]
["00684112",{"$f":"VLOOKUP(A373,Adr!A:B,2,FALSE)","v":"Slovenský zväz cyklistiky"},"Hudec Miloš",15000,0,"d","026 03","B","00684112d","00684112026 03",null,"00684112026 03B","Slovenský zväz cyklistikydBHudec Miloš","00684112dB"]
["00684112",{"$f":"VLOOKUP(A374,Adr!A:B,2,FALSE)","v":"Slovenský zväz cyklistiky"},"Jenčušová Nora",10000,0,"d","026 03","B","00684112d","00684112026 03",null,"00684112026 03B","Slovenský zväz cyklistikydBJenčušová Nora","00684112dB"]
["00684112",{"$f":"VLOOKUP(A375,Adr!A:B,2,FALSE)","v":"Slovenský zväz cyklistiky"},"Jurík Martin",7500,0,"d","026 03","B","00684112d","00684112026 03",null,"00684112026 03B","Slovenský zväz cyklistikydBJurík Martin","00684112dB"]
["00684112",{"$f":"VLOOKUP(A376,Adr!A:B,2,FALSE)","v":"Slovenský zväz cyklistiky"},"Kukľa Daniel",15000,0,"d","026 03","B","00684112d","00684112026 03",null,"00684112026 03B","Slovenský zväz cyklistikydBKukľa Daniel","00684112dB"]
["00684112",{"$f":"VLOOKUP(A377,Adr!A:B,2,FALSE)","v":"Slovenský zväz cyklistiky"},"Kuril Patrik",59020,0,"d","026 03","B","00684112d","00684112026 03",null,"00684112026 03B","Slovenský zväz cyklistikydBKuril Patrik","00684112dB"]
["00684112",{"$f":"VLOOKUP(A378,Adr!A:B,2,FALSE)","v":"Slovenský zväz cyklistiky"},"Kuril Patrik - kapitálové výdavky",3380,0,"d","026 03","K","00684112d","00684112026 03",null,"00684112026 03K","Slovenský zväz cyklistikydKKuril Patrik - kapitálové výdavky","00684112dK"]
["00684112",{"$f":"VLOOKUP(A379,Adr!A:B,2,FALSE)","v":"Slovenský zväz cyklistiky"},"Maniková Dominika",12500,0,"d","026 03","B","00684112d","00684112026 03",null,"00684112026 03B","Slovenský zväz cyklistikydBManiková Dominika","00684112dB"]
["00684112",{"$f":"VLOOKUP(A380,Adr!A:B,2,FALSE)","v":"Slovenský zväz cyklistiky"},"Metelka Jozef",79700,0,"d","026 03","B","00684112d","00684112026 03",null,"00684112026 03B","Slovenský zväz cyklistikydBMetelka Jozef","00684112dB"]
["00684112",{"$f":"VLOOKUP(A381,Adr!A:B,2,FALSE)","v":"Slovenský zväz cyklistiky"},"Oroszová Anna",30000,0,"d","026 03","B","00684112d","00684112026 03",null,"00684112026 03B","Slovenský zväz cyklistikydBOroszová Anna","00684112dB"]
["00684112",{"$f":"VLOOKUP(A382,Adr!A:B,2,FALSE)","v":"Slovenský zväz cyklistiky"},"Sagan Peter",20000,0,"d","026 03","B","00684112d","00684112026 03",null,"00684112026 03B","Slovenský zväz cyklistikydBSagan Peter","00684112dB"]
["00684112",{"$f":"VLOOKUP(A383,Adr!A:B,2,FALSE)","v":"Slovenský zväz cyklistiky"},"Strečko Ondrej",20000,0,"d","026 03","B","00684112d","00684112026 03",null,"00684112026 03B","Slovenský zväz cyklistikydBStrečko Ondrej","00684112dB"]
["00684112",{"$f":"VLOOKUP(A384,Adr!A:B,2,FALSE)","v":"Slovenský zväz cyklistiky"},"Svrček Martin",15000,0,"d","026 03","B","00684112d","00684112026 03",null,"00684112026 03B","Slovenský zväz cyklistikydBSvrček Martin","00684112dB"]
["00684112",{"$f":"VLOOKUP(A385,Adr!A:B,2,FALSE)","v":"Slovenský zväz cyklistiky"},"Medzinárodné cyklistické preteky Okolo Slovenska",90000,0,"e","026 03","B","00684112e","00684112026 03",null,"00684112026 03B","Slovenský zväz cyklistikyeBMedzinárodné cyklistické preteky Okolo Slovenska","00684112eB"]
["31806431",{"$f":"VLOOKUP(A386,Adr!A:B,2,FALSE)","v":"Slovenský zväz dráhového golfu"},"dráhový golf - bežné transfery",43525,0,"a","026 02","B",{"$f":"A386&F386","v":"31806431a"},{"$f":"A386&G386","v":"31806431026 02"},"dráhový golf",{"$f":"A386&G386&H386","v":"31806431026 02B"},{"$f":"B386&F386&H386&C386","v":"Slovenský zväz dráhového golfuaBdráhový golf - bežné transfery"},{"$f":"+I386&H386","v":"31806431aB"}]
["31795421",{"$f":"VLOOKUP(A387,Adr!A:B,2,FALSE)","v":"Slovenský zväz florbalu"},"florbal - bežné transfery",841417,0,"a","026 02","B","31795421a","31795421026 02","florbal","31795421026 02B","Slovenský zväz florbaluaBflorbal - bežné transfery","31795421aB"]
["31795421",{"$f":"VLOOKUP(A388,Adr!A:B,2,FALSE)","v":"Slovenský zväz florbalu"},"Zabezpečenie finále školských športových súťaží (Trenčín 2023) v súťažiach kategórie \"A\" vo florbale základných škôl",29500,0,"j","026 01","B","31795421j","31795421026 01",null,"31795421026 01B","Slovenský zväz florbalujBZabezpečenie finále školských športových súťaží (Trenčín 2023) v súťažiach kategórie \"A\" vo florbale základných škôl","31795421jB"]
["31795421",{"$f":"VLOOKUP(A389,Adr!A:B,2,FALSE)","v":"Slovenský zväz florbalu"},"Zabezpečenie školských športových súťaží 2023 v súťažiach kategórie \"A\" vo florbale  stredných škôl",30500,0,"j","026 01","B","31795421j","31795421026 01",null,"31795421026 01B","Slovenský zväz florbalujBZabezpečenie školských športových súťaží 2023 v súťažiach kategórie \"A\" vo florbale  stredných škôl","31795421jB"]
["30774772",{"$f":"VLOOKUP(A390,Adr!A:B,2,FALSE)","v":"Slovenský zväz hádzanej"},"hádzaná - bežné transfery",2383941,0,"a","026 02","B","30774772a","30774772026 02","hádzaná","30774772026 02B","Slovenský zväz hádzanejaBhádzaná - bežné transfery","30774772aB"]
["30774772",{"$f":"VLOOKUP(A391,Adr!A:B,2,FALSE)","v":"Slovenský zväz hádzanej"},"Zabezpečenie školských športových súťaží 2023 v súťažiach kategórie \"A\" v hádzanej  stredných škôl",29300,0,"j","026 01","B","30774772j","30774772026 01",null,"30774772026 01B","Slovenský zväz hádzanejjBZabezpečenie školských športových súťaží 2023 v súťažiach kategórie \"A\" v hádzanej  stredných škôl","30774772jB"]
["30793211",{"$f":"VLOOKUP(A392,Adr!A:B,2,FALSE)","v":"Slovenský zväz jachtingu"},"jachting - bežné transfery",116049,0,"a","026 02","B","30793211a","30793211026 02","jachting","30793211026 02B","Slovenský zväz jachtinguaBjachting - bežné transfery","30793211aB"]
["30793211",{"$f":"VLOOKUP(A393,Adr!A:B,2,FALSE)","v":"Slovenský zväz jachtingu"},"Pollák Patrik",10000,0,"d","026 03","B","30793211d","30793211026 03",null,"30793211026 03B","Slovenský zväz jachtingudBPollák Patrik","30793211dB"]
["30793211",{"$f":"VLOOKUP(A394,Adr!A:B,2,FALSE)","v":"Slovenský zväz jachtingu"},"Pollák Patrik - kapitálové výdavky",2500,0,"d","026 03","K","30793211d","30793211026 03",null,"30793211026 03K","Slovenský zväz jachtingudKPollák Patrik - kapitálové výdavky","30793211dK"]
["17308518",{"$f":"VLOOKUP(A395,Adr!A:B,2,FALSE)","v":"Slovenský zväz Judo"},"judo - bežné transfery",294424,0,"a","026 02","B","17308518a","17308518026 02","judo","17308518026 02B","Slovenský zväz JudoaBjudo - bežné transfery","17308518aB"]
["17308518",{"$f":"VLOOKUP(A396,Adr!A:B,2,FALSE)","v":"Slovenský zväz Judo"},"Ádam Viktor",12500,0,"d","026 03","B","17308518d","17308518026 03",null,"17308518026 03B","Slovenský zväz JudodBÁdam Viktor","17308518dB"]
["17308518",{"$f":"VLOOKUP(A397,Adr!A:B,2,FALSE)","v":"Slovenský zväz Judo"},"Fízeľ Márius",10000,0,"d","026 03","B","17308518d","17308518026 03",null,"17308518026 03B","Slovenský zväz JudodBFízeľ Márius","17308518dB"]
["17308518",{"$f":"VLOOKUP(A398,Adr!A:B,2,FALSE)","v":"Slovenský zväz Judo"},"Maťašeje Benjamín",33800,0,"d","026 03","B","17308518d","17308518026 03",null,"17308518026 03B","Slovenský zväz JudodBMaťašeje Benjamín","17308518dB"]
["17308518",{"$f":"VLOOKUP(A399,Adr!A:B,2,FALSE)","v":"Slovenský zväz Judo"},"Tománková Lenka",8700,0,"d","026 03","B","17308518d","17308518026 03",null,"17308518026 03B","Slovenský zväz JudodBTománková Lenka","17308518dB"]
["17308518",{"$f":"VLOOKUP(A400,Adr!A:B,2,FALSE)","v":"Slovenský zväz Judo"},"Tománková Patrícia",8700,0,"d","026 03","B","17308518d","17308518026 03",null,"17308518026 03B","Slovenský zväz JudodBTománková Patrícia","17308518dB"]
["17308518",{"$f":"VLOOKUP(A401,Adr!A:B,2,FALSE)","v":"Slovenský zväz Judo"},"odmena trénerovi Ján Gregor",511,0,"f","026 03","B","17308518f","17308518026 03",null,"17308518026 03B","Slovenský zväz JudofBodmena trénerovi Ján Gregor","17308518fB"]
["17308518",{"$f":"VLOOKUP(A402,Adr!A:B,2,FALSE)","v":"Slovenský zväz Judo"},"odmena trénerovi Jozef Tománek",511,0,"f","026 03","B","17308518f","17308518026 03",null,"17308518026 03B","Slovenský zväz JudofBodmena trénerovi Jozef Tománek","17308518fB"]
["30811571",{"$f":"VLOOKUP(A403,Adr!A:B,2,FALSE)","v":"Slovenský Zväz Karate"},"karate - bežné transfery",925463,0,"a","026 02","B","30811571a","30811571026 02","karate","30811571026 02B","Slovenský Zväz KarateaBkarate - bežné transfery","30811571aB"]
["30811571",{"$f":"VLOOKUP(A404,Adr!A:B,2,FALSE)","v":"Slovenský Zväz Karate"},"zabezpečenie a rozvoj zdravotne postihnutých športovcov (SPV)",9805,0,"c","026 03","B","30811571c","30811571026 03",null,"30811571026 03B","Slovenský Zväz KaratecBzabezpečenie a rozvoj zdravotne postihnutých športovcov (SPV)","30811571cB"]
["30811571",{"$f":"VLOOKUP(A405,Adr!A:B,2,FALSE)","v":"Slovenský Zväz Karate"},"Gyurík Adi",5000,0,"d","026 03","B","30811571d","30811571026 03",null,"30811571026 03B","Slovenský Zväz KaratedBGyurík Adi","30811571dB"]
["30811571",{"$f":"VLOOKUP(A406,Adr!A:B,2,FALSE)","v":"Slovenský Zväz Karate"},"Kopúňová Miroslava",5000,0,"d","026 03","B","30811571d","30811571026 03",null,"30811571026 03B","Slovenský Zväz KaratedBKopúňová Miroslava","30811571dB"]
["30811571",{"$f":"VLOOKUP(A407,Adr!A:B,2,FALSE)","v":"Slovenský Zväz Karate"},"Kvasnicová Nina",5000,0,"d","026 03","B","30811571d","30811571026 03",null,"30811571026 03B","Slovenský Zväz KaratedBKvasnicová Nina","30811571dB"]
["30811571",{"$f":"VLOOKUP(A408,Adr!A:B,2,FALSE)","v":"Slovenský Zväz Karate"},"Suchánková Ingrida",15000,0,"d","026 03","B","30811571d","30811571026 03",null,"30811571026 03B","Slovenský Zväz KaratedBSuchánková Ingrida","30811571dB"]
["30811571",{"$f":"VLOOKUP(A409,Adr!A:B,2,FALSE)","v":"Slovenský Zväz Karate"},"odmena trénerke Monika Višňovská",1092,0,"f","026 03","B","30811571f","30811571026 03",null,"30811571026 03B","Slovenský Zväz KaratefBodmena trénerke Monika Višňovská","30811571fB"]
["30811571",{"$f":"VLOOKUP(A410,Adr!A:B,2,FALSE)","v":"Slovenský Zväz Karate"},"odmena trénerovi Daniel Kvasnica",1457,0,"f","026 03","B","30811571f","30811571026 03",null,"30811571026 03B","Slovenský Zväz KaratefBodmena trénerovi Daniel Kvasnica","30811571fB"]
["30811571",{"$f":"VLOOKUP(A411,Adr!A:B,2,FALSE)","v":"Slovenský Zväz Karate"},"odmena trénerovi Klaudio Farmadín",1457,0,"f","026 03","B","30811571f","30811571026 03",null,"30811571026 03B","Slovenský Zväz KaratefBodmena trénerovi Klaudio Farmadín","30811571fB"]
["30811571",{"$f":"VLOOKUP(A412,Adr!A:B,2,FALSE)","v":"Slovenský Zväz Karate"},"odmena trénerovi Miroslav Ďuďák",1092,0,"f","026 03","B","30811571f","30811571026 03",null,"30811571026 03B","Slovenský Zväz KaratefBodmena trénerovi Miroslav Ďuďák","30811571fB"]
["30811571",{"$f":"VLOOKUP(A413,Adr!A:B,2,FALSE)","v":"Slovenský Zväz Karate"},"odmena trénerovi Peter Baďura",1092,0,"f","026 03","B","30811571f","30811571026 03",null,"30811571026 03B","Slovenský Zväz KaratefBodmena trénerovi Peter Baďura","30811571fB"]
["31119247",{"$f":"VLOOKUP(A414,Adr!A:B,2,FALSE)","v":"Slovenský zväz kickboxu"},"kickbox - bežné transfery",196124,0,"a","026 02","B","31119247a","31119247026 02","kickbox","31119247026 02B","Slovenský zväz kickboxuaBkickbox - bežné transfery","31119247aB"]
["31119247",{"$f":"VLOOKUP(A415,Adr!A:B,2,FALSE)","v":"Slovenský zväz kickboxu"},"Filipová Alexandra",15000,0,"d","026 03","B","31119247d","31119247026 03",null,"31119247026 03B","Slovenský zväz kickboxudBFilipová Alexandra","31119247dB"]
["31119247",{"$f":"VLOOKUP(A416,Adr!A:B,2,FALSE)","v":"Slovenský zväz kickboxu"},"Karlík Marek",20000,0,"d","026 03","B","31119247d","31119247026 03",null,"31119247026 03B","Slovenský zväz kickboxudBKarlík Marek","31119247dB"]
["30845386",{"$f":"VLOOKUP(A417,Adr!A:B,2,FALSE)","v":"Slovenský zväz ľadového hokeja"},"ľadový hokej - bežné transfery",10397778,0,"a","026 02","B","30845386a","30845386026 02","ľadový hokej","30845386026 02B","Slovenský zväz ľadového hokejaaBľadový hokej - bežné transfery","30845386aB"]
["30845386",{"$f":"VLOOKUP(A418,Adr!A:B,2,FALSE)","v":"Slovenský zväz ľadového hokeja"},"ľadový hokej - kapitálové transfery",100000,0,"a","026 02","K","30845386a","30845386026 02","ľadový hokej","30845386026 02K","Slovenský zväz ľadového hokejaaKľadový hokej - kapitálové transfery","30845386aK"]
["30865930",{"$f":"VLOOKUP(A419,Adr!A:B,2,FALSE)","v":"Slovenský zväz malého futbalu"},"rozvoj športov, ktoré nie sú uznanými podľa zákona č. 440/2015 Z. z.",250000,0,"g","026 03","B","30865930g","30865930026 03",null,"30865930026 03B","Slovenský zväz malého futbalugBrozvoj športov, ktoré nie sú uznanými podľa zákona č. 440/2015 Z. z.","30865930gB"]
["30788714",{"$f":"VLOOKUP(A420,Adr!A:B,2,FALSE)","v":"Slovenský zväz moderného päťboja"},"moderný päťboj - bežné transfery",140228,0,"a","026 02","B","30788714a","30788714026 02","moderný päťboj","30788714026 02B","Slovenský zväz moderného päťbojaaBmoderný päťboj - bežné transfery","30788714aB"]
["30806518",{"$f":"VLOOKUP(A421,Adr!A:B,2,FALSE)","v":"Slovenský zväz orientačných športov"},"orientačné športy - bežné transfery",68744,0,"a","026 02","B","30806518a","30806518026 02","orientačné športy","30806518026 02B","Slovenský zväz orientačných športovaBorientačné športy - bežné transfery","30806518aB"]
["31751075",{"$f":"VLOOKUP(A422,Adr!A:B,2,FALSE)","v":"Slovenský zväz pozemného hokeja"},"pozemný hokej - bežné transfery",193059,0,"a","026 02","B","31751075a","31751075026 02","pozemný hokej","31751075026 02B","Slovenský zväz pozemného hokejaaBpozemný hokej - bežné transfery","31751075aB"]
["37818058",{"$f":"VLOOKUP(A423,Adr!A:B,2,FALSE)","v":"Slovenský zväz psích záprahov"},"psie záprahy - bežné transfery",49415,0,"a","026 02","B","37818058a","37818058026 02","psie záprahy","37818058026 02B","Slovenský zväz psích záprahovaBpsie záprahy - bežné transfery","37818058aB"]
["37818058",{"$f":"VLOOKUP(A424,Adr!A:B,2,FALSE)","v":"Slovenský zväz psích záprahov"},"Bánoci Jaroslav",15000,0,"d","026 03","B","37818058d","37818058026 03",null,"37818058026 03B","Slovenský zväz psích záprahovdBBánoci Jaroslav","37818058dB"]
["37818058",{"$f":"VLOOKUP(A425,Adr!A:B,2,FALSE)","v":"Slovenský zväz psích záprahov"},"Drábik Andrej",15000,0,"d","026 03","B","37818058d","37818058026 03",null,"37818058026 03B","Slovenský zväz psích záprahovdBDrábik Andrej","37818058dB"]
["37818058",{"$f":"VLOOKUP(A426,Adr!A:B,2,FALSE)","v":"Slovenský zväz psích záprahov"},"Dučák Marcel",5000,0,"d","026 03","B","37818058d","37818058026 03",null,"37818058026 03B","Slovenský zväz psích záprahovdBDučák Marcel","37818058dB"]
["37818058",{"$f":"VLOOKUP(A427,Adr!A:B,2,FALSE)","v":"Slovenský zväz psích záprahov"},"Kotuliaková Mariana",5000,0,"d","026 03","B","37818058d","37818058026 03",null,"37818058026 03B","Slovenský zväz psích záprahovdBKotuliaková Mariana","37818058dB"]
["37818058",{"$f":"VLOOKUP(A428,Adr!A:B,2,FALSE)","v":"Slovenský zväz psích záprahov"},"Pelikánová Lucia",5000,0,"d","026 03","B","37818058d","37818058026 03",null,"37818058026 03B","Slovenský zväz psích záprahovdBPelikánová Lucia","37818058dB"]
["37818058",{"$f":"VLOOKUP(A429,Adr!A:B,2,FALSE)","v":"Slovenský zväz psích záprahov"},"Reguli Jakub",5000,0,"d","026 03","B","37818058d","37818058026 03",null,"37818058026 03B","Slovenský zväz psích záprahovdBReguli Jakub","37818058dB"]
["37818058",{"$f":"VLOOKUP(A430,Adr!A:B,2,FALSE)","v":"Slovenský zväz psích záprahov"},"Sedilek Branislav",5000,0,"d","026 03","B","37818058d","37818058026 03",null,"37818058026 03B","Slovenský zväz psích záprahovdBSedilek Branislav","37818058dB"]
["00896896",{"$f":"VLOOKUP(A431,Adr!A:B,2,FALSE)","v":"Slovenský zväz rádioamatérov"},"Plnenie úloh verejného záujmu v športe - rozvoj športu",29909,0,"f","026 03","B","00896896f","00896896026 03",null,"00896896026 03B","Slovenský zväz rádioamatérovfBPlnenie úloh verejného záujmu v športe - rozvoj športu","00896896fB"]
["31871526",{"$f":"VLOOKUP(A432,Adr!A:B,2,FALSE)","v":"Slovenský zväz rybolovnej techniky"},"rybolovná technika - bežné transfery",76599,0,"a","026 02","B","31871526a","31871526026 02","rybolovná technika","31871526026 02B","Slovenský zväz rybolovnej technikyaBrybolovná technika - bežné transfery","31871526aB"]
["31989373",{"$f":"VLOOKUP(A433,Adr!A:B,2,FALSE)","v":"Slovenský zväz sánkarov"},"sánkovanie - bežné transfery",166823,0,"a","026 02","B","31989373a","31989373026 02","sánkovanie","31989373026 02B","Slovenský zväz sánkarovaBsánkovanie - bežné transfery","31989373aB"]
["31989373",{"$f":"VLOOKUP(A434,Adr!A:B,2,FALSE)","v":"Slovenský zväz sánkarov"},"štafeta - sánkovanie",20000,0,"d","026 03","B","31989373d","31989373026 03",null,"31989373026 03B","Slovenský zväz sánkarovdBštafeta - sánkovanie","31989373dB"]
["42219922",{"$f":"VLOOKUP(A435,Adr!A:B,2,FALSE)","v":"Slovenský zväz športového ju-jitsu"},"ju-jitsu - bežné transfery",32301,0,"a","026 02","B","42219922a","42219922026 02","ju-jitsu","42219922026 02B","Slovenský zväz športového ju-jitsuaBju-jitsu - bežné transfery","42219922aB"]
["42219922",{"$f":"VLOOKUP(A436,Adr!A:B,2,FALSE)","v":"Slovenský zväz športového ju-jitsu"},"odmena trénerovi Miroslav Ševčík",404,0,"f","026 03","B","42219922f","42219922026 03",null,"42219922026 03B","Slovenský zväz športového ju-jitsufBodmena trénerovi Miroslav Ševčík","42219922fB"]
["51118831",{"$f":"VLOOKUP(A437,Adr!A:B,2,FALSE)","v":"Slovenský zväz športového rybolovu"},"športové rybárstvo - bežné transfery",63940,0,"a","026 02","B","51118831a","51118831026 02","športové rybárstvo","51118831026 02B","Slovenský zväz športového rybolovuaBšportové rybárstvo - bežné transfery","51118831aB"]
["37938941",{"$f":"VLOOKUP(A438,Adr!A:B,2,FALSE)","v":"Slovenský zväz Taekwon-Do ITF"},"rozvoj športov, ktoré nie sú uznanými podľa zákona č. 440/2015 Z. z.",61600,0,"g","026 03","B","37938941g","37938941026 03",null,"37938941026 03B","Slovenský zväz Taekwon-Do ITFgBrozvoj športov, ktoré nie sú uznanými podľa zákona č. 440/2015 Z. z.","37938941gB"]
["00684767",{"$f":"VLOOKUP(A439,Adr!A:B,2,FALSE)","v":"Slovenský zväz tanečných športov"},"tanečný šport - bežné transfery",473263,0,"a","026 02","B","00684767a","00684767026 02","tanečný šport","00684767026 02B","Slovenský zväz tanečných športovaBtanečný šport - bežné transfery","00684767aB"]
["00684767",{"$f":"VLOOKUP(A440,Adr!A:B,2,FALSE)","v":"Slovenský zväz tanečných športov"},"tanečný šport - kapitálové transfery",35000,0,"a","026 02","K","00684767a","00684767026 02","tanečný šport","00684767026 02K","Slovenský zväz tanečných športovaKtanečný šport - kapitálové transfery","00684767aK"]
["00684767",{"$f":"VLOOKUP(A441,Adr!A:B,2,FALSE)","v":"Slovenský zväz tanečných športov"},"zabezpečenie a rozvoj zdravotne postihnutých športovcov (SPV)",8579,0,"c","026 03","B","00684767c","00684767026 03",null,"00684767026 03B","Slovenský zväz tanečných športovcBzabezpečenie a rozvoj zdravotne postihnutých športovcov (SPV)","00684767cB"]
["00684767",{"$f":"VLOOKUP(A442,Adr!A:B,2,FALSE)","v":"Slovenský zväz tanečných športov"},"Pirhala \"Twister\" Oliver",15000,0,"d","026 03","B","00684767d","00684767026 03",null,"00684767026 03B","Slovenský zväz tanečných športovdBPirhala \"Twister\" Oliver","00684767dB"]
["22665234",{"$f":"VLOOKUP(A443,Adr!A:B,2,FALSE)","v":"Slovenský zväz telesne postihnutých športovcov"},"činnosť Slovenského zväzu telesne postihnutých športovcov",558320,0,"c","026 03","B","22665234c","22665234026 03",null,"22665234026 03B","Slovenský zväz telesne postihnutých športovcovcBčinnosť Slovenského zväzu telesne postihnutých športovcov","22665234cB"]
["22665234",{"$f":"VLOOKUP(A444,Adr!A:B,2,FALSE)","v":"Slovenský zväz telesne postihnutých športovcov"},"Andrejčík Samuel",50000,0,"d","026 03","B","22665234d","22665234026 03",null,"22665234026 03B","Slovenský zväz telesne postihnutých športovcovdBAndrejčík Samuel","22665234dB"]
["22665234",{"$f":"VLOOKUP(A445,Adr!A:B,2,FALSE)","v":"Slovenský zväz telesne postihnutých športovcov"},"Balcová Michaela",42000,0,"d","026 03","B","22665234d","22665234026 03",null,"22665234026 03B","Slovenský zväz telesne postihnutých športovcovdBBalcová Michaela","22665234dB"]
["22665234",{"$f":"VLOOKUP(A446,Adr!A:B,2,FALSE)","v":"Slovenský zväz telesne postihnutých športovcov"},"družstvo - boccia (BC1-2)",15000,0,"d","026 03","B","22665234d","22665234026 03",null,"22665234026 03B","Slovenský zväz telesne postihnutých športovcovdBdružstvo - boccia (BC1-2)","22665234dB"]
["22665234",{"$f":"VLOOKUP(A447,Adr!A:B,2,FALSE)","v":"Slovenský zväz telesne postihnutých športovcov"},"družstvo - boccia (BC4)",50000,0,"d","026 03","B","22665234d","22665234026 03",null,"22665234026 03B","Slovenský zväz telesne postihnutých športovcovdBdružstvo - boccia (BC4)","22665234dB"]
["22665234",{"$f":"VLOOKUP(A448,Adr!A:B,2,FALSE)","v":"Slovenský zväz telesne postihnutých športovcov"},"dvojica - curling na vozíku (telesne postihnutí)",20000,0,"d","026 03","B","22665234d","22665234026 03",null,"22665234026 03B","Slovenský zväz telesne postihnutých športovcovdBdvojica - curling na vozíku (telesne postihnutí)","22665234dB"]
["22665234",{"$f":"VLOOKUP(A449,Adr!A:B,2,FALSE)","v":"Slovenský zväz telesne postihnutých športovcov"},"Jambor Miroslav",20000,0,"d","026 03","B","22665234d","22665234026 03",null,"22665234026 03B","Slovenský zväz telesne postihnutých športovcovdBJambor Miroslav","22665234dB"]
["22665234",{"$f":"VLOOKUP(A450,Adr!A:B,2,FALSE)","v":"Slovenský zväz telesne postihnutých športovcov"},"Kánová Alena",40000,0,"d","026 03","B",{"$f":"A450&F450","v":"22665234d"},{"$f":"A450&G450","v":"22665234026 03"},null,{"$f":"A450&G450&H450","v":"22665234026 03B"},{"$f":"B450&F450&H450&C450","v":"Slovenský zväz telesne postihnutých športovcovdBKánová Alena"},{"$f":"+I450&H450","v":"22665234dB"}]
["22665234",{"$f":"VLOOKUP(A451,Adr!A:B,2,FALSE)","v":"Slovenský zväz telesne postihnutých športovcov"},"Klohna Boris",10000,0,"d","026 03","B","22665234d","22665234026 03",null,"22665234026 03B","Slovenský zväz telesne postihnutých športovcovdBKlohna Boris","22665234dB"]
["22665234",{"$f":"VLOOKUP(A452,Adr!A:B,2,FALSE)","v":"Slovenský zväz telesne postihnutých športovcov"},"Král Tomáš",20000,0,"d","026 03","B","22665234d","22665234026 03",null,"22665234026 03B","Slovenský zväz telesne postihnutých športovcovdBKrál Tomáš","22665234dB"]
["22665234",{"$f":"VLOOKUP(A453,Adr!A:B,2,FALSE)","v":"Slovenský zväz telesne postihnutých športovcov"},"Kudláčová Kristína",20000,0,"d","026 03","B","22665234d","22665234026 03",null,"22665234026 03B","Slovenský zväz telesne postihnutých športovcovdBKudláčová Kristína","22665234dB"]
["22665234",{"$f":"VLOOKUP(A454,Adr!A:B,2,FALSE)","v":"Slovenský zväz telesne postihnutých športovcov"},"Kurilák Rastislav",25000,0,"d","026 03","B","22665234d","22665234026 03",null,"22665234026 03B","Slovenský zväz telesne postihnutých športovcovdBKurilák Rastislav","22665234dB"]
["22665234",{"$f":"VLOOKUP(A455,Adr!A:B,2,FALSE)","v":"Slovenský zväz telesne postihnutých športovcov"},"Ludrovský Martin",30000,0,"d","026 03","B","22665234d","22665234026 03",null,"22665234026 03B","Slovenský zväz telesne postihnutých športovcovdBLudrovský Martin","22665234dB"]
["22665234",{"$f":"VLOOKUP(A456,Adr!A:B,2,FALSE)","v":"Slovenský zväz telesne postihnutých športovcov"},"Mezík Róbert",20000,0,"d","026 03","B","22665234d","22665234026 03",null,"22665234026 03B","Slovenský zväz telesne postihnutých športovcovdBMezík Róbert","22665234dB"]
["22665234",{"$f":"VLOOKUP(A457,Adr!A:B,2,FALSE)","v":"Slovenský zväz telesne postihnutých športovcov"},"Mihálik Peter",30000,0,"d","026 03","B","22665234d","22665234026 03",null,"22665234026 03B","Slovenský zväz telesne postihnutých športovcovdBMihálik Peter","22665234dB"]
["22665234",{"$f":"VLOOKUP(A458,Adr!A:B,2,FALSE)","v":"Slovenský zväz telesne postihnutých športovcov"},"Pavlík Marcel",30000,0,"d","026 03","B","22665234d","22665234026 03",null,"22665234026 03B","Slovenský zväz telesne postihnutých športovcovdBPavlík Marcel","22665234dB"]
["22665234",{"$f":"VLOOKUP(A459,Adr!A:B,2,FALSE)","v":"Slovenský zväz telesne postihnutých športovcov"},"Riapoš Ján",30500,0,"d","026 03","B","22665234d","22665234026 03",null,"22665234026 03B","Slovenský zväz telesne postihnutých športovcovdBRiapoš Ján","22665234dB"]
["22665234",{"$f":"VLOOKUP(A460,Adr!A:B,2,FALSE)","v":"Slovenský zväz telesne postihnutých športovcov"},"Strehársky Martin",10000,0,"d","026 03","B","22665234d","22665234026 03",null,"22665234026 03B","Slovenský zväz telesne postihnutých športovcovdBStrehársky Martin","22665234dB"]
["22665234",{"$f":"VLOOKUP(A461,Adr!A:B,2,FALSE)","v":"Slovenský zväz telesne postihnutých športovcov"},"Trávníček Boris",30000,0,"d","026 03","B","22665234d","22665234026 03",null,"22665234026 03B","Slovenský zväz telesne postihnutých športovcovdBTrávníček Boris","22665234dB"]
["22665234",{"$f":"VLOOKUP(A462,Adr!A:B,2,FALSE)","v":"Slovenský zväz telesne postihnutých športovcov"},"zabezpečenie účasti športovej reprezentácie SR na Svetových hrách World Abilitysport 2023 v Nakhon Ratchasima",90000,0,"e","026 03","B","22665234e","22665234026 03",null,"22665234026 03B","Slovenský zväz telesne postihnutých športovcoveBzabezpečenie účasti športovej reprezentácie SR na Svetových hrách World Abilitysport 2023 v Nakhon Ratchasima","22665234eB"]
["30793203",{"$f":"VLOOKUP(A463,Adr!A:B,2,FALSE)","v":"Slovenský zväz vodného lyžovania a wakeboardingu"},"vodné lyžovanie - bežné transfery",76898,0,"a","026 02","B","30793203a","30793203026 02","vodné lyžovanie","30793203026 02B","Slovenský zväz vodného lyžovania a wakeboardinguaBvodné lyžovanie - bežné transfery","30793203aB"]
["00681768",{"$f":"VLOOKUP(A464,Adr!A:B,2,FALSE)","v":"Slovenský zväz vodného motorizmu"},"vodný motorizmus - bežné transfery",32301,0,"a","026 02","B","00681768a","00681768026 02","vodný motorizmus","00681768026 02B","Slovenský zväz vodného motorizmuaBvodný motorizmus - bežné transfery","00681768aB"]
["00681768",{"$f":"VLOOKUP(A465,Adr!A:B,2,FALSE)","v":"Slovenský zväz vodného motorizmu"},"Jung Marian",15000,0,"d","026 03","B","00681768d","00681768026 03",null,"00681768026 03B","Slovenský zväz vodného motorizmudBJung Marian","00681768dB"]
["31796079",{"$f":"VLOOKUP(A466,Adr!A:B,2,FALSE)","v":"Slovenský zväz vzpierania"},"vzpieranie - bežné transfery",385589,0,"a","026 02","B","31796079a","31796079026 02","vzpieranie","31796079026 02B","Slovenský zväz vzpieraniaaBvzpieranie - bežné transfery","31796079aB"]
["31796079",{"$f":"VLOOKUP(A467,Adr!A:B,2,FALSE)","v":"Slovenský zväz vzpierania"},"Cabala Sebastián",12500,0,"d","026 03","B","31796079d","31796079026 03",null,"31796079026 03B","Slovenský zväz vzpieraniadBCabala Sebastián","31796079dB"]
["31796079",{"$f":"VLOOKUP(A468,Adr!A:B,2,FALSE)","v":"Slovenský zväz vzpierania"},"Macura Vladimír",10000,0,"d","026 03","B","31796079d","31796079026 03",null,"31796079026 03B","Slovenský zväz vzpieraniadBMacura Vladimír","31796079dB"]
["31796079",{"$f":"VLOOKUP(A469,Adr!A:B,2,FALSE)","v":"Slovenský zväz vzpierania"},"Viktorínová Natália",5000,0,"d","026 03","B","31796079d","31796079026 03",null,"31796079026 03B","Slovenský zväz vzpieraniadBViktorínová Natália","31796079dB"]
["31796079",{"$f":"VLOOKUP(A470,Adr!A:B,2,FALSE)","v":"Slovenský zväz vzpierania"},"odmena trénerovi Rudolf Lukáč",927,0,"f","026 03","B","31796079f","31796079026 03",null,"31796079026 03B","Slovenský zväz vzpieraniafBodmena trénerovi Rudolf Lukáč","31796079fB"]
["30811406",{"$f":"VLOOKUP(A471,Adr!A:B,2,FALSE)","v":"Špeciálne olympiády Slovensko"},"činnosť Špeciálnych olympiád Slovensko",443580,0,"c","026 03","B","30811406c","30811406026 03",null,"30811406026 03B","Špeciálne olympiády SlovenskocBčinnosť Špeciálnych olympiád Slovensko","30811406cB"]
["30811406",{"$f":"VLOOKUP(A472,Adr!A:B,2,FALSE)","v":"Špeciálne olympiády Slovensko"},"zabezpečenie účasti športovej reprezentácie SR na Svetových letných hrách špeciálnych olympiád v Berlíne 2023",122188,0,"e","026 03","B","30811406e","30811406026 03",null,"30811406026 03B","Špeciálne olympiády SlovenskoeBzabezpečenie účasti športovej reprezentácie SR na Svetových letných hrách špeciálnych olympiád v Berlíne 2023","30811406eB"]
["35538015",{"$f":"VLOOKUP(A473,Adr!A:B,2,FALSE)","v":"Združenie šípkarských organizácií"},"šípky - bežné transfery",51894,0,"a","026 02","B","35538015a","35538015026 02","šípky","35538015026 02B","Združenie šípkarských organizáciíaBšípky - bežné transfery","35538015aB"]
["00585319",{"$f":"VLOOKUP(A474,Adr!A:B,2,FALSE)","v":"Zväz potápačov Slovenska"},"potápačské športy - bežné transfery",122132,0,"a","026 02","B","00585319a","00585319026 02","potápačské športy","00585319026 02B","Zväz potápačov SlovenskaaBpotápačské športy - bežné transfery","00585319aB"]
["00585319",{"$f":"VLOOKUP(A475,Adr!A:B,2,FALSE)","v":"Zväz potápačov Slovenska"},"Hrašková Zuzana",15000,0,"d","026 03","B","00585319d","00585319026 03",null,"00585319026 03B","Zväz potápačov SlovenskadBHrašková Zuzana","00585319dB"]
["42132690",{"$f":"VLOOKUP(A476,Adr!A:B,2,FALSE)","v":"Zväz slovenského kolieskového korčuľovania"},"kolieskové korčuľovanie - bežné transfery",125400,0,"a","026 02","B","42132690a","42132690026 02","kolieskové korčuľovanie","42132690026 02B","Zväz slovenského kolieskového korčuľovaniaaBkolieskové korčuľovanie - bežné transfery","42132690aB"]
["42132690",{"$f":"VLOOKUP(A477,Adr!A:B,2,FALSE)","v":"Zväz slovenského kolieskového korčuľovania"},"Tury Richard",60000,0,"d","026 03","B","42132690d","42132690026 03",null,"42132690026 03B","Zväz slovenského kolieskového korčuľovaniadBTury Richard","42132690dB"]
["50671669",{"$f":"VLOOKUP(A478,Adr!A:B,2,FALSE)","v":"Zväz slovenského lyžovania"},"lyžovanie - bežné transfery",1629060,0,"a","026 02","B","50671669a","50671669026 02","lyžovanie","50671669026 02B","Zväz slovenského lyžovaniaaBlyžovanie - bežné transfery","50671669aB"]
["50671669",{"$f":"VLOOKUP(A479,Adr!A:B,2,FALSE)","v":"Zväz slovenského lyžovania"},"lyžovanie - kapitálové transfery",79500,0,"a","026 02","K","50671669a","50671669026 02","lyžovanie","50671669026 02K","Zväz slovenského lyžovaniaaKlyžovanie - kapitálové transfery","50671669aK"]
["50671669",{"$f":"VLOOKUP(A480,Adr!A:B,2,FALSE)","v":"Zväz slovenského lyžovania"},"zabezpečenie a rozvoj zdravotne postihnutých športovcov (SPV)",147071,0,"c","026 03","B","50671669c","50671669026 03",null,"50671669026 03B","Zväz slovenského lyžovaniacBzabezpečenie a rozvoj zdravotne postihnutých športovcov (SPV)","50671669cB"]
["50671669",{"$f":"VLOOKUP(A481,Adr!A:B,2,FALSE)","v":"Zväz slovenského lyžovania"},"France Martin",15000,0,"d","026 03","B","50671669d","50671669026 03",null,"50671669026 03B","Zväz slovenského lyžovaniadBFrance Martin","50671669dB"]
["50671669",{"$f":"VLOOKUP(A482,Adr!A:B,2,FALSE)","v":"Zväz slovenského lyžovania"},"Gašková Vanesa",20000,0,"d","026 03","B","50671669d","50671669026 03",null,"50671669026 03B","Zväz slovenského lyžovaniadBGašková Vanesa","50671669dB"]
["50671669",{"$f":"VLOOKUP(A483,Adr!A:B,2,FALSE)","v":"Zväz slovenského lyžovania"},"Haraus Miroslav + navádzač",48500,0,"d","026 03","B","50671669d","50671669026 03",null,"50671669026 03B","Zväz slovenského lyžovaniadBHaraus Miroslav + navádzač","50671669dB"]
["50671669",{"$f":"VLOOKUP(A484,Adr!A:B,2,FALSE)","v":"Zväz slovenského lyžovania"},"Krako Jakub + navádzač",36000,0,"d","026 03","B","50671669d","50671669026 03",null,"50671669026 03B","Zväz slovenského lyžovaniadBKrako Jakub + navádzač","50671669dB"]
["50671669",{"$f":"VLOOKUP(A485,Adr!A:B,2,FALSE)","v":"Zväz slovenského lyžovania"},"Kubačka Marek + navádzač",36000,0,"d","026 03","B","50671669d","50671669026 03",null,"50671669026 03B","Zväz slovenského lyžovaniadBKubačka Marek + navádzač","50671669dB"]
["50671669",{"$f":"VLOOKUP(A486,Adr!A:B,2,FALSE)","v":"Zväz slovenského lyžovania"},"Rexová Alexandra + navádzač",79100,0,"d","026 03","B","50671669d","50671669026 03",null,"50671669026 03B","Zväz slovenského lyžovaniadBRexová Alexandra + navádzač","50671669dB"]
["50671669",{"$f":"VLOOKUP(A487,Adr!A:B,2,FALSE)","v":"Zväz slovenského lyžovania"},"Rexová Alexandra + navádzač - kapitálové výdavky",2200,0,"d","026 03","K","50671669d","50671669026 03",null,"50671669026 03K","Zväz slovenského lyžovaniadKRexová Alexandra + navádzač - kapitálové výdavky","50671669dK"]
["50671669",{"$f":"VLOOKUP(A488,Adr!A:B,2,FALSE)","v":"Zväz slovenského lyžovania"},"Smaržová Petra",20000,0,"d","026 03","B","50671669d","50671669026 03",null,"50671669026 03B","Zväz slovenského lyžovaniadBSmaržová Petra","50671669dB"]
["50671669",{"$f":"VLOOKUP(A489,Adr!A:B,2,FALSE)","v":"Zväz slovenského lyžovania"},"Vlhová Petra",102000,0,"d","026 03","B","50671669d","50671669026 03",null,"50671669026 03B","Zväz slovenského lyžovaniadBVlhová Petra","50671669dB"]
["50671669",{"$f":"VLOOKUP(A490,Adr!A:B,2,FALSE)","v":"Zväz slovenského lyžovania"},"Žampa Adam",40000,0,"d","026 03","B","50671669d","50671669026 03",null,"50671669026 03B","Zväz slovenského lyžovaniadBŽampa Adam","50671669dB"]
["12664901",{"$f":"VLOOKUP(A491,Adr!A:B,2,FALSE)","v":"Zväz vodáctva a raftingu Slovenskej republiky"},"Plnenie úloh verejného záujmu v športe - rozvoj športu",5000,0,"f","026 03","B","12664901f","12664901026 03",null,"12664901026 03B","Zväz vodáctva a raftingu Slovenskej republikyfBPlnenie úloh verejného záujmu v športe - rozvoj športu","12664901fB"]
[null,{"$f":"VLOOKUP(A492,Adr!A:B,2,FALSE)","v":{"$error":"#N/A"}},null,null,null,null,null,null,"","",null,"",{"$error":"#N/A"},""]
[null,{"$f":"VLOOKUP(A493,Adr!A:B,2,FALSE)","v":{"$error":"#N/A"}},null,null,null,null,null,null,"","",null,"",{"$error":"#N/A"},""]
[null,{"$f":"VLOOKUP(A494,Adr!A:B,2,FALSE)","v":{"$error":"#N/A"}},null,null,null,null,null,null,"","",null,"",{"$error":"#N/A"},""]
[null,{"$f":"VLOOKUP(A495,Adr!A:B,2,FALSE)","v":{"$error":"#N/A"}},null,null,null,null,null,null,null,null,null,"",{"$error":"#N/A"},""]
[null,{"$f":"VLOOKUP(A496,Adr!A:B,2,FALSE)","v":{"$error":"#N/A"}},null,null,null,null,null,null,null,null,null,"",{"$error":"#N/A"},""]
[null,{"$f":"VLOOKUP(A497,Adr!A:B,2,FALSE)","v":{"$error":"#N/A"}},null,null,null,null,null,null,null,null,null,"",{"$error":"#N/A"},""]
[null,{"$f":"VLOOKUP(A498,Adr!A:B,2,FALSE)","v":{"$error":"#N/A"}},null,null,null,null,null,null,null,null,null,"",{"$error":"#N/A"},""]
[null,{"$f":"VLOOKUP(A499,Adr!A:B,2,FALSE)","v":{"$error":"#N/A"}},null,null,null,null,null,null,null,null,null,"",{"$error":"#N/A"},""]
[null,{"$f":"VLOOKUP(A500,Adr!A:B,2,FALSE)","v":{"$error":"#N/A"}},null,null,null,null,null,null,null,null,null,"",{"$error":"#N/A"},""]
[null,{"$f":"VLOOKUP(A501,Adr!A:B,2,FALSE)","v":{"$error":"#N/A"}},null,null,null,null,null,null,null,null,null,"",{"$error":"#N/A"},""]
[null,{"$f":"VLOOKUP(A502,Adr!A:B,2,FALSE)","v":{"$error":"#N/A"}},null,null,null,null,null,null,null,null,null,"",{"$error":"#N/A"},""]
[null,{"$f":"VLOOKUP(A503,Adr!A:B,2,FALSE)","v":{"$error":"#N/A"}},null,null,null,null,null,null,null,null,null,"",{"$error":"#N/A"},""]
[null,{"$f":"VLOOKUP(A504,Adr!A:B,2,FALSE)","v":{"$error":"#N/A"}},null,null,null,null,null,null,null,null,null,"",{"$error":"#N/A"},""]
[null,{"$f":"VLOOKUP(A505,Adr!A:B,2,FALSE)","v":{"$error":"#N/A"}},null,null,null,null,null,null,null,null,null,"",{"$error":"#N/A"},""]
[null,{"$f":"VLOOKUP(A506,Adr!A:B,2,FALSE)","v":{"$error":"#N/A"}},null,null,null,null,null,null,null,null,null,"",{"$error":"#N/A"},""]
[null,{"$f":"VLOOKUP(A507,Adr!A:B,2,FALSE)","v":{"$error":"#N/A"}},null,null,null,null,null,null,null,null,null,"",{"$error":"#N/A"},""]
[null,{"$f":"VLOOKUP(A508,Adr!A:B,2,FALSE)","v":{"$error":"#N/A"}},null,null,null,null,null,null,null,null,null,"",{"$error":"#N/A"},""]
[null,{"$f":"VLOOKUP(A509,Adr!A:B,2,FALSE)","v":{"$error":"#N/A"}},null,null,null,null,null,null,null,null,null,"",{"$error":"#N/A"},""]
[null,{"$f":"VLOOKUP(A510,Adr!A:B,2,FALSE)","v":{"$error":"#N/A"}},null,null,null,null,null,null,null,null,null,"",{"$error":"#N/A"},""]
[null,{"$f":"VLOOKUP(A511,Adr!A:B,2,FALSE)","v":{"$error":"#N/A"}},null,null,null,null,null,null,null,null,null,"",{"$error":"#N/A"},""]
[null,{"$f":"VLOOKUP(A512,Adr!A:B,2,FALSE)","v":{"$error":"#N/A"}},null,null,null,null,null,null,null,null,null,"",{"$error":"#N/A"},""]
[null,{"$f":"VLOOKUP(A513,Adr!A:B,2,FALSE)","v":{"$error":"#N/A"}},null,null,null,null,null,null,null,null,null,"",{"$error":"#N/A"},""]
[null,{"$f":"VLOOKUP(A514,Adr!A:B,2,FALSE)","v":{"$error":"#N/A"}},null,null,null,null,null,null,null,null,null,{"$f":"A514&G514&H514","v":""},{"$f":"B514&F514&H514&C514","v":{"$error":"#N/A"}},{"$f":"+I514&H514","v":""}]
[null,{"$f":"VLOOKUP(A515,Adr!A:B,2,FALSE)","v":{"$error":"#N/A"}},null,null,null,null,null,null,null,null,null,"",{"$error":"#N/A"},""]
[null,{"$f":"VLOOKUP(A516,Adr!A:B,2,FALSE)","v":{"$error":"#N/A"}},null,null,null,null,null,null,null,null,null,"",{"$error":"#N/A"},""]
[null,{"$f":"VLOOKUP(A517,Adr!A:B,2,FALSE)","v":{"$error":"#N/A"}},null,null,null,null,null,null,null,null,null,"",{"$error":"#N/A"},""]
[null,{"$f":"VLOOKUP(A518,Adr!A:B,2,FALSE)","v":{"$error":"#N/A"}},null,null,null,null,null,null,null,null,null,"",{"$error":"#N/A"},""]
[null,{"$f":"VLOOKUP(A519,Adr!A:B,2,FALSE)","v":{"$error":"#N/A"}},null,null,null,null,null,null,null,null,null,"",{"$error":"#N/A"},""]
[null,{"$f":"VLOOKUP(A520,Adr!A:B,2,FALSE)","v":{"$error":"#N/A"}},null,null,null,null,null,null,null,null,null,"",{"$error":"#N/A"},""]
[null,{"$f":"VLOOKUP(A521,Adr!A:B,2,FALSE)","v":{"$error":"#N/A"}},null,null,null,null,null,null,null,null,null,"",{"$error":"#N/A"},""]
[null,{"$f":"VLOOKUP(A522,Adr!A:B,2,FALSE)","v":{"$error":"#N/A"}},null,null,null,null,null,null,null,null,null,"",{"$error":"#N/A"},""]
[null,{"$f":"VLOOKUP(A523,Adr!A:B,2,FALSE)","v":{"$error":"#N/A"}},null,null,null,null,null,null,null,null,null,"",{"$error":"#N/A"},""]
[null,{"$f":"VLOOKUP(A524,Adr!A:B,2,FALSE)","v":{"$error":"#N/A"}},null,null,null,null,null,null,null,null,null,"",{"$error":"#N/A"},""]
[null,{"$f":"VLOOKUP(A525,Adr!A:B,2,FALSE)","v":{"$error":"#N/A"}},null,null,null,null,null,null,null,null,null,"",{"$error":"#N/A"},""]
[null,{"$f":"VLOOKUP(A526,Adr!A:B,2,FALSE)","v":{"$error":"#N/A"}},null,null,null,null,null,null,null,null,null,"",{"$error":"#N/A"},""]
[null,{"$f":"VLOOKUP(A527,Adr!A:B,2,FALSE)","v":{"$error":"#N/A"}},null,null,null,null,null,null,null,null,null,"",{"$error":"#N/A"},""]
[null,{"$f":"VLOOKUP(A528,Adr!A:B,2,FALSE)","v":{"$error":"#N/A"}},null,null,null,null,null,null,null,null,null,"",{"$error":"#N/A"},""]
[null,{"$f":"VLOOKUP(A529,Adr!A:B,2,FALSE)","v":{"$error":"#N/A"}},null,null,null,null,null,null,null,null,null,"",{"$error":"#N/A"},""]
[null,{"$f":"VLOOKUP(A530,Adr!A:B,2,FALSE)","v":{"$error":"#N/A"}},null,null,null,null,null,null,null,null,null,"",{"$error":"#N/A"},""]
[null,{"$f":"VLOOKUP(A531,Adr!A:B,2,FALSE)","v":{"$error":"#N/A"}},null,null,null,null,null,null,null,null,null,"",{"$error":"#N/A"},""]
[null,{"$f":"VLOOKUP(A532,Adr!A:B,2,FALSE)","v":{"$error":"#N/A"}},null,null,null,null,null,null,null,null,null,"",{"$error":"#N/A"},""]
[null,{"$f":"VLOOKUP(A533,Adr!A:B,2,FALSE)","v":{"$error":"#N/A"}},null,null,null,null,null,null,null,null,null,"",{"$error":"#N/A"},""]
[null,{"$f":"VLOOKUP(A534,Adr!A:B,2,FALSE)","v":{"$error":"#N/A"}},null,null,null,null,null,null,null,null,null,"",{"$error":"#N/A"},""]
[null,{"$f":"VLOOKUP(A535,Adr!A:B,2,FALSE)","v":{"$error":"#N/A"}},null,null,null,null,null,null,null,null,null,"",{"$error":"#N/A"},""]
[null,{"$f":"VLOOKUP(A536,Adr!A:B,2,FALSE)","v":{"$error":"#N/A"}},null,null,null,null,null,null,null,null,null,"",{"$error":"#N/A"},""]
[null,{"$f":"VLOOKUP(A537,Adr!A:B,2,FALSE)","v":{"$error":"#N/A"}},null,null,null,null,null,null,null,null,null,"",{"$error":"#N/A"},""]
[null,{"$f":"VLOOKUP(A538,Adr!A:B,2,FALSE)","v":{"$error":"#N/A"}},null,null,null,null,null,null,null,null,null,"",{"$error":"#N/A"},""]
[null,{"$f":"VLOOKUP(A539,Adr!A:B,2,FALSE)","v":{"$error":"#N/A"}},null,null,null,null,null,null,null,null,null,"",{"$error":"#N/A"},""]
[null,{"$f":"VLOOKUP(A540,Adr!A:B,2,FALSE)","v":{"$error":"#N/A"}},null,null,null,null,null,null,null,null,null,"",{"$error":"#N/A"},""]
[null,{"$f":"VLOOKUP(A541,Adr!A:B,2,FALSE)","v":{"$error":"#N/A"}},null,null,null,null,null,null,null,null,null,"",{"$error":"#N/A"},""]
[null,{"$f":"VLOOKUP(A542,Adr!A:B,2,FALSE)","v":{"$error":"#N/A"}},null,null,null,null,null,null,null,null,null,"",{"$error":"#N/A"},""]
[null,{"$f":"VLOOKUP(A543,Adr!A:B,2,FALSE)","v":{"$error":"#N/A"}},null,null,null,null,null,null,null,null,null,"",{"$error":"#N/A"},""]
[null,{"$f":"VLOOKUP(A544,Adr!A:B,2,FALSE)","v":{"$error":"#N/A"}},null,null,null,null,null,null,null,null,null,"",{"$error":"#N/A"},""]
[null,{"$f":"VLOOKUP(A545,Adr!A:B,2,FALSE)","v":{"$error":"#N/A"}},null,null,null,null,null,null,null,null,null,"",{"$error":"#N/A"},""]
[null,{"$f":"VLOOKUP(A546,Adr!A:B,2,FALSE)","v":{"$error":"#N/A"}},null,null,null,null,null,null,null,null,null,"",{"$error":"#N/A"},""]
[null,{"$f":"VLOOKUP(A547,Adr!A:B,2,FALSE)","v":{"$error":"#N/A"}},null,null,null,null,null,null,null,null,null,"",{"$error":"#N/A"},""]
[null,{"$f":"VLOOKUP(A548,Adr!A:B,2,FALSE)","v":{"$error":"#N/A"}},null,null,null,null,null,null,null,null,null,"",{"$error":"#N/A"},""]
[null,{"$f":"VLOOKUP(A549,Adr!A:B,2,FALSE)","v":{"$error":"#N/A"}},null,null,null,null,null,null,null,null,null,"",{"$error":"#N/A"},""]
[null,{"$f":"VLOOKUP(A550,Adr!A:B,2,FALSE)","v":{"$error":"#N/A"}},null,null,null,null,null,null,null,null,null,"",{"$error":"#N/A"},""]
[null,{"$f":"VLOOKUP(A551,Adr!A:B,2,FALSE)","v":{"$error":"#N/A"}},null,null,null,null,null,null,null,null,null,"",{"$error":"#N/A"},""]
[null,{"$f":"VLOOKUP(A552,Adr!A:B,2,FALSE)","v":{"$error":"#N/A"}},null,null,null,null,null,null,null,null,null,"",{"$error":"#N/A"},""]
[null,{"$f":"VLOOKUP(A553,Adr!A:B,2,FALSE)","v":{"$error":"#N/A"}},null,null,null,null,null,null,null,null,null,"",{"$error":"#N/A"},""]
[null,{"$f":"VLOOKUP(A554,Adr!A:B,2,FALSE)","v":{"$error":"#N/A"}},null,null,null,null,null,null,null,null,null,"",{"$error":"#N/A"},""]
[null,{"$f":"VLOOKUP(A555,Adr!A:B,2,FALSE)","v":{"$error":"#N/A"}},null,null,null,null,null,null,null,null,null,"",{"$error":"#N/A"},""]
[null,{"$f":"VLOOKUP(A556,Adr!A:B,2,FALSE)","v":{"$error":"#N/A"}},null,null,null,null,null,null,null,null,null,"",{"$error":"#N/A"},""]
[null,{"$f":"VLOOKUP(A557,Adr!A:B,2,FALSE)","v":{"$error":"#N/A"}},null,null,null,null,null,null,null,null,null,"",{"$error":"#N/A"},""]
[null,{"$f":"VLOOKUP(A558,Adr!A:B,2,FALSE)","v":{"$error":"#N/A"}},null,null,null,null,null,null,null,null,null,"",{"$error":"#N/A"},""]
[null,{"$f":"VLOOKUP(A559,Adr!A:B,2,FALSE)","v":{"$error":"#N/A"}},null,null,null,null,null,null,null,null,null,"",{"$error":"#N/A"},""]
[null,{"$f":"VLOOKUP(A560,Adr!A:B,2,FALSE)","v":{"$error":"#N/A"}},null,null,null,null,null,null,null,null,null,"",{"$error":"#N/A"},""]
[null,{"$f":"VLOOKUP(A561,Adr!A:B,2,FALSE)","v":{"$error":"#N/A"}},null,null,null,null,null,null,null,null,null,"",{"$error":"#N/A"},""]
[null,{"$f":"VLOOKUP(A562,Adr!A:B,2,FALSE)","v":{"$error":"#N/A"}},null,null,null,null,null,null,null,null,null,"",{"$error":"#N/A"},""]
[null,{"$f":"VLOOKUP(A563,Adr!A:B,2,FALSE)","v":{"$error":"#N/A"}},null,null,null,null,null,null,null,null,null,"",{"$error":"#N/A"},""]
[null,{"$f":"VLOOKUP(A564,Adr!A:B,2,FALSE)","v":{"$error":"#N/A"}},null,null,null,null,null,null,null,null,null,"",{"$error":"#N/A"},""]
[null,{"$f":"VLOOKUP(A565,Adr!A:B,2,FALSE)","v":{"$error":"#N/A"}},null,null,null,null,null,null,null,null,null,"",{"$error":"#N/A"},""]
[null,{"$f":"VLOOKUP(A566,Adr!A:B,2,FALSE)","v":{"$error":"#N/A"}},null,null,null,null,null,null,null,null,null,"",{"$error":"#N/A"},""]
[null,{"$f":"VLOOKUP(A567,Adr!A:B,2,FALSE)","v":{"$error":"#N/A"}},null,null,null,null,null,null,null,null,null,"",{"$error":"#N/A"},""]
[null,{"$f":"VLOOKUP(A568,Adr!A:B,2,FALSE)","v":{"$error":"#N/A"}},null,null,null,null,null,null,null,null,null,"",{"$error":"#N/A"},""]
[null,{"$f":"VLOOKUP(A569,Adr!A:B,2,FALSE)","v":{"$error":"#N/A"}},null,null,null,null,null,null,null,null,null,"",{"$error":"#N/A"},""]
[null,{"$f":"VLOOKUP(A570,Adr!A:B,2,FALSE)","v":{"$error":"#N/A"}},null,null,null,null,null,null,null,null,null,"",{"$error":"#N/A"},""]
[null,{"$f":"VLOOKUP(A571,Adr!A:B,2,FALSE)","v":{"$error":"#N/A"}},null,null,null,null,null,null,null,null,null,"",{"$error":"#N/A"},""]
[null,{"$f":"VLOOKUP(A572,Adr!A:B,2,FALSE)","v":{"$error":"#N/A"}},null,null,null,null,null,null,null,null,null,"",{"$error":"#N/A"},""]
[null,{"$f":"VLOOKUP(A573,Adr!A:B,2,FALSE)","v":{"$error":"#N/A"}},null,null,null,null,null,null,null,null,null,"",{"$error":"#N/A"},""]
[null,{"$f":"VLOOKUP(A574,Adr!A:B,2,FALSE)","v":{"$error":"#N/A"}},null,null,null,null,null,null,null,null,null,"",{"$error":"#N/A"},""]
[null,{"$f":"VLOOKUP(A575,Adr!A:B,2,FALSE)","v":{"$error":"#N/A"}},null,null,null,null,null,null,null,null,null,"",{"$error":"#N/A"},""]
[null,{"$f":"VLOOKUP(A576,Adr!A:B,2,FALSE)","v":{"$error":"#N/A"}},null,null,null,null,null,null,null,null,null,"",{"$error":"#N/A"},""]
[null,{"$f":"VLOOKUP(A577,Adr!A:B,2,FALSE)","v":{"$error":"#N/A"}},null,null,null,null,null,null,null,null,null,"",{"$error":"#N/A"},""]
[null,{"$f":"VLOOKUP(A578,Adr!A:B,2,FALSE)","v":{"$error":"#N/A"}},null,null,null,null,null,null,null,null,null,{"$f":"A578&G578&H578","v":""},{"$f":"B578&F578&H578&C578","v":{"$error":"#N/A"}},{"$f":"+I578&H578","v":""}]
[null,{"$f":"VLOOKUP(A579,Adr!A:B,2,FALSE)","v":{"$error":"#N/A"}},null,null,null,null,null,null,null,null,null,"",{"$error":"#N/A"},""]
[null,{"$f":"VLOOKUP(A580,Adr!A:B,2,FALSE)","v":{"$error":"#N/A"}},null,null,null,null,null,null,null,null,null,"",{"$error":"#N/A"},""]
[null,{"$f":"VLOOKUP(A581,Adr!A:B,2,FALSE)","v":{"$error":"#N/A"}},null,null,null,null,null,null,null,null,null,"",{"$error":"#N/A"},""]
[null,{"$f":"VLOOKUP(A582,Adr!A:B,2,FALSE)","v":{"$error":"#N/A"}},null,null,null,null,null,null,null,null,null,"",{"$error":"#N/A"},""]
[null,{"$f":"VLOOKUP(A583,Adr!A:B,2,FALSE)","v":{"$error":"#N/A"}},null,null,null,null,null,null,null,null,null,"",{"$error":"#N/A"},""]
[null,{"$f":"VLOOKUP(A584,Adr!A:B,2,FALSE)","v":{"$error":"#N/A"}},null,null,null,null,null,null,null,null,null,"",{"$error":"#N/A"},""]
[null,{"$f":"VLOOKUP(A585,Adr!A:B,2,FALSE)","v":{"$error":"#N/A"}},null,null,null,null,null,null,null,null,null,"",{"$error":"#N/A"},""]
[null,{"$f":"VLOOKUP(A586,Adr!A:B,2,FALSE)","v":{"$error":"#N/A"}},null,null,null,null,null,null,null,null,null,"",{"$error":"#N/A"},""]
[null,{"$f":"VLOOKUP(A587,Adr!A:B,2,FALSE)","v":{"$error":"#N/A"}},null,null,null,null,null,null,null,null,null,"",{"$error":"#N/A"},""]
[null,{"$f":"VLOOKUP(A588,Adr!A:B,2,FALSE)","v":{"$error":"#N/A"}},null,null,null,null,null,null,null,null,null,"",{"$error":"#N/A"},""]
[null,{"$f":"VLOOKUP(A589,Adr!A:B,2,FALSE)","v":{"$error":"#N/A"}},null,null,null,null,null,null,null,null,null,"",{"$error":"#N/A"},""]
[null,{"$f":"VLOOKUP(A590,Adr!A:B,2,FALSE)","v":{"$error":"#N/A"}},null,null,null,null,null,null,null,null,null,"",{"$error":"#N/A"},""]
[null,{"$f":"VLOOKUP(A591,Adr!A:B,2,FALSE)","v":{"$error":"#N/A"}},null,null,null,null,null,null,null,null,null,"",{"$error":"#N/A"},""]
[null,{"$f":"VLOOKUP(A592,Adr!A:B,2,FALSE)","v":{"$error":"#N/A"}},null,null,null,null,null,null,null,null,null,"",{"$error":"#N/A"},""]
[null,{"$f":"VLOOKUP(A593,Adr!A:B,2,FALSE)","v":{"$error":"#N/A"}},null,null,null,null,null,null,null,null,null,"",{"$error":"#N/A"},""]
[null,{"$f":"VLOOKUP(A594,Adr!A:B,2,FALSE)","v":{"$error":"#N/A"}},null,null,null,null,null,null,null,null,null,"",{"$error":"#N/A"},""]
[null,{"$f":"VLOOKUP(A595,Adr!A:B,2,FALSE)","v":{"$error":"#N/A"}},null,null,null,null,null,null,null,null,null,"",{"$error":"#N/A"},""]
[null,{"$f":"VLOOKUP(A596,Adr!A:B,2,FALSE)","v":{"$error":"#N/A"}},null,null,null,null,null,null,null,null,null,"",{"$error":"#N/A"},""]
[null,{"$f":"VLOOKUP(A597,Adr!A:B,2,FALSE)","v":{"$error":"#N/A"}},null,null,null,null,null,null,null,null,null,"",{"$error":"#N/A"},""]
[null,{"$f":"VLOOKUP(A598,Adr!A:B,2,FALSE)","v":{"$error":"#N/A"}},null,null,null,null,null,null,null,null,null,"",{"$error":"#N/A"},""]
[null,{"$f":"VLOOKUP(A599,Adr!A:B,2,FALSE)","v":{"$error":"#N/A"}},null,null,null,null,null,null,null,null,null,"",{"$error":"#N/A"},""]
[null,{"$f":"VLOOKUP(A600,Adr!A:B,2,FALSE)","v":{"$error":"#N/A"}},null,null,null,null,null,null,null,null,null,"",{"$error":"#N/A"},""]
[null,{"$f":"VLOOKUP(A601,Adr!A:B,2,FALSE)","v":{"$error":"#N/A"}},null,null,null,null,null,null,null,null,null,"",{"$error":"#N/A"},""]
[null,{"$f":"VLOOKUP(A602,Adr!A:B,2,FALSE)","v":{"$error":"#N/A"}},null,null,null,null,null,null,null,null,null,"",{"$error":"#N/A"},""]
[null,{"$f":"VLOOKUP(A603,Adr!A:B,2,FALSE)","v":{"$error":"#N/A"}},null,null,null,null,null,null,null,null,null,"",{"$error":"#N/A"},""]
[null,{"$f":"VLOOKUP(A604,Adr!A:B,2,FALSE)","v":{"$error":"#N/A"}},null,null,null,null,null,null,null,null,null,"",{"$error":"#N/A"},""]
[null,{"$f":"VLOOKUP(A605,Adr!A:B,2,FALSE)","v":{"$error":"#N/A"}},null,null,null,null,null,null,null,null,null,"",{"$error":"#N/A"},""]
[null,{"$f":"VLOOKUP(A606,Adr!A:B,2,FALSE)","v":{"$error":"#N/A"}},null,null,null,null,null,null,null,null,null,"",{"$error":"#N/A"},""]
[null,{"$f":"VLOOKUP(A607,Adr!A:B,2,FALSE)","v":{"$error":"#N/A"}},null,null,null,null,null,null,null,null,null,"",{"$error":"#N/A"},""]
[null,{"$f":"VLOOKUP(A608,Adr!A:B,2,FALSE)","v":{"$error":"#N/A"}},null,null,null,null,null,null,null,null,null,"",{"$error":"#N/A"},""]
[null,{"$f":"VLOOKUP(A609,Adr!A:B,2,FALSE)","v":{"$error":"#N/A"}},null,null,null,null,null,null,null,null,null,"",{"$error":"#N/A"},""]
[null,{"$f":"VLOOKUP(A610,Adr!A:B,2,FALSE)","v":{"$error":"#N/A"}},null,null,null,null,null,null,null,null,null,"",{"$error":"#N/A"},""]
[null,{"$f":"VLOOKUP(A611,Adr!A:B,2,FALSE)","v":{"$error":"#N/A"}},null,null,null,null,null,null,null,null,null,"",{"$error":"#N/A"},""]
[null,{"$f":"VLOOKUP(A612,Adr!A:B,2,FALSE)","v":{"$error":"#N/A"}},null,null,null,null,null,null,null,null,null,"",{"$error":"#N/A"},""]
[null,{"$f":"VLOOKUP(A613,Adr!A:B,2,FALSE)","v":{"$error":"#N/A"}},null,null,null,null,null,null,null,null,null,"",{"$error":"#N/A"},""]
[null,{"$f":"VLOOKUP(A614,Adr!A:B,2,FALSE)","v":{"$error":"#N/A"}},null,null,null,null,null,null,null,null,null,"",{"$error":"#N/A"},""]
[null,{"$f":"VLOOKUP(A615,Adr!A:B,2,FALSE)","v":{"$error":"#N/A"}},null,null,null,null,null,null,null,null,null,"",{"$error":"#N/A"},""]
[null,{"$f":"VLOOKUP(A616,Adr!A:B,2,FALSE)","v":{"$error":"#N/A"}},null,null,null,null,null,null,null,null,null,"",{"$error":"#N/A"},""]
[null,{"$f":"VLOOKUP(A617,Adr!A:B,2,FALSE)","v":{"$error":"#N/A"}},null,null,null,null,null,null,null,null,null,"",{"$error":"#N/A"},""]
[null,{"$f":"VLOOKUP(A618,Adr!A:B,2,FALSE)","v":{"$error":"#N/A"}},null,null,null,null,null,null,null,null,null,"",{"$error":"#N/A"},""]
[null,{"$f":"VLOOKUP(A619,Adr!A:B,2,FALSE)","v":{"$error":"#N/A"}},null,null,null,null,null,null,null,null,null,"",{"$error":"#N/A"},""]
[null,{"$f":"VLOOKUP(A620,Adr!A:B,2,FALSE)","v":{"$error":"#N/A"}},null,null,null,null,null,null,null,null,null,"",{"$error":"#N/A"},""]
[null,{"$f":"VLOOKUP(A621,Adr!A:B,2,FALSE)","v":{"$error":"#N/A"}},null,null,null,null,null,null,null,null,null,"",{"$error":"#N/A"},""]
[null,{"$f":"VLOOKUP(A622,Adr!A:B,2,FALSE)","v":{"$error":"#N/A"}},null,null,null,null,null,null,null,null,null,"",{"$error":"#N/A"},""]
[null,{"$f":"VLOOKUP(A623,Adr!A:B,2,FALSE)","v":{"$error":"#N/A"}},null,null,null,null,null,null,null,null,null,"",{"$error":"#N/A"},""]
[null,{"$f":"VLOOKUP(A624,Adr!A:B,2,FALSE)","v":{"$error":"#N/A"}},null,null,null,null,null,null,null,null,null,"",{"$error":"#N/A"},""]
[null,{"$f":"VLOOKUP(A625,Adr!A:B,2,FALSE)","v":{"$error":"#N/A"}},null,null,null,null,null,null,null,null,null,"",{"$error":"#N/A"},""]
[null,{"$f":"VLOOKUP(A626,Adr!A:B,2,FALSE)","v":{"$error":"#N/A"}},null,null,null,null,null,null,null,null,null,"",{"$error":"#N/A"},""]
[null,{"$f":"VLOOKUP(A627,Adr!A:B,2,FALSE)","v":{"$error":"#N/A"}},null,null,null,null,null,null,null,null,null,"",{"$error":"#N/A"},""]
[null,{"$f":"VLOOKUP(A628,Adr!A:B,2,FALSE)","v":{"$error":"#N/A"}},null,null,null,null,null,null,null,null,null,"",{"$error":"#N/A"},""]
[null,{"$f":"VLOOKUP(A629,Adr!A:B,2,FALSE)","v":{"$error":"#N/A"}},null,null,null,null,null,null,null,null,null,"",{"$error":"#N/A"},""]
[null,{"$f":"VLOOKUP(A630,Adr!A:B,2,FALSE)","v":{"$error":"#N/A"}},null,null,null,null,null,null,null,null,null,"",{"$error":"#N/A"},""]
[null,{"$f":"VLOOKUP(A631,Adr!A:B,2,FALSE)","v":{"$error":"#N/A"}},null,null,null,null,null,null,null,null,null,"",{"$error":"#N/A"},""]
[null,{"$f":"VLOOKUP(A632,Adr!A:B,2,FALSE)","v":{"$error":"#N/A"}},null,null,null,null,null,null,null,null,null,"",{"$error":"#N/A"},""]
[null,{"$f":"VLOOKUP(A633,Adr!A:B,2,FALSE)","v":{"$error":"#N/A"}},null,null,null,null,null,null,null,null,null,"",{"$error":"#N/A"},""]
[null,{"$f":"VLOOKUP(A634,Adr!A:B,2,FALSE)","v":{"$error":"#N/A"}},null,null,null,null,null,null,null,null,null,"",{"$error":"#N/A"},""]
[null,{"$f":"VLOOKUP(A635,Adr!A:B,2,FALSE)","v":{"$error":"#N/A"}},null,null,null,null,null,null,null,null,null,"",{"$error":"#N/A"},""]
[null,{"$f":"VLOOKUP(A636,Adr!A:B,2,FALSE)","v":{"$error":"#N/A"}},null,null,null,null,null,null,null,null,null,"",{"$error":"#N/A"},""]
[null,{"$f":"VLOOKUP(A637,Adr!A:B,2,FALSE)","v":{"$error":"#N/A"}},null,null,null,null,null,null,null,null,null,"",{"$error":"#N/A"},""]
[null,{"$f":"VLOOKUP(A638,Adr!A:B,2,FALSE)","v":{"$error":"#N/A"}},null,null,null,null,null,null,null,null,null,"",{"$error":"#N/A"},""]
[null,{"$f":"VLOOKUP(A639,Adr!A:B,2,FALSE)","v":{"$error":"#N/A"}},null,null,null,null,null,null,null,null,null,"",{"$error":"#N/A"},""]
[null,{"$f":"VLOOKUP(A640,Adr!A:B,2,FALSE)","v":{"$error":"#N/A"}},null,null,null,null,null,null,null,null,null,"",{"$error":"#N/A"},""]
[null,{"$f":"VLOOKUP(A641,Adr!A:B,2,FALSE)","v":{"$error":"#N/A"}},null,null,null,null,null,null,null,null,null,"",{"$error":"#N/A"},""]
[null,{"$f":"VLOOKUP(A642,Adr!A:B,2,FALSE)","v":{"$error":"#N/A"}},null,null,null,null,null,null,null,null,null,{"$f":"A642&G642&H642","v":""},{"$f":"B642&F642&H642&C642","v":{"$error":"#N/A"}},{"$f":"+I642&H642","v":""}]
[null,{"$f":"VLOOKUP(A643,Adr!A:B,2,FALSE)","v":{"$error":"#N/A"}},null,null,null,null,null,null,null,null,null,"",{"$error":"#N/A"},""]
[null,{"$f":"VLOOKUP(A644,Adr!A:B,2,FALSE)","v":{"$error":"#N/A"}},null,null,null,null,null,null,null,null,null,"",{"$error":"#N/A"},""]
[null,{"$f":"VLOOKUP(A645,Adr!A:B,2,FALSE)","v":{"$error":"#N/A"}},null,null,null,null,null,null,null,null,null,"",{"$error":"#N/A"},""]
[null,{"$f":"VLOOKUP(A646,Adr!A:B,2,FALSE)","v":{"$error":"#N/A"}},null,null,null,null,null,null,null,null,null,"",{"$error":"#N/A"},""]
[null,{"$f":"VLOOKUP(A647,Adr!A:B,2,FALSE)","v":{"$error":"#N/A"}},null,null,null,null,null,null,null,null,null,"",{"$error":"#N/A"},""]
[null,{"$f":"VLOOKUP(A648,Adr!A:B,2,FALSE)","v":{"$error":"#N/A"}},null,null,null,null,null,null,null,null,null,"",{"$error":"#N/A"},""]
[null,{"$f":"VLOOKUP(A649,Adr!A:B,2,FALSE)","v":{"$error":"#N/A"}},null,null,null,null,null,null,null,null,null,"",{"$error":"#N/A"},""]
[null,{"$f":"VLOOKUP(A650,Adr!A:B,2,FALSE)","v":{"$error":"#N/A"}},null,null,null,null,null,null,null,null,null,"",{"$error":"#N/A"},""]
[null,{"$f":"VLOOKUP(A651,Adr!A:B,2,FALSE)","v":{"$error":"#N/A"}},null,null,null,null,null,null,null,null,null,"",{"$error":"#N/A"},""]
[null,{"$f":"VLOOKUP(A652,Adr!A:B,2,FALSE)","v":{"$error":"#N/A"}},null,null,null,null,null,null,null,null,null,"",{"$error":"#N/A"},""]
[null,{"$f":"VLOOKUP(A653,Adr!A:B,2,FALSE)","v":{"$error":"#N/A"}},null,null,null,null,null,null,null,null,null,"",{"$error":"#N/A"},""]
[null,{"$f":"VLOOKUP(A654,Adr!A:B,2,FALSE)","v":{"$error":"#N/A"}},null,null,null,null,null,null,null,null,null,"",{"$error":"#N/A"},""]
[null,{"$f":"VLOOKUP(A655,Adr!A:B,2,FALSE)","v":{"$error":"#N/A"}},null,null,null,null,null,null,null,null,null,"",{"$error":"#N/A"},""]
[null,{"$f":"VLOOKUP(A656,Adr!A:B,2,FALSE)","v":{"$error":"#N/A"}},null,null,null,null,null,null,null,null,null,"",{"$error":"#N/A"},""]
[null,{"$f":"VLOOKUP(A657,Adr!A:B,2,FALSE)","v":{"$error":"#N/A"}},null,null,null,null,null,null,null,null,null,"",{"$error":"#N/A"},""]
[null,{"$f":"VLOOKUP(A658,Adr!A:B,2,FALSE)","v":{"$error":"#N/A"}},null,null,null,null,null,null,null,null,null,"",{"$error":"#N/A"},""]
[null,{"$f":"VLOOKUP(A659,Adr!A:B,2,FALSE)","v":{"$error":"#N/A"}},null,null,null,null,null,null,null,null,null,"",{"$error":"#N/A"},""]
[null,{"$f":"VLOOKUP(A660,Adr!A:B,2,FALSE)","v":{"$error":"#N/A"}},null,null,null,null,null,null,null,null,null,"",{"$error":"#N/A"},""]
[null,{"$f":"VLOOKUP(A661,Adr!A:B,2,FALSE)","v":{"$error":"#N/A"}},null,null,null,null,null,null,null,null,null,"",{"$error":"#N/A"},""]
[null,{"$f":"VLOOKUP(A662,Adr!A:B,2,FALSE)","v":{"$error":"#N/A"}},null,null,null,null,null,null,null,null,null,"",{"$error":"#N/A"},""]
[null,{"$f":"VLOOKUP(A663,Adr!A:B,2,FALSE)","v":{"$error":"#N/A"}},null,null,null,null,null,null,null,null,null,"",{"$error":"#N/A"},""]
[null,{"$f":"VLOOKUP(A664,Adr!A:B,2,FALSE)","v":{"$error":"#N/A"}},null,null,null,null,null,null,null,null,null,"",{"$error":"#N/A"},""]
[null,{"$f":"VLOOKUP(A665,Adr!A:B,2,FALSE)","v":{"$error":"#N/A"}},null,null,null,null,null,null,null,null,null,"",{"$error":"#N/A"},""]
[null,{"$f":"VLOOKUP(A666,Adr!A:B,2,FALSE)","v":{"$error":"#N/A"}},null,null,null,null,null,null,null,null,null,"",{"$error":"#N/A"},""]
[null,{"$f":"VLOOKUP(A667,Adr!A:B,2,FALSE)","v":{"$error":"#N/A"}},null,null,null,null,null,null,null,null,null,"",{"$error":"#N/A"},""]
[null,{"$f":"VLOOKUP(A668,Adr!A:B,2,FALSE)","v":{"$error":"#N/A"}},null,null,null,null,null,null,null,null,null,"",{"$error":"#N/A"},""]
[null,{"$f":"VLOOKUP(A669,Adr!A:B,2,FALSE)","v":{"$error":"#N/A"}},null,null,null,null,null,null,null,null,null,"",{"$error":"#N/A"},""]
[null,{"$f":"VLOOKUP(A670,Adr!A:B,2,FALSE)","v":{"$error":"#N/A"}},null,null,null,null,null,null,null,null,null,"",{"$error":"#N/A"},""]
[null,{"$f":"VLOOKUP(A671,Adr!A:B,2,FALSE)","v":{"$error":"#N/A"}},null,null,null,null,null,null,null,null,null,"",{"$error":"#N/A"},""]
[null,{"$f":"VLOOKUP(A672,Adr!A:B,2,FALSE)","v":{"$error":"#N/A"}},null,null,null,null,null,null,null,null,null,"",{"$error":"#N/A"},""]
[null,{"$f":"VLOOKUP(A673,Adr!A:B,2,FALSE)","v":{"$error":"#N/A"}},null,null,null,null,null,null,null,null,null,"",{"$error":"#N/A"},""]
[null,{"$f":"VLOOKUP(A674,Adr!A:B,2,FALSE)","v":{"$error":"#N/A"}},null,null,null,null,null,null,null,null,null,"",{"$error":"#N/A"},""]
[null,{"$f":"VLOOKUP(A675,Adr!A:B,2,FALSE)","v":{"$error":"#N/A"}},null,null,null,null,null,null,null,null,null,"",{"$error":"#N/A"},""]
[null,{"$f":"VLOOKUP(A676,Adr!A:B,2,FALSE)","v":{"$error":"#N/A"}},null,null,null,null,null,null,null,null,null,"",{"$error":"#N/A"},""]
[null,{"$f":"VLOOKUP(A677,Adr!A:B,2,FALSE)","v":{"$error":"#N/A"}},null,null,null,null,null,null,null,null,null,"",{"$error":"#N/A"},""]
[null,{"$f":"VLOOKUP(A678,Adr!A:B,2,FALSE)","v":{"$error":"#N/A"}},null,null,null,null,null,null,null,null,null,"",{"$error":"#N/A"},""]
[null,{"$f":"VLOOKUP(A679,Adr!A:B,2,FALSE)","v":{"$error":"#N/A"}},null,null,null,null,null,null,null,null,null,"",{"$error":"#N/A"},""]
[null,{"$f":"VLOOKUP(A680,Adr!A:B,2,FALSE)","v":{"$error":"#N/A"}},null,null,null,null,null,null,null,null,null,"",{"$error":"#N/A"},""]
[null,{"$f":"VLOOKUP(A681,Adr!A:B,2,FALSE)","v":{"$error":"#N/A"}},null,null,null,null,null,null,null,null,null,"",{"$error":"#N/A"},""]
[null,{"$f":"VLOOKUP(A682,Adr!A:B,2,FALSE)","v":{"$error":"#N/A"}},null,null,null,null,null,null,null,null,null,"",{"$error":"#N/A"},""]
[null,{"$f":"VLOOKUP(A683,Adr!A:B,2,FALSE)","v":{"$error":"#N/A"}},null,null,null,null,null,null,null,null,null,"",{"$error":"#N/A"},""]
[null,{"$f":"VLOOKUP(A684,Adr!A:B,2,FALSE)","v":{"$error":"#N/A"}},null,null,null,null,null,null,null,null,null,"",{"$error":"#N/A"},""]
[null,{"$f":"VLOOKUP(A685,Adr!A:B,2,FALSE)","v":{"$error":"#N/A"}},null,null,null,null,null,null,null,null,null,"",{"$error":"#N/A"},""]
[null,{"$f":"VLOOKUP(A686,Adr!A:B,2,FALSE)","v":{"$error":"#N/A"}},null,null,null,null,null,null,null,null,null,"",{"$error":"#N/A"},""]
[null,{"$f":"VLOOKUP(A687,Adr!A:B,2,FALSE)","v":{"$error":"#N/A"}},null,null,null,null,null,null,null,null,null,"",{"$error":"#N/A"},""]
[null,{"$f":"VLOOKUP(A688,Adr!A:B,2,FALSE)","v":{"$error":"#N/A"}},null,null,null,null,null,null,null,null,null,"",{"$error":"#N/A"},""]
[null,{"$f":"VLOOKUP(A689,Adr!A:B,2,FALSE)","v":{"$error":"#N/A"}},null,null,null,null,null,null,null,null,null,"",{"$error":"#N/A"},""]
[null,{"$f":"VLOOKUP(A690,Adr!A:B,2,FALSE)","v":{"$error":"#N/A"}},null,null,null,null,null,null,null,null,null,"",{"$error":"#N/A"},""]
[null,{"$f":"VLOOKUP(A691,Adr!A:B,2,FALSE)","v":{"$error":"#N/A"}},null,null,null,null,null,null,null,null,null,"",{"$error":"#N/A"},""]
[null,{"$f":"VLOOKUP(A692,Adr!A:B,2,FALSE)","v":{"$error":"#N/A"}},null,null,null,null,null,null,null,null,null,"",{"$error":"#N/A"},""]
[null,{"$f":"VLOOKUP(A693,Adr!A:B,2,FALSE)","v":{"$error":"#N/A"}},null,null,null,null,null,null,null,null,null,"",{"$error":"#N/A"},""]
[null,{"$f":"VLOOKUP(A694,Adr!A:B,2,FALSE)","v":{"$error":"#N/A"}},null,null,null,null,null,null,null,null,null,"",{"$error":"#N/A"},""]
[null,{"$f":"VLOOKUP(A695,Adr!A:B,2,FALSE)","v":{"$error":"#N/A"}},null,null,null,null,null,null,null,null,null,"",{"$error":"#N/A"},""]
[null,{"$f":"VLOOKUP(A696,Adr!A:B,2,FALSE)","v":{"$error":"#N/A"}},null,null,null,null,null,null,null,null,null,"",{"$error":"#N/A"},""]
[null,{"$f":"VLOOKUP(A697,Adr!A:B,2,FALSE)","v":{"$error":"#N/A"}},null,null,null,null,null,null,null,null,null,"",{"$error":"#N/A"},""]
[null,{"$f":"VLOOKUP(A698,Adr!A:B,2,FALSE)","v":{"$error":"#N/A"}},null,null,null,null,null,null,null,null,null,"",{"$error":"#N/A"},""]
[null,{"$f":"VLOOKUP(A699,Adr!A:B,2,FALSE)","v":{"$error":"#N/A"}},null,null,null,null,null,null,null,null,null,"",{"$error":"#N/A"},""]
[null,{"$f":"VLOOKUP(A700,Adr!A:B,2,FALSE)","v":{"$error":"#N/A"}},null,null,null,null,null,null,null,null,null,"",{"$error":"#N/A"},""]
[null,{"$f":"VLOOKUP(A701,Adr!A:B,2,FALSE)","v":{"$error":"#N/A"}},null,null,null,null,null,null,null,null,null,"",{"$error":"#N/A"},""]
[null,{"$f":"VLOOKUP(A702,Adr!A:B,2,FALSE)","v":{"$error":"#N/A"}},null,null,null,null,null,null,null,null,null,"",{"$error":"#N/A"},""]
[null,{"$f":"VLOOKUP(A703,Adr!A:B,2,FALSE)","v":{"$error":"#N/A"}},null,null,null,null,null,null,null,null,null,"",{"$error":"#N/A"},""]
[null,{"$f":"VLOOKUP(A704,Adr!A:B,2,FALSE)","v":{"$error":"#N/A"}},null,null,null,null,null,null,null,null,null,"",{"$error":"#N/A"},""]
[null,{"$f":"VLOOKUP(A705,Adr!A:B,2,FALSE)","v":{"$error":"#N/A"}},null,null,null,null,null,null,null,null,null,"",{"$error":"#N/A"},""]
[null,{"$f":"VLOOKUP(A706,Adr!A:B,2,FALSE)","v":{"$error":"#N/A"}},null,null,null,null,null,null,null,null,null,{"$f":"A706&G706&H706","v":""},{"$f":"B706&F706&H706&C706","v":{"$error":"#N/A"}},{"$f":"+I706&H706","v":""}]
[null,{"$f":"VLOOKUP(A707,Adr!A:B,2,FALSE)","v":{"$error":"#N/A"}},null,null,null,null,null,null,null,null,null,"",{"$error":"#N/A"},""]
[null,{"$f":"VLOOKUP(A708,Adr!A:B,2,FALSE)","v":{"$error":"#N/A"}},null,null,null,null,null,null,null,null,null,"",{"$error":"#N/A"},""]
[null,{"$f":"VLOOKUP(A709,Adr!A:B,2,FALSE)","v":{"$error":"#N/A"}},null,null,null,null,null,null,null,null,null,"",{"$error":"#N/A"},""]
[null,{"$f":"VLOOKUP(A710,Adr!A:B,2,FALSE)","v":{"$error":"#N/A"}},null,null,null,null,null,null,null,null,null,"",{"$error":"#N/A"},""]
[null,{"$f":"VLOOKUP(A711,Adr!A:B,2,FALSE)","v":{"$error":"#N/A"}},null,null,null,null,null,null,null,null,null,"",{"$error":"#N/A"},""]
[null,{"$f":"VLOOKUP(A712,Adr!A:B,2,FALSE)","v":{"$error":"#N/A"}},null,null,null,null,null,null,null,null,null,"",{"$error":"#N/A"},""]
[null,{"$f":"VLOOKUP(A713,Adr!A:B,2,FALSE)","v":{"$error":"#N/A"}},null,null,null,null,null,null,null,null,null,"",{"$error":"#N/A"},""]
[null,{"$f":"VLOOKUP(A714,Adr!A:B,2,FALSE)","v":{"$error":"#N/A"}},null,null,null,null,null,null,null,null,null,"",{"$error":"#N/A"},""]
[null,{"$f":"VLOOKUP(A715,Adr!A:B,2,FALSE)","v":{"$error":"#N/A"}},null,null,null,null,null,null,null,null,null,"",{"$error":"#N/A"},""]
[null,{"$f":"VLOOKUP(A716,Adr!A:B,2,FALSE)","v":{"$error":"#N/A"}},null,null,null,null,null,null,null,null,null,"",{"$error":"#N/A"},""]
[null,{"$f":"VLOOKUP(A717,Adr!A:B,2,FALSE)","v":{"$error":"#N/A"}},null,null,null,null,null,null,null,null,null,"",{"$error":"#N/A"},""]
[null,{"$f":"VLOOKUP(A718,Adr!A:B,2,FALSE)","v":{"$error":"#N/A"}},null,null,null,null,null,null,null,null,null,"",{"$error":"#N/A"},""]
[null,{"$f":"VLOOKUP(A719,Adr!A:B,2,FALSE)","v":{"$error":"#N/A"}},null,null,null,null,null,null,null,null,null,"",{"$error":"#N/A"},""]
[null,{"$f":"VLOOKUP(A720,Adr!A:B,2,FALSE)","v":{"$error":"#N/A"}},null,null,null,null,null,null,null,null,null,"",{"$error":"#N/A"},""]
[null,{"$f":"VLOOKUP(A721,Adr!A:B,2,FALSE)","v":{"$error":"#N/A"}},null,null,null,null,null,null,null,null,null,"",{"$error":"#N/A"},""]
[null,{"$f":"VLOOKUP(A722,Adr!A:B,2,FALSE)","v":{"$error":"#N/A"}},null,null,null,null,null,null,null,null,null,"",{"$error":"#N/A"},""]
[null,{"$f":"VLOOKUP(A723,Adr!A:B,2,FALSE)","v":{"$error":"#N/A"}},null,null,null,null,null,null,null,null,null,"",{"$error":"#N/A"},""]
[null,{"$f":"VLOOKUP(A724,Adr!A:B,2,FALSE)","v":{"$error":"#N/A"}},null,null,null,null,null,null,null,null,null,"",{"$error":"#N/A"},""]
[null,{"$f":"VLOOKUP(A725,Adr!A:B,2,FALSE)","v":{"$error":"#N/A"}},null,null,null,null,null,null,null,null,null,"",{"$error":"#N/A"},""]
[null,{"$f":"VLOOKUP(A726,Adr!A:B,2,FALSE)","v":{"$error":"#N/A"}},null,null,null,null,null,null,null,null,null,"",{"$error":"#N/A"},""]
[null,{"$f":"VLOOKUP(A727,Adr!A:B,2,FALSE)","v":{"$error":"#N/A"}},null,null,null,null,null,null,null,null,null,"",{"$error":"#N/A"},""]
[null,{"$f":"VLOOKUP(A728,Adr!A:B,2,FALSE)","v":{"$error":"#N/A"}},null,null,null,null,null,null,null,null,null,"",{"$error":"#N/A"},""]
[null,{"$f":"VLOOKUP(A729,Adr!A:B,2,FALSE)","v":{"$error":"#N/A"}},null,null,null,null,null,null,null,null,null,"",{"$error":"#N/A"},""]
[null,{"$f":"VLOOKUP(A730,Adr!A:B,2,FALSE)","v":{"$error":"#N/A"}},null,null,null,null,null,null,null,null,null,"",{"$error":"#N/A"},""]
[null,{"$f":"VLOOKUP(A731,Adr!A:B,2,FALSE)","v":{"$error":"#N/A"}},null,null,null,null,null,null,null,null,null,"",{"$error":"#N/A"},""]
[null,{"$f":"VLOOKUP(A732,Adr!A:B,2,FALSE)","v":{"$error":"#N/A"}},null,null,null,null,null,null,null,null,null,"",{"$error":"#N/A"},""]
[null,{"$f":"VLOOKUP(A733,Adr!A:B,2,FALSE)","v":{"$error":"#N/A"}},null,null,null,null,null,null,null,null,null,"",{"$error":"#N/A"},""]
[null,{"$f":"VLOOKUP(A734,Adr!A:B,2,FALSE)","v":{"$error":"#N/A"}},null,null,null,null,null,null,null,null,null,"",{"$error":"#N/A"},""]
[null,{"$f":"VLOOKUP(A735,Adr!A:B,2,FALSE)","v":{"$error":"#N/A"}},null,null,null,null,null,null,null,null,null,"",{"$error":"#N/A"},""]
[null,{"$f":"VLOOKUP(A736,Adr!A:B,2,FALSE)","v":{"$error":"#N/A"}},null,null,null,null,null,null,null,null,null,"",{"$error":"#N/A"},""]
[null,{"$f":"VLOOKUP(A737,Adr!A:B,2,FALSE)","v":{"$error":"#N/A"}},null,null,null,null,null,null,null,null,null,"",{"$error":"#N/A"},""]
[null,{"$f":"VLOOKUP(A738,Adr!A:B,2,FALSE)","v":{"$error":"#N/A"}},null,null,null,null,null,null,null,null,null,"",{"$error":"#N/A"},""]
[null,{"$f":"VLOOKUP(A739,Adr!A:B,2,FALSE)","v":{"$error":"#N/A"}},null,null,null,null,null,null,null,null,null,"",{"$error":"#N/A"},""]
[null,{"$f":"VLOOKUP(A740,Adr!A:B,2,FALSE)","v":{"$error":"#N/A"}},null,null,null,null,null,null,null,null,null,"",{"$error":"#N/A"},""]
[null,{"$f":"VLOOKUP(A741,Adr!A:B,2,FALSE)","v":{"$error":"#N/A"}},null,null,null,null,null,null,null,null,null,"",{"$error":"#N/A"},""]
[null,{"$f":"VLOOKUP(A742,Adr!A:B,2,FALSE)","v":{"$error":"#N/A"}},null,null,null,null,null,null,null,null,null,"",{"$error":"#N/A"},""]
[null,{"$f":"VLOOKUP(A743,Adr!A:B,2,FALSE)","v":{"$error":"#N/A"}},null,null,null,null,null,null,null,null,null,"",{"$error":"#N/A"},""]
[null,{"$f":"VLOOKUP(A744,Adr!A:B,2,FALSE)","v":{"$error":"#N/A"}},null,null,null,null,null,null,null,null,null,"",{"$error":"#N/A"},""]
[null,{"$f":"VLOOKUP(A745,Adr!A:B,2,FALSE)","v":{"$error":"#N/A"}},null,null,null,null,null,null,null,null,null,"",{"$error":"#N/A"},""]
[null,{"$f":"VLOOKUP(A746,Adr!A:B,2,FALSE)","v":{"$error":"#N/A"}},null,null,null,null,null,null,null,null,null,"",{"$error":"#N/A"},""]
[null,{"$f":"VLOOKUP(A747,Adr!A:B,2,FALSE)","v":{"$error":"#N/A"}},null,null,null,null,null,null,null,null,null,"",{"$error":"#N/A"},""]
[null,{"$f":"VLOOKUP(A748,Adr!A:B,2,FALSE)","v":{"$error":"#N/A"}},null,null,null,null,null,null,null,null,null,"",{"$error":"#N/A"},""]
[null,{"$f":"VLOOKUP(A749,Adr!A:B,2,FALSE)","v":{"$error":"#N/A"}},null,null,null,null,null,null,null,null,null,"",{"$error":"#N/A"},""]
[null,{"$f":"VLOOKUP(A750,Adr!A:B,2,FALSE)","v":{"$error":"#N/A"}},null,null,null,null,null,null,null,null,null,"",{"$error":"#N/A"},""]
[null,{"$f":"VLOOKUP(A751,Adr!A:B,2,FALSE)","v":{"$error":"#N/A"}},null,null,null,null,null,null,null,null,null,"",{"$error":"#N/A"},""]
[null,{"$f":"VLOOKUP(A752,Adr!A:B,2,FALSE)","v":{"$error":"#N/A"}},null,null,null,null,null,null,null,null,null,"",{"$error":"#N/A"},""]
[null,{"$f":"VLOOKUP(A753,Adr!A:B,2,FALSE)","v":{"$error":"#N/A"}},null,null,null,null,null,null,null,null,null,"",{"$error":"#N/A"},""]
[null,{"$f":"VLOOKUP(A754,Adr!A:B,2,FALSE)","v":{"$error":"#N/A"}},null,null,null,null,null,null,null,null,null,"",{"$error":"#N/A"},""]
[null,{"$f":"VLOOKUP(A755,Adr!A:B,2,FALSE)","v":{"$error":"#N/A"}},null,null,null,null,null,null,null,null,null,"",{"$error":"#N/A"},""]
[null,{"$f":"VLOOKUP(A756,Adr!A:B,2,FALSE)","v":{"$error":"#N/A"}},null,null,null,null,null,null,null,null,null,"",{"$error":"#N/A"},""]
[null,{"$f":"VLOOKUP(A757,Adr!A:B,2,FALSE)","v":{"$error":"#N/A"}},null,null,null,null,null,null,null,null,null,"",{"$error":"#N/A"},""]
[null,{"$f":"VLOOKUP(A758,Adr!A:B,2,FALSE)","v":{"$error":"#N/A"}},null,null,null,null,null,null,null,null,null,"",{"$error":"#N/A"},""]
[null,{"$f":"VLOOKUP(A759,Adr!A:B,2,FALSE)","v":{"$error":"#N/A"}},null,null,null,null,null,null,null,null,null,"",{"$error":"#N/A"},""]
[null,{"$f":"VLOOKUP(A760,Adr!A:B,2,FALSE)","v":{"$error":"#N/A"}},null,null,null,null,null,null,null,null,null,"",{"$error":"#N/A"},""]
[null,{"$f":"VLOOKUP(A761,Adr!A:B,2,FALSE)","v":{"$error":"#N/A"}},null,null,null,null,null,null,null,null,null,"",{"$error":"#N/A"},""]
[null,{"$f":"VLOOKUP(A762,Adr!A:B,2,FALSE)","v":{"$error":"#N/A"}},null,null,null,null,null,null,null,null,null,"",{"$error":"#N/A"},""]
[null,{"$f":"VLOOKUP(A763,Adr!A:B,2,FALSE)","v":{"$error":"#N/A"}},null,null,null,null,null,null,null,null,null,"",{"$error":"#N/A"},""]
[null,{"$f":"VLOOKUP(A764,Adr!A:B,2,FALSE)","v":{"$error":"#N/A"}},null,null,null,null,null,null,null,null,null,"",{"$error":"#N/A"},""]
[null,{"$f":"VLOOKUP(A765,Adr!A:B,2,FALSE)","v":{"$error":"#N/A"}},null,null,null,null,null,null,null,null,null,"",{"$error":"#N/A"},""]
[null,{"$f":"VLOOKUP(A766,Adr!A:B,2,FALSE)","v":{"$error":"#N/A"}},null,null,null,null,null,null,null,null,null,"",{"$error":"#N/A"},""]
[null,{"$f":"VLOOKUP(A767,Adr!A:B,2,FALSE)","v":{"$error":"#N/A"}},null,null,null,null,null,null,null,null,null,"",{"$error":"#N/A"},""]
[null,{"$f":"VLOOKUP(A768,Adr!A:B,2,FALSE)","v":{"$error":"#N/A"}},null,null,null,null,null,null,null,null,null,"",{"$error":"#N/A"},""]
[null,{"$f":"VLOOKUP(A769,Adr!A:B,2,FALSE)","v":{"$error":"#N/A"}},null,null,null,null,null,null,null,null,null,"",{"$error":"#N/A"},""]
[null,{"$f":"VLOOKUP(A770,Adr!A:B,2,FALSE)","v":{"$error":"#N/A"}},null,null,null,null,null,null,null,null,null,{"$f":"A770&G770&H770","v":""},{"$f":"B770&F770&H770&C770","v":{"$error":"#N/A"}},{"$f":"+I770&H770","v":""}]
[null,{"$f":"VLOOKUP(A771,Adr!A:B,2,FALSE)","v":{"$error":"#N/A"}},null,null,null,null,null,null,null,null,null,"",{"$error":"#N/A"},""]
[null,{"$f":"VLOOKUP(A772,Adr!A:B,2,FALSE)","v":{"$error":"#N/A"}},null,null,null,null,null,null,null,null,null,"",{"$error":"#N/A"},""]
[null,{"$f":"VLOOKUP(A773,Adr!A:B,2,FALSE)","v":{"$error":"#N/A"}},null,null,null,null,null,null,null,null,null,"",{"$error":"#N/A"},""]
[null,{"$f":"VLOOKUP(A774,Adr!A:B,2,FALSE)","v":{"$error":"#N/A"}},null,null,null,null,null,null,null,null,null,"",{"$error":"#N/A"},""]
[null,{"$f":"VLOOKUP(A775,Adr!A:B,2,FALSE)","v":{"$error":"#N/A"}},null,null,null,null,null,null,null,null,null,"",{"$error":"#N/A"},""]
[null,{"$f":"VLOOKUP(A776,Adr!A:B,2,FALSE)","v":{"$error":"#N/A"}},null,null,null,null,null,null,null,null,null,"",{"$error":"#N/A"},""]
[null,{"$f":"VLOOKUP(A777,Adr!A:B,2,FALSE)","v":{"$error":"#N/A"}},null,null,null,null,null,null,null,null,null,"",{"$error":"#N/A"},""]
[null,{"$f":"VLOOKUP(A778,Adr!A:B,2,FALSE)","v":{"$error":"#N/A"}},null,null,null,null,null,null,null,null,null,"",{"$error":"#N/A"},""]
[null,{"$f":"VLOOKUP(A779,Adr!A:B,2,FALSE)","v":{"$error":"#N/A"}},null,null,null,null,null,null,null,null,null,"",{"$error":"#N/A"},""]
[null,{"$f":"VLOOKUP(A780,Adr!A:B,2,FALSE)","v":{"$error":"#N/A"}},null,null,null,null,null,null,null,null,null,"",{"$error":"#N/A"},""]
[null,{"$f":"VLOOKUP(A781,Adr!A:B,2,FALSE)","v":{"$error":"#N/A"}},null,null,null,null,null,null,null,null,null,"",{"$error":"#N/A"},""]
[null,{"$f":"VLOOKUP(A782,Adr!A:B,2,FALSE)","v":{"$error":"#N/A"}},null,null,null,null,null,null,null,null,null,"",{"$error":"#N/A"},""]
[null,{"$f":"VLOOKUP(A783,Adr!A:B,2,FALSE)","v":{"$error":"#N/A"}},null,null,null,null,null,null,null,null,null,"",{"$error":"#N/A"},""]
[null,{"$f":"VLOOKUP(A784,Adr!A:B,2,FALSE)","v":{"$error":"#N/A"}},null,null,null,null,null,null,null,null,null,"",{"$error":"#N/A"},""]
[null,{"$f":"VLOOKUP(A785,Adr!A:B,2,FALSE)","v":{"$error":"#N/A"}},null,null,null,null,null,null,null,null,null,"",{"$error":"#N/A"},""]
[null,{"$f":"VLOOKUP(A786,Adr!A:B,2,FALSE)","v":{"$error":"#N/A"}},null,null,null,null,null,null,null,null,null,"",{"$error":"#N/A"},""]
[null,{"$f":"VLOOKUP(A787,Adr!A:B,2,FALSE)","v":{"$error":"#N/A"}},null,null,null,null,null,null,null,null,null,"",{"$error":"#N/A"},""]
[null,{"$f":"VLOOKUP(A788,Adr!A:B,2,FALSE)","v":{"$error":"#N/A"}},null,null,null,null,null,null,null,null,null,"",{"$error":"#N/A"},""]
[null,{"$f":"VLOOKUP(A789,Adr!A:B,2,FALSE)","v":{"$error":"#N/A"}},null,null,null,null,null,null,null,null,null,"",{"$error":"#N/A"},""]
[null,{"$f":"VLOOKUP(A790,Adr!A:B,2,FALSE)","v":{"$error":"#N/A"}},null,null,null,null,null,null,null,null,null,"",{"$error":"#N/A"},""]
[null,{"$f":"VLOOKUP(A791,Adr!A:B,2,FALSE)","v":{"$error":"#N/A"}},null,null,null,null,null,null,null,null,null,"",{"$error":"#N/A"},""]
[null,{"$f":"VLOOKUP(A792,Adr!A:B,2,FALSE)","v":{"$error":"#N/A"}},null,null,null,null,null,null,null,null,null,"",{"$error":"#N/A"},""]
[null,{"$f":"VLOOKUP(A793,Adr!A:B,2,FALSE)","v":{"$error":"#N/A"}},null,null,null,null,null,null,null,null,null,"",{"$error":"#N/A"},""]
[null,{"$f":"VLOOKUP(A794,Adr!A:B,2,FALSE)","v":{"$error":"#N/A"}},null,null,null,null,null,null,null,null,null,"",{"$error":"#N/A"},""]
[null,{"$f":"VLOOKUP(A795,Adr!A:B,2,FALSE)","v":{"$error":"#N/A"}},null,null,null,null,null,null,null,null,null,"",{"$error":"#N/A"},""]
[null,{"$f":"VLOOKUP(A796,Adr!A:B,2,FALSE)","v":{"$error":"#N/A"}},null,null,null,null,null,null,null,null,null,"",{"$error":"#N/A"},""]
[null,{"$f":"VLOOKUP(A797,Adr!A:B,2,FALSE)","v":{"$error":"#N/A"}},null,null,null,null,null,null,null,null,null,"",{"$error":"#N/A"},""]
[null,{"$f":"VLOOKUP(A798,Adr!A:B,2,FALSE)","v":{"$error":"#N/A"}},null,null,null,null,null,null,null,null,null,"",{"$error":"#N/A"},""]
[null,{"$f":"VLOOKUP(A799,Adr!A:B,2,FALSE)","v":{"$error":"#N/A"}},null,null,null,null,null,null,null,null,null,"",{"$error":"#N/A"},""]
[null,{"$f":"VLOOKUP(A800,Adr!A:B,2,FALSE)","v":{"$error":"#N/A"}},null,null,null,null,null,null,null,null,null,"",{"$error":"#N/A"},""]
[null,{"$f":"VLOOKUP(A801,Adr!A:B,2,FALSE)","v":{"$error":"#N/A"}},null,null,null,null,null,null,null,null,null,"",{"$error":"#N/A"},""]
[null,{"$f":"VLOOKUP(A802,Adr!A:B,2,FALSE)","v":{"$error":"#N/A"}},null,null,null,null,null,null,null,null,null,"",{"$error":"#N/A"},""]
[null,{"$f":"VLOOKUP(A803,Adr!A:B,2,FALSE)","v":{"$error":"#N/A"}},null,null,null,null,null,null,null,null,null,"",{"$error":"#N/A"},""]
[null,{"$f":"VLOOKUP(A804,Adr!A:B,2,FALSE)","v":{"$error":"#N/A"}},null,null,null,null,null,null,null,null,null,"",{"$error":"#N/A"},""]
[null,{"$f":"VLOOKUP(A805,Adr!A:B,2,FALSE)","v":{"$error":"#N/A"}},null,null,null,null,null,null,null,null,null,"",{"$error":"#N/A"},""]
[null,{"$f":"VLOOKUP(A806,Adr!A:B,2,FALSE)","v":{"$error":"#N/A"}},null,null,null,null,null,null,null,null,null,"",{"$error":"#N/A"},""]
[null,{"$f":"VLOOKUP(A807,Adr!A:B,2,FALSE)","v":{"$error":"#N/A"}},null,null,null,null,null,null,null,null,null,"",{"$error":"#N/A"},""]
[null,{"$f":"VLOOKUP(A808,Adr!A:B,2,FALSE)","v":{"$error":"#N/A"}},null,null,null,null,null,null,null,null,null,"",{"$error":"#N/A"},""]
[null,{"$f":"VLOOKUP(A809,Adr!A:B,2,FALSE)","v":{"$error":"#N/A"}},null,null,null,null,null,null,null,null,null,"",{"$error":"#N/A"},""]
[null,{"$f":"VLOOKUP(A810,Adr!A:B,2,FALSE)","v":{"$error":"#N/A"}},null,null,null,null,null,null,null,null,null,"",{"$error":"#N/A"},""]
[null,{"$f":"VLOOKUP(A811,Adr!A:B,2,FALSE)","v":{"$error":"#N/A"}},null,null,null,null,null,null,null,null,null,"",{"$error":"#N/A"},""]
[null,{"$f":"VLOOKUP(A812,Adr!A:B,2,FALSE)","v":{"$error":"#N/A"}},null,null,null,null,null,null,null,null,null,"",{"$error":"#N/A"},""]
[null,{"$f":"VLOOKUP(A813,Adr!A:B,2,FALSE)","v":{"$error":"#N/A"}},null,null,null,null,null,null,null,null,null,"",{"$error":"#N/A"},""]
[null,{"$f":"VLOOKUP(A814,Adr!A:B,2,FALSE)","v":{"$error":"#N/A"}},null,null,null,null,null,null,null,null,null,"",{"$error":"#N/A"},""]
[null,{"$f":"VLOOKUP(A815,Adr!A:B,2,FALSE)","v":{"$error":"#N/A"}},null,null,null,null,null,null,null,null,null,"",{"$error":"#N/A"},""]
[null,{"$f":"VLOOKUP(A816,Adr!A:B,2,FALSE)","v":{"$error":"#N/A"}},null,null,null,null,null,null,null,null,null,"",{"$error":"#N/A"},""]
[null,{"$f":"VLOOKUP(A817,Adr!A:B,2,FALSE)","v":{"$error":"#N/A"}},null,null,null,null,null,null,null,null,null,"",{"$error":"#N/A"},""]
[null,{"$f":"VLOOKUP(A818,Adr!A:B,2,FALSE)","v":{"$error":"#N/A"}},null,null,null,null,null,null,null,null,null,"",{"$error":"#N/A"},""]
[null,{"$f":"VLOOKUP(A819,Adr!A:B,2,FALSE)","v":{"$error":"#N/A"}},null,null,null,null,null,null,null,null,null,"",{"$error":"#N/A"},""]
[null,{"$f":"VLOOKUP(A820,Adr!A:B,2,FALSE)","v":{"$error":"#N/A"}},null,null,null,null,null,null,null,null,null,"",{"$error":"#N/A"},""]
[null,{"$f":"VLOOKUP(A821,Adr!A:B,2,FALSE)","v":{"$error":"#N/A"}},null,null,null,null,null,null,null,null,null,"",{"$error":"#N/A"},""]
[null,{"$f":"VLOOKUP(A822,Adr!A:B,2,FALSE)","v":{"$error":"#N/A"}},null,null,null,null,null,null,null,null,null,"",{"$error":"#N/A"},""]
[null,{"$f":"VLOOKUP(A823,Adr!A:B,2,FALSE)","v":{"$error":"#N/A"}},null,null,null,null,null,null,null,null,null,"",{"$error":"#N/A"},""]

{"sheet":"Cis","index":7,"n_rows":98,"n_cols":10,"rows_kept":98,"cut":false,"hidden":true,"merged":[]}
["Šport",null,"Účel","Účel rozšírený","Režim","PPG","Transfer",null,"PPG","PPG názov"]
["aikido",null,"a","šport 23 ",1,"026 02","Príspevok uznanému športu",null,"026 01","Šport pre všetkých, školský a univerzitný  šport"]
["americký futbal",null,"b","talenty",1,"026 02","Príspevok uznanému športu",null,"026 02","Uznané športy"]
["atletika",null,"c","reprezentácia",1,"026 02","Príspevok uznanému športu",null,"026 03","Národné športové projekty"]
["automobilový šport",null,"d","administratíva",1,"026 02","Príspevok uznanému športu",null,"026 04","Športová infraštruktúra"]
["bandy hokej",null,"e","ostatné",1,"026 02","Príspevok uznanému športu",null,"026 05","Prierezové činnosti"]
["basebal",null,"f","športovci",2,"026 03","Príspevok šporovcom top tímu"]
["basketbal",null,"g","SOV",3,"026 03","Príspevok Slovenskému olympijskému výboru"]
["baskická pelota",null,"h","SPV",3,"026 03","Príspevok slovenskému paralympijskému výboru"]
["bedminton",null,"i","účasť a mládež",4,"026 03","Dotácia"]
["biatlon",null,"j","multi a ŠPV",4,"026 01","Dotácia"]
["biliard",null,"k","trasy",4,"026 01","Dotácia"]
["boby a skeleton",null,"l","kampaň",4,"026 05","Dotácia"]
["boccia",null,"m","odmeny",4,"026 03","Dotácia"]
["boule lyonnaise",null,"n"]
["bowling",null,"o"]
["box",null,"p"]
["bridž",null,"q"]
["curling",null,"r"]
["cyklistika",null,"s"]
["dáma",null,"t"]
["dračie lode",null,"u"]
["dráhový golf",null,"v"]
["fistbal",null,"w"]
["florbal",null,"x"]
["futbal",null,"y"]
["go",null,"z"]
["golf"]
["gymnastika"]
["hádzaná"]
["horolezectvo"]
["jachting"]
["jazdectvo"]
["judo"]
["ju-jitsu"]
["kanoistika"]
["karate"]
["kendo"]
["kickbox"]
["kolieskové korčuľovanie"]
["korfbal"]
["krasokorčuľovanie"]
["kriket"]
["kulturistika a fitnes"]
["ľadové kužele"]
["ľadový hokej"]
["lakros"]
["letecké športy"]
["lukostreľba"]
["lyžovanie"]
["moderný päťboj"]
["motocyklový šport"]
["netbal"]
["orientačné športy"]
["petang"]
["plavecké športy"]
["pólo"]
["potápačské športy"]
["povzbudzovanie"]
["pozemný hokej"]
["preťahovanie lanom"]
["psie záprahy"]
["raketbal"]
["rugby"]
["rybolovná technika"]
["rýchlokorčuľovanie"]
["sambo"]
["sánkovanie"]
["savate"]
["sepaktakraw"]
["silové športy"]
["skialpinizmus"]
["soft tenis"]
["softbal"]
["squash"]
["stolný tenis"]
["streľba"]
["sumo"]
["surfovanie"]
["šach"]
["šerm"]
["šípky"]
["športové lezectvo"]
["športové rybárstvo"]
["športy s lietajúcim diskom"]
["taekwondo"]
["tanečný šport"]
["tenis"]
["thajský box"]
["triatlon"]
["veslovanie"]
["vodné lyžovanie"]
["vodné záchranárstvo"]
["vodný motorizmus"]
["volejbal"]
["vzpieranie"]
["wushu"]
["zápasenie"]

{"sheet":"Avízo_-_výnosy","index":8,"n_rows":30,"n_cols":16,"rows_kept":30,"cut":false,"hidden":false,"merged":[[21,1,21,2],[0,0,0,2],[2,4,3,5],[11,0,11,2],[13,0,13,2],[14,1,14,2]]}
[{"$f":"Spolu!C3&\", \"&Spolu!C6","v":"Slovenský zväz vodného lyžovania a wakeboardingu, Junácka 6, Bratislava, 832 80"},null,null,null,null,null,null,null,null,null,null,null,null,{"$f":"O1&\" - \"&P1","v":"a - príspevok uznaným športom"},"a","príspevok uznaným športom"]
[null,null,null,null,null,null,null,null,null,null,null,null,null,"b - príspevok Slovenskému olympijskému a športovému výboru","b","príspevok Slovenskému olympijskému a športovému výboru"]
[null,null,null,null,"1. VYPLŇTE ZELENÉ BUNKY\n2. VYTLAČTE, PODPÍŠTE A ODOŠLITE V LISTINNEJ PODOBE",null,null,null,null,null,null,null,null,"c - príspevok Slovenskému paralympijskému výboru","c","príspevok Slovenskému paralympijskému výboru"]
[null,null,null,null,null,null,null,null,null,null,null,null,null,"d - príspevok športovcom top tímu","d","príspevok športovcom top tímu"]
[null,null,"Ministerstvo školstva, vedy, výskumu a športu Slovenskej republiky",null,null,null,null,null,null,null,null,null,null,"e - rozvoj športov, ktoré nie sú uznanými podľa zákona č. 440/2015 Z. z.","e","rozvoj športov, ktoré nie sú uznanými podľa zákona č. 440/2015 Z. z."]
[null,null,"sekcia športu ",null,"Dátum poukázania vrátených prostriedkov:",null,null,null,null,null,null,null,null,"f - organizovanie významných a tradičných športových podujatí na území SR v roku 2020","f","organizovanie významných a tradičných športových podujatí na území SR v roku 2020"]
[null,null,"Stromová 1",null,"Suma vrátených prostriedkov (eur):",null,null,null,null,null,null,null,null,"g - projekty školského, univerzitného športu a športu pre všetkých","g","projekty školského, univerzitného športu a športu pre všetkých"]
[null,null,"813 30  Bratislava 1",null,"IBAN odosielajúceho účtu:",null,null,null,null,null,null,null,null,"h - podpora a rozvoj turistických a cykloturistických trás","h","podpora a rozvoj turistických a cykloturistických trás"]
[null,null,null,null,"Dátum odoslania AVÍZA:",null,null,null,null,null,null,null,null,"i - finančné odmeny športovcom za výsledky dosiahnuté v roku 2019 a trénerom mládeže za dosiahnuté výsledky ich športovcov v roku 2019 a za celoživotnú prácu s mládežou","i","finančné odmeny športovcom za výsledky dosiahnuté v roku 2019 a trénerom mládeže za dosiahnuté výsledky ich športovcov v roku 2019 a za celoživotnú prácu s mládežou"]
[null,null,null,null,null,null,null,null,null,null,null,null,null,"j - projekty pre popularizáciu pohybových aktivít detí, mládeže a seniorov","j","projekty pre popularizáciu pohybových aktivít detí, mládeže a seniorov"]
[null,null,null,null,null,null,null,null,null,null,null,null,null,"k - výstavba, modernizácia a rekonštrukcia športovej infraštruktúry národného významu","k","výstavba, modernizácia a rekonštrukcia športovej infraštruktúry národného významu"]
["Avízo o úhrade výnosov",null,null,null,null,null,null,null,null,null,null,null,null,"l - podpora zdravotne postihnutých športovcov","l","podpora zdravotne postihnutých športovcov"]
[null,null,null,null,null,null,null,null,null,null,null,null,null,"m - plnenie úloh verejného záujmu v športe národnými športovými organizáciami","m","plnenie úloh verejného záujmu v športe národnými športovými organizáciami"]
[{"$f":"\"Oznamujeme Vám, že dňa \"&TEXT(F6,\"dd..mm.yyyy\")&\" sme poukázali Ministerstvu školstva, vedy, výskumu a športu Slovenskej republiky výnosy z príspevku/dotácie poskytnutého/poskytnutej na úlohy v oblasti športu v roku 2023 v sume \"&TEXT(F7,\"### ### ###,00\")& \" eur. Finančné prostriedky vraciame z programu 026 Národný program rozvoja športu v SR.\"","v":"Oznamujeme Vám, že dňa 00.01.1900 sme poukázali Ministerstvu školstva, vedy, výskumu a športu Slovenskej republiky výnosy z príspevku/dotácie poskytnutého/poskytnutej na úlohy v oblasti športu v roku 2023 v sume ,00 eur. Finančné prostriedky vraciame z programu 026 Národný program rozvoja športu v SR."},null,null,null,null,null,null,null,null,null,null,null,null,"n - organizovanie významnej súťaže podľa § 55 ods. 1 písm. b)","n","organizovanie významnej súťaže podľa § 55 ods. 1 písm. b)"]
["z podprogramu:","026 02 - Uznané športy",null,null,null,null,null,null,null,null,null,null,null,"o - účasť na významnej súťaži podľa § 3 písm. h) druhého až štvrtého bodu Zákona o športe vrátane prípravy na túto súťaž","o","účasť na významnej súťaži podľa § 3 písm. h) druhého až štvrtého bodu Zákona o športe vrátane prípravy na túto súťaž"]
["z nášho účtu:",{"$f":"F8","v":0},null,null,"V prípade nejasností kontaktujte nasledovné osoby:",null,null,null,null,null,null,null,null,"p - účasť na významnej súťaži podľa § 3 písm. h) prvého bodu Zákona o športe","p","účasť na významnej súťaži podľa § 3 písm. h) prvého bodu Zákona o športe"]
["na účet:","SK68 8180 0000 0070 0006 3900",31,null,"Ing. Jaroslava Gregoríková","02 / 59374 763",null,null,null,null,null,null,null,"q - ","q"]
[null,"ŠS:",{"$f":"Spolu!C4","v":"30793203"},null,"Ing. Mária Horáková","02 / 59374 693",null,null,null,null,null,null,null,"r - ","r"]
[null,null,null,null,"Ing. Ildikó Belanová","02 / 59374 762"]
["Dátum:",{"$f":"F6","v":"00:00:00"},null,null,"Mgr. Lýdia Gojda","02 / 59374 636"]
[]
[null,"meno, priezvisko, mobil a podpis osoby oprávnenej vykonávať právne úkony\nv mene prijímateľa (v súlade so stanovami/zriaďovacou listinou)",null,null,null,null,null,null,null,null,null,null,null,{"$f":"O22&\" - \"&P22","v":"026 01 - Šport pre všetkých, školský a univerzitný šport"},"026 01","Šport pre všetkých, školský a univerzitný šport"]
[null,null,null,null,null,null,null,null,null,null,null,null,null,{"$f":"O23&\" - \"&P23","v":"026 02 - Uznané športy"},"026 02","Uznané športy"]
[null,null,null,null,null,null,null,null,null,null,null,null,null,{"$f":"O24&\" - \"&P24","v":"026 03 - Národné športové projekty"},"026 03","Národné športové projekty"]
[null,null,null,null,null,null,null,null,null,null,null,null,null,{"$f":"O25&\" - \"&P25","v":"026 04 - Športová infraštruktúra"},"026 04","Športová infraštruktúra"]
[null,null,null,null,null,null,null,null,null,null,null,null,null,{"$f":"O26&\" - \"&P26","v":"026 05 - Prierezové činnosti v športe"},"026 05","Prierezové činnosti v športe"]
[]
[null,null,null,null,null,null,null,null,null,null,null,null,null,"SK80 8180 0000 0070 0006 5236"]
[null,null,null,null,null,null,null,null,null,null,null,null,null,"SK68 8180 0000 0070 0006 3900"]
[null,null,null,null,null,null,null,null,null,null,null,null,null,"SK94 8180 0000 0070 0006 3820"]

{"sheet":"Avízo_-_vratka","index":9,"n_rows":30,"n_cols":16,"rows_kept":30,"cut":false,"hidden":false,"merged":[[23,1,23,2],[0,0,0,2],[2,4,3,5],[11,0,11,2],[12,0,12,2],[13,1,13,2],[14,1,14,2],[14,5,16,5]]}
[{"$f":"Spolu!C3&\", \"&Spolu!C6","v":"Slovenský zväz vodného lyžovania a wakeboardingu, Junácka 6, Bratislava, 832 80"},null,null,null,null,null,null,null,null,null,null,null,null,{"$f":"O1&\" - \"&P1","v":"a - príspevok uznaným športom"},"a","príspevok uznaným športom"]
[null,null,null,null,null,null,null,null,null,null,null,null,null,"b - príspevok Slovenskému olympijskému a športovému výboru","b","príspevok Slovenskému olympijskému a športovému výboru"]
[null,null,null,null,"1. VYPLŇTE ZELENÉ BUNKY\n2. VYTLAČTE, PODPÍŠTE A ODOŠLITE V LISTINNEJ PODOBE",null,null,null,null,null,null,null,null,"c - príspevok Slovenskému paralympijskému výboru","c","príspevok Slovenskému paralympijskému výboru"]
[null,null,null,null,null,null,null,null,null,null,null,null,null,"d - príspevok športovcom top tímu","d","príspevok športovcom top tímu"]
[null,null,"Ministerstvo školstva, vedy, výskumu a športu Slovenskej republiky",null,null,null,null,null,null,null,null,null,null,"e - rozvoj športov, ktoré nie sú uznanými podľa zákona č. 440/2015 Z. z.","e","rozvoj športov, ktoré nie sú uznanými podľa zákona č. 440/2015 Z. z."]
[null,null,"sekcia športu ",null,"Dátum poukázania vrátených prostriedkov:",null,null,null,null,null,null,null,null,"f - organizovanie významných a tradičných športových podujatí na území SR v roku 2020","f","organizovanie významných a tradičných športových podujatí na území SR v roku 2020"]
[null,null,"Stromová 1",null,"Suma vrátených prostriedkov (eur):",null,null,null,null,null,null,null,null,"g - projekty školského, univerzitného športu a športu pre všetkých","g","projekty školského, univerzitného športu a športu pre všetkých"]
[null,null,"813 30  Bratislava 1",null,"IBAN odosielajúceho účtu:",null,null,null,null,null,null,null,null,"h - podpora a rozvoj turistických a cykloturistických trás","h","podpora a rozvoj turistických a cykloturistických trás"]
[null,null,null,null,"IBAN určeného účtu ministerstva:",null,null,null,null,null,null,null,null,"i - finančné odmeny športovcom za výsledky dosiahnuté v roku 2019 a trénerom mládeže za dosiahnuté výsledky ich športovcov v roku 2019 a za celoživotnú prácu s mládežou","i","finančné odmeny športovcom za výsledky dosiahnuté v roku 2019 a trénerom mládeže za dosiahnuté výsledky ich športovcov v roku 2019 a za celoživotnú prácu s mládežou"]
[null,null,null,null,"Dátum odoslania AVÍZA:",null,null,null,null,null,null,null,null,"j - projekty pre popularizáciu pohybových aktivít detí, mládeže a seniorov","j","projekty pre popularizáciu pohybových aktivít detí, mládeže a seniorov"]
[null,null,null,null,null,null,null,null,null,null,null,null,null,"k - výstavba, modernizácia a rekonštrukcia športovej infraštruktúry národného významu","k","výstavba, modernizácia a rekonštrukcia športovej infraštruktúry národného významu"]
["Avízo o vrátení finančných prostriedkov",null,null,null,null,"SK80 8180 0000 0070 0006 5236\n(výdavkový účet štátneho rozpočtu)\nslúži pre vrátenie nevyčerpaných finančných prostriedkov poskytnutých v r. 2023,  v termíne do 30.11.2023",null,null,null,null,null,null,null,"l - podpora zdravotne postihnutých športovcov","l","podpora zdravotne postihnutých športovcov"]
[{"$f":"\"Oznamujeme Vám, že dňa \"&TEXT(F6,\"dd..mm.yyyy\")&\" sme poukázali Ministerstvu školstva, vedy, výskumu a športu Slovenskej republiky nevyčerpané finančné prostriedky v sume \"&TEXT(F7,\"### ### ###,00\")& \" eur z príspevku/dotácie poskytnutého/poskytnutej na úlohy v oblasti športu v roku 2023. Finančné prostriedky vraciame z programu 026 Národný program rozvoja športu v SR.\"","v":"Oznamujeme Vám, že dňa 00.01.1900 sme poukázali Ministerstvu školstva, vedy, výskumu a športu Slovenskej republiky nevyčerpané finančné prostriedky v sume ,00 eur z príspevku/dotácie poskytnutého/poskytnutej na úlohy v oblasti športu v roku 2023. Finančné prostriedky vraciame z programu 026 Národný program rozvoja športu v SR."},null,null,null,null,"SK68 8180 0000 0070 0006 3900\n(depozitný účet)\nslúži pre vrátenie nevyčerpaných/nezúčtovaných finančných prostriedkov poskytnutých v r.  2023, v termíne od 01.01.2024 do 31.05.2024",null,null,null,null,null,null,null,"m - plnenie úloh verejného záujmu v športe národnými športovými organizáciami","m","plnenie úloh verejného záujmu v športe národnými športovými organizáciami"]
["z podprogramu:","026 03 - Národné športové projekty",null,null,null,"SK92 8180 0000 0070 0006 3759 (príjmový účet) slúži na vrátenie finančných prostriedkov za porušenie finančnej disciplíny",null,null,null,null,null,null,null,"n - ","n"]
["z účelu:",null,null,null,null,"SK94 8180 0000 0070 0006 3820\n(odvody nedaňových príjmov z minulých rokov)\nslúži pre vrátenie nevyčerpaných/nezúčtovaných finančných prostriedkov poskytnutých v r. 2023 a vrátených po 31.05.2024, resp. poskytnutých  v predchádzajúcich rokoch (t. j. pred r. 2023), bez rozdielu termínu ich vrátenia ",null,null,null,null,null,null,null,"o - ","o"]
["z nášho účtu:",{"$f":"F8","v":0},null,null,null,null,null,null,null,null,null,null,null,"p - ","p"]
["na účet:",{"$f":"F9","v":0},null,null,null,null,null,null,null,null,null,null,null,"q - ","q"]
[null,"VS:",31,null,null,null,null,null,null,null,null,null,null,"r - ","r"]
[null,"ŠS:",{"$f":"Spolu!C4","v":"30793203"},null,null,"V prípade nejasností kontaktujte nasledovné osoby:",null,null,null,null,null,null,null," - "]
["Dátum:",{"$f":"F6","v":"00:00:00"},null,null,null,"Ing. Jaroslava Gregoríková","02 / 59374 763"]
[null,null,null,null,null,"Ing. Mária Horáková","02 / 59374 693",null,null,null,null,null,null,{"$f":"O21&\" - \"&P21","v":"026 01 - Šport pre všetkých, školský a univerzitný šport"},"026 01","Šport pre všetkých, školský a univerzitný šport"]
[null,null,null,null,null,"Ing. Ildikó Belanová","02 / 59374 762",null,null,null,null,null,null,{"$f":"O22&\" - \"&P22","v":"026 02 - Uznané športy"},"026 02","Uznané športy"]
[null,null,null,null,null,"Mgr. Lýdia Gojda","02 / 59374 636",null,null,null,null,null,null,{"$f":"O23&\" - \"&P23","v":"026 03 - Národné športové projekty"},"026 03","Národné športové projekty"]
[null,"meno, priezvisko, mobil a podpis osoby oprávnenej vykonávať právne úkony\nv mene prijímateľa (v súlade so stanovami/zriaďovacou listinou)",null,null,null,null,null,null,null,null,null,null,null,{"$f":"O24&\" - \"&P24","v":"026 04 - Športová infraštruktúra"},"026 04","Športová infraštruktúra"]
[null,null,null,null,null,null,null,null,null,null,null,null,null,{"$f":"O25&\" - \"&P25","v":"026 05 - Prierezové činnosti v športe"},"026 05","Prierezové činnosti v športe"]
[]
[null,null,null,null,null,null,null,null,null,null,null,null,null,"SK80 8180 0000 0070 0006 5236"]
[null,null,null,null,null,null,null,null,null,null,null,null,null,"SK68 8180 0000 0070 0006 3900"]
[null,null,null,null,null,null,null,null,null,null,null,null,null,"SK94 8180 0000 0070 0006 3759"]
[null,null,null,null,null,null,null,null,null,null,null,null,null,"SK94 8180 0000 0070 0006 3820"]

{"sheet":"Skratky","index":10,"n_rows":21,"n_cols":2,"rows_kept":21,"cut":false,"hidden":false,"merged":[[1,0,1,1]]}
["Zoznam akceptovaných skratiek"]
["Pri vyúčtovaní môžete používať nasledovné skratky. Ak potrebujete, definujte ďalšie."]
["Skratka","Vysvetlenie"]
["MS","majstrovstvá sveta"]
["ME","majstrovstvá Európy"]
["SP","svetový pohár"]
["EP","európsky pohár"]
["MSR","majstrovstvá Slovenska"]
["VV","výkonný výbor"]
["ŠH","športová hala"]
["PHM","pohonné hmoty"]
["VC","veľká cena"]
["VZ","valné zhromaždenie"]
["EČV","evidenčné číslo vozidla"]
["OA","osobný automobil"]
["BUS","autobus"]
["LOD","loď"]
["LET","lietadlo"]
["VLAK","vlak"]
["ÚTM","útvar talentovanej mládeže"]
["CTM","centrum talentovanej mládeže"]